{"text_format":"3","workbook":"xlsx","n_sheets":17,"sheets":["Vorwort","Zusammenzug","VK Gruppe 1","VK Gruppe 2","VK Gruppe 3","VK Gruppe 4","VK Gruppe 5","VK Gruppe 6","VK Gruppe 7","VK Gruppe 8","VK Gruppe 9","VK Gruppe 10","VK Gruppe 11","VK Gruppe 12","VK Gruppe 13","VK Gruppe 14","VK Gruppe 15"],"not_rendered":{"images":1,"defined_names":16},"read":"whole","date_system":"1900"}

{"sheet":"Vorwort","index":0,"n_rows":6,"n_cols":1,"rows_kept":6}
["Vollkosten in Spielgruppen"]
[]
["Vollkosten können für das gesamte Spielgruppenangebot oder pro Spielgruppenplatz berechnet werden. Letzteres ist ausschlaggebend für den in Rechnung gestellten Elterntarif. Um die Ausgabenposten zu berechnen, muss eine Spielgruppe ihre Leistung, sprich die Vielzahl ihrer Tätigkeiten, benennen. \n\nHäufig ist die Berechnung der Vollkosten daher Ausgangspunkt für eine Leistungsüberprüfung der Spielgruppe: Was ist unser Angebot? Was machen wir genau? Wieso machen wir das? Mit welchen pädagogischen Methoden wollen wir dies erreichen? Welche Weiterbildungen braucht es hierfür? Welche Infrastruktur benötigen wir hierzu? Und was kostet das? Eine genaue Vollkostenrechnung bedingt, dass die Leistungen einer Spielgruppe bestimmt sind und deren Umsetzung definiert ist. \n\nIm Zuge der Diskussionen um Frühe (Sprach-)Förderung, Integration und Vorbereitung auf den Kindergarteneintritt werden heute von verschiedenen Seiten sehr viele Erwartungen – oft unausgesprochen – an die Spielgruppen gestellt. Die Spielgruppen sollen Kinder in ihrer Entwicklung adäquat fördern: In der Sozialkompetenz (Integration in eine Gruppe), in der Selbstkompetenz (z.B. Körperhygiene) oder auch gezielt in der Sachkompetenz (z.B. Erwerb der lokalen Landessprache). Spielgruppen sollen Eltern über unser Bildungssystem informieren, sie gegenseitig vernetzen, Ansprechpartner für die öffentliche Hand sein und mit ganz unterschiedlichen Fachpersonen zusammenarbeiten. \n\nZur Berechnung der Vollkosten sind die vielen Erwartungen als Leistungen zu definieren und in Arbeitsstunden auszuweisen. Damit werden sie berechenbar. Dies kann in Form einer detaillierten Aufstellung pro Leistung oder einer Pauschale erfolgen. Die vorliegende Vollkostenrechnung wurde von Büro Communis erarbeitet. Sie dient einerseits zur Berechnung der Vollkosten und andererseits zur Versachlichung der Diskussionen. "]
["Vollkostenrechnung"]
[]
["Viele Trägerschaften führen mehrere Spielgruppen, welche sich in Dauer und Ausgestaltung unterscheiden. Die Vollkostenrechnung erlaubt, dass mehrere unterschiedliche Gruppen erfasst werden können. Füllen Sie für jede Gruppe ein Berechnungsblatt aus (\"VK Gruppe 1\", \"VK Gruppe 2\" ...). Die Gesamtsummen der verschiedenen Aufwandpositionen aller Gruppen werden im Blatt \"Zusammenzug\" zusammengerechnet. Beachten Sie, dass Orange hinterlegte Felder ausgefüllt werden müssen. Hellblau hinterlegte Felder können ausgefüllt werden. Das Blatt an sich ist geschützt und kann nicht verändert werden. \n\nEmpfehlungen zur Organisation einer Spielgruppe, zur Qualität oder auch zum Lohn finden Sie beim Schweizerischen Spielgruppen-LeiterInnen-Verband SSLV (https://sslv.ch/).  \n\nZusätzliche Erklärungen zur Vollkostenrechnung finden Sie in der Handreichung \"Qualität und Finanzierung für Spielgruppen\" auf der Webseite von Büro Communis (https://www.buero-communis.ch/fileadmin/user_upload/Qualitaet_und_Finanzierung_von_Spielgruppen.pdf ) \n\nUnd bitte vergessen Sie nicht: Auch das Spiel mit Zahlen kann viel Spass machen :-)\nBüro Communis\nMärz 2024"]

{"sheet":"Zusammenzug","index":1,"n_rows":106,"n_cols":3,"rows_kept":106,"merged":[[1,2,1,3],[2,2,2,3],[3,2,3,3]]}
[]
[null,"Spielgruppe",{"$f":"'VK Gruppe 1'!C6:D6","v":0}]
[null,"Berechnungsperiode",{"$f":"'VK Gruppe 1'!C9:D9","v":0}]
[null,"Berechnungsdatum",{"$f":"'VK Gruppe 1'!C10:D10","v":"00:00:00"}]
[]
["Zusammenzug alle Gruppen"]
[]
[]
[null,"Ausgaben"]
[]
[null,"I) Personalkosten"]
[]
[13,"Total Bruttolohn",{"$f":"'VK Gruppe 1'!G140+'VK Gruppe 2'!G140+'VK Gruppe 3'!G140+'VK Gruppe 4'!G140+'VK Gruppe 5'!G140+'VK Gruppe 6'!G140+'VK Gruppe 7'!G140+'VK Gruppe 8'!G140+'VK Gruppe 9'!G140+'VK Gruppe 10'!G140+'VK Gruppe 11'!G140+'VK Gruppe 12'!G140+'VK Gruppe 13'!G140+'VK Gruppe 14'!G140+'VK Gruppe 15'!G140","v":{"v":0,"d":"0.00"}}]
[]
[]
[null,"Arbeitgeberbeiträge Sozialversicherung (AHV, IV, EO, ALV)",{"$f":"'VK Gruppe 1'!G145+'VK Gruppe 2'!G145+'VK Gruppe 3'!G145+'VK Gruppe 4'!G145+'VK Gruppe 5'!G145+'VK Gruppe 6'!G145+'VK Gruppe 7'!G145+'VK Gruppe 8'!G145+'VK Gruppe 9'!G145+'VK Gruppe 10'!G145+'VK Gruppe 11'!G145+'VK Gruppe 12'!G145+'VK Gruppe 13'!G145+'VK Gruppe 14'!G145+'VK Gruppe 15'!G145","v":{"v":0,"d":"0.00"}}]
[null,"evtl. Verwaltungskosten Pensionskasse",{"$f":"'VK Gruppe 1'!G146+'VK Gruppe 2'!G146+'VK Gruppe 3'!G146+'VK Gruppe 4'!G146+'VK Gruppe 5'!G146+'VK Gruppe 6'!G146+'VK Gruppe 7'!G146+'VK Gruppe 8'!G146+'VK Gruppe 9'!G146+'VK Gruppe 10'!G146+'VK Gruppe 11'!G146+'VK Gruppe 12'!G146+'VK Gruppe 13'!G146+'VK Gruppe 14'!G146+'VK Gruppe 15'!G146","v":{"v":0,"d":"0.00"}}]
[null,"evtl. Familienausgleichskasse (FAK)",{"$f":"'VK Gruppe 1'!G147+'VK Gruppe 2'!G147+'VK Gruppe 3'!G147+'VK Gruppe 4'!G147+'VK Gruppe 5'!G147+'VK Gruppe 6'!G147+'VK Gruppe 7'!G147+'VK Gruppe 8'!G147+'VK Gruppe 9'!G147+'VK Gruppe 10'!G147+'VK Gruppe 11'!G147+'VK Gruppe 12'!G147+'VK Gruppe 13'!G147+'VK Gruppe 14'!G147+'VK Gruppe 15'!G147","v":{"v":0,"d":"0.00"}}]
[null,"Berufsunfallversicherung (gemäss Versicherungsangebot der IG Spielgruppe)",{"$f":"'VK Gruppe 1'!G148+'VK Gruppe 2'!G148+'VK Gruppe 3'!G148+'VK Gruppe 4'!G148+'VK Gruppe 5'!G148+'VK Gruppe 6'!G148+'VK Gruppe 7'!G148+'VK Gruppe 8'!G148+'VK Gruppe 9'!G148+'VK Gruppe 10'!G148+'VK Gruppe 11'!G148+'VK Gruppe 12'!G148+'VK Gruppe 13'!G148+'VK Gruppe 14'!G148+'VK Gruppe 15'!G148","v":{"v":0,"d":"0.00"}}]
[null,"Nichtberufsunfallversicherung (gemäss Versicherungsangebot der IG Spielgruppe)",{"$f":"'VK Gruppe 1'!G149+'VK Gruppe 2'!G149+'VK Gruppe 3'!G149+'VK Gruppe 4'!G149+'VK Gruppe 5'!G149+'VK Gruppe 6'!G149+'VK Gruppe 7'!G149+'VK Gruppe 8'!G149+'VK Gruppe 9'!G149+'VK Gruppe 10'!G149+'VK Gruppe 11'!G149+'VK Gruppe 12'!G149+'VK Gruppe 13'!G149+'VK Gruppe 14'!G149+'VK Gruppe 15'!G149","v":{"v":0,"d":"0.00"}}]
[null,"Gemäss Angaben vorne",{"$f":"'VK Gruppe 1'!G150+'VK Gruppe 2'!G150+'VK Gruppe 3'!G150+'VK Gruppe 4'!G150+'VK Gruppe 5'!G150+'VK Gruppe 6'!G150+'VK Gruppe 7'!G150+'VK Gruppe 8'!G150+'VK Gruppe 9'!G150+'VK Gruppe 10'!G150+'VK Gruppe 11'!G150+'VK Gruppe 12'!G150+'VK Gruppe 13'!G150+'VK Gruppe 14'!G150+'VK Gruppe 15'!G150","v":{"v":0,"d":"0.00"}}]
[null,"Gemäss Angaben vorne",{"$f":"'VK Gruppe 1'!G151+'VK Gruppe 2'!G151+'VK Gruppe 3'!G151+'VK Gruppe 4'!G151+'VK Gruppe 5'!G151+'VK Gruppe 6'!G151+'VK Gruppe 7'!G151+'VK Gruppe 8'!G151+'VK Gruppe 9'!G151+'VK Gruppe 10'!G151+'VK Gruppe 11'!G151+'VK Gruppe 12'!G151+'VK Gruppe 13'!G151+'VK Gruppe 14'!G151+'VK Gruppe 15'!G151","v":{"v":0,"d":"0.00"}}]
[null,"Gemäss Angaben vorne",{"$f":"'VK Gruppe 1'!G152+'VK Gruppe 2'!G152+'VK Gruppe 3'!G152+'VK Gruppe 4'!G152+'VK Gruppe 5'!G152+'VK Gruppe 6'!G152+'VK Gruppe 7'!G152+'VK Gruppe 8'!G152+'VK Gruppe 9'!G152+'VK Gruppe 10'!G152+'VK Gruppe 11'!G152+'VK Gruppe 12'!G152+'VK Gruppe 13'!G152+'VK Gruppe 14'!G152+'VK Gruppe 15'!G152","v":{"v":0,"d":"0.00"}}]
[14,"Total Lohnnebenkosten",{"$f":"SUM(C16:C23)","v":{"v":0,"d":"0.00"}}]
[]
[15,"Total Lohnkosten (Positionen 13 + 14)",{"$f":"C13+C24","v":{"v":0,"d":"0.00"}}]
[]
[]
[null,"Weiterbildungskosten Personal",{"$f":"'VK Gruppe 1'!G158+'VK Gruppe 2'!G158+'VK Gruppe 3'!G158+'VK Gruppe 4'!G158+'VK Gruppe 5'!G158+'VK Gruppe 6'!G158+'VK Gruppe 7'!G158+'VK Gruppe 8'!G158+'VK Gruppe 9'!G158+'VK Gruppe 10'!G158+'VK Gruppe 11'!G158+'VK Gruppe 12'!G158+'VK Gruppe 13'!G158+'VK Gruppe 14'!G158+'VK Gruppe 15'!G158","v":{"v":0,"d":"0.00"}}]
[null,"Mitgliederbeiträge (Beiträge SSLV + regionale FKS x Anzahl Mitarbeiterinnen)",{"$f":"'VK Gruppe 1'!G159+'VK Gruppe 2'!G159+'VK Gruppe 3'!G159+'VK Gruppe 4'!G159+'VK Gruppe 5'!G159+'VK Gruppe 6'!G159+'VK Gruppe 7'!G159+'VK Gruppe 8'!G159+'VK Gruppe 9'!G159+'VK Gruppe 10'!G159+'VK Gruppe 11'!G159+'VK Gruppe 12'!G159+'VK Gruppe 13'!G159+'VK Gruppe 14'!G159+'VK Gruppe 15'!G159","v":{"v":0,"d":"0.00"}}]
[null,"Vergütung Vorstandsarbeit",{"$f":"'VK Gruppe 1'!G160+'VK Gruppe 2'!G160+'VK Gruppe 3'!G160+'VK Gruppe 4'!G160+'VK Gruppe 5'!G160+'VK Gruppe 6'!G160+'VK Gruppe 7'!G160+'VK Gruppe 8'!G160+'VK Gruppe 9'!G160+'VK Gruppe 10'!G160+'VK Gruppe 11'!G160+'VK Gruppe 12'!G160+'VK Gruppe 13'!G160+'VK Gruppe 14'!G160+'VK Gruppe 15'!G160","v":{"v":0,"d":"0.00"}}]
[null,"Gemäss Angaben vorne",{"$f":"'VK Gruppe 1'!G161+'VK Gruppe 2'!G161+'VK Gruppe 3'!G161+'VK Gruppe 4'!G161+'VK Gruppe 5'!G161+'VK Gruppe 6'!G161+'VK Gruppe 7'!G161+'VK Gruppe 8'!G161+'VK Gruppe 9'!G161+'VK Gruppe 10'!G161+'VK Gruppe 11'!G161+'VK Gruppe 12'!G161+'VK Gruppe 13'!G161+'VK Gruppe 14'!G161+'VK Gruppe 15'!G161","v":{"v":0,"d":"0.00"}}]
[null,"Gemäss Angaben vorne",{"$f":"'VK Gruppe 1'!G162+'VK Gruppe 2'!G162+'VK Gruppe 3'!G162+'VK Gruppe 4'!G162+'VK Gruppe 5'!G162+'VK Gruppe 6'!G162+'VK Gruppe 7'!G162+'VK Gruppe 8'!G162+'VK Gruppe 9'!G162+'VK Gruppe 10'!G162+'VK Gruppe 11'!G162+'VK Gruppe 12'!G162+'VK Gruppe 13'!G162+'VK Gruppe 14'!G162+'VK Gruppe 15'!G162","v":{"v":0,"d":"0.00"}}]
[16,"Personalkosten diverses",{"$f":"SUM(C29:C33)","v":{"v":0,"d":"0.00"}}]
[]
[17,"Personalkosten total (Positionen 15 + 16)",{"$f":"C26+C34","v":{"v":0,"d":"0.00"}}]
[]
[]
[null,"II) Betriebskosten "]
[]
[null,"Miete",{"$f":"'VK Gruppe 1'!G173+'VK Gruppe 2'!G173+'VK Gruppe 3'!G173+'VK Gruppe 4'!G173+'VK Gruppe 5'!G173+'VK Gruppe 6'!G173+'VK Gruppe 7'!G173+'VK Gruppe 8'!G173+'VK Gruppe 9'!G173+'VK Gruppe 10'!G173+'VK Gruppe 11'!G173+'VK Gruppe 12'!G173+'VK Gruppe 13'!G173+'VK Gruppe 14'!G173+'VK Gruppe 15'!G173","v":{"v":0,"d":"0.00"}}]
[null,"Betriebshaftpflichtversicherung",{"$f":"'VK Gruppe 1'!G174+'VK Gruppe 2'!G174+'VK Gruppe 3'!G174+'VK Gruppe 4'!G174+'VK Gruppe 5'!G174+'VK Gruppe 6'!G174+'VK Gruppe 7'!G174+'VK Gruppe 8'!G174+'VK Gruppe 9'!G174+'VK Gruppe 10'!G174+'VK Gruppe 11'!G174+'VK Gruppe 12'!G174+'VK Gruppe 13'!G174+'VK Gruppe 14'!G174+'VK Gruppe 15'!G174","v":{"v":0,"d":"0.00"}}]
[null,"Geschäftsversicherung",{"$f":"'VK Gruppe 1'!G175+'VK Gruppe 2'!G175+'VK Gruppe 3'!G175+'VK Gruppe 4'!G175+'VK Gruppe 5'!G175+'VK Gruppe 6'!G175+'VK Gruppe 7'!G175+'VK Gruppe 8'!G175+'VK Gruppe 9'!G175+'VK Gruppe 10'!G175+'VK Gruppe 11'!G175+'VK Gruppe 12'!G175+'VK Gruppe 13'!G175+'VK Gruppe 14'!G175+'VK Gruppe 15'!G175","v":{"v":0,"d":"0.00"}}]
[null,"Buchhaltung, Administration",{"$f":"'VK Gruppe 1'!G176+'VK Gruppe 2'!G176+'VK Gruppe 3'!G176+'VK Gruppe 4'!G176+'VK Gruppe 5'!G176+'VK Gruppe 6'!G176+'VK Gruppe 7'!G176+'VK Gruppe 8'!G176+'VK Gruppe 9'!G176+'VK Gruppe 10'!G176+'VK Gruppe 11'!G176+'VK Gruppe 12'!G176+'VK Gruppe 13'!G176+'VK Gruppe 14'!G176+'VK Gruppe 15'!G176","v":{"v":0,"d":"0.00"}}]
[null,"Spesen Kontoführung ",{"$f":"'VK Gruppe 1'!G177+'VK Gruppe 2'!G177+'VK Gruppe 3'!G177+'VK Gruppe 4'!G177+'VK Gruppe 5'!G177+'VK Gruppe 6'!G177+'VK Gruppe 7'!G177+'VK Gruppe 8'!G177+'VK Gruppe 9'!G177+'VK Gruppe 10'!G177+'VK Gruppe 11'!G177+'VK Gruppe 12'!G177+'VK Gruppe 13'!G177+'VK Gruppe 14'!G177+'VK Gruppe 15'!G177","v":{"v":0,"d":"0.00"}}]
[null,"Geschäftsführung, Vereinsleitung, Sitzungsgelder ",{"$f":"'VK Gruppe 1'!G178+'VK Gruppe 2'!G178+'VK Gruppe 3'!G178+'VK Gruppe 4'!G178+'VK Gruppe 5'!G178+'VK Gruppe 6'!G178+'VK Gruppe 7'!G178+'VK Gruppe 8'!G178+'VK Gruppe 9'!G178+'VK Gruppe 10'!G178+'VK Gruppe 11'!G178+'VK Gruppe 12'!G178+'VK Gruppe 13'!G178+'VK Gruppe 14'!G178+'VK Gruppe 15'!G178","v":{"v":0,"d":"0.00"}}]
[null,"Diverses Pauschal",{"$f":"'VK Gruppe 1'!G179+'VK Gruppe 2'!G179+'VK Gruppe 3'!G179+'VK Gruppe 4'!G179+'VK Gruppe 5'!G179+'VK Gruppe 6'!G179+'VK Gruppe 7'!G179+'VK Gruppe 8'!G179+'VK Gruppe 9'!G179+'VK Gruppe 10'!G179+'VK Gruppe 11'!G179+'VK Gruppe 12'!G179+'VK Gruppe 13'!G179+'VK Gruppe 14'!G179+'VK Gruppe 15'!G179","v":{"v":0,"d":"0.00"}}]
[null,"Gemäss Angaben vorne",{"$f":"'VK Gruppe 1'!G180+'VK Gruppe 2'!G180+'VK Gruppe 3'!G180+'VK Gruppe 4'!G180+'VK Gruppe 5'!G180+'VK Gruppe 6'!G180+'VK Gruppe 7'!G180+'VK Gruppe 8'!G180+'VK Gruppe 9'!G180+'VK Gruppe 10'!G180+'VK Gruppe 11'!G180+'VK Gruppe 12'!G180+'VK Gruppe 13'!G180+'VK Gruppe 14'!G180+'VK Gruppe 15'!G180","v":{"v":0,"d":"0.00"}}]
[18,"fixe Betriebskosten",{"$f":"SUM(C41:C48)","v":{"v":0,"d":"0.00"}}]
[]
[]
[null,"Verpflegung Z'Nüni/Z'Vieri ",{"$f":"'VK Gruppe 1'!G184+'VK Gruppe 2'!G184+'VK Gruppe 3'!G184+'VK Gruppe 4'!G184+'VK Gruppe 5'!G184+'VK Gruppe 6'!G184+'VK Gruppe 7'!G184+'VK Gruppe 8'!G184+'VK Gruppe 9'!G184+'VK Gruppe 10'!G184+'VK Gruppe 11'!G184+'VK Gruppe 12'!G184+'VK Gruppe 13'!G184+'VK Gruppe 14'!G184+'VK Gruppe 15'!G184","v":{"v":0,"d":"0.00"}}]
[null,"Verbrauchsmaterial",{"$f":"'VK Gruppe 1'!G185+'VK Gruppe 2'!G185+'VK Gruppe 3'!G185+'VK Gruppe 4'!G185+'VK Gruppe 5'!G185+'VK Gruppe 6'!G185+'VK Gruppe 7'!G185+'VK Gruppe 8'!G185+'VK Gruppe 9'!G185+'VK Gruppe 10'!G185+'VK Gruppe 11'!G185+'VK Gruppe 12'!G185+'VK Gruppe 13'!G185+'VK Gruppe 14'!G185+'VK Gruppe 15'!G185","v":{"v":0,"d":"0.00"}}]
[null,"Spielmaterial, Kinderbücher",{"$f":"'VK Gruppe 1'!G186+'VK Gruppe 2'!G186+'VK Gruppe 3'!G186+'VK Gruppe 4'!G186+'VK Gruppe 5'!G186+'VK Gruppe 6'!G186+'VK Gruppe 7'!G186+'VK Gruppe 8'!G186+'VK Gruppe 9'!G186+'VK Gruppe 10'!G186+'VK Gruppe 11'!G186+'VK Gruppe 12'!G186+'VK Gruppe 13'!G186+'VK Gruppe 14'!G186+'VK Gruppe 15'!G186","v":{"v":0,"d":"0.00"}}]
[null,"Ausflüge, Spielgruppenreise",{"$f":"'VK Gruppe 1'!G187+'VK Gruppe 2'!G187+'VK Gruppe 3'!G187+'VK Gruppe 4'!G187+'VK Gruppe 5'!G187+'VK Gruppe 6'!G187+'VK Gruppe 7'!G187+'VK Gruppe 8'!G187+'VK Gruppe 9'!G187+'VK Gruppe 10'!G187+'VK Gruppe 11'!G187+'VK Gruppe 12'!G187+'VK Gruppe 13'!G187+'VK Gruppe 14'!G187+'VK Gruppe 15'!G187","v":{"v":0,"d":"0.00"}}]
[null,"Elternabende/-aktivitäten",{"$f":"'VK Gruppe 1'!G188+'VK Gruppe 2'!G188+'VK Gruppe 3'!G188+'VK Gruppe 4'!G188+'VK Gruppe 5'!G188+'VK Gruppe 6'!G188+'VK Gruppe 7'!G188+'VK Gruppe 8'!G188+'VK Gruppe 9'!G188+'VK Gruppe 10'!G188+'VK Gruppe 11'!G188+'VK Gruppe 12'!G188+'VK Gruppe 13'!G188+'VK Gruppe 14'!G188+'VK Gruppe 15'!G188","v":{"v":0,"d":"0.00"}}]
[null,"Mobiliar (Neuanschaffungen, Unterhalt/Reparatur)",{"$f":"'VK Gruppe 1'!G189+'VK Gruppe 2'!G189+'VK Gruppe 3'!G189+'VK Gruppe 4'!G189+'VK Gruppe 5'!G189+'VK Gruppe 6'!G189+'VK Gruppe 7'!G189+'VK Gruppe 8'!G189+'VK Gruppe 9'!G189+'VK Gruppe 10'!G189+'VK Gruppe 11'!G189+'VK Gruppe 12'!G189+'VK Gruppe 13'!G189+'VK Gruppe 14'!G189+'VK Gruppe 15'!G189","v":{"v":0,"d":"0.00"}}]
[null,"Porto",{"$f":"'VK Gruppe 1'!G190+'VK Gruppe 2'!G190+'VK Gruppe 3'!G190+'VK Gruppe 4'!G190+'VK Gruppe 5'!G190+'VK Gruppe 6'!G190+'VK Gruppe 7'!G190+'VK Gruppe 8'!G190+'VK Gruppe 9'!G190+'VK Gruppe 10'!G190+'VK Gruppe 11'!G190+'VK Gruppe 12'!G190+'VK Gruppe 13'!G190+'VK Gruppe 14'!G190+'VK Gruppe 15'!G190","v":{"v":0,"d":"0.00"}}]
[null,"Telefon",{"$f":"'VK Gruppe 1'!G191+'VK Gruppe 2'!G191+'VK Gruppe 3'!G191+'VK Gruppe 4'!G191+'VK Gruppe 5'!G191+'VK Gruppe 6'!G191+'VK Gruppe 7'!G191+'VK Gruppe 8'!G191+'VK Gruppe 9'!G191+'VK Gruppe 10'!G191+'VK Gruppe 11'!G191+'VK Gruppe 12'!G191+'VK Gruppe 13'!G191+'VK Gruppe 14'!G191+'VK Gruppe 15'!G191","v":{"v":0,"d":"0.00"}}]
[null,"Druckkosten",{"$f":"'VK Gruppe 1'!G192+'VK Gruppe 2'!G192+'VK Gruppe 3'!G192+'VK Gruppe 4'!G192+'VK Gruppe 5'!G192+'VK Gruppe 6'!G192+'VK Gruppe 7'!G192+'VK Gruppe 8'!G192+'VK Gruppe 9'!G192+'VK Gruppe 10'!G192+'VK Gruppe 11'!G192+'VK Gruppe 12'!G192+'VK Gruppe 13'!G192+'VK Gruppe 14'!G192+'VK Gruppe 15'!G192","v":{"v":0,"d":"0.00"}}]
[null,"Öffentlichkeitsarbeit, Werbung",{"$f":"'VK Gruppe 1'!G193+'VK Gruppe 2'!G193+'VK Gruppe 3'!G193+'VK Gruppe 4'!G193+'VK Gruppe 5'!G193+'VK Gruppe 6'!G193+'VK Gruppe 7'!G193+'VK Gruppe 8'!G193+'VK Gruppe 9'!G193+'VK Gruppe 10'!G193+'VK Gruppe 11'!G193+'VK Gruppe 12'!G193+'VK Gruppe 13'!G193+'VK Gruppe 14'!G193+'VK Gruppe 15'!G193","v":{"v":0,"d":"0.00"}}]
[null,"Geschenke",{"$f":"'VK Gruppe 1'!G194+'VK Gruppe 2'!G194+'VK Gruppe 3'!G194+'VK Gruppe 4'!G194+'VK Gruppe 5'!G194+'VK Gruppe 6'!G194+'VK Gruppe 7'!G194+'VK Gruppe 8'!G194+'VK Gruppe 9'!G194+'VK Gruppe 10'!G194+'VK Gruppe 11'!G194+'VK Gruppe 12'!G194+'VK Gruppe 13'!G194+'VK Gruppe 14'!G194+'VK Gruppe 15'!G194","v":{"v":0,"d":"0.00"}}]
[null,"Fachliteratur, Abo Spielgruppenzeitung",{"$f":"'VK Gruppe 1'!G195+'VK Gruppe 2'!G195+'VK Gruppe 3'!G195+'VK Gruppe 4'!G195+'VK Gruppe 5'!G195+'VK Gruppe 6'!G195+'VK Gruppe 7'!G195+'VK Gruppe 8'!G195+'VK Gruppe 9'!G195+'VK Gruppe 10'!G195+'VK Gruppe 11'!G195+'VK Gruppe 12'!G195+'VK Gruppe 13'!G195+'VK Gruppe 14'!G195+'VK Gruppe 15'!G195","v":{"v":0,"d":"0.00"}}]
[null,"Diverses Pauschal",{"$f":"'VK Gruppe 1'!G196+'VK Gruppe 2'!G196+'VK Gruppe 3'!G196+'VK Gruppe 4'!G196+'VK Gruppe 5'!G196+'VK Gruppe 6'!G196+'VK Gruppe 7'!G196+'VK Gruppe 8'!G196+'VK Gruppe 9'!G196+'VK Gruppe 10'!G196+'VK Gruppe 11'!G196+'VK Gruppe 12'!G196+'VK Gruppe 13'!G196+'VK Gruppe 14'!G196+'VK Gruppe 15'!G196","v":{"v":0,"d":"0.00"}}]
[null,"Gemäss Angaben vorne",{"$f":"'VK Gruppe 1'!G197+'VK Gruppe 2'!G197+'VK Gruppe 3'!G197+'VK Gruppe 4'!G197+'VK Gruppe 5'!G197+'VK Gruppe 6'!G197+'VK Gruppe 7'!G197+'VK Gruppe 8'!G197+'VK Gruppe 9'!G197+'VK Gruppe 10'!G197+'VK Gruppe 11'!G197+'VK Gruppe 12'!G197+'VK Gruppe 13'!G197+'VK Gruppe 14'!G197+'VK Gruppe 15'!G197","v":{"v":0,"d":"0.00"}}]
[null,"Gemäss Angaben vorne",{"$f":"'VK Gruppe 1'!G198+'VK Gruppe 2'!G198+'VK Gruppe 3'!G198+'VK Gruppe 4'!G198+'VK Gruppe 5'!G198+'VK Gruppe 6'!G198+'VK Gruppe 7'!G198+'VK Gruppe 8'!G198+'VK Gruppe 9'!G198+'VK Gruppe 10'!G198+'VK Gruppe 11'!G198+'VK Gruppe 12'!G198+'VK Gruppe 13'!G198+'VK Gruppe 14'!G198+'VK Gruppe 15'!G198","v":{"v":0,"d":"0.00"}}]
[19,"variable Betriebskosten ",{"$f":"SUM(C52:C66)","v":{"v":0,"d":"0.00"}}]
[]
[]
[null,"Rückstellungen (Krankheit, Anschaffungen etc.)",{"$f":"'VK Gruppe 1'!G202+'VK Gruppe 2'!G202+'VK Gruppe 3'!G202+'VK Gruppe 4'!G202+'VK Gruppe 5'!G202+'VK Gruppe 6'!G202+'VK Gruppe 7'!G202+'VK Gruppe 8'!G202+'VK Gruppe 9'!G202+'VK Gruppe 10'!G202+'VK Gruppe 11'!G202+'VK Gruppe 12'!G202+'VK Gruppe 13'!G202+'VK Gruppe 14'!G202+'VK Gruppe 15'!G202","v":{"v":0,"d":"0.00"}}]
[null,"Gemäss Angaben vorne",{"$f":"'VK Gruppe 1'!G203+'VK Gruppe 2'!G203+'VK Gruppe 3'!G203+'VK Gruppe 4'!G203+'VK Gruppe 5'!G203+'VK Gruppe 6'!G203+'VK Gruppe 7'!G203+'VK Gruppe 8'!G203+'VK Gruppe 9'!G203+'VK Gruppe 10'!G203+'VK Gruppe 11'!G203+'VK Gruppe 12'!G203+'VK Gruppe 13'!G203+'VK Gruppe 14'!G203+'VK Gruppe 15'!G203","v":{"v":0,"d":"0.00"}}]
[20,"Rückstellungen ",{"$f":"SUM(C70:C71)","v":{"v":0,"d":"0.00"}}]
[]
[21,"Betriebskosten total (Positionen 18 + 19 + 20)",{"$f":"C49+C67+C72","v":{"v":0,"d":"0.00"}}]
[]
[]
[22,"III) Vollkosten (Postion 17 + 21)",{"$f":"C36+C74","v":{"v":0,"d":"0.00"}}]
[]
[]
[null,"Einnahmen"]
[]
[null,"I) Elternbeiträge"]
[]
[24,"Total Elternbeiträge",{"$f":"'VK Gruppe 1'!G222+'VK Gruppe 2'!G222+'VK Gruppe 3'!G222+'VK Gruppe 4'!G222+'VK Gruppe 5'!G222+'VK Gruppe 6'!G222+'VK Gruppe 7'!G222+'VK Gruppe 8'!G222+'VK Gruppe 9'!G222+'VK Gruppe 10'!G222+'VK Gruppe 11'!G222+'VK Gruppe 12'!G222+'VK Gruppe 13'!G222+'VK Gruppe 14'!G222+'VK Gruppe 15'!G222","v":{"v":0,"d":"0.00"}}]
[]
[null,"II) Beiträge Dritte"]
[null,"Spenden",{"$f":"'VK Gruppe 1'!G225+'VK Gruppe 2'!G225+'VK Gruppe 3'!G225+'VK Gruppe 4'!G225+'VK Gruppe 5'!G225+'VK Gruppe 6'!G225+'VK Gruppe 7'!G225+'VK Gruppe 8'!G225+'VK Gruppe 9'!G225+'VK Gruppe 10'!G225+'VK Gruppe 11'!G225+'VK Gruppe 12'!G225+'VK Gruppe 13'!G225+'VK Gruppe 14'!G225+'VK Gruppe 15'!G225","v":{"v":0,"d":"0.00"}}]
[null,"Beitrag Gemeinde",{"$f":"'VK Gruppe 1'!G226+'VK Gruppe 2'!G226+'VK Gruppe 3'!G226+'VK Gruppe 4'!G226+'VK Gruppe 5'!G226+'VK Gruppe 6'!G226+'VK Gruppe 7'!G226+'VK Gruppe 8'!G226+'VK Gruppe 9'!G226+'VK Gruppe 10'!G226+'VK Gruppe 11'!G226+'VK Gruppe 12'!G226+'VK Gruppe 13'!G226+'VK Gruppe 14'!G226+'VK Gruppe 15'!G226","v":{"v":0,"d":"0.00"}}]
[null,"Beitrag Kirche",{"$f":"'VK Gruppe 1'!G227+'VK Gruppe 2'!G227+'VK Gruppe 3'!G227+'VK Gruppe 4'!G227+'VK Gruppe 5'!G227+'VK Gruppe 6'!G227+'VK Gruppe 7'!G227+'VK Gruppe 8'!G227+'VK Gruppe 9'!G227+'VK Gruppe 10'!G227+'VK Gruppe 11'!G227+'VK Gruppe 12'!G227+'VK Gruppe 13'!G227+'VK Gruppe 14'!G227+'VK Gruppe 15'!G227","v":{"v":0,"d":"0.00"}}]
[null,"Beitrag Kanton",{"$f":"'VK Gruppe 1'!G228+'VK Gruppe 2'!G228+'VK Gruppe 3'!G228+'VK Gruppe 4'!G228+'VK Gruppe 5'!G228+'VK Gruppe 6'!G228+'VK Gruppe 7'!G228+'VK Gruppe 8'!G228+'VK Gruppe 9'!G228+'VK Gruppe 10'!G228+'VK Gruppe 11'!G228+'VK Gruppe 12'!G228+'VK Gruppe 13'!G228+'VK Gruppe 14'!G228+'VK Gruppe 15'!G228","v":{"v":0,"d":"0.00"}}]
[null,"Gemäss Angaben vorne",{"$f":"'VK Gruppe 1'!G229+'VK Gruppe 2'!G229+'VK Gruppe 3'!G229+'VK Gruppe 4'!G229+'VK Gruppe 5'!G229+'VK Gruppe 6'!G229+'VK Gruppe 7'!G229+'VK Gruppe 8'!G229+'VK Gruppe 9'!G229+'VK Gruppe 10'!G229+'VK Gruppe 11'!G229+'VK Gruppe 12'!G229+'VK Gruppe 13'!G229+'VK Gruppe 14'!G229+'VK Gruppe 15'!G229","v":{"v":0,"d":"0.00"}}]
[null,"Gemäss Angaben vorne",{"$f":"'VK Gruppe 1'!G230+'VK Gruppe 2'!G230+'VK Gruppe 3'!G230+'VK Gruppe 4'!G230+'VK Gruppe 5'!G230+'VK Gruppe 6'!G230+'VK Gruppe 7'!G230+'VK Gruppe 8'!G230+'VK Gruppe 9'!G230+'VK Gruppe 10'!G230+'VK Gruppe 11'!G230+'VK Gruppe 12'!G230+'VK Gruppe 13'!G230+'VK Gruppe 14'!G230+'VK Gruppe 15'!G230","v":{"v":0,"d":"0.00"}}]
[25,"Total Beiträge Dritte",{"$f":"SUM(C87:C92)","v":{"v":0,"d":"0.00"}}]
[]
[26,"Total Einnahmen (Positionen 24 + 25)",{"$f":"C84+C93","v":{"v":0,"d":"0.00"}}]
[]
[]
[null,"Erfolgsrechnung"]
[]
[null,"Total Einnahmen (Position 26)",{"$f":"C95","v":{"v":0,"d":"0.00"}}]
[null,"Total Ausgaben (Position 22)",{"$f":"C77","v":{"v":0,"d":"0.00"}}]
[27,"Übertrag in Reserve (falls Einnahmen höher als Ausgaben)",{"v":0,"d":"0.00"}]
[28,"Übertrag aus Reserven (falls Ausgaben höher als Einnahmen)",{"v":0,"d":"0.00"}]
[29,"Saldo",{"$f":"C100-C101-C102+C103","v":{"v":0,"d":"0.00"}}]
[]
[30,"Gewinn oder Verlust / bzw. Eigenleistung Spielgruppenleiterinnen",{"$f":"C104","v":{"v":0,"d":"0.00"}}]

{"sheet":"VK Gruppe 1","index":2,"n_rows":248,"n_cols":13,"rows_kept":248,"merged":[[5,2,5,3],[6,2,6,3],[7,2,7,3],[8,2,8,3],[9,2,9,3],[18,5,20,9],[22,5,23,9],[30,3,30,4],[31,5,32,9],[34,5,34,9],[37,5,39,9],[40,3,40,4],[44,5,44,9],[48,3,48,4],[52,5,52,9],[56,3,56,4],[60,5,60,9],[70,5,70,9],[71,5,71,9],[72,5,72,9],[80,5,80,9],[81,5,81,9],[82,5,82,9],[83,5,83,9],[84,5,84,9],[86,5,86,9],[139,7,140,9],[142,7,143,9],[145,7,146,9],[172,3,172,4],[173,3,173,4],[174,3,174,4],[175,3,175,4],[176,3,176,4],[177,3,177,4],[178,3,178,4],[179,3,179,4],[183,3,183,4],[184,3,184,4],[185,3,185,4],[186,3,186,4],[187,3,187,4],[188,3,188,4],[189,3,189,4],[190,3,190,4],[191,3,191,4],[192,3,192,4],[193,3,193,4],[194,3,194,4],[195,3,195,4],[196,3,196,4],[197,3,197,4],[201,3,201,4],[202,3,202,4],[218,7,220,9],[224,3,224,4],[225,3,225,4],[226,3,226,4],[227,3,227,4],[228,3,228,4],[229,3,229,4],[239,3,239,4],[240,3,240,4],[247,1,247,9],[248,1,248,9],[249,1,249,9],[250,1,250,9],[251,1,251,9],[252,1,252,9],[253,1,253,9],[254,1,254,9],[255,1,255,9],[256,1,256,9],[257,1,257,9],[258,1,258,9],[259,1,259,9]]}
[]
[null,"Hellblaue Felder können eingefüllt werden"]
[null,"Orange Felder müssen eingefüllt werden"]
[]
[]
[null,"Spielgruppe"]
[null,"Name Gruppe"]
[null,"Durchführung pro Woche"]
[null,"Berechnungsperiode"]
[null,"Berechnungsdatum"]
[]
[null,"Berechnung Arbeitszeit pro Gruppe"]
[]
[null,"I) Basisdaten"]
["Position"]
[1,"Anzahl Spielgruppenwochen pro Berechnungsperiode:",0,"Wochen"]
[2,"Anzahl Durchführung pro Woche",0,"Anzahl pro Woche"]
[3,"Anzahl Plätze bei Vollbelegung",0,"Plätze"]
[4,"erwartete Jahresauslastung in Prozent",{"v":0,"d":"0%"},"Prozent",null,"Hinweis: Können alle Plätze voll verrechnet werden ist die Jahresauslastung 100%. Können nicht alle Plätze voll verrechnet werden (z.B. offene Plätze, späterer Einstieg) liegt die Jahresauslastung unter 100%."]
[]
[]
[]
["5a","Anzahl Spielgruppenstunden pro Durchführung",0,"Stunden",null,"Hinweis: Bei mehreren Durchführungen pro Woche durchschnittliche Dauer eintragen, falls Länge der Durchführung unterschiedlich"]
["5b","Vorbereitung pro Durchführung (inkl. Administration, Einkauf, Raum vorbereiten)",0,"Stunden"]
["5c","Nachbereitung pro Durchführung (inkl. Aufräumen, Tür-und-Angel-Elterngespräche)",0,"Stunden"]
[]
[]
[null,"II) Arbeitszeit pro Person und Durchführung"]
[]
[{"$nulls":3},"Anzahl Stunden"]
[null,"Gruppenleitung 1","Name"]
[null,".Spielgruppenstunden (Position 5a)","ja",{"$f":"IF(C32=\"ja\",C23,0)","v":0},null,"Hinweis: \"ja\" bedeutet, dass der Posten als bezahlte Arbeitszeit angerechnet wird, \"nein\" bedeutet, dass der Posten nicht angerechnet wird."]
[null,".Vorbereitung (Position 5b)","ja",{"$f":"IF(C33=\"ja\",C24,0)","v":0}]
[null,".Nachbereitung (Position 5c)","ja",{"$f":"IF(C34=\"ja\",C25,0)","v":0}]
[null,".Optional: andere Stundenzahl als Positionen 5b / 5c für Vor- und Nachbereitung",null,null,"Anmerkung:"]
["6a","Total Gruppenleitung 1",null,{"$f":"SUM(D32:D35)","v":0}]
[]
[null,"Wird eine zweite Gruppenleitung eingesetzt?","nein",null,null,"Hinweis: In der Regel wird eine SG von einer ausgebildeten Spielgruppenleiterin geleitet. Unterstützt wird sie in manchen SG von einer Assistenz / Begleitperson. In wenigen SG werden zwei ausgebildete Spielgruppenleiterinnen oder gar drei Personen eingesetzt."]
[]
[]
[null,"Gruppenleitung 2","Name"]
[null,".Spielgruppenstunden (Position 5a)","nein",{"$f":"IF(C42=\"ja\",C23,0)","v":0}]
[null,".Vorbereitung (Position 5b)","nein",{"$f":"IF(C43=\"ja\",C24,0)","v":0}]
[null,".Nachbereitung (Position 5c)","nein",{"$f":"IF(C44=\"ja\",C25,0)","v":0}]
[null,".Optional: andere Stundenzahl als Positionen 5b / 5c für Vor- und Nachbereitung",null,null,"Anmerkung:"]
["6b","Total Gruppenleitung 2",null,{"$f":"SUM(D42:D45)","v":0}]
[]
[null,"Wird eine Begleitperson in der Gruppe eingesetzt?","ja"]
[null,"Assistenz / Begleitperson 1 ","Name"]
[null,".Spielgruppenstunden (Position 5a)","ja",{"$f":"IF(C50=\"ja\",C23,0)","v":0}]
[null,".Vorbereitung (Position 5b)","nein",{"$f":"IF(C51=\"ja\",C24,0)","v":0}]
[null,".Nachbereitung (Position 5c)","nein",{"$f":"IF(C52=\"ja\",C25,0)","v":0}]
[null,".Optional: andere Stundenzahl als Positionen 5b / 5c für Vor- und Nachbereitung",null,0,"Anmerkung:"]
["6c","Total Assistenz / Begleitperson 1 ",null,{"$f":"SUM(D50:D53)","v":0}]
[]
[null,"Wird eine zweite Begleitperson in der Gruppe eingesetzt?","nein"]
[null,"Assistenz / Begleitperson 2 ","Name"]
[null,".Spielgruppenstunden (Position 5a)","nein",{"$f":"IF(C58=\"ja\",C23,0)","v":0}]
[null,".Vorbereitung (Position 5b)","nein",{"$f":"IF(C59=\"ja\",C24,0)","v":0}]
[null,".Nachbereitung (Position 5c)","nein",{"$f":"IF(C60=\"ja\",C25,0)","v":0}]
[null,".Optional: andere Stundenzahl als Positionen 5b / 5c für Vor- und Nachbereitung",null,null,"Anmerkung:"]
["6d","Total Assistenz / Begleitperson 2 ",null,{"$f":"SUM(D58:D61)","v":0}]
[]
[]
[null,"III) Leitungsaufwand pro Gruppe und Jahr (nur Gruppenleitung)"]
[]
[null,"Jahresplanung/Erstellen Elterninformationen/Einteilungen",0,"Stunden"]
[null,"Planungssitzungen mit Gemeinde/Schule/Fachstellen (Anzahl Gespräche x 1.5 Stunden)",{"$f":"F68*1.5","v":0},"Stunden","Anzahl Gespräche",0]
[null,"Kontakte Schule/Fachpersonen (Anzahl Gespräche x 0.5 Stunden)",{"$f":"F69*0.5","v":0},"Stunden","Anzahl Gespräche",0]
[null,"spezifische Elternkontakte (Anzahl Gespräche x 0.5 Stunden)",{"$f":"F70*0.5","v":0},"Stunden","Anzahl Gespräche",0]
[null,"…",0,"Stunden","Anmerkungen:"]
[null,"…",0,"Stunden","Anmerkungen:"]
[null,"…",0,"Stunden","Anmerkungen:"]
[7,"Total Leitungsaufwand pro Spielgruppe in Stunden (nur Gruppenleitung)",{"$f":"SUM(C67:C73)","v":0}]
[]
[null,"Wird der Leitungsaufwand zwischen zwei Gruppenleitungen aufgeteilt?","nein",null,null,"Hinweis: nur möglich, wenn Positionen bei 6b mit \"ja\" eingetragen"]
[]
[]
[null,"IV) allgemeiner Aufwand pro Spielgruppenjahr (pro Person)"]
[]
[null,"Elternvernetzungsanlässe inkl. Vor- und Nachbereitung (ca. 5 Std. pro Anlass)",0,"Stunden","Anmerkung:"]
[null,"Teamsitzungen / Mitarbeiterinnengespräch",0,"Stunden","Anmerkung:"]
[null,"individuelle Weiterbildung ",0,"Stunden","Anmerkung:"]
[null,"Rauminstandhaltung/Materialreinigung/-reparatur/-einkauf",0,"Stunden","Anmerkung:"]
[null,"…",0,"Stunden","Anmerkung:"]
[null,"…",0,"Stunden","Anmerkung:"]
[null,"…",0,"Stunden","Anmerkung:",{"$nulls":7}," "]
[8,"Total allgemeiner Aufwand pro Spielgruppenjahr in Stunden (pro Person)",{"$f":"SUM(C81:C87)","v":0}]
[]
[null,"Wird der allgemeine Aufwand der Arbeitszeit der Gruppenleitung 1 angerechnet?","ja"]
[null,"Wird der allgemeine Aufwand der Arbeitszeit der Gruppenleitung 2 angerechnet?","nein",null,null,"Hinweis: nur möglich, wenn Positionen bei 6b mit \"ja\" eingetragen"]
[null,"Wird der allg. Aufwand der Arbeitszeit der Assistenz/Begleitperson 1 angerechnet?","nein",null,null,"Hinweis: nur möglich, wenn Positionen bei 6c mit \"ja\" eingetragen"]
[null,"Wird der allg. Aufwand der Arbeitszeit der Assistenz/Begleitperson 2 angerechnet?","nein",null,null,"Hinweis: nur möglich, wenn Positionen bei 6d mit \"ja\" eingetragen"]
[]
[]
[]
[]
[null,"V) Jahresarbeitszeit (ohne Ferienanteil) in Stunden "]
[]
[null,null,{"$f":"B31","v":"Gruppenleitung 1"},null,{"$f":"B41","v":"Gruppenleitung 2"},null,{"$f":"B49","v":"Assistenz / Begleitperson 1 "},null,{"$f":"B57","v":"Assistenz / Begleitperson 2 "}]
[null,"Arbeitszeit pro Person und Gruppe (Positionen 1 x 2 x 6)",{"$f":"C16*C17*D36","v":0},null,{"$f":"C16*C17*D46","v":0},null,{"$f":"C16*C17*D54","v":0},null,{"$f":"C16*C17*D62","v":0}]
[null,"Leitungsaufwand pro Gruppe und Jahr (nur Leitung) (Position 7)",{"$f":"IF(C76=\"ja\",C74/2,C74)","v":0},null,{"$f":"IF(C76=\"ja\",C74/2,0)","v":0},null,0,null,0]
[null,"allgemeiner Aufwand pro Spielgruppenjahr (pro Person) (Position 8)",{"$f":"IF(C90=\"ja\",C88,0)","v":0},null,{"$f":"IF(C91=\"ja\",C88,0)","v":0},null,{"$f":"IF(C92=\"ja\",C88,0)","v":0},null,{"$f":"IF(C93=\"ja\",C88,0)","v":0}]
[9,"Total Jahresarbeitszeit (ohne Ferienanteil) in Stunden",{"$f":"SUM(C101:C103)","v":0},null,{"$f":"SUM(E101:E103)","v":0},null,{"$f":"SUM(G101:G103)","v":0},null,{"$f":"SUM(I101:I103)","v":0}]
[]
[]
[null,"VI) Berechnung Ferienanteil"]
[]
[null,null,{"$f":"C100","v":"Gruppenleitung 1"},null,{"$f":"E100","v":"Gruppenleitung 2"},null,{"$f":"G100","v":"Assistenz / Begleitperson 1 "},null,"Assistenz / Begleitperson 2 "]
[null,"Beträgt der jährliche Ferienanteil 4 Wochen (gesetzliches Minimum) oder 5 Wochen?","4 Wochen",null,"5 Wochen",null,"4 Wochen",null,"4 Wochen"]
[null,"Ferienanteil in Prozent",{"$f":"IF(C110=\"4 Wochen\",8.33,10.64)","v":8.33},null,{"$f":"IF(E110=\"4 Wochen\",8.33,10.64)","v":10.64},null,{"$f":"IF(G110=\"4 Wochen\",8.33,10.64)","v":8.33},null,{"$f":"IF(I110=\"4 Wochen\",8.33,10.64)","v":8.33}]
[10,"Ferienanteil in Stunden",{"$f":"C104*C111/100","v":{"v":0,"d":"0.0"}},null,{"$f":"E104*E111/100","v":{"v":0,"d":"0.0"}},null,{"$f":"G104*G111/100","v":{"v":0,"d":"0.0"}},null,{"$f":"I104*I111/100","v":{"v":0,"d":"0.0"}}]
[]
[null,"VI) Berechnung Feiertagsentschädigung"]
[]
[null,null,{"$f":"C100","v":"Gruppenleitung 1"},null,{"$f":"E100","v":"Gruppenleitung 2"},null,{"$f":"G100","v":"Assistenz / Begleitperson 1 "},null,{"$f":"I100","v":"Assistenz / Begleitperson 2 "}]
[null,"Wird eine Feiertagsentschädigung ausbezahlt?","nein",null,"nein",null,"nein",null,"nein"]
[null,"Feiertagsanteil in Prozent ",{"$f":"IF(C117=\"ja\",3.5,0)","v":0},null,{"$f":"IF(E117=\"ja\",3.5,0)","v":0},null,{"$f":"IF(G117=\"ja\",3.5,0)","v":0},null,{"$f":"IF(I117=\"ja\",3.5,0)","v":0}]
[11,"Feiertagsanteil in Stunden",{"$f":"IF(C117=\"nein\",0,C104*C118/100)","v":{"v":0,"d":"0.0"}},null,{"$f":"IF(E117=\"nein\",0,E104*E118/100)","v":{"v":0,"d":"0.0"}},null,{"$f":"IF(G117=\"nein\",0,G104*G118/100)","v":{"v":0,"d":"0.0"}},null,{"$f":"IF(I117=\"nein\",0,I104*I118/100)","v":{"v":0,"d":"0.0"}}]
[]
[null,"VI) Berechnung Zuschlag 13. Monatslohn "]
[]
[null,null,{"$f":"C100","v":"Gruppenleitung 1"},null,{"$f":"E100","v":"Gruppenleitung 2"},null,{"$f":"G100","v":"Assistenz / Begleitperson 1 "},null,{"$f":"I100","v":"Assistenz / Begleitperson 2 "}]
[null,"Wird ein 13. Monatslohn ausbezahlt?","ja",null,"ja",null,"ja",null,"ja"]
[null,"Anteil 13. Monatslohn in Prozent ",{"$f":"IF(C124=\"ja\",8.33,0)","v":8.33},null,{"$f":"IF(E124=\"ja\",8.33,0)","v":8.33},null,{"$f":"IF(G124=\"ja\",8.33,0)","v":8.33},null,{"$f":"IF(I124=\"ja\",8.33,0)","v":8.33}]
[12,"Anteil 13. Monatslohn in Stunden",{"$f":"IF(C124=\"nein\",0,C104*C125/100)","v":{"v":0,"d":"0.0"}},null,{"$f":"IF(E124=\"nein\",0,E104*E125/100)","v":{"v":0,"d":"0.0"}},null,{"$f":"IF(G124=\"nein\",0,G104*G125/100)","v":{"v":0,"d":"0.0"}},null,{"$f":"IF(I124=\"nein\",0,I104*I125/100)","v":{"v":0,"d":"0.0"}}]
[]
[null,"Erfolgsrechnung"]
[]
[]
[null,"Ausgaben"]
[]
[null,"I) Personalkosten"]
[]
[null,"Lohnkosten","Jahresarbeitszeit (Position 9)","Anteil Ferien, Feiertag, 13. ML (Positionen 10-12)","Jahresarbeitszeit total (Positionen 9 + 10)","Stundenansatz ohne Ferienanteil","Bruttolohn"]
[null,{"$f":"C100","v":"Gruppenleitung 1"},{"$f":"C104","v":{"v":0,"d":"0.0"}},{"$f":"C112+C119+C126","v":{"v":0,"d":"0.0"}},{"$f":"C136+D136","v":{"v":0,"d":"0.0"}},{"v":0,"d":"0.00"},{"$f":"E136*F136","v":{"v":0,"d":"0.00"}},"Hinweis: Lohnempfehlungen siehe SSLV"]
[null,{"$f":"E100","v":"Gruppenleitung 2"},{"$f":"E104","v":{"v":0,"d":"0.0"}},{"$f":"E112+E119+E126","v":{"v":0,"d":"0.0"}},{"$f":"C137+D137","v":{"v":0,"d":"0.0"}},{"v":0,"d":"0.00"},{"$f":"E137*F137","v":{"v":0,"d":"0.00"}}]
[null,{"$f":"G100","v":"Assistenz / Begleitperson 1 "},{"$f":"G104","v":{"v":0,"d":"0.0"}},{"$f":"G112+G119+G126","v":{"v":0,"d":"0.0"}},{"$f":"C138+D138","v":{"v":0,"d":"0.0"}},{"v":0,"d":"0.00"},{"$f":"E138*F138","v":{"v":0,"d":"0.00"}}]
[null,{"$f":"I100","v":"Assistenz / Begleitperson 2 "},{"$f":"I104","v":{"v":0,"d":"0.0"}},{"$f":"I112+I119+I126","v":{"v":0,"d":"0.0"}},{"$f":"C139+D139","v":{"v":0,"d":"0.0"}},{"v":0,"d":"0.00"},{"$f":"E139*F139","v":{"v":0,"d":"0.00"}}]
[13,"Total Bruttolohn",{"$nulls":4},{"$f":"SUM(G136:G139)","v":{"v":0,"d":"0.00"}},"Hinweis: Vom Bruttolohn werden Arbeitnehmerbeiträge abgerechnet"]
[]
[]
[null,"Lohnnebenkosten, welche von Arbeitgeberin bezahlt werden",{"$nulls":3},"Anteil in Prozent",null,"Hinweis: Lohnnebenkosten, welche von der SG-Leiterin direkt bezahlt werden, werden nicht aufgeführt"]
[]
[null,"Arbeitgeberbeiträge Sozialversicherung (AHV, IV, EO, ALV)",{"$nulls":3},{"v":0.064,"d":"6.400%"},{"$f":"G140*F145","v":{"v":0,"d":"0.00"}}]
[null,"evtl. Verwaltungskosten Pensionskasse",{"$nulls":3},{"v":0.0025,"d":"0.250%"},{"$f":"G140*F146","v":{"v":0,"d":"0.00"}},"Hinweis: Wird eine Leistung nicht bezahlt, Zahl auf \"0\" setzen"]
[null,"evtl. Familienausgleichskasse (FAK)",{"$nulls":3},{"v":0.015,"d":"1.500%"},{"$f":"G140*F147","v":{"v":0,"d":"0.00"}}]
[null,"Berufsunfallversicherung (gemäss Versicherungsangebot der IG Spielgruppe)",{"$nulls":3},{"v":0.00196,"d":"0.196%"},{"$f":"G140*F148","v":{"v":0,"d":"0.00"}}]
[null,"Nichtberufsunfallversicherung (gemäss Versicherungsangebot der IG Spielgruppe)",{"$nulls":3},{"v":0.01112,"d":"1.112%"},{"$f":"G140*F149","v":{"v":0,"d":"0.00"}}]
[null,"…",{"$nulls":3},{"v":0,"d":"0.000%"},{"$f":"G140*F150","v":{"v":0,"d":"0.00"}}]
[null,"…",{"$nulls":3},{"v":0,"d":"0.000%"},{"$f":"G140*F151","v":{"v":0,"d":"0.00"}}]
[null,"…",{"$nulls":4},{"v":0,"d":"0.00"}]
[14,"Total Lohnnebenkosten, welche von Arbeitgeberin bezahlt werden",{"$nulls":4},{"$f":"SUM(G145:G152)","v":{"v":0,"d":"0.00"}}]
[]
[15,"Total Lohnkosten (Positionen 13 + 14)",{"$nulls":4},{"$f":"G140+G153","v":{"v":0,"d":"0.00"}}]
[]
[]
[null,"Weiterbildungskosten Personal",{"$nulls":4},{"v":0,"d":"0.00"}]
[null,"Mitgliederbeiträge (Beiträge SSLV + regionale FKS x Anzahl Mitarbeiterinnen)",{"$nulls":4},{"v":0,"d":"0.00"}]
[null,"Vergütung Vorstandsarbeit",{"$nulls":4},{"v":0,"d":"0.00"}]
[null,"…",{"$nulls":4},{"v":0,"d":"0.00"}]
[null,"….",{"$nulls":4},{"v":0,"d":"0.00"}]
[16,"Personalkosten diverses",{"$nulls":4},{"$f":"SUM(G158:G162)","v":{"v":0,"d":"0.00"}}]
[]
[17,"Personalkosten total (Positionen 15 + 16)",{"$nulls":4},{"$f":"G155+G163","v":{"v":0,"d":"0.00"}}]
[]
[]
[]
[null,"II) Betriebskosten  pro Jahr"]
[null,"Hinweis: Führt eine Trägerschaft mehrere Gruppen müssen gewisse Kosten (z.B. Versicherung, Buchhaltung) auf die einzelnen Gruppen aufgeteilt werden."]
[]
[null,"fixe Betriebskosten"]
[null,"Miete","Anmerkung:",{"$nulls":3},{"v":0,"d":"0.00"}]
[null,"Betriebshaftpflichtversicherung","Anmerkung:",{"$nulls":3},{"v":0,"d":"0.00"}]
[null,"Geschäftsversicherung","Anmerkung:",{"$nulls":3},{"v":0,"d":"0.00"}]
[null,"Buchhaltung, Administration","Anmerkung:",{"$nulls":3},{"v":0,"d":"0.00"}]
[null,"Spesen Kontoführung ","Anmerkung:",{"$nulls":3},{"v":0,"d":"0.00"}]
[null,"Geschäftsführung, Vereinsleitung, Sitzungsgelder ","Anmerkung:",{"$nulls":3},{"v":0,"d":"0.00"}]
[null,"Diverses Pauschal","Anmerkung:",{"$nulls":3},{"v":0,"d":"0.00"}]
[null,"…","Anmerkung:",{"$nulls":3},{"v":0,"d":"0.00"}]
[18,"fixe Betriebskosten",{"$nulls":4},{"$f":"SUM(G173:G180)","v":{"v":0,"d":"0.00"}}]
[]
[null,"variable Betriebskosten "]
[null,"Verpflegung Z'Nüni/Z'Vieri ","Anmerkung:",{"$nulls":3},{"v":0,"d":"0.00"}]
[null,"Verbrauchsmaterial","Anmerkung:",{"$nulls":3},{"v":0,"d":"0.00"}]
[null,"Spielmaterial, Kinderbücher","Anmerkung:",{"$nulls":3},{"v":0,"d":"0.00"}]
[null,"Ausflüge, Spielgruppenreise","Anmerkung:",{"$nulls":3},{"v":0,"d":"0.00"}]
[null,"Elternabende/-aktivitäten","Anmerkung:",{"$nulls":3},{"v":0,"d":"0.00"}]
[null,"Mobiliar (Neuanschaffungen, Unterhalt/Reparatur)","Anmerkung:",{"$nulls":3},{"v":0,"d":"0.00"}]
[null,"Porto","Anmerkung:",{"$nulls":3},{"v":0,"d":"0.00"}]
[null,"Telefon","Anmerkung:",{"$nulls":3},{"v":0,"d":"0.00"}]
[null,"Druckkosten","Anmerkung:",{"$nulls":3},{"v":0,"d":"0.00"}]
[null,"Öffentlichkeitsarbeit, Werbung","Anmerkung:",{"$nulls":3},{"v":0,"d":"0.00"}]
[null,"Geschenke","Anmerkung:",{"$nulls":3},{"v":0,"d":"0.00"}]
[null,"Fachliteratur, Abo Spielgruppenzeitung","Anmerkung:",{"$nulls":3},{"v":0,"d":"0.00"}]
[null,"Diverses Pauschal","Anmerkung:",{"$nulls":3},{"v":0,"d":"0.00"}]
[null,"…","Anmerkung:",{"$nulls":3},{"v":0,"d":"0.00"}]
[null,"…","Anmerkung:",{"$nulls":3},{"v":0,"d":"0.00"}]
[19,"variable Betriebskosten ",{"$nulls":4},{"$f":"SUM(G184:G198)","v":{"v":0,"d":"0.00"}}]
[]
[]
[null,"Rückstellungen (Krankheit, Anschaffungen etc.)","Anmerkung:",{"$nulls":3},{"v":0,"d":"0.00"}]
[null,"…","Anmerkung:",{"$nulls":3},{"v":0,"d":"0.00"}]
[20,"Rückstellungen ",{"$nulls":4},{"$f":"SUM(G202:G203)","v":{"v":0,"d":"0.00"}}]
[]
[21,"Betriebskosten total (Positionen 18 + 19 + 20)",{"$nulls":4},{"$f":"G181+G199+G204","v":{"v":0,"d":"0.00"}}]
[]
[]
[22,"III) Vollkosten (Postion 17 + 21)",{"$nulls":4},{"$f":"G165+G206","v":{"v":0,"d":"0.00"}}]
[]
[23,"IV) Vollkosten pro Platz (Positionen 22 : 3 : 4) ",{"$nulls":4},{"$f":"G209/C18/C19","v":{"$error":"#DIV/0!"}}]
[]
[]
[]
[null,"Einnahmen"]
[]
[null,"I) Elternbeiträge"]
[null,null,"Fr. pro Platz","Kinder"]
[null,"Elternbeitrag pro Platz (wird in Rechnung gestellt)",{"v":0,"d":"0.00"},{"$nulls":4},"Hinweis: Preis pro Platz entspricht den Vollkosten (Position 23). Der Preis kann reduziert werden, wenn Beiträge Dritte (Position 25) vorhanden sind."]
[null,"Elternbeiträge bei erwarteter Auslastung gemäss Position 4 ",null,{"$f":"C18*C19","v":{"v":0,"d":"0.0"}},null,null,{"$f":"C219*D220","v":{"v":0,"d":"0.00"}}]
[]
[24,"Total Elternbeiträge",{"$nulls":4},{"$f":"SUM(G220:G221)","v":{"v":0,"d":"0.00"}}]
[]
[null,"II) Beiträge Dritte"]
[null,"Spenden","Anmerkung:",{"$nulls":3},{"v":0,"d":"0.00"}]
[null,"Beitrag Gemeinde","Anmerkung:",{"$nulls":3},{"v":0,"d":"0.00"}]
[null,"Beitrag Kirche","Anmerkung:",{"$nulls":3},{"v":0,"d":"0.00"}]
[null,"Beitrag Kanton","Anmerkung:",{"$nulls":3},{"v":0,"d":"0.00"}]
[null,"…","Anmerkung:",{"$nulls":3},{"v":0,"d":"0.00"}]
[null,"…","Anmerkung:",{"$nulls":3},{"v":0,"d":"0.00"}]
[25,"Total Beiträge Dritte",{"$nulls":4},{"$f":"SUM(G225:G230)","v":{"v":0,"d":"0.00"}}]
[]
[26,"Total Einnahmen (Positionen 24 + 25)",{"$nulls":4},{"$f":"G222+G231","v":{"v":0,"d":"0.00"}}]
[]
[]
[null,"Erfolgsrechnung"]
[]
[null,"Total Einnahmen (Position 26)",{"$nulls":4},{"$f":"G233","v":{"v":0,"d":"0.00"}}]
[null,"Total Ausgaben (Position 22)",{"$nulls":4},{"$f":"G209","v":{"v":0,"d":"0.00"}}]
[27,"Übertrag in Reserve (falls Einnahmen höher als Ausgaben)","Anmerkung:",{"$nulls":3},{"v":0,"d":"0.00"}]
[28,"Übertrag aus Reserven (falls Ausgaben höher als Einnahmen)","Anmerkung:",{"$nulls":3},{"v":0,"d":"0.00"},"Hinweis: nur Betrag ohne \"-\" (Minus) eingeben"]
[29,"Saldo",{"$nulls":4},{"$f":"G238-G239-G240+G241","v":{"v":0,"d":"0.00"}}]
[]
[30,"Gewinn oder Verlust / bzw. Eigenleistung Spielgruppenleiterinnen",{"$nulls":4},{"$f":"G242","v":{"v":0,"d":"0.00"}}]
[]
[]
[]
[null,"weitere Anmerkungen: "]

{"sheet":"VK Gruppe 2","index":3,"n_rows":248,"n_cols":9,"rows_kept":248,"merged":[[5,2,5,3],[6,2,6,3],[7,2,7,3],[8,2,8,3],[9,2,9,3],[18,5,20,9],[22,5,23,9],[30,3,30,4],[31,5,32,9],[34,5,34,9],[37,5,39,9],[40,3,40,4],[44,5,44,9],[48,3,48,4],[52,5,52,9],[56,3,56,4],[60,5,60,9],[70,5,70,9],[71,5,71,9],[72,5,72,9],[80,5,80,9],[81,5,81,9],[82,5,82,9],[83,5,83,9],[84,5,84,9],[85,5,85,9],[86,5,86,9],[139,7,140,9],[142,7,143,9],[145,7,146,9],[172,3,172,4],[173,3,173,4],[174,3,174,4],[175,3,175,4],[176,3,176,4],[177,3,177,4],[178,3,178,4],[179,3,179,4],[183,3,183,4],[184,3,184,4],[185,3,185,4],[186,3,186,4],[187,3,187,4],[188,3,188,4],[189,3,189,4],[190,3,190,4],[191,3,191,4],[192,3,192,4],[193,3,193,4],[194,3,194,4],[195,3,195,4],[196,3,196,4],[197,3,197,4],[201,3,201,4],[202,3,202,4],[218,7,220,9],[224,3,224,4],[225,3,225,4],[226,3,226,4],[227,3,227,4],[228,3,228,4],[229,3,229,4],[239,3,239,4],[240,3,240,4],[247,1,247,9],[248,1,248,9],[249,1,249,9],[250,1,250,9],[251,1,251,9],[252,1,252,9],[253,1,253,9],[254,1,254,9],[255,1,255,9],[256,1,256,9],[257,1,257,9],[258,1,258,9],[259,1,259,9]]}
[]
[null,"Hellblaue Felder können eingefüllt werden"]
[null,"Orange Felder müssen eingefüllt werden"]
[]
[]
[null,"Spielgruppe"]
[null,"Name Gruppe"]
[null,"Durchführung pro Woche"]
[null,"Berechnungsperiode"]
[null,"Berechnungsdatum"]
[]
[null,"Berechnung Arbeitszeit pro Gruppe"]
[]
[null,"I) Basisdaten"]
["Position"]
[1,"Anzahl Spielgruppenwochen pro Berechnungsperiode:",0,"Wochen"]
[2,"Anzahl Durchführung pro Woche",0,"Anzahl pro Woche"]
[3,"Anzahl Plätze bei Vollbelegung",0,"Plätze"]
[4,"erwartete Jahresauslastung in Prozent",{"v":0,"d":"0%"},"Prozent",null,"Hinweis: Können alle Plätze voll verrechnet werden ist die Jahresauslastung 100%. Können nicht alle Plätze voll verrechnet werden (z.B. offene Plätze, späterer Einstieg) liegt die Jahresauslastung unter 100%."]
[]
[]
[]
["5a","Anzahl Spielgruppenstunden pro Durchführung",0,"Stunden",null,"Hinweis: Bei mehreren Durchführungen pro Woche durchschnittliche Dauer eintragen, falls Länge der Durchführung unterschiedlich"]
["5b","Vorbereitung pro Durchführung (inkl. Administration, Einkauf, Raum vorbereiten)",0,"Stunden"]
["5c","Nachbereitung pro Durchführung (inkl. Aufräumen, Tür-und-Angel-Elterngespräche)",0,"Stunden"]
[]
[]
[null,"II) Arbeitszeit pro Person und Durchführung"]
[]
[{"$nulls":3},"Anzahl Stunden"]
[null,"Gruppenleitung 1","Name"]
[null,".Spielgruppenstunden (Position 5a)","ja",{"$f":"IF(C32=\"ja\",C23,0)","v":0},null,"Hinweis: \"ja\" bedeutet, dass der Posten als bezahlte Arbeitszeit angerechnet wird, \"nein\" bedeutet, dass der Posten nicht angerechnet wird."]
[null,".Vorbereitung (Position 5b)","ja",{"$f":"IF(C33=\"ja\",C24,0)","v":0}]
[null,".Nachbereitung (Position 5c)","ja",{"$f":"IF(C34=\"ja\",C25,0)","v":0}]
[null,".Optional: andere Stundenzahl als Positionen 5b / 5c für Vor- und Nachbereitung",null,null,"Anmerkung:"]
["6a","Total Gruppenleitung 1",null,{"$f":"SUM(D32:D35)","v":0}]
[]
[null,"Wird eine zweite Gruppenleitung eingesetzt?","nein",null,null,"Hinweis: In der Regel wird eine SG von einer ausgebildeten Spielgruppenleiterin geleitet. Unterstützt wird sie in manchen SG von einer Assistenz / Begleitperson. In wenigen SG werden zwei ausgebildete Spielgruppenleiterinnen oder gar drei Personen eingesetzt."]
[]
[]
[null,"Gruppenleitung 2","Name"]
[null,".Spielgruppenstunden (Position 5a)","nein",{"$f":"IF(C42=\"ja\",C23,0)","v":0}]
[null,".Vorbereitung (Position 5b)","nein",{"$f":"IF(C43=\"ja\",C24,0)","v":0}]
[null,".Nachbereitung (Position 5c)","nein",{"$f":"IF(C44=\"ja\",C25,0)","v":0}]
[null,".Optional: andere Stundenzahl als Positionen 5b / 5c für Vor- und Nachbereitung",null,null,"Anmerkung:"]
["6b","Total Gruppenleitung 2",null,{"$f":"SUM(D42:D45)","v":0}]
[]
[null,"Wird eine Begleitperson in der Gruppe eingesetzt?","ja"]
[null,"Assistenz / Begleitperson 1 ","Name"]
[null,".Spielgruppenstunden (Position 5a)","ja",{"$f":"IF(C50=\"ja\",C23,0)","v":0}]
[null,".Vorbereitung (Position 5b)","nein",{"$f":"IF(C51=\"ja\",C24,0)","v":0}]
[null,".Nachbereitung (Position 5c)","nein",{"$f":"IF(C52=\"ja\",C25,0)","v":0}]
[null,".Optional: andere Stundenzahl als Positionen 5b / 5c für Vor- und Nachbereitung",null,0,"Anmerkung:"]
["6c","Total Assistenz / Begleitperson 1 ",null,{"$f":"SUM(D50:D53)","v":0}]
[]
[null,"Wird eine zweite Begleitperson in der Gruppe eingesetzt?","nein"]
[null,"Assistenz / Begleitperson 2 ","Name"]
[null,".Spielgruppenstunden (Position 5a)","nein",{"$f":"IF(C58=\"ja\",C23,0)","v":0}]
[null,".Vorbereitung (Position 5b)","nein",{"$f":"IF(C59=\"ja\",C24,0)","v":0}]
[null,".Nachbereitung (Position 5c)","nein",{"$f":"IF(C60=\"ja\",C25,0)","v":0}]
[null,".Optional: andere Stundenzahl als Positionen 5b / 5c für Vor- und Nachbereitung",null,null,"Anmerkung:"]
["6d","Total Assistenz / Begleitperson 2 ",null,{"$f":"SUM(D58:D61)","v":0}]
[]
[]
[null,"III) Leitungsaufwand pro Gruppe und Jahr (nur Gruppenleitung)"]
[]
[null,"Jahresplanung/Erstellen Elterninformationen/Einteilungen",0,"Stunden"]
[null,"Planungssitzungen mit Gemeinde/Schule/Fachstellen (Anzahl Gespräche x 1.5 Stunden)",{"$f":"F68*1.5","v":0},"Stunden","Anzahl Gespräche",0]
[null,"Kontakte Schule/Fachpersonen (Anzahl Gespräche x 0.5 Stunden)",{"$f":"F69*0.5","v":0},"Stunden","Anzahl Gespräche",0]
[null,"spezifische Elternkontakte (Anzahl Gespräche x 0.5 Stunden)",{"$f":"F70*0.5","v":0},"Stunden","Anzahl Gespräche",0]
[null,"…",0,"Stunden","Anmerkungen:"]
[null,"…",0,"Stunden","Anmerkungen:"]
[null,"…",0,"Stunden","Anmerkungen:"]
[7,"Total Leitungsaufwand pro Spielgruppe in Stunden (nur Gruppenleitung)",{"$f":"SUM(C67:C73)","v":0}]
[]
[null,"Wird der Leitungsaufwand zwischen zwei Gruppenleitungen aufgeteilt?","nein",null,null,"Hinweis: nur möglich, wenn Positionen bei 6b mit \"ja\" eingetragen"]
[]
[]
[null,"IV) allgemeiner Aufwand pro Spielgruppenjahr (pro Person)"]
[]
[null,"Elternvernetzungsanlässe inkl. Vor- und Nachbereitung (ca. 5 Std. pro Anlass)",0,"Stunden","Anmerkung:"]
[null,"Teamsitzungen / Mitarbeiterinnengespräch",0,"Stunden","Anmerkung:"]
[null,"individuelle Weiterbildung ",0,"Stunden","Anmerkung:"]
[null,"Rauminstandhaltung/Materialreinigung/-reparatur/-einkauf",0,"Stunden","Anmerkung:"]
[null,"…",0,"Stunden","Anmerkung:"]
[null,"…",0,"Stunden","Anmerkung:"]
[null,"…",0,"Stunden","Anmerkung:"]
[8,"Total allgemeiner Aufwand pro Spielgruppenjahr in Stunden (pro Person)",{"$f":"SUM(C81:C87)","v":0}]
[]
[null,"Wird der allgemeine Aufwand der Arbeitszeit der Gruppenleitung 1 angerechnet?","ja"]
[null,"Wird der allgemeine Aufwand der Arbeitszeit der Gruppenleitung 2 angerechnet?","nein",null,null,"Hinweis: nur möglich, wenn Positionen bei 6b mit \"ja\" eingetragen"]
[null,"Wird der allg. Aufwand der Arbeitszeit der Assistenz/Begleitperson 1 angerechnet?","nein",null,null,"Hinweis: nur möglich, wenn Positionen bei 6c mit \"ja\" eingetragen"]
[null,"Wird der allg. Aufwand der Arbeitszeit der Assistenz/Begleitperson 2 angerechnet?","nein",null,null,"Hinweis: nur möglich, wenn Positionen bei 6d mit \"ja\" eingetragen"]
[]
[]
[]
[]
[null,"V) Jahresarbeitszeit (ohne Ferienanteil) in Stunden "]
[]
[null,null,{"$f":"B31","v":"Gruppenleitung 1"},null,{"$f":"B41","v":"Gruppenleitung 2"},null,{"$f":"B49","v":"Assistenz / Begleitperson 1 "},null,{"$f":"B57","v":"Assistenz / Begleitperson 2 "}]
[null,"Arbeitszeit pro Person und Gruppe (Positionen 1 x 2 x 6)",{"$f":"C16*C17*D36","v":0},null,{"$f":"C16*C17*D46","v":0},null,{"$f":"C16*C17*D54","v":0},null,{"$f":"C16*C17*D62","v":0}]
[null,"Leitungsaufwand pro Gruppe und Jahr (nur Leitung) (Position 7)",{"$f":"IF(C76=\"ja\",C74/2,C74)","v":0},null,{"$f":"IF(C76=\"ja\",C74/2,0)","v":0},null,0,null,0]
[null,"allgemeiner Aufwand pro Spielgruppenjahr (pro Person) (Position 8)",{"$f":"IF(C90=\"ja\",C88,0)","v":0},null,{"$f":"IF(C91=\"ja\",C88,0)","v":0},null,{"$f":"IF(C92=\"ja\",C88,0)","v":0},null,{"$f":"IF(C93=\"ja\",C88,0)","v":0}]
[9,"Total Jahresarbeitszeit (ohne Ferienanteil) in Stunden",{"$f":"SUM(C101:C103)","v":0},null,{"$f":"SUM(E101:E103)","v":0},null,{"$f":"SUM(G101:G103)","v":0},null,{"$f":"SUM(I101:I103)","v":0}]
[]
[]
[null,"VI) Berechnung Ferienanteil"]
[]
[null,null,{"$f":"C100","v":"Gruppenleitung 1"},null,{"$f":"E100","v":"Gruppenleitung 2"},null,{"$f":"G100","v":"Assistenz / Begleitperson 1 "},null,"Assistenz / Begleitperson 2 "]
[null,"Beträgt der jährliche Ferienanteil 4 Wochen (gesetzliches Minimum) oder 5 Wochen?","4 Wochen",null,"5 Wochen",null,"4 Wochen",null,"4 Wochen"]
[null,"Ferienanteil in Prozent",{"$f":"IF(C110=\"4 Wochen\",8.33,10.64)","v":8.33},null,{"$f":"IF(E110=\"4 Wochen\",8.33,10.64)","v":10.64},null,{"$f":"IF(G110=\"4 Wochen\",8.33,10.64)","v":8.33},null,{"$f":"IF(I110=\"4 Wochen\",8.33,10.64)","v":8.33}]
[10,"Ferienanteil in Stunden",{"$f":"C104*C111/100","v":{"v":0,"d":"0.0"}},null,{"$f":"E104*E111/100","v":{"v":0,"d":"0.0"}},null,{"$f":"G104*G111/100","v":{"v":0,"d":"0.0"}},null,{"$f":"I104*I111/100","v":{"v":0,"d":"0.0"}}]
[]
[null,"VI) Berechnung Feiertagsentschädigung"]
[]
[null,null,{"$f":"C100","v":"Gruppenleitung 1"},null,{"$f":"E100","v":"Gruppenleitung 2"},null,{"$f":"G100","v":"Assistenz / Begleitperson 1 "},null,{"$f":"I100","v":"Assistenz / Begleitperson 2 "}]
[null,"Wird eine Feiertagsentschädigung ausbezahlt?","nein",null,"nein",null,"nein",null,"nein"]
[null,"Feiertagsanteil in Prozent ",{"$f":"IF(C117=\"ja\",3.5,0)","v":0},null,{"$f":"IF(E117=\"ja\",3.5,0)","v":0},null,{"$f":"IF(G117=\"ja\",3.5,0)","v":0},null,{"$f":"IF(I117=\"ja\",3.5,0)","v":0}]
[11,"Feiertagsanteil in Stunden",{"$f":"IF(C117=\"nein\",0,C104*C118/100)","v":{"v":0,"d":"0.0"}},null,{"$f":"IF(E117=\"nein\",0,E104*E118/100)","v":{"v":0,"d":"0.0"}},null,{"$f":"IF(G117=\"nein\",0,G104*G118/100)","v":{"v":0,"d":"0.0"}},null,{"$f":"IF(I117=\"nein\",0,I104*I118/100)","v":{"v":0,"d":"0.0"}}]
[]
[null,"VI) Berechnung Zuschlag 13. Monatslohn "]
[]
[null,null,{"$f":"C100","v":"Gruppenleitung 1"},null,{"$f":"E100","v":"Gruppenleitung 2"},null,{"$f":"G100","v":"Assistenz / Begleitperson 1 "},null,{"$f":"I100","v":"Assistenz / Begleitperson 2 "}]
[null,"Wird ein 13. Monatslohn ausbezahlt?","nein",null,"nein",null,"nein",null,"nein"]
[null,"Anteil 13. Monatslohn in Prozent ",{"$f":"IF(C124=\"ja\",8.33,0)","v":0},null,{"$f":"IF(E124=\"ja\",8.33,0)","v":0},null,{"$f":"IF(G124=\"ja\",8.33,0)","v":0},null,{"$f":"IF(I124=\"ja\",8.33,0)","v":0}]
[12,"Anteil 13. Monatslohn in Stunden",{"$f":"IF(C124=\"nein\",0,C104*C125/100)","v":{"v":0,"d":"0.0"}},null,{"$f":"IF(E124=\"nein\",0,E104*E125/100)","v":{"v":0,"d":"0.0"}},null,{"$f":"IF(G124=\"nein\",0,G104*G125/100)","v":{"v":0,"d":"0.0"}},null,{"$f":"IF(I124=\"nein\",0,I104*I125/100)","v":{"v":0,"d":"0.0"}}]
[]
[null,"Erfolgsrechnung"]
[]
[]
[null,"Ausgaben"]
[]
[null,"I) Personalkosten"]
[]
[null,"Lohnkosten","Jahresarbeitszeit (Position 9)","Anteil Ferien, Feiertag, 13. ML (Positionen 10-12)","Jahresarbeitszeit total (Positionen 9 + 10)","Stundenansatz ohne Ferienanteil","Bruttolohn"]
[null,{"$f":"C100","v":"Gruppenleitung 1"},{"$f":"C104","v":{"v":0,"d":"0.0"}},{"$f":"C112+C119+C126","v":{"v":0,"d":"0.0"}},{"$f":"C136+D136","v":{"v":0,"d":"0.0"}},{"v":0,"d":"0.00"},{"$f":"E136*F136","v":{"v":0,"d":"0.00"}},"Hinweis: Lohnempfehlungen siehe SSLV"]
[null,{"$f":"E100","v":"Gruppenleitung 2"},{"$f":"E104","v":{"v":0,"d":"0.0"}},{"$f":"E112+E119+E126","v":{"v":0,"d":"0.0"}},{"$f":"C137+D137","v":{"v":0,"d":"0.0"}},{"v":0,"d":"0.00"},{"$f":"E137*F137","v":{"v":0,"d":"0.00"}}]
[null,{"$f":"G100","v":"Assistenz / Begleitperson 1 "},{"$f":"G104","v":{"v":0,"d":"0.0"}},{"$f":"G112+G119+G126","v":{"v":0,"d":"0.0"}},{"$f":"C138+D138","v":{"v":0,"d":"0.0"}},{"v":0,"d":"0.00"},{"$f":"E138*F138","v":{"v":0,"d":"0.00"}}]
[null,{"$f":"I100","v":"Assistenz / Begleitperson 2 "},{"$f":"I104","v":{"v":0,"d":"0.0"}},{"$f":"I112+I119+I126","v":{"v":0,"d":"0.0"}},{"$f":"C139+D139","v":{"v":0,"d":"0.0"}},{"v":0,"d":"0.00"},{"$f":"E139*F139","v":{"v":0,"d":"0.00"}}]
[13,"Total Bruttolohn",{"$nulls":4},{"$f":"SUM(G136:G139)","v":{"v":0,"d":"0.00"}},"Hinweis: Vom Bruttolohn werden Arbeitnehmerbeiträge abgerechnet"]
[]
[]
[null,"Lohnnebenkosten, welche von Arbeitgeberin bezahlt werden",{"$nulls":3},"Anteil in Prozent",null,"Hinweis: Lohnnebenkosten, welche von der SG-Leiterin direkt bezahlt werden, werden nicht aufgeführt"]
[]
[null,"Arbeitgeberbeiträge Sozialversicherung (AHV, IV, EO, ALV)",{"$nulls":3},{"v":0.064,"d":"6.400%"},{"$f":"G140*F145","v":{"v":0,"d":"0.00"}}]
[null,"evtl. Verwaltungskosten Pensionskasse",{"$nulls":3},{"v":0.0025,"d":"0.250%"},{"$f":"G140*F146","v":{"v":0,"d":"0.00"}},"Hinweis: Wird eine Leistung nicht bezahlt, Zahl auf \"0\" setzen"]
[null,"evtl. Familienausgleichskasse (FAK)",{"$nulls":3},{"v":0.015,"d":"1.500%"},{"$f":"G140*F147","v":{"v":0,"d":"0.00"}}]
[null,"Berufsunfallversicherung (gemäss Versicherungsangebot der IG Spielgruppe)",{"$nulls":3},{"v":0.00196,"d":"0.196%"},{"$f":"G140*F148","v":{"v":0,"d":"0.00"}}]
[null,"Nichtberufsunfallversicherung (gemäss Versicherungsangebot der IG Spielgruppe)",{"$nulls":3},{"v":0.01112,"d":"1.112%"},{"$f":"G140*F149","v":{"v":0,"d":"0.00"}}]
[null,"…",{"$nulls":3},{"v":0,"d":"0.000%"},{"$f":"G140*F150","v":{"v":0,"d":"0.00"}}]
[null,"…",{"$nulls":3},{"v":0,"d":"0.000%"},{"$f":"G140*F151","v":{"v":0,"d":"0.00"}}]
[null,"…",{"$nulls":4},{"v":0,"d":"0.00"}]
[14,"Total Lohnnebenkosten, welche von Arbeitgeberin bezahlt werden",{"$nulls":4},{"$f":"SUM(G145:G152)","v":{"v":0,"d":"0.00"}}]
[]
[15,"Total Lohnkosten (Positionen 13 + 14)",{"$nulls":4},{"$f":"G140+G153","v":{"v":0,"d":"0.00"}}]
[]
[]
[null,"Weiterbildungskosten Personal",{"$nulls":4},{"v":0,"d":"0.00"}]
[null,"Mitgliederbeiträge (Beiträge SSLV + regionale FKS x Anzahl Mitarbeiterinnen)",{"$nulls":4},{"v":0,"d":"0.00"}]
[null,"Vergütung Vorstandsarbeit",{"$nulls":4},{"v":0,"d":"0.00"}]
[null,"…",{"$nulls":4},{"v":0,"d":"0.00"}]
[null,"….",{"$nulls":4},{"v":0,"d":"0.00"}]
[16,"Personalkosten diverses",{"$nulls":4},{"$f":"SUM(G158:G162)","v":{"v":0,"d":"0.00"}}]
[]
[17,"Personalkosten total (Positionen 15 + 16)",{"$nulls":4},{"$f":"G155+G163","v":{"v":0,"d":"0.00"}}]
[]
[]
[]
[null,"II) Betriebskosten  pro Jahr"]
[null,"Hinweis: Führt eine Trägerschaft mehrere Gruppen müssen gewisse Kosten (z.B. Versicherung, Buchhaltung) auf die einzelnen Gruppen aufgeteilt werden."]
[]
[null,"fixe Betriebskosten"]
[null,"Miete","Anmerkung:",{"$nulls":3},{"v":0,"d":"0.00"}]
[null,"Betriebshaftpflichtversicherung","Anmerkung:",{"$nulls":3},{"v":0,"d":"0.00"}]
[null,"Geschäftsversicherung","Anmerkung:",{"$nulls":3},{"v":0,"d":"0.00"}]
[null,"Buchhaltung, Administration","Anmerkung:",{"$nulls":3},{"v":0,"d":"0.00"}]
[null,"Spesen Kontoführung ","Anmerkung:",{"$nulls":3},{"v":0,"d":"0.00"}]
[null,"Geschäftsführung, Vereinsleitung, Sitzungsgelder ","Anmerkung:",{"$nulls":3},{"v":0,"d":"0.00"}]
[null,"Diverses Pauschal","Anmerkung:",{"$nulls":3},{"v":0,"d":"0.00"}]
[null,"…","Anmerkung:",{"$nulls":3},{"v":0,"d":"0.00"}]
[18,"fixe Betriebskosten",{"$nulls":4},{"$f":"SUM(G173:G180)","v":{"v":0,"d":"0.00"}}]
[]
[null,"variable Betriebskosten "]
[null,"Verpflegung Z'Nüni/Z'Vieri ","Anmerkung:",{"$nulls":3},{"v":0,"d":"0.00"}]
[null,"Verbrauchsmaterial","Anmerkung:",{"$nulls":3},{"v":0,"d":"0.00"}]
[null,"Spielmaterial, Kinderbücher","Anmerkung:",{"$nulls":3},{"v":0,"d":"0.00"}]
[null,"Ausflüge, Spielgruppenreise","Anmerkung:",{"$nulls":3},{"v":0,"d":"0.00"}]
[null,"Elternabende/-aktivitäten","Anmerkung:",{"$nulls":3},{"v":0,"d":"0.00"}]
[null,"Mobiliar (Neuanschaffungen, Unterhalt/Reparatur)","Anmerkung:",{"$nulls":3},{"v":0,"d":"0.00"}]
[null,"Porto","Anmerkung:",{"$nulls":3},{"v":0,"d":"0.00"}]
[null,"Telefon","Anmerkung:",{"$nulls":3},{"v":0,"d":"0.00"}]
[null,"Druckkosten","Anmerkung:",{"$nulls":3},{"v":0,"d":"0.00"}]
[null,"Öffentlichkeitsarbeit, Werbung","Anmerkung:",{"$nulls":3},{"v":0,"d":"0.00"}]
[null,"Geschenke","Anmerkung:",{"$nulls":3},{"v":0,"d":"0.00"}]
[null,"Fachliteratur, Abo Spielgruppenzeitung","Anmerkung:",{"$nulls":3},{"v":0,"d":"0.00"}]
[null,"Diverses Pauschal","Anmerkung:",{"$nulls":3},{"v":0,"d":"0.00"}]
[null,"…","Anmerkung:",{"$nulls":3},{"v":0,"d":"0.00"}]
[null,"…","Anmerkung:",{"$nulls":3},{"v":0,"d":"0.00"}]
[19,"variable Betriebskosten ",{"$nulls":4},{"$f":"SUM(G184:G198)","v":{"v":0,"d":"0.00"}}]
[]
[]
[null,"Rückstellungen (Krankheit, Anschaffungen etc.)","Anmerkung:",{"$nulls":3},{"v":0,"d":"0.00"}]
[null,"…","Anmerkung:",{"$nulls":3},{"v":0,"d":"0.00"}]
[20,"Rückstellungen ",{"$nulls":4},{"$f":"SUM(G202:G203)","v":{"v":0,"d":"0.00"}}]
[]
[21,"Betriebskosten total (Positionen 18 + 19 + 20)",{"$nulls":4},{"$f":"G181+G199+G204","v":{"v":0,"d":"0.00"}}]
[]
[]
[22,"III) Vollkosten (Postion 17 + 21)",{"$nulls":4},{"$f":"G165+G206","v":{"v":0,"d":"0.00"}}]
[]
[23,"IV) Vollkosten pro Platz (Positionen 22 : 3 : 4) ",{"$nulls":4},{"$f":"G209/C18/C19","v":{"$error":"#DIV/0!"}}]
[]
[]
[]
[null,"Einnahmen"]
[]
[null,"I) Elternbeiträge"]
[null,null,"Fr. pro Platz","Kinder"]
[null,"Elternbeitrag pro Platz (wird in Rechnung gestellt)",{"v":0,"d":"0.00"},{"$nulls":4},"Hinweis: Preis pro Platz entspricht den Vollkosten (Position 23). Der Preis kann reduziert werden, wenn Beiträge Dritte (Position 25) vorhanden sind."]
[null,"Elternbeiträge bei erwarteter Auslastung gemäss Position 4 ",null,{"$f":"C18*C19","v":{"v":0,"d":"0.0"}},null,null,{"$f":"C219*D220","v":{"v":0,"d":"0.00"}}]
[]
[24,"Total Elternbeiträge",{"$nulls":4},{"$f":"SUM(G220:G221)","v":{"v":0,"d":"0.00"}}]
[]
[null,"II) Beiträge Dritte"]
[null,"Spenden","Anmerkung:",{"$nulls":3},{"v":0,"d":"0.00"}]
[null,"Beitrag Gemeinde","Anmerkung:",{"$nulls":3},{"v":0,"d":"0.00"}]
[null,"Beitrag Kirche","Anmerkung:",{"$nulls":3},{"v":0,"d":"0.00"}]
[null,"Beitrag Kanton","Anmerkung:",{"$nulls":3},{"v":0,"d":"0.00"}]
[null,"…","Anmerkung:",{"$nulls":3},{"v":0,"d":"0.00"}]
[null,"…","Anmerkung:",{"$nulls":3},{"v":0,"d":"0.00"}]
[25,"Total Beiträge Dritte",{"$nulls":4},{"$f":"SUM(G225:G230)","v":{"v":0,"d":"0.00"}}]
[]
[26,"Total Einnahmen (Positionen 24 + 25)",{"$nulls":4},{"$f":"G222+G231","v":{"v":0,"d":"0.00"}}]
[]
[]
[null,"Erfolgsrechnung"]
[]
[null,"Total Einnahmen (Position 26)",{"$nulls":4},{"$f":"G233","v":{"v":0,"d":"0.00"}}]
[null,"Total Ausgaben (Position 22)",{"$nulls":4},{"$f":"G209","v":{"v":0,"d":"0.00"}}]
[27,"Übertrag in Reserve (falls Einnahmen höher als Ausgaben)","Anmerkung:",{"$nulls":3},{"v":0,"d":"0.00"}]
[28,"Übertrag aus Reserven (falls Ausgaben höher als Einnahmen)","Anmerkung:",{"$nulls":3},{"v":0,"d":"0.00"},"Hinweis: nur Betrag ohne \"-\" (Minus) eingeben"]
[29,"Saldo",{"$nulls":4},{"$f":"G238-G239-G240+G241","v":{"v":0,"d":"0.00"}}]
[]
[30,"Gewinn oder Verlust / bzw. Eigenleistung Spielgruppenleiterinnen",{"$nulls":4},{"$f":"G242","v":{"v":0,"d":"0.00"}}]
[]
[]
[]
[null,"weitere Anmerkungen: "]

{"sheet":"VK Gruppe 3","index":4,"n_rows":248,"n_cols":9,"rows_kept":248,"merged":[[5,2,5,3],[6,2,6,3],[7,2,7,3],[8,2,8,3],[9,2,9,3],[18,5,20,9],[22,5,23,9],[30,3,30,4],[31,5,32,9],[34,5,34,9],[37,5,39,9],[40,3,40,4],[44,5,44,9],[48,3,48,4],[52,5,52,9],[56,3,56,4],[60,5,60,9],[70,5,70,9],[71,5,71,9],[72,5,72,9],[80,5,80,9],[81,5,81,9],[82,5,82,9],[83,5,83,9],[84,5,84,9],[85,5,85,9],[86,5,86,9],[139,7,140,9],[142,7,143,9],[145,7,146,9],[172,3,172,4],[173,3,173,4],[174,3,174,4],[175,3,175,4],[176,3,176,4],[177,3,177,4],[178,3,178,4],[179,3,179,4],[183,3,183,4],[184,3,184,4],[185,3,185,4],[186,3,186,4],[187,3,187,4],[188,3,188,4],[189,3,189,4],[190,3,190,4],[191,3,191,4],[192,3,192,4],[193,3,193,4],[194,3,194,4],[195,3,195,4],[196,3,196,4],[197,3,197,4],[201,3,201,4],[202,3,202,4],[218,7,220,9],[224,3,224,4],[225,3,225,4],[226,3,226,4],[227,3,227,4],[228,3,228,4],[229,3,229,4],[239,3,239,4],[240,3,240,4],[247,1,247,9],[248,1,248,9],[249,1,249,9],[250,1,250,9],[251,1,251,9],[252,1,252,9],[253,1,253,9],[254,1,254,9],[255,1,255,9],[256,1,256,9],[257,1,257,9],[258,1,258,9],[259,1,259,9]]}
[]
[null,"Hellblaue Felder können eingefüllt werden"]
[null,"Orange Felder müssen eingefüllt werden"]
[]
[]
[null,"Spielgruppe"]
[null,"Name Gruppe"]
[null,"Durchführung pro Woche"]
[null,"Berechnungsperiode"]
[null,"Berechnungsdatum"]
[]
[null,"Berechnung Arbeitszeit pro Gruppe"]
[]
[null,"I) Basisdaten"]
["Position"]
[1,"Anzahl Spielgruppenwochen pro Berechnungsperiode:",0,"Wochen"]
[2,"Anzahl Durchführung pro Woche",0,"Anzahl pro Woche"]
[3,"Anzahl Plätze bei Vollbelegung",0,"Plätze"]
[4,"erwartete Jahresauslastung in Prozent",{"v":0,"d":"0%"},"Prozent",null,"Hinweis: Können alle Plätze voll verrechnet werden ist die Jahresauslastung 100%. Können nicht alle Plätze voll verrechnet werden (z.B. offene Plätze, späterer Einstieg) liegt die Jahresauslastung unter 100%."]
[]
[]
[]
["5a","Anzahl Spielgruppenstunden pro Durchführung",0,"Stunden",null,"Hinweis: Bei mehreren Durchführungen pro Woche durchschnittliche Dauer eintragen, falls Länge der Durchführung unterschiedlich"]
["5b","Vorbereitung pro Durchführung (inkl. Administration, Einkauf, Raum vorbereiten)",0,"Stunden"]
["5c","Nachbereitung pro Durchführung (inkl. Aufräumen, Tür-und-Angel-Elterngespräche)",0,"Stunden"]
[]
[]
[null,"II) Arbeitszeit pro Person und Durchführung"]
[]
[{"$nulls":3},"Anzahl Stunden"]
[null,"Gruppenleitung 1","Name"]
[null,".Spielgruppenstunden (Position 5a)","ja",{"$f":"IF(C32=\"ja\",C23,0)","v":0},null,"Hinweis: \"ja\" bedeutet, dass der Posten als bezahlte Arbeitszeit angerechnet wird, \"nein\" bedeutet, dass der Posten nicht angerechnet wird."]
[null,".Vorbereitung (Position 5b)","ja",{"$f":"IF(C33=\"ja\",C24,0)","v":0}]
[null,".Nachbereitung (Position 5c)","ja",{"$f":"IF(C34=\"ja\",C25,0)","v":0}]
[null,".Optional: andere Stundenzahl als Positionen 5b / 5c für Vor- und Nachbereitung",null,null,"Anmerkung:"]
["6a","Total Gruppenleitung 1",null,{"$f":"SUM(D32:D35)","v":0}]
[]
[null,"Wird eine zweite Gruppenleitung eingesetzt?","nein",null,null,"Hinweis: In der Regel wird eine SG von einer ausgebildeten Spielgruppenleiterin geleitet. Unterstützt wird sie in manchen SG von einer Assistenz / Begleitperson. In wenigen SG werden zwei ausgebildete Spielgruppenleiterinnen oder gar drei Personen eingesetzt."]
[]
[]
[null,"Gruppenleitung 2","Name"]
[null,".Spielgruppenstunden (Position 5a)","nein",{"$f":"IF(C42=\"ja\",C23,0)","v":0}]
[null,".Vorbereitung (Position 5b)","nein",{"$f":"IF(C43=\"ja\",C24,0)","v":0}]
[null,".Nachbereitung (Position 5c)","nein",{"$f":"IF(C44=\"ja\",C25,0)","v":0}]
[null,".Optional: andere Stundenzahl als Positionen 5b / 5c für Vor- und Nachbereitung",null,null,"Anmerkung:"]
["6b","Total Gruppenleitung 2",null,{"$f":"SUM(D42:D45)","v":0}]
[]
[null,"Wird eine Begleitperson in der Gruppe eingesetzt?","ja"]
[null,"Assistenz / Begleitperson 1 ","Name"]
[null,".Spielgruppenstunden (Position 5a)","ja",{"$f":"IF(C50=\"ja\",C23,0)","v":0}]
[null,".Vorbereitung (Position 5b)","nein",{"$f":"IF(C51=\"ja\",C24,0)","v":0}]
[null,".Nachbereitung (Position 5c)","nein",{"$f":"IF(C52=\"ja\",C25,0)","v":0}]
[null,".Optional: andere Stundenzahl als Positionen 5b / 5c für Vor- und Nachbereitung",null,0,"Anmerkung:"]
["6c","Total Assistenz / Begleitperson 1 ",null,{"$f":"SUM(D50:D53)","v":0}]
[]
[null,"Wird eine zweite Begleitperson in der Gruppe eingesetzt?","nein"]
[null,"Assistenz / Begleitperson 2 ","Name"]
[null,".Spielgruppenstunden (Position 5a)","nein",{"$f":"IF(C58=\"ja\",C23,0)","v":0}]
[null,".Vorbereitung (Position 5b)","nein",{"$f":"IF(C59=\"ja\",C24,0)","v":0}]
[null,".Nachbereitung (Position 5c)","nein",{"$f":"IF(C60=\"ja\",C25,0)","v":0}]
[null,".Optional: andere Stundenzahl als Positionen 5b / 5c für Vor- und Nachbereitung",null,null,"Anmerkung:"]
["6d","Total Assistenz / Begleitperson 2 ",null,{"$f":"SUM(D58:D61)","v":0}]
[]
[]
[null,"III) Leitungsaufwand pro Gruppe und Jahr (nur Gruppenleitung)"]
[]
[null,"Jahresplanung/Erstellen Elterninformationen/Einteilungen",0,"Stunden"]
[null,"Planungssitzungen mit Gemeinde/Schule/Fachstellen (Anzahl Gespräche x 1.5 Stunden)",{"$f":"F68*1.5","v":0},"Stunden","Anzahl Gespräche",0]
[null,"Kontakte Schule/Fachpersonen (Anzahl Gespräche x 0.5 Stunden)",{"$f":"F69*0.5","v":0},"Stunden","Anzahl Gespräche",0]
[null,"spezifische Elternkontakte (Anzahl Gespräche x 0.5 Stunden)",{"$f":"F70*0.5","v":0},"Stunden","Anzahl Gespräche",0]
[null,"…",0,"Stunden","Anmerkungen:"]
[null,"…",0,"Stunden","Anmerkungen:"]
[null,"…",0,"Stunden","Anmerkungen:"]
[7,"Total Leitungsaufwand pro Spielgruppe in Stunden (nur Gruppenleitung)",{"$f":"SUM(C67:C73)","v":0}]
[]
[null,"Wird der Leitungsaufwand zwischen zwei Gruppenleitungen aufgeteilt?","nein",null,null,"Hinweis: nur möglich, wenn Positionen bei 6b mit \"ja\" eingetragen"]
[]
[]
[null,"IV) allgemeiner Aufwand pro Spielgruppenjahr (pro Person)"]
[]
[null,"Elternvernetzungsanlässe inkl. Vor- und Nachbereitung (ca. 5 Std. pro Anlass)",0,"Stunden","Anmerkung:"]
[null,"Teamsitzungen / Mitarbeiterinnengespräch",0,"Stunden","Anmerkung:"]
[null,"individuelle Weiterbildung ",0,"Stunden","Anmerkung:"]
[null,"Rauminstandhaltung/Materialreinigung/-reparatur/-einkauf",0,"Stunden","Anmerkung:"]
[null,"…",0,"Stunden","Anmerkung:"]
[null,"…",0,"Stunden","Anmerkung:"]
[null,"…",0,"Stunden","Anmerkung:"]
[8,"Total allgemeiner Aufwand pro Spielgruppenjahr in Stunden (pro Person)",{"$f":"SUM(C81:C87)","v":0}]
[]
[null,"Wird der allgemeine Aufwand der Arbeitszeit der Gruppenleitung 1 angerechnet?","ja"]
[null,"Wird der allgemeine Aufwand der Arbeitszeit der Gruppenleitung 2 angerechnet?","nein",null,null,"Hinweis: nur möglich, wenn Positionen bei 6b mit \"ja\" eingetragen"]
[null,"Wird der allg. Aufwand der Arbeitszeit der Assistenz/Begleitperson 1 angerechnet?","nein",null,null,"Hinweis: nur möglich, wenn Positionen bei 6c mit \"ja\" eingetragen"]
[null,"Wird der allg. Aufwand der Arbeitszeit der Assistenz/Begleitperson 2 angerechnet?","nein",null,null,"Hinweis: nur möglich, wenn Positionen bei 6d mit \"ja\" eingetragen"]
[]
[]
[]
[]
[null,"V) Jahresarbeitszeit (ohne Ferienanteil) in Stunden "]
[]
[null,null,{"$f":"B31","v":"Gruppenleitung 1"},null,{"$f":"B41","v":"Gruppenleitung 2"},null,{"$f":"B49","v":"Assistenz / Begleitperson 1 "},null,{"$f":"B57","v":"Assistenz / Begleitperson 2 "}]
[null,"Arbeitszeit pro Person und Gruppe (Positionen 1 x 2 x 6)",{"$f":"C16*C17*D36","v":0},null,{"$f":"C16*C17*D46","v":0},null,{"$f":"C16*C17*D54","v":0},null,{"$f":"C16*C17*D62","v":0}]
[null,"Leitungsaufwand pro Gruppe und Jahr (nur Leitung) (Position 7)",{"$f":"IF(C76=\"ja\",C74/2,C74)","v":0},null,{"$f":"IF(C76=\"ja\",C74/2,0)","v":0},null,0,null,0]
[null,"allgemeiner Aufwand pro Spielgruppenjahr (pro Person) (Position 8)",{"$f":"IF(C90=\"ja\",C88,0)","v":0},null,{"$f":"IF(C91=\"ja\",C88,0)","v":0},null,{"$f":"IF(C92=\"ja\",C88,0)","v":0},null,{"$f":"IF(C93=\"ja\",C88,0)","v":0}]
[9,"Total Jahresarbeitszeit (ohne Ferienanteil) in Stunden",{"$f":"SUM(C101:C103)","v":0},null,{"$f":"SUM(E101:E103)","v":0},null,{"$f":"SUM(G101:G103)","v":0},null,{"$f":"SUM(I101:I103)","v":0}]
[]
[]
[null,"VI) Berechnung Ferienanteil"]
[]
[null,null,{"$f":"C100","v":"Gruppenleitung 1"},null,{"$f":"E100","v":"Gruppenleitung 2"},null,{"$f":"G100","v":"Assistenz / Begleitperson 1 "},null,"Assistenz / Begleitperson 2 "]
[null,"Beträgt der jährliche Ferienanteil 4 Wochen (gesetzliches Minimum) oder 5 Wochen?","4 Wochen",null,"5 Wochen",null,"4 Wochen",null,"4 Wochen"]
[null,"Ferienanteil in Prozent",{"$f":"IF(C110=\"4 Wochen\",8.33,10.64)","v":8.33},null,{"$f":"IF(E110=\"4 Wochen\",8.33,10.64)","v":10.64},null,{"$f":"IF(G110=\"4 Wochen\",8.33,10.64)","v":8.33},null,{"$f":"IF(I110=\"4 Wochen\",8.33,10.64)","v":8.33}]
[10,"Ferienanteil in Stunden",{"$f":"C104*C111/100","v":{"v":0,"d":"0.0"}},null,{"$f":"E104*E111/100","v":{"v":0,"d":"0.0"}},null,{"$f":"G104*G111/100","v":{"v":0,"d":"0.0"}},null,{"$f":"I104*I111/100","v":{"v":0,"d":"0.0"}}]
[]
[null,"VI) Berechnung Feiertagsentschädigung"]
[]
[null,null,{"$f":"C100","v":"Gruppenleitung 1"},null,{"$f":"E100","v":"Gruppenleitung 2"},null,{"$f":"G100","v":"Assistenz / Begleitperson 1 "},null,{"$f":"I100","v":"Assistenz / Begleitperson 2 "}]
[null,"Wird eine Feiertagsentschädigung ausbezahlt?","nein",null,"nein",null,"nein",null,"nein"]
[null,"Feiertagsanteil in Prozent ",{"$f":"IF(C117=\"ja\",3.5,0)","v":0},null,{"$f":"IF(E117=\"ja\",3.5,0)","v":0},null,{"$f":"IF(G117=\"ja\",3.5,0)","v":0},null,{"$f":"IF(I117=\"ja\",3.5,0)","v":0}]
[11,"Feiertagsanteil in Stunden",{"$f":"IF(C117=\"nein\",0,C104*C118/100)","v":{"v":0,"d":"0.0"}},null,{"$f":"IF(E117=\"nein\",0,E104*E118/100)","v":{"v":0,"d":"0.0"}},null,{"$f":"IF(G117=\"nein\",0,G104*G118/100)","v":{"v":0,"d":"0.0"}},null,{"$f":"IF(I117=\"nein\",0,I104*I118/100)","v":{"v":0,"d":"0.0"}}]
[]
[null,"VI) Berechnung Zuschlag 13. Monatslohn "]
[]
[null,null,{"$f":"C100","v":"Gruppenleitung 1"},null,{"$f":"E100","v":"Gruppenleitung 2"},null,{"$f":"G100","v":"Assistenz / Begleitperson 1 "},null,{"$f":"I100","v":"Assistenz / Begleitperson 2 "}]
[null,"Wird ein 13. Monatslohn ausbezahlt?","nein",null,"nein",null,"nein",null,"nein"]
[null,"Anteil 13. Monatslohn in Prozent ",{"$f":"IF(C124=\"ja\",8.33,0)","v":0},null,{"$f":"IF(E124=\"ja\",8.33,0)","v":0},null,{"$f":"IF(G124=\"ja\",8.33,0)","v":0},null,{"$f":"IF(I124=\"ja\",8.33,0)","v":0}]
[12,"Anteil 13. Monatslohn in Stunden",{"$f":"IF(C124=\"nein\",0,C104*C125/100)","v":{"v":0,"d":"0.0"}},null,{"$f":"IF(E124=\"nein\",0,E104*E125/100)","v":{"v":0,"d":"0.0"}},null,{"$f":"IF(G124=\"nein\",0,G104*G125/100)","v":{"v":0,"d":"0.0"}},null,{"$f":"IF(I124=\"nein\",0,I104*I125/100)","v":{"v":0,"d":"0.0"}}]
[]
[null,"Erfolgsrechnung"]
[]
[]
[null,"Ausgaben"]
[]
[null,"I) Personalkosten"]
[]
[null,"Lohnkosten","Jahresarbeitszeit (Position 9)","Anteil Ferien, Feiertag, 13. ML (Positionen 10-12)","Jahresarbeitszeit total (Positionen 9 + 10)","Stundenansatz ohne Ferienanteil","Bruttolohn"]
[null,{"$f":"C100","v":"Gruppenleitung 1"},{"$f":"C104","v":{"v":0,"d":"0.0"}},{"$f":"C112+C119+C126","v":{"v":0,"d":"0.0"}},{"$f":"C136+D136","v":{"v":0,"d":"0.0"}},{"v":0,"d":"0.00"},{"$f":"E136*F136","v":{"v":0,"d":"0.00"}},"Hinweis: Lohnempfehlungen siehe SSLV"]
[null,{"$f":"E100","v":"Gruppenleitung 2"},{"$f":"E104","v":{"v":0,"d":"0.0"}},{"$f":"E112+E119+E126","v":{"v":0,"d":"0.0"}},{"$f":"C137+D137","v":{"v":0,"d":"0.0"}},{"v":0,"d":"0.00"},{"$f":"E137*F137","v":{"v":0,"d":"0.00"}}]
[null,{"$f":"G100","v":"Assistenz / Begleitperson 1 "},{"$f":"G104","v":{"v":0,"d":"0.0"}},{"$f":"G112+G119+G126","v":{"v":0,"d":"0.0"}},{"$f":"C138+D138","v":{"v":0,"d":"0.0"}},{"v":0,"d":"0.00"},{"$f":"E138*F138","v":{"v":0,"d":"0.00"}}]
[null,{"$f":"I100","v":"Assistenz / Begleitperson 2 "},{"$f":"I104","v":{"v":0,"d":"0.0"}},{"$f":"I112+I119+I126","v":{"v":0,"d":"0.0"}},{"$f":"C139+D139","v":{"v":0,"d":"0.0"}},{"v":0,"d":"0.00"},{"$f":"E139*F139","v":{"v":0,"d":"0.00"}}]
[13,"Total Bruttolohn",{"$nulls":4},{"$f":"SUM(G136:G139)","v":{"v":0,"d":"0.00"}},"Hinweis: Vom Bruttolohn werden Arbeitnehmerbeiträge abgerechnet"]
[]
[]
[null,"Lohnnebenkosten, welche von Arbeitgeberin bezahlt werden",{"$nulls":3},"Anteil in Prozent",null,"Hinweis: Lohnnebenkosten, welche von der SG-Leiterin direkt bezahlt werden, werden nicht aufgeführt"]
[]
[null,"Arbeitgeberbeiträge Sozialversicherung (AHV, IV, EO, ALV)",{"$nulls":3},{"v":0.064,"d":"6.400%"},{"$f":"G140*F145","v":{"v":0,"d":"0.00"}}]
[null,"evtl. Verwaltungskosten Pensionskasse",{"$nulls":3},{"v":0.0025,"d":"0.250%"},{"$f":"G140*F146","v":{"v":0,"d":"0.00"}},"Hinweis: Wird eine Leistung nicht bezahlt, Zahl auf \"0\" setzen"]
[null,"evtl. Familienausgleichskasse (FAK)",{"$nulls":3},{"v":0.015,"d":"1.500%"},{"$f":"G140*F147","v":{"v":0,"d":"0.00"}}]
[null,"Berufsunfallversicherung (gemäss Versicherungsangebot der IG Spielgruppe)",{"$nulls":3},{"v":0.00196,"d":"0.196%"},{"$f":"G140*F148","v":{"v":0,"d":"0.00"}}]
[null,"Nichtberufsunfallversicherung (gemäss Versicherungsangebot der IG Spielgruppe)",{"$nulls":3},{"v":0.01112,"d":"1.112%"},{"$f":"G140*F149","v":{"v":0,"d":"0.00"}}]
[null,"…",{"$nulls":3},{"v":0,"d":"0.000%"},{"$f":"G140*F150","v":{"v":0,"d":"0.00"}}]
[null,"…",{"$nulls":3},{"v":0,"d":"0.000%"},{"$f":"G140*F151","v":{"v":0,"d":"0.00"}}]
[null,"…",{"$nulls":4},{"v":0,"d":"0.00"}]
[14,"Total Lohnnebenkosten, welche von Arbeitgeberin bezahlt werden",{"$nulls":4},{"$f":"SUM(G145:G152)","v":{"v":0,"d":"0.00"}}]
[]
[15,"Total Lohnkosten (Positionen 13 + 14)",{"$nulls":4},{"$f":"G140+G153","v":{"v":0,"d":"0.00"}}]
[]
[]
[null,"Weiterbildungskosten Personal",{"$nulls":4},{"v":0,"d":"0.00"}]
[null,"Mitgliederbeiträge (Beiträge SSLV + regionale FKS x Anzahl Mitarbeiterinnen)",{"$nulls":4},{"v":0,"d":"0.00"}]
[null,"Vergütung Vorstandsarbeit",{"$nulls":4},{"v":0,"d":"0.00"}]
[null,"…",{"$nulls":4},{"v":0,"d":"0.00"}]
[null,"….",{"$nulls":4},{"v":0,"d":"0.00"}]
[16,"Personalkosten diverses",{"$nulls":4},{"$f":"SUM(G158:G162)","v":{"v":0,"d":"0.00"}}]
[]
[17,"Personalkosten total (Positionen 15 + 16)",{"$nulls":4},{"$f":"G155+G163","v":{"v":0,"d":"0.00"}}]
[]
[]
[]
[null,"II) Betriebskosten  pro Jahr"]
[null,"Hinweis: Führt eine Trägerschaft mehrere Gruppen müssen gewisse Kosten (z.B. Versicherung, Buchhaltung) auf die einzelnen Gruppen aufgeteilt werden."]
[]
[null,"fixe Betriebskosten"]
[null,"Miete","Anmerkung:",{"$nulls":3},{"v":0,"d":"0.00"}]
[null,"Betriebshaftpflichtversicherung","Anmerkung:",{"$nulls":3},{"v":0,"d":"0.00"}]
[null,"Geschäftsversicherung","Anmerkung:",{"$nulls":3},{"v":0,"d":"0.00"}]
[null,"Buchhaltung, Administration","Anmerkung:",{"$nulls":3},{"v":0,"d":"0.00"}]
[null,"Spesen Kontoführung ","Anmerkung:",{"$nulls":3},{"v":0,"d":"0.00"}]
[null,"Geschäftsführung, Vereinsleitung, Sitzungsgelder ","Anmerkung:",{"$nulls":3},{"v":0,"d":"0.00"}]
[null,"Diverses Pauschal","Anmerkung:",{"$nulls":3},{"v":0,"d":"0.00"}]
[null,"…","Anmerkung:",{"$nulls":3},{"v":0,"d":"0.00"}]
[18,"fixe Betriebskosten",{"$nulls":4},{"$f":"SUM(G173:G180)","v":{"v":0,"d":"0.00"}}]
[]
[null,"variable Betriebskosten "]
[null,"Verpflegung Z'Nüni/Z'Vieri ","Anmerkung:",{"$nulls":3},{"v":0,"d":"0.00"}]
[null,"Verbrauchsmaterial","Anmerkung:",{"$nulls":3},{"v":0,"d":"0.00"}]
[null,"Spielmaterial, Kinderbücher","Anmerkung:",{"$nulls":3},{"v":0,"d":"0.00"}]
[null,"Ausflüge, Spielgruppenreise","Anmerkung:",{"$nulls":3},{"v":0,"d":"0.00"}]
[null,"Elternabende/-aktivitäten","Anmerkung:",{"$nulls":3},{"v":0,"d":"0.00"}]
[null,"Mobiliar (Neuanschaffungen, Unterhalt/Reparatur)","Anmerkung:",{"$nulls":3},{"v":0,"d":"0.00"}]
[null,"Porto","Anmerkung:",{"$nulls":3},{"v":0,"d":"0.00"}]
[null,"Telefon","Anmerkung:",{"$nulls":3},{"v":0,"d":"0.00"}]
[null,"Druckkosten","Anmerkung:",{"$nulls":3},{"v":0,"d":"0.00"}]
[null,"Öffentlichkeitsarbeit, Werbung","Anmerkung:",{"$nulls":3},{"v":0,"d":"0.00"}]
[null,"Geschenke","Anmerkung:",{"$nulls":3},{"v":0,"d":"0.00"}]
[null,"Fachliteratur, Abo Spielgruppenzeitung","Anmerkung:",{"$nulls":3},{"v":0,"d":"0.00"}]
[null,"Diverses Pauschal","Anmerkung:",{"$nulls":3},{"v":0,"d":"0.00"}]
[null,"…","Anmerkung:",{"$nulls":3},{"v":0,"d":"0.00"}]
[null,"…","Anmerkung:",{"$nulls":3},{"v":0,"d":"0.00"}]
[19,"variable Betriebskosten ",{"$nulls":4},{"$f":"SUM(G184:G198)","v":{"v":0,"d":"0.00"}}]
[]
[]
[null,"Rückstellungen (Krankheit, Anschaffungen etc.)","Anmerkung:",{"$nulls":3},{"v":0,"d":"0.00"}]
[null,"…","Anmerkung:",{"$nulls":3},{"v":0,"d":"0.00"}]
[20,"Rückstellungen ",{"$nulls":4},{"$f":"SUM(G202:G203)","v":{"v":0,"d":"0.00"}}]
[]
[21,"Betriebskosten total (Positionen 18 + 19 + 20)",{"$nulls":4},{"$f":"G181+G199+G204","v":{"v":0,"d":"0.00"}}]
[]
[]
[22,"III) Vollkosten (Postion 17 + 21)",{"$nulls":4},{"$f":"G165+G206","v":{"v":0,"d":"0.00"}}]
[]
[23,"IV) Vollkosten pro Platz (Positionen 22 : 3 : 4) ",{"$nulls":4},{"$f":"G209/C18/C19","v":{"$error":"#DIV/0!"}}]
[]
[]
[]
[null,"Einnahmen"]
[]
[null,"I) Elternbeiträge"]
[null,null,"Fr. pro Platz","Kinder"]
[null,"Elternbeitrag pro Platz (wird in Rechnung gestellt)",{"v":0,"d":"0.00"},{"$nulls":4},"Hinweis: Preis pro Platz entspricht den Vollkosten (Position 23). Der Preis kann reduziert werden, wenn Beiträge Dritte (Position 25) vorhanden sind."]
[null,"Elternbeiträge bei erwarteter Auslastung gemäss Position 4 ",null,{"$f":"C18*C19","v":{"v":0,"d":"0.0"}},null,null,{"$f":"C219*D220","v":{"v":0,"d":"0.00"}}]
[]
[24,"Total Elternbeiträge",{"$nulls":4},{"$f":"SUM(G220:G221)","v":{"v":0,"d":"0.00"}}]
[]
[null,"II) Beiträge Dritte"]
[null,"Spenden","Anmerkung:",{"$nulls":3},{"v":0,"d":"0.00"}]
[null,"Beitrag Gemeinde","Anmerkung:",{"$nulls":3},{"v":0,"d":"0.00"}]
[null,"Beitrag Kirche","Anmerkung:",{"$nulls":3},{"v":0,"d":"0.00"}]
[null,"Beitrag Kanton","Anmerkung:",{"$nulls":3},{"v":0,"d":"0.00"}]
[null,"…","Anmerkung:",{"$nulls":3},{"v":0,"d":"0.00"}]
[null,"…","Anmerkung:",{"$nulls":3},{"v":0,"d":"0.00"}]
[25,"Total Beiträge Dritte",{"$nulls":4},{"$f":"SUM(G225:G230)","v":{"v":0,"d":"0.00"}}]
[]
[26,"Total Einnahmen (Positionen 24 + 25)",{"$nulls":4},{"$f":"G222+G231","v":{"v":0,"d":"0.00"}}]
[]
[]
[null,"Erfolgsrechnung"]
[]
[null,"Total Einnahmen (Position 26)",{"$nulls":4},{"$f":"G233","v":{"v":0,"d":"0.00"}}]
[null,"Total Ausgaben (Position 22)",{"$nulls":4},{"$f":"G209","v":{"v":0,"d":"0.00"}}]
[27,"Übertrag in Reserve (falls Einnahmen höher als Ausgaben)","Anmerkung:",{"$nulls":3},{"v":0,"d":"0.00"}]
[28,"Übertrag aus Reserven (falls Ausgaben höher als Einnahmen)","Anmerkung:",{"$nulls":3},{"v":0,"d":"0.00"},"Hinweis: nur Betrag ohne \"-\" (Minus) eingeben"]
[29,"Saldo",{"$nulls":4},{"$f":"G238-G239-G240+G241","v":{"v":0,"d":"0.00"}}]
[]
[30,"Gewinn oder Verlust / bzw. Eigenleistung Spielgruppenleiterinnen",{"$nulls":4},{"$f":"G242","v":{"v":0,"d":"0.00"}}]
[]
[]
[]
[null,"weitere Anmerkungen: "]

{"sheet":"VK Gruppe 4","index":5,"n_rows":248,"n_cols":9,"rows_kept":248,"merged":[[5,2,5,3],[6,2,6,3],[7,2,7,3],[8,2,8,3],[9,2,9,3],[18,5,20,9],[22,5,23,9],[30,3,30,4],[31,5,32,9],[34,5,34,9],[37,5,39,9],[40,3,40,4],[44,5,44,9],[48,3,48,4],[52,5,52,9],[56,3,56,4],[60,5,60,9],[70,5,70,9],[71,5,71,9],[72,5,72,9],[80,5,80,9],[81,5,81,9],[82,5,82,9],[83,5,83,9],[84,5,84,9],[85,5,85,9],[86,5,86,9],[139,7,140,9],[142,7,143,9],[145,7,146,9],[172,3,172,4],[173,3,173,4],[174,3,174,4],[175,3,175,4],[176,3,176,4],[177,3,177,4],[178,3,178,4],[179,3,179,4],[183,3,183,4],[184,3,184,4],[185,3,185,4],[186,3,186,4],[187,3,187,4],[188,3,188,4],[189,3,189,4],[190,3,190,4],[191,3,191,4],[192,3,192,4],[193,3,193,4],[194,3,194,4],[195,3,195,4],[196,3,196,4],[197,3,197,4],[201,3,201,4],[202,3,202,4],[218,7,220,9],[224,3,224,4],[225,3,225,4],[226,3,226,4],[227,3,227,4],[228,3,228,4],[229,3,229,4],[239,3,239,4],[240,3,240,4],[247,1,247,9],[248,1,248,9],[249,1,249,9],[250,1,250,9],[251,1,251,9],[252,1,252,9],[253,1,253,9],[254,1,254,9],[255,1,255,9],[256,1,256,9],[257,1,257,9],[258,1,258,9],[259,1,259,9]]}
[]
[null,"Hellblaue Felder können eingefüllt werden"]
[null,"Orange Felder müssen eingefüllt werden"]
[]
[]
[null,"Spielgruppe"]
[null,"Name Gruppe"]
[null,"Durchführung pro Woche"]
[null,"Berechnungsperiode"]
[null,"Berechnungsdatum"]
[]
[null,"Berechnung Arbeitszeit pro Gruppe"]
[]
[null,"I) Basisdaten"]
["Position"]
[1,"Anzahl Spielgruppenwochen pro Berechnungsperiode:",0,"Wochen"]
[2,"Anzahl Durchführung pro Woche",0,"Anzahl pro Woche"]
[3,"Anzahl Plätze bei Vollbelegung",0,"Plätze"]
[4,"erwartete Jahresauslastung in Prozent",{"v":0,"d":"0%"},"Prozent",null,"Hinweis: Können alle Plätze voll verrechnet werden ist die Jahresauslastung 100%. Können nicht alle Plätze voll verrechnet werden (z.B. offene Plätze, späterer Einstieg) liegt die Jahresauslastung unter 100%."]
[]
[]
[]
["5a","Anzahl Spielgruppenstunden pro Durchführung",0,"Stunden",null,"Hinweis: Bei mehreren Durchführungen pro Woche durchschnittliche Dauer eintragen, falls Länge der Durchführung unterschiedlich"]
["5b","Vorbereitung pro Durchführung (inkl. Administration, Einkauf, Raum vorbereiten)",0,"Stunden"]
["5c","Nachbereitung pro Durchführung (inkl. Aufräumen, Tür-und-Angel-Elterngespräche)",0,"Stunden"]
[]
[]
[null,"II) Arbeitszeit pro Person und Durchführung"]
[]
[{"$nulls":3},"Anzahl Stunden"]
[null,"Gruppenleitung 1","Name"]
[null,".Spielgruppenstunden (Position 5a)","ja",{"$f":"IF(C32=\"ja\",C23,0)","v":0},null,"Hinweis: \"ja\" bedeutet, dass der Posten als bezahlte Arbeitszeit angerechnet wird, \"nein\" bedeutet, dass der Posten nicht angerechnet wird."]
[null,".Vorbereitung (Position 5b)","ja",{"$f":"IF(C33=\"ja\",C24,0)","v":0}]
[null,".Nachbereitung (Position 5c)","ja",{"$f":"IF(C34=\"ja\",C25,0)","v":0}]
[null,".Optional: andere Stundenzahl als Positionen 5b / 5c für Vor- und Nachbereitung",null,null,"Anmerkung:"]
["6a","Total Gruppenleitung 1",null,{"$f":"SUM(D32:D35)","v":0}]
[]
[null,"Wird eine zweite Gruppenleitung eingesetzt?","nein",null,null,"Hinweis: In der Regel wird eine SG von einer ausgebildeten Spielgruppenleiterin geleitet. Unterstützt wird sie in manchen SG von einer Assistenz / Begleitperson. In wenigen SG werden zwei ausgebildete Spielgruppenleiterinnen oder gar drei Personen eingesetzt."]
[]
[]
[null,"Gruppenleitung 2","Name"]
[null,".Spielgruppenstunden (Position 5a)","nein",{"$f":"IF(C42=\"ja\",C23,0)","v":0}]
[null,".Vorbereitung (Position 5b)","nein",{"$f":"IF(C43=\"ja\",C24,0)","v":0}]
[null,".Nachbereitung (Position 5c)","nein",{"$f":"IF(C44=\"ja\",C25,0)","v":0}]
[null,".Optional: andere Stundenzahl als Positionen 5b / 5c für Vor- und Nachbereitung",null,null,"Anmerkung:"]
["6b","Total Gruppenleitung 2",null,{"$f":"SUM(D42:D45)","v":0}]
[]
[null,"Wird eine Begleitperson in der Gruppe eingesetzt?","ja"]
[null,"Assistenz / Begleitperson 1 ","Name"]
[null,".Spielgruppenstunden (Position 5a)","ja",{"$f":"IF(C50=\"ja\",C23,0)","v":0}]
[null,".Vorbereitung (Position 5b)","nein",{"$f":"IF(C51=\"ja\",C24,0)","v":0}]
[null,".Nachbereitung (Position 5c)","nein",{"$f":"IF(C52=\"ja\",C25,0)","v":0}]
[null,".Optional: andere Stundenzahl als Positionen 5b / 5c für Vor- und Nachbereitung",null,0,"Anmerkung:"]
["6c","Total Assistenz / Begleitperson 1 ",null,{"$f":"SUM(D50:D53)","v":0}]
[]
[null,"Wird eine zweite Begleitperson in der Gruppe eingesetzt?","nein"]
[null,"Assistenz / Begleitperson 2 ","Name"]
[null,".Spielgruppenstunden (Position 5a)","nein",{"$f":"IF(C58=\"ja\",C23,0)","v":0}]
[null,".Vorbereitung (Position 5b)","nein",{"$f":"IF(C59=\"ja\",C24,0)","v":0}]
[null,".Nachbereitung (Position 5c)","nein",{"$f":"IF(C60=\"ja\",C25,0)","v":0}]
[null,".Optional: andere Stundenzahl als Positionen 5b / 5c für Vor- und Nachbereitung",null,null,"Anmerkung:"]
["6d","Total Assistenz / Begleitperson 2 ",null,{"$f":"SUM(D58:D61)","v":0}]
[]
[]
[null,"III) Leitungsaufwand pro Gruppe und Jahr (nur Gruppenleitung)"]
[]
[null,"Jahresplanung/Erstellen Elterninformationen/Einteilungen",0,"Stunden"]
[null,"Planungssitzungen mit Gemeinde/Schule/Fachstellen (Anzahl Gespräche x 1.5 Stunden)",{"$f":"F68*1.5","v":0},"Stunden","Anzahl Gespräche",0]
[null,"Kontakte Schule/Fachpersonen (Anzahl Gespräche x 0.5 Stunden)",{"$f":"F69*0.5","v":0},"Stunden","Anzahl Gespräche",0]
[null,"spezifische Elternkontakte (Anzahl Gespräche x 0.5 Stunden)",{"$f":"F70*0.5","v":0},"Stunden","Anzahl Gespräche",0]
[null,"…",0,"Stunden","Anmerkungen:"]
[null,"…",0,"Stunden","Anmerkungen:"]
[null,"…",0,"Stunden","Anmerkungen:"]
[7,"Total Leitungsaufwand pro Spielgruppe in Stunden (nur Gruppenleitung)",{"$f":"SUM(C67:C73)","v":0}]
[]
[null,"Wird der Leitungsaufwand zwischen zwei Gruppenleitungen aufgeteilt?","nein",null,null,"Hinweis: nur möglich, wenn Positionen bei 6b mit \"ja\" eingetragen"]
[]
[]
[null,"IV) allgemeiner Aufwand pro Spielgruppenjahr (pro Person)"]
[]
[null,"Elternvernetzungsanlässe inkl. Vor- und Nachbereitung (ca. 5 Std. pro Anlass)",0,"Stunden","Anmerkung:"]
[null,"Teamsitzungen / Mitarbeiterinnengespräch",0,"Stunden","Anmerkung:"]
[null,"individuelle Weiterbildung ",0,"Stunden","Anmerkung:"]
[null,"Rauminstandhaltung/Materialreinigung/-reparatur/-einkauf",0,"Stunden","Anmerkung:"]
[null,"…",0,"Stunden","Anmerkung:"]
[null,"…",0,"Stunden","Anmerkung:"]
[null,"…",0,"Stunden","Anmerkung:"]
[8,"Total allgemeiner Aufwand pro Spielgruppenjahr in Stunden (pro Person)",{"$f":"SUM(C81:C87)","v":0}]
[]
[null,"Wird der allgemeine Aufwand der Arbeitszeit der Gruppenleitung 1 angerechnet?","ja"]
[null,"Wird der allgemeine Aufwand der Arbeitszeit der Gruppenleitung 2 angerechnet?","nein",null,null,"Hinweis: nur möglich, wenn Positionen bei 6b mit \"ja\" eingetragen"]
[null,"Wird der allg. Aufwand der Arbeitszeit der Assistenz/Begleitperson 1 angerechnet?","nein",null,null,"Hinweis: nur möglich, wenn Positionen bei 6c mit \"ja\" eingetragen"]
[null,"Wird der allg. Aufwand der Arbeitszeit der Assistenz/Begleitperson 2 angerechnet?","nein",null,null,"Hinweis: nur möglich, wenn Positionen bei 6d mit \"ja\" eingetragen"]
[]
[]
[]
[]
[null,"V) Jahresarbeitszeit (ohne Ferienanteil) in Stunden "]
[]
[null,null,{"$f":"B31","v":"Gruppenleitung 1"},null,{"$f":"B41","v":"Gruppenleitung 2"},null,{"$f":"B49","v":"Assistenz / Begleitperson 1 "},null,{"$f":"B57","v":"Assistenz / Begleitperson 2 "}]
[null,"Arbeitszeit pro Person und Gruppe (Positionen 1 x 2 x 6)",{"$f":"C16*C17*D36","v":0},null,{"$f":"C16*C17*D46","v":0},null,{"$f":"C16*C17*D54","v":0},null,{"$f":"C16*C17*D62","v":0}]
[null,"Leitungsaufwand pro Gruppe und Jahr (nur Leitung) (Position 7)",{"$f":"IF(C76=\"ja\",C74/2,C74)","v":0},null,{"$f":"IF(C76=\"ja\",C74/2,0)","v":0},null,0,null,0]
[null,"allgemeiner Aufwand pro Spielgruppenjahr (pro Person) (Position 8)",{"$f":"IF(C90=\"ja\",C88,0)","v":0},null,{"$f":"IF(C91=\"ja\",C88,0)","v":0},null,{"$f":"IF(C92=\"ja\",C88,0)","v":0},null,{"$f":"IF(C93=\"ja\",C88,0)","v":0}]
[9,"Total Jahresarbeitszeit (ohne Ferienanteil) in Stunden",{"$f":"SUM(C101:C103)","v":0},null,{"$f":"SUM(E101:E103)","v":0},null,{"$f":"SUM(G101:G103)","v":0},null,{"$f":"SUM(I101:I103)","v":0}]
[]
[]
[null,"VI) Berechnung Ferienanteil"]
[]
[null,null,{"$f":"C100","v":"Gruppenleitung 1"},null,{"$f":"E100","v":"Gruppenleitung 2"},null,{"$f":"G100","v":"Assistenz / Begleitperson 1 "},null,"Assistenz / Begleitperson 2 "]
[null,"Beträgt der jährliche Ferienanteil 4 Wochen (gesetzliches Minimum) oder 5 Wochen?","4 Wochen",null,"5 Wochen",null,"4 Wochen",null,"4 Wochen"]
[null,"Ferienanteil in Prozent",{"$f":"IF(C110=\"4 Wochen\",8.33,10.64)","v":8.33},null,{"$f":"IF(E110=\"4 Wochen\",8.33,10.64)","v":10.64},null,{"$f":"IF(G110=\"4 Wochen\",8.33,10.64)","v":8.33},null,{"$f":"IF(I110=\"4 Wochen\",8.33,10.64)","v":8.33}]
[10,"Ferienanteil in Stunden",{"$f":"C104*C111/100","v":{"v":0,"d":"0.0"}},null,{"$f":"E104*E111/100","v":{"v":0,"d":"0.0"}},null,{"$f":"G104*G111/100","v":{"v":0,"d":"0.0"}},null,{"$f":"I104*I111/100","v":{"v":0,"d":"0.0"}}]
[]
[null,"VI) Berechnung Feiertagsentschädigung"]
[]
[null,null,{"$f":"C100","v":"Gruppenleitung 1"},null,{"$f":"E100","v":"Gruppenleitung 2"},null,{"$f":"G100","v":"Assistenz / Begleitperson 1 "},null,{"$f":"I100","v":"Assistenz / Begleitperson 2 "}]
[null,"Wird eine Feiertagsentschädigung ausbezahlt?","nein",null,"nein",null,"nein",null,"nein"]
[null,"Feiertagsanteil in Prozent ",{"$f":"IF(C117=\"ja\",3.5,0)","v":0},null,{"$f":"IF(E117=\"ja\",3.5,0)","v":0},null,{"$f":"IF(G117=\"ja\",3.5,0)","v":0},null,{"$f":"IF(I117=\"ja\",3.5,0)","v":0}]
[11,"Feiertagsanteil in Stunden",{"$f":"IF(C117=\"nein\",0,C104*C118/100)","v":{"v":0,"d":"0.0"}},null,{"$f":"IF(E117=\"nein\",0,E104*E118/100)","v":{"v":0,"d":"0.0"}},null,{"$f":"IF(G117=\"nein\",0,G104*G118/100)","v":{"v":0,"d":"0.0"}},null,{"$f":"IF(I117=\"nein\",0,I104*I118/100)","v":{"v":0,"d":"0.0"}}]
[]
[null,"VI) Berechnung Zuschlag 13. Monatslohn "]
[]
[null,null,{"$f":"C100","v":"Gruppenleitung 1"},null,{"$f":"E100","v":"Gruppenleitung 2"},null,{"$f":"G100","v":"Assistenz / Begleitperson 1 "},null,{"$f":"I100","v":"Assistenz / Begleitperson 2 "}]
[null,"Wird ein 13. Monatslohn ausbezahlt?","nein",null,"nein",null,"nein",null,"nein"]
[null,"Anteil 13. Monatslohn in Prozent ",{"$f":"IF(C124=\"ja\",8.33,0)","v":0},null,{"$f":"IF(E124=\"ja\",8.33,0)","v":0},null,{"$f":"IF(G124=\"ja\",8.33,0)","v":0},null,{"$f":"IF(I124=\"ja\",8.33,0)","v":0}]
[12,"Anteil 13. Monatslohn in Stunden",{"$f":"IF(C124=\"nein\",0,C104*C125/100)","v":{"v":0,"d":"0.0"}},null,{"$f":"IF(E124=\"nein\",0,E104*E125/100)","v":{"v":0,"d":"0.0"}},null,{"$f":"IF(G124=\"nein\",0,G104*G125/100)","v":{"v":0,"d":"0.0"}},null,{"$f":"IF(I124=\"nein\",0,I104*I125/100)","v":{"v":0,"d":"0.0"}}]
[]
[null,"Erfolgsrechnung"]
[]
[]
[null,"Ausgaben"]
[]
[null,"I) Personalkosten"]
[]
[null,"Lohnkosten","Jahresarbeitszeit (Position 9)","Anteil Ferien, Feiertag, 13. ML (Positionen 10-12)","Jahresarbeitszeit total (Positionen 9 + 10)","Stundenansatz ohne Ferienanteil","Bruttolohn"]
[null,{"$f":"C100","v":"Gruppenleitung 1"},{"$f":"C104","v":{"v":0,"d":"0.0"}},{"$f":"C112+C119+C126","v":{"v":0,"d":"0.0"}},{"$f":"C136+D136","v":{"v":0,"d":"0.0"}},{"v":0,"d":"0.00"},{"$f":"E136*F136","v":{"v":0,"d":"0.00"}},"Hinweis: Lohnempfehlungen siehe SSLV"]
[null,{"$f":"E100","v":"Gruppenleitung 2"},{"$f":"E104","v":{"v":0,"d":"0.0"}},{"$f":"E112+E119+E126","v":{"v":0,"d":"0.0"}},{"$f":"C137+D137","v":{"v":0,"d":"0.0"}},{"v":0,"d":"0.00"},{"$f":"E137*F137","v":{"v":0,"d":"0.00"}}]
[null,{"$f":"G100","v":"Assistenz / Begleitperson 1 "},{"$f":"G104","v":{"v":0,"d":"0.0"}},{"$f":"G112+G119+G126","v":{"v":0,"d":"0.0"}},{"$f":"C138+D138","v":{"v":0,"d":"0.0"}},{"v":0,"d":"0.00"},{"$f":"E138*F138","v":{"v":0,"d":"0.00"}}]
[null,{"$f":"I100","v":"Assistenz / Begleitperson 2 "},{"$f":"I104","v":{"v":0,"d":"0.0"}},{"$f":"I112+I119+I126","v":{"v":0,"d":"0.0"}},{"$f":"C139+D139","v":{"v":0,"d":"0.0"}},{"v":0,"d":"0.00"},{"$f":"E139*F139","v":{"v":0,"d":"0.00"}}]
[13,"Total Bruttolohn",{"$nulls":4},{"$f":"SUM(G136:G139)","v":{"v":0,"d":"0.00"}},"Hinweis: Vom Bruttolohn werden Arbeitnehmerbeiträge abgerechnet"]
[]
[]
[null,"Lohnnebenkosten, welche von Arbeitgeberin bezahlt werden",{"$nulls":3},"Anteil in Prozent",null,"Hinweis: Lohnnebenkosten, welche von der SG-Leiterin direkt bezahlt werden, werden nicht aufgeführt"]
[]
[null,"Arbeitgeberbeiträge Sozialversicherung (AHV, IV, EO, ALV)",{"$nulls":3},{"v":0.064,"d":"6.400%"},{"$f":"G140*F145","v":{"v":0,"d":"0.00"}}]
[null,"evtl. Verwaltungskosten Pensionskasse",{"$nulls":3},{"v":0.0025,"d":"0.250%"},{"$f":"G140*F146","v":{"v":0,"d":"0.00"}},"Hinweis: Wird eine Leistung nicht bezahlt, Zahl auf \"0\" setzen"]
[null,"evtl. Familienausgleichskasse (FAK)",{"$nulls":3},{"v":0.015,"d":"1.500%"},{"$f":"G140*F147","v":{"v":0,"d":"0.00"}}]
[null,"Berufsunfallversicherung (gemäss Versicherungsangebot der IG Spielgruppe)",{"$nulls":3},{"v":0.00196,"d":"0.196%"},{"$f":"G140*F148","v":{"v":0,"d":"0.00"}}]
[null,"Nichtberufsunfallversicherung (gemäss Versicherungsangebot der IG Spielgruppe)",{"$nulls":3},{"v":0.01112,"d":"1.112%"},{"$f":"G140*F149","v":{"v":0,"d":"0.00"}}]
[null,"…",{"$nulls":3},{"v":0,"d":"0.000%"},{"$f":"G140*F150","v":{"v":0,"d":"0.00"}}]
[null,"…",{"$nulls":3},{"v":0,"d":"0.000%"},{"$f":"G140*F151","v":{"v":0,"d":"0.00"}}]
[null,"…",{"$nulls":4},{"v":0,"d":"0.00"}]
[14,"Total Lohnnebenkosten, welche von Arbeitgeberin bezahlt werden",{"$nulls":4},{"$f":"SUM(G145:G152)","v":{"v":0,"d":"0.00"}}]
[]
[15,"Total Lohnkosten (Positionen 13 + 14)",{"$nulls":4},{"$f":"G140+G153","v":{"v":0,"d":"0.00"}}]
[]
[]
[null,"Weiterbildungskosten Personal",{"$nulls":4},{"v":0,"d":"0.00"}]
[null,"Mitgliederbeiträge (Beiträge SSLV + regionale FKS x Anzahl Mitarbeiterinnen)",{"$nulls":4},{"v":0,"d":"0.00"}]
[null,"Vergütung Vorstandsarbeit",{"$nulls":4},{"v":0,"d":"0.00"}]
[null,"…",{"$nulls":4},{"v":0,"d":"0.00"}]
[null,"….",{"$nulls":4},{"v":0,"d":"0.00"}]
[16,"Personalkosten diverses",{"$nulls":4},{"$f":"SUM(G158:G162)","v":{"v":0,"d":"0.00"}}]
[]
[17,"Personalkosten total (Positionen 15 + 16)",{"$nulls":4},{"$f":"G155+G163","v":{"v":0,"d":"0.00"}}]
[]
[]
[]
[null,"II) Betriebskosten  pro Jahr"]
[null,"Hinweis: Führt eine Trägerschaft mehrere Gruppen müssen gewisse Kosten (z.B. Versicherung, Buchhaltung) auf die einzelnen Gruppen aufgeteilt werden."]
[]
[null,"fixe Betriebskosten"]
[null,"Miete","Anmerkung:",{"$nulls":3},{"v":0,"d":"0.00"}]
[null,"Betriebshaftpflichtversicherung","Anmerkung:",{"$nulls":3},{"v":0,"d":"0.00"}]
[null,"Geschäftsversicherung","Anmerkung:",{"$nulls":3},{"v":0,"d":"0.00"}]
[null,"Buchhaltung, Administration","Anmerkung:",{"$nulls":3},{"v":0,"d":"0.00"}]
[null,"Spesen Kontoführung ","Anmerkung:",{"$nulls":3},{"v":0,"d":"0.00"}]
[null,"Geschäftsführung, Vereinsleitung, Sitzungsgelder ","Anmerkung:",{"$nulls":3},{"v":0,"d":"0.00"}]
[null,"Diverses Pauschal","Anmerkung:",{"$nulls":3},{"v":0,"d":"0.00"}]
[null,"…","Anmerkung:",{"$nulls":3},{"v":0,"d":"0.00"}]
[18,"fixe Betriebskosten",{"$nulls":4},{"$f":"SUM(G173:G180)","v":{"v":0,"d":"0.00"}}]
[]
[null,"variable Betriebskosten "]
[null,"Verpflegung Z'Nüni/Z'Vieri ","Anmerkung:",{"$nulls":3},{"v":0,"d":"0.00"}]
[null,"Verbrauchsmaterial","Anmerkung:",{"$nulls":3},{"v":0,"d":"0.00"}]
[null,"Spielmaterial, Kinderbücher","Anmerkung:",{"$nulls":3},{"v":0,"d":"0.00"}]
[null,"Ausflüge, Spielgruppenreise","Anmerkung:",{"$nulls":3},{"v":0,"d":"0.00"}]
[null,"Elternabende/-aktivitäten","Anmerkung:",{"$nulls":3},{"v":0,"d":"0.00"}]
[null,"Mobiliar (Neuanschaffungen, Unterhalt/Reparatur)","Anmerkung:",{"$nulls":3},{"v":0,"d":"0.00"}]
[null,"Porto","Anmerkung:",{"$nulls":3},{"v":0,"d":"0.00"}]
[null,"Telefon","Anmerkung:",{"$nulls":3},{"v":0,"d":"0.00"}]
[null,"Druckkosten","Anmerkung:",{"$nulls":3},{"v":0,"d":"0.00"}]
[null,"Öffentlichkeitsarbeit, Werbung","Anmerkung:",{"$nulls":3},{"v":0,"d":"0.00"}]
[null,"Geschenke","Anmerkung:",{"$nulls":3},{"v":0,"d":"0.00"}]
[null,"Fachliteratur, Abo Spielgruppenzeitung","Anmerkung:",{"$nulls":3},{"v":0,"d":"0.00"}]
[null,"Diverses Pauschal","Anmerkung:",{"$nulls":3},{"v":0,"d":"0.00"}]
[null,"…","Anmerkung:",{"$nulls":3},{"v":0,"d":"0.00"}]
[null,"…","Anmerkung:",{"$nulls":3},{"v":0,"d":"0.00"}]
[19,"variable Betriebskosten ",{"$nulls":4},{"$f":"SUM(G184:G198)","v":{"v":0,"d":"0.00"}}]
[]
[]
[null,"Rückstellungen (Krankheit, Anschaffungen etc.)","Anmerkung:",{"$nulls":3},{"v":0,"d":"0.00"}]
[null,"…","Anmerkung:",{"$nulls":3},{"v":0,"d":"0.00"}]
[20,"Rückstellungen ",{"$nulls":4},{"$f":"SUM(G202:G203)","v":{"v":0,"d":"0.00"}}]
[]
[21,"Betriebskosten total (Positionen 18 + 19 + 20)",{"$nulls":4},{"$f":"G181+G199+G204","v":{"v":0,"d":"0.00"}}]
[]
[]
[22,"III) Vollkosten (Postion 17 + 21)",{"$nulls":4},{"$f":"G165+G206","v":{"v":0,"d":"0.00"}}]
[]
[23,"IV) Vollkosten pro Platz (Positionen 22 : 3 : 4) ",{"$nulls":4},{"$f":"G209/C18/C19","v":{"$error":"#DIV/0!"}}]
[]
[]
[]
[null,"Einnahmen"]
[]
[null,"I) Elternbeiträge"]
[null,null,"Fr. pro Platz","Kinder"]
[null,"Elternbeitrag pro Platz (wird in Rechnung gestellt)",{"v":0,"d":"0.00"},{"$nulls":4},"Hinweis: Preis pro Platz entspricht den Vollkosten (Position 23). Der Preis kann reduziert werden, wenn Beiträge Dritte (Position 25) vorhanden sind."]
[null,"Elternbeiträge bei erwarteter Auslastung gemäss Position 4 ",null,{"$f":"C18*C19","v":{"v":0,"d":"0.0"}},null,null,{"$f":"C219*D220","v":{"v":0,"d":"0.00"}}]
[]
[24,"Total Elternbeiträge",{"$nulls":4},{"$f":"SUM(G220:G221)","v":{"v":0,"d":"0.00"}}]
[]
[null,"II) Beiträge Dritte"]
[null,"Spenden","Anmerkung:",{"$nulls":3},{"v":0,"d":"0.00"}]
[null,"Beitrag Gemeinde","Anmerkung:",{"$nulls":3},{"v":0,"d":"0.00"}]
[null,"Beitrag Kirche","Anmerkung:",{"$nulls":3},{"v":0,"d":"0.00"}]
[null,"Beitrag Kanton","Anmerkung:",{"$nulls":3},{"v":0,"d":"0.00"}]
[null,"…","Anmerkung:",{"$nulls":3},{"v":0,"d":"0.00"}]
[null,"…","Anmerkung:",{"$nulls":3},{"v":0,"d":"0.00"}]
[25,"Total Beiträge Dritte",{"$nulls":4},{"$f":"SUM(G225:G230)","v":{"v":0,"d":"0.00"}}]
[]
[26,"Total Einnahmen (Positionen 24 + 25)",{"$nulls":4},{"$f":"G222+G231","v":{"v":0,"d":"0.00"}}]
[]
[]
[null,"Erfolgsrechnung"]
[]
[null,"Total Einnahmen (Position 26)",{"$nulls":4},{"$f":"G233","v":{"v":0,"d":"0.00"}}]
[null,"Total Ausgaben (Position 22)",{"$nulls":4},{"$f":"G209","v":{"v":0,"d":"0.00"}}]
[27,"Übertrag in Reserve (falls Einnahmen höher als Ausgaben)","Anmerkung:",{"$nulls":3},{"v":0,"d":"0.00"}]
[28,"Übertrag aus Reserven (falls Ausgaben höher als Einnahmen)","Anmerkung:",{"$nulls":3},{"v":0,"d":"0.00"},"Hinweis: nur Betrag ohne \"-\" (Minus) eingeben"]
[29,"Saldo",{"$nulls":4},{"$f":"G238-G239-G240+G241","v":{"v":0,"d":"0.00"}}]
[]
[30,"Gewinn oder Verlust / bzw. Eigenleistung Spielgruppenleiterinnen",{"$nulls":4},{"$f":"G242","v":{"v":0,"d":"0.00"}}]
[]
[]
[]
[null,"weitere Anmerkungen: "]

{"sheet":"VK Gruppe 5","index":6,"n_rows":248,"n_cols":9,"rows_kept":248,"merged":[[5,2,5,3],[6,2,6,3],[7,2,7,3],[8,2,8,3],[9,2,9,3],[18,5,20,9],[22,5,23,9],[30,3,30,4],[31,5,32,9],[34,5,34,9],[37,5,39,9],[40,3,40,4],[44,5,44,9],[48,3,48,4],[52,5,52,9],[56,3,56,4],[60,5,60,9],[70,5,70,9],[71,5,71,9],[72,5,72,9],[80,5,80,9],[81,5,81,9],[82,5,82,9],[83,5,83,9],[84,5,84,9],[85,5,85,9],[86,5,86,9],[139,7,140,9],[142,7,143,9],[145,7,146,9],[172,3,172,4],[173,3,173,4],[174,3,174,4],[175,3,175,4],[176,3,176,4],[177,3,177,4],[178,3,178,4],[179,3,179,4],[183,3,183,4],[184,3,184,4],[185,3,185,4],[186,3,186,4],[187,3,187,4],[188,3,188,4],[189,3,189,4],[190,3,190,4],[191,3,191,4],[192,3,192,4],[193,3,193,4],[194,3,194,4],[195,3,195,4],[196,3,196,4],[197,3,197,4],[201,3,201,4],[202,3,202,4],[218,7,220,9],[224,3,224,4],[225,3,225,4],[226,3,226,4],[227,3,227,4],[228,3,228,4],[229,3,229,4],[239,3,239,4],[240,3,240,4],[247,1,247,9],[248,1,248,9],[249,1,249,9],[250,1,250,9],[251,1,251,9],[252,1,252,9],[253,1,253,9],[254,1,254,9],[255,1,255,9],[256,1,256,9],[257,1,257,9],[258,1,258,9],[259,1,259,9]]}
[]
[null,"Hellblaue Felder können eingefüllt werden"]
[null,"Orange Felder müssen eingefüllt werden"]
[]
[]
[null,"Spielgruppe"]
[null,"Name Gruppe"]
[null,"Durchführung pro Woche"]
[null,"Berechnungsperiode"]
[null,"Berechnungsdatum"]
[]
[null,"Berechnung Arbeitszeit pro Gruppe"]
[]
[null,"I) Basisdaten"]
["Position"]
[1,"Anzahl Spielgruppenwochen pro Berechnungsperiode:",0,"Wochen"]
[2,"Anzahl Durchführung pro Woche",0,"Anzahl pro Woche"]
[3,"Anzahl Plätze bei Vollbelegung",0,"Plätze"]
[4,"erwartete Jahresauslastung in Prozent",{"v":0,"d":"0%"},"Prozent",null,"Hinweis: Können alle Plätze voll verrechnet werden ist die Jahresauslastung 100%. Können nicht alle Plätze voll verrechnet werden (z.B. offene Plätze, späterer Einstieg) liegt die Jahresauslastung unter 100%."]
[]
[]
[]
["5a","Anzahl Spielgruppenstunden pro Durchführung",0,"Stunden",null,"Hinweis: Bei mehreren Durchführungen pro Woche durchschnittliche Dauer eintragen, falls Länge der Durchführung unterschiedlich"]
["5b","Vorbereitung pro Durchführung (inkl. Administration, Einkauf, Raum vorbereiten)",0,"Stunden"]
["5c","Nachbereitung pro Durchführung (inkl. Aufräumen, Tür-und-Angel-Elterngespräche)",0,"Stunden"]
[]
[]
[null,"II) Arbeitszeit pro Person und Durchführung"]
[]
[{"$nulls":3},"Anzahl Stunden"]
[null,"Gruppenleitung 1","Name"]
[null,".Spielgruppenstunden (Position 5a)","ja",{"$f":"IF(C32=\"ja\",C23,0)","v":0},null,"Hinweis: \"ja\" bedeutet, dass der Posten als bezahlte Arbeitszeit angerechnet wird, \"nein\" bedeutet, dass der Posten nicht angerechnet wird."]
[null,".Vorbereitung (Position 5b)","ja",{"$f":"IF(C33=\"ja\",C24,0)","v":0}]
[null,".Nachbereitung (Position 5c)","ja",{"$f":"IF(C34=\"ja\",C25,0)","v":0}]
[null,".Optional: andere Stundenzahl als Positionen 5b / 5c für Vor- und Nachbereitung",null,null,"Anmerkung:"]
["6a","Total Gruppenleitung 1",null,{"$f":"SUM(D32:D35)","v":0}]
[]
[null,"Wird eine zweite Gruppenleitung eingesetzt?","nein",null,null,"Hinweis: In der Regel wird eine SG von einer ausgebildeten Spielgruppenleiterin geleitet. Unterstützt wird sie in manchen SG von einer Assistenz / Begleitperson. In wenigen SG werden zwei ausgebildete Spielgruppenleiterinnen oder gar drei Personen eingesetzt."]
[]
[]
[null,"Gruppenleitung 2","Name"]
[null,".Spielgruppenstunden (Position 5a)","nein",{"$f":"IF(C42=\"ja\",C23,0)","v":0}]
[null,".Vorbereitung (Position 5b)","nein",{"$f":"IF(C43=\"ja\",C24,0)","v":0}]
[null,".Nachbereitung (Position 5c)","nein",{"$f":"IF(C44=\"ja\",C25,0)","v":0}]
[null,".Optional: andere Stundenzahl als Positionen 5b / 5c für Vor- und Nachbereitung",null,null,"Anmerkung:"]
["6b","Total Gruppenleitung 2",null,{"$f":"SUM(D42:D45)","v":0}]
[]
[null,"Wird eine Begleitperson in der Gruppe eingesetzt?","ja"]
[null,"Assistenz / Begleitperson 1 ","Name"]
[null,".Spielgruppenstunden (Position 5a)","ja",{"$f":"IF(C50=\"ja\",C23,0)","v":0}]
[null,".Vorbereitung (Position 5b)","nein",{"$f":"IF(C51=\"ja\",C24,0)","v":0}]
[null,".Nachbereitung (Position 5c)","nein",{"$f":"IF(C52=\"ja\",C25,0)","v":0}]
[null,".Optional: andere Stundenzahl als Positionen 5b / 5c für Vor- und Nachbereitung",null,0,"Anmerkung:"]
["6c","Total Assistenz / Begleitperson 1 ",null,{"$f":"SUM(D50:D53)","v":0}]
[]
[null,"Wird eine zweite Begleitperson in der Gruppe eingesetzt?","nein"]
[null,"Assistenz / Begleitperson 2 ","Name"]
[null,".Spielgruppenstunden (Position 5a)","nein",{"$f":"IF(C58=\"ja\",C23,0)","v":0}]
[null,".Vorbereitung (Position 5b)","nein",{"$f":"IF(C59=\"ja\",C24,0)","v":0}]
[null,".Nachbereitung (Position 5c)","nein",{"$f":"IF(C60=\"ja\",C25,0)","v":0}]
[null,".Optional: andere Stundenzahl als Positionen 5b / 5c für Vor- und Nachbereitung",null,null,"Anmerkung:"]
["6d","Total Assistenz / Begleitperson 2 ",null,{"$f":"SUM(D58:D61)","v":0}]
[]
[]
[null,"III) Leitungsaufwand pro Gruppe und Jahr (nur Gruppenleitung)"]
[]
[null,"Jahresplanung/Erstellen Elterninformationen/Einteilungen",0,"Stunden"]
[null,"Planungssitzungen mit Gemeinde/Schule/Fachstellen (Anzahl Gespräche x 1.5 Stunden)",{"$f":"F68*1.5","v":0},"Stunden","Anzahl Gespräche",0]
[null,"Kontakte Schule/Fachpersonen (Anzahl Gespräche x 0.5 Stunden)",{"$f":"F69*0.5","v":0},"Stunden","Anzahl Gespräche",0]
[null,"spezifische Elternkontakte (Anzahl Gespräche x 0.5 Stunden)",{"$f":"F70*0.5","v":0},"Stunden","Anzahl Gespräche",0]
[null,"…",0,"Stunden","Anmerkungen:"]
[null,"…",0,"Stunden","Anmerkungen:"]
[null,"…",0,"Stunden","Anmerkungen:"]
[7,"Total Leitungsaufwand pro Spielgruppe in Stunden (nur Gruppenleitung)",{"$f":"SUM(C67:C73)","v":0}]
[]
[null,"Wird der Leitungsaufwand zwischen zwei Gruppenleitungen aufgeteilt?","nein",null,null,"Hinweis: nur möglich, wenn Positionen bei 6b mit \"ja\" eingetragen"]
[]
[]
[null,"IV) allgemeiner Aufwand pro Spielgruppenjahr (pro Person)"]
[]
[null,"Elternvernetzungsanlässe inkl. Vor- und Nachbereitung (ca. 5 Std. pro Anlass)",0,"Stunden","Anmerkung:"]
[null,"Teamsitzungen / Mitarbeiterinnengespräch",0,"Stunden","Anmerkung:"]
[null,"individuelle Weiterbildung ",0,"Stunden","Anmerkung:"]
[null,"Rauminstandhaltung/Materialreinigung/-reparatur/-einkauf",0,"Stunden","Anmerkung:"]
[null,"…",0,"Stunden","Anmerkung:"]
[null,"…",0,"Stunden","Anmerkung:"]
[null,"…",0,"Stunden","Anmerkung:"]
[8,"Total allgemeiner Aufwand pro Spielgruppenjahr in Stunden (pro Person)",{"$f":"SUM(C81:C87)","v":0}]
[]
[null,"Wird der allgemeine Aufwand der Arbeitszeit der Gruppenleitung 1 angerechnet?","ja"]
[null,"Wird der allgemeine Aufwand der Arbeitszeit der Gruppenleitung 2 angerechnet?","nein",null,null,"Hinweis: nur möglich, wenn Positionen bei 6b mit \"ja\" eingetragen"]
[null,"Wird der allg. Aufwand der Arbeitszeit der Assistenz/Begleitperson 1 angerechnet?","nein",null,null,"Hinweis: nur möglich, wenn Positionen bei 6c mit \"ja\" eingetragen"]
[null,"Wird der allg. Aufwand der Arbeitszeit der Assistenz/Begleitperson 2 angerechnet?","nein",null,null,"Hinweis: nur möglich, wenn Positionen bei 6d mit \"ja\" eingetragen"]
[]
[]
[]
[]
[null,"V) Jahresarbeitszeit (ohne Ferienanteil) in Stunden "]
[]
[null,null,{"$f":"B31","v":"Gruppenleitung 1"},null,{"$f":"B41","v":"Gruppenleitung 2"},null,{"$f":"B49","v":"Assistenz / Begleitperson 1 "},null,{"$f":"B57","v":"Assistenz / Begleitperson 2 "}]
[null,"Arbeitszeit pro Person und Gruppe (Positionen 1 x 2 x 6)",{"$f":"C16*C17*D36","v":0},null,{"$f":"C16*C17*D46","v":0},null,{"$f":"C16*C17*D54","v":0},null,{"$f":"C16*C17*D62","v":0}]
[null,"Leitungsaufwand pro Gruppe und Jahr (nur Leitung) (Position 7)",{"$f":"IF(C76=\"ja\",C74/2,C74)","v":0},null,{"$f":"IF(C76=\"ja\",C74/2,0)","v":0},null,0,null,0]
[null,"allgemeiner Aufwand pro Spielgruppenjahr (pro Person) (Position 8)",{"$f":"IF(C90=\"ja\",C88,0)","v":0},null,{"$f":"IF(C91=\"ja\",C88,0)","v":0},null,{"$f":"IF(C92=\"ja\",C88,0)","v":0},null,{"$f":"IF(C93=\"ja\",C88,0)","v":0}]
[9,"Total Jahresarbeitszeit (ohne Ferienanteil) in Stunden",{"$f":"SUM(C101:C103)","v":0},null,{"$f":"SUM(E101:E103)","v":0},null,{"$f":"SUM(G101:G103)","v":0},null,{"$f":"SUM(I101:I103)","v":0}]
[]
[]
[null,"VI) Berechnung Ferienanteil"]
[]
[null,null,{"$f":"C100","v":"Gruppenleitung 1"},null,{"$f":"E100","v":"Gruppenleitung 2"},null,{"$f":"G100","v":"Assistenz / Begleitperson 1 "},null,"Assistenz / Begleitperson 2 "]
[null,"Beträgt der jährliche Ferienanteil 4 Wochen (gesetzliches Minimum) oder 5 Wochen?","4 Wochen",null,"5 Wochen",null,"4 Wochen",null,"4 Wochen"]
[null,"Ferienanteil in Prozent",{"$f":"IF(C110=\"4 Wochen\",8.33,10.64)","v":8.33},null,{"$f":"IF(E110=\"4 Wochen\",8.33,10.64)","v":10.64},null,{"$f":"IF(G110=\"4 Wochen\",8.33,10.64)","v":8.33},null,{"$f":"IF(I110=\"4 Wochen\",8.33,10.64)","v":8.33}]
[10,"Ferienanteil in Stunden",{"$f":"C104*C111/100","v":{"v":0,"d":"0.0"}},null,{"$f":"E104*E111/100","v":{"v":0,"d":"0.0"}},null,{"$f":"G104*G111/100","v":{"v":0,"d":"0.0"}},null,{"$f":"I104*I111/100","v":{"v":0,"d":"0.0"}}]
[]
[null,"VI) Berechnung Feiertagsentschädigung"]
[]
[null,null,{"$f":"C100","v":"Gruppenleitung 1"},null,{"$f":"E100","v":"Gruppenleitung 2"},null,{"$f":"G100","v":"Assistenz / Begleitperson 1 "},null,{"$f":"I100","v":"Assistenz / Begleitperson 2 "}]
[null,"Wird eine Feiertagsentschädigung ausbezahlt?","nein",null,"nein",null,"nein",null,"nein"]
[null,"Feiertagsanteil in Prozent ",{"$f":"IF(C117=\"ja\",3.5,0)","v":0},null,{"$f":"IF(E117=\"ja\",3.5,0)","v":0},null,{"$f":"IF(G117=\"ja\",3.5,0)","v":0},null,{"$f":"IF(I117=\"ja\",3.5,0)","v":0}]
[11,"Feiertagsanteil in Stunden",{"$f":"IF(C117=\"nein\",0,C104*C118/100)","v":{"v":0,"d":"0.0"}},null,{"$f":"IF(E117=\"nein\",0,E104*E118/100)","v":{"v":0,"d":"0.0"}},null,{"$f":"IF(G117=\"nein\",0,G104*G118/100)","v":{"v":0,"d":"0.0"}},null,{"$f":"IF(I117=\"nein\",0,I104*I118/100)","v":{"v":0,"d":"0.0"}}]
[]
[null,"VI) Berechnung Zuschlag 13. Monatslohn "]
[]
[null,null,{"$f":"C100","v":"Gruppenleitung 1"},null,{"$f":"E100","v":"Gruppenleitung 2"},null,{"$f":"G100","v":"Assistenz / Begleitperson 1 "},null,{"$f":"I100","v":"Assistenz / Begleitperson 2 "}]
[null,"Wird ein 13. Monatslohn ausbezahlt?","nein",null,"nein",null,"nein",null,"nein"]
[null,"Anteil 13. Monatslohn in Prozent ",{"$f":"IF(C124=\"ja\",8.33,0)","v":0},null,{"$f":"IF(E124=\"ja\",8.33,0)","v":0},null,{"$f":"IF(G124=\"ja\",8.33,0)","v":0},null,{"$f":"IF(I124=\"ja\",8.33,0)","v":0}]
[12,"Anteil 13. Monatslohn in Stunden",{"$f":"IF(C124=\"nein\",0,C104*C125/100)","v":{"v":0,"d":"0.0"}},null,{"$f":"IF(E124=\"nein\",0,E104*E125/100)","v":{"v":0,"d":"0.0"}},null,{"$f":"IF(G124=\"nein\",0,G104*G125/100)","v":{"v":0,"d":"0.0"}},null,{"$f":"IF(I124=\"nein\",0,I104*I125/100)","v":{"v":0,"d":"0.0"}}]
[]
[null,"Erfolgsrechnung"]
[]
[]
[null,"Ausgaben"]
[]
[null,"I) Personalkosten"]
[]
[null,"Lohnkosten","Jahresarbeitszeit (Position 9)","Anteil Ferien, Feiertag, 13. ML (Positionen 10-12)","Jahresarbeitszeit total (Positionen 9 + 10)","Stundenansatz ohne Ferienanteil","Bruttolohn"]
[null,{"$f":"C100","v":"Gruppenleitung 1"},{"$f":"C104","v":{"v":0,"d":"0.0"}},{"$f":"C112+C119+C126","v":{"v":0,"d":"0.0"}},{"$f":"C136+D136","v":{"v":0,"d":"0.0"}},{"v":0,"d":"0.00"},{"$f":"E136*F136","v":{"v":0,"d":"0.00"}},"Hinweis: Lohnempfehlungen siehe SSLV"]
[null,{"$f":"E100","v":"Gruppenleitung 2"},{"$f":"E104","v":{"v":0,"d":"0.0"}},{"$f":"E112+E119+E126","v":{"v":0,"d":"0.0"}},{"$f":"C137+D137","v":{"v":0,"d":"0.0"}},{"v":0,"d":"0.00"},{"$f":"E137*F137","v":{"v":0,"d":"0.00"}}]
[null,{"$f":"G100","v":"Assistenz / Begleitperson 1 "},{"$f":"G104","v":{"v":0,"d":"0.0"}},{"$f":"G112+G119+G126","v":{"v":0,"d":"0.0"}},{"$f":"C138+D138","v":{"v":0,"d":"0.0"}},{"v":0,"d":"0.00"},{"$f":"E138*F138","v":{"v":0,"d":"0.00"}}]
[null,{"$f":"I100","v":"Assistenz / Begleitperson 2 "},{"$f":"I104","v":{"v":0,"d":"0.0"}},{"$f":"I112+I119+I126","v":{"v":0,"d":"0.0"}},{"$f":"C139+D139","v":{"v":0,"d":"0.0"}},{"v":0,"d":"0.00"},{"$f":"E139*F139","v":{"v":0,"d":"0.00"}}]
[13,"Total Bruttolohn",{"$nulls":4},{"$f":"SUM(G136:G139)","v":{"v":0,"d":"0.00"}},"Hinweis: Vom Bruttolohn werden Arbeitnehmerbeiträge abgerechnet"]
[]
[]
[null,"Lohnnebenkosten, welche von Arbeitgeberin bezahlt werden",{"$nulls":3},"Anteil in Prozent",null,"Hinweis: Lohnnebenkosten, welche von der SG-Leiterin direkt bezahlt werden, werden nicht aufgeführt"]
[]
[null,"Arbeitgeberbeiträge Sozialversicherung (AHV, IV, EO, ALV)",{"$nulls":3},{"v":0.064,"d":"6.400%"},{"$f":"G140*F145","v":{"v":0,"d":"0.00"}}]
[null,"evtl. Verwaltungskosten Pensionskasse",{"$nulls":3},{"v":0.0025,"d":"0.250%"},{"$f":"G140*F146","v":{"v":0,"d":"0.00"}},"Hinweis: Wird eine Leistung nicht bezahlt, Zahl auf \"0\" setzen"]
[null,"evtl. Familienausgleichskasse (FAK)",{"$nulls":3},{"v":0.015,"d":"1.500%"},{"$f":"G140*F147","v":{"v":0,"d":"0.00"}}]
[null,"Berufsunfallversicherung (gemäss Versicherungsangebot der IG Spielgruppe)",{"$nulls":3},{"v":0.00196,"d":"0.196%"},{"$f":"G140*F148","v":{"v":0,"d":"0.00"}}]
[null,"Nichtberufsunfallversicherung (gemäss Versicherungsangebot der IG Spielgruppe)",{"$nulls":3},{"v":0.01112,"d":"1.112%"},{"$f":"G140*F149","v":{"v":0,"d":"0.00"}}]
[null,"…",{"$nulls":3},{"v":0,"d":"0.000%"},{"$f":"G140*F150","v":{"v":0,"d":"0.00"}}]
[null,"…",{"$nulls":3},{"v":0,"d":"0.000%"},{"$f":"G140*F151","v":{"v":0,"d":"0.00"}}]
[null,"…",{"$nulls":4},{"v":0,"d":"0.00"}]
[14,"Total Lohnnebenkosten, welche von Arbeitgeberin bezahlt werden",{"$nulls":4},{"$f":"SUM(G145:G152)","v":{"v":0,"d":"0.00"}}]
[]
[15,"Total Lohnkosten (Positionen 13 + 14)",{"$nulls":4},{"$f":"G140+G153","v":{"v":0,"d":"0.00"}}]
[]
[]
[null,"Weiterbildungskosten Personal",{"$nulls":4},{"v":0,"d":"0.00"}]
[null,"Mitgliederbeiträge (Beiträge SSLV + regionale FKS x Anzahl Mitarbeiterinnen)",{"$nulls":4},{"v":0,"d":"0.00"}]
[null,"Vergütung Vorstandsarbeit",{"$nulls":4},{"v":0,"d":"0.00"}]
[null,"…",{"$nulls":4},{"v":0,"d":"0.00"}]
[null,"….",{"$nulls":4},{"v":0,"d":"0.00"}]
[16,"Personalkosten diverses",{"$nulls":4},{"$f":"SUM(G158:G162)","v":{"v":0,"d":"0.00"}}]
[]
[17,"Personalkosten total (Positionen 15 + 16)",{"$nulls":4},{"$f":"G155+G163","v":{"v":0,"d":"0.00"}}]
[]
[]
[]
[null,"II) Betriebskosten  pro Jahr"]
[null,"Hinweis: Führt eine Trägerschaft mehrere Gruppen müssen gewisse Kosten (z.B. Versicherung, Buchhaltung) auf die einzelnen Gruppen aufgeteilt werden."]
[]
[null,"fixe Betriebskosten"]
[null,"Miete","Anmerkung:",{"$nulls":3},{"v":0,"d":"0.00"}]
[null,"Betriebshaftpflichtversicherung","Anmerkung:",{"$nulls":3},{"v":0,"d":"0.00"}]
[null,"Geschäftsversicherung","Anmerkung:",{"$nulls":3},{"v":0,"d":"0.00"}]
[null,"Buchhaltung, Administration","Anmerkung:",{"$nulls":3},{"v":0,"d":"0.00"}]
[null,"Spesen Kontoführung ","Anmerkung:",{"$nulls":3},{"v":0,"d":"0.00"}]
[null,"Geschäftsführung, Vereinsleitung, Sitzungsgelder ","Anmerkung:",{"$nulls":3},{"v":0,"d":"0.00"}]
[null,"Diverses Pauschal","Anmerkung:",{"$nulls":3},{"v":0,"d":"0.00"}]
[null,"…","Anmerkung:",{"$nulls":3},{"v":0,"d":"0.00"}]
[18,"fixe Betriebskosten",{"$nulls":4},{"$f":"SUM(G173:G180)","v":{"v":0,"d":"0.00"}}]
[]
[null,"variable Betriebskosten "]
[null,"Verpflegung Z'Nüni/Z'Vieri ","Anmerkung:",{"$nulls":3},{"v":0,"d":"0.00"}]
[null,"Verbrauchsmaterial","Anmerkung:",{"$nulls":3},{"v":0,"d":"0.00"}]
[null,"Spielmaterial, Kinderbücher","Anmerkung:",{"$nulls":3},{"v":0,"d":"0.00"}]
[null,"Ausflüge, Spielgruppenreise","Anmerkung:",{"$nulls":3},{"v":0,"d":"0.00"}]
[null,"Elternabende/-aktivitäten","Anmerkung:",{"$nulls":3},{"v":0,"d":"0.00"}]
[null,"Mobiliar (Neuanschaffungen, Unterhalt/Reparatur)","Anmerkung:",{"$nulls":3},{"v":0,"d":"0.00"}]
[null,"Porto","Anmerkung:",{"$nulls":3},{"v":0,"d":"0.00"}]
[null,"Telefon","Anmerkung:",{"$nulls":3},{"v":0,"d":"0.00"}]
[null,"Druckkosten","Anmerkung:",{"$nulls":3},{"v":0,"d":"0.00"}]
[null,"Öffentlichkeitsarbeit, Werbung","Anmerkung:",{"$nulls":3},{"v":0,"d":"0.00"}]
[null,"Geschenke","Anmerkung:",{"$nulls":3},{"v":0,"d":"0.00"}]
[null,"Fachliteratur, Abo Spielgruppenzeitung","Anmerkung:",{"$nulls":3},{"v":0,"d":"0.00"}]
[null,"Diverses Pauschal","Anmerkung:",{"$nulls":3},{"v":0,"d":"0.00"}]
[null,"…","Anmerkung:",{"$nulls":3},{"v":0,"d":"0.00"}]
[null,"…","Anmerkung:",{"$nulls":3},{"v":0,"d":"0.00"}]
[19,"variable Betriebskosten ",{"$nulls":4},{"$f":"SUM(G184:G198)","v":{"v":0,"d":"0.00"}}]
[]
[]
[null,"Rückstellungen (Krankheit, Anschaffungen etc.)","Anmerkung:",{"$nulls":3},{"v":0,"d":"0.00"}]
[null,"…","Anmerkung:",{"$nulls":3},{"v":0,"d":"0.00"}]
[20,"Rückstellungen ",{"$nulls":4},{"$f":"SUM(G202:G203)","v":{"v":0,"d":"0.00"}}]
[]
[21,"Betriebskosten total (Positionen 18 + 19 + 20)",{"$nulls":4},{"$f":"G181+G199+G204","v":{"v":0,"d":"0.00"}}]
[]
[]
[22,"III) Vollkosten (Postion 17 + 21)",{"$nulls":4},{"$f":"G165+G206","v":{"v":0,"d":"0.00"}}]
[]
[23,"IV) Vollkosten pro Platz (Positionen 22 : 3 : 4) ",{"$nulls":4},{"$f":"G209/C18/C19","v":{"$error":"#DIV/0!"}}]
[]
[]
[]
[null,"Einnahmen"]
[]
[null,"I) Elternbeiträge"]
[null,null,"Fr. pro Platz","Kinder"]
[null,"Elternbeitrag pro Platz (wird in Rechnung gestellt)",{"v":0,"d":"0.00"},{"$nulls":4},"Hinweis: Preis pro Platz entspricht den Vollkosten (Position 23). Der Preis kann reduziert werden, wenn Beiträge Dritte (Position 25) vorhanden sind."]
[null,"Elternbeiträge bei erwarteter Auslastung gemäss Position 4 ",null,{"$f":"C18*C19","v":{"v":0,"d":"0.0"}},null,null,{"$f":"C219*D220","v":{"v":0,"d":"0.00"}}]
[]
[24,"Total Elternbeiträge",{"$nulls":4},{"$f":"SUM(G220:G221)","v":{"v":0,"d":"0.00"}}]
[]
[null,"II) Beiträge Dritte"]
[null,"Spenden","Anmerkung:",{"$nulls":3},{"v":0,"d":"0.00"}]
[null,"Beitrag Gemeinde","Anmerkung:",{"$nulls":3},{"v":0,"d":"0.00"}]
[null,"Beitrag Kirche","Anmerkung:",{"$nulls":3},{"v":0,"d":"0.00"}]
[null,"Beitrag Kanton","Anmerkung:",{"$nulls":3},{"v":0,"d":"0.00"}]
[null,"…","Anmerkung:",{"$nulls":3},{"v":0,"d":"0.00"}]
[null,"…","Anmerkung:",{"$nulls":3},{"v":0,"d":"0.00"}]
[25,"Total Beiträge Dritte",{"$nulls":4},{"$f":"SUM(G225:G230)","v":{"v":0,"d":"0.00"}}]
[]
[26,"Total Einnahmen (Positionen 24 + 25)",{"$nulls":4},{"$f":"G222+G231","v":{"v":0,"d":"0.00"}}]
[]
[]
[null,"Erfolgsrechnung"]
[]
[null,"Total Einnahmen (Position 26)",{"$nulls":4},{"$f":"G233","v":{"v":0,"d":"0.00"}}]
[null,"Total Ausgaben (Position 22)",{"$nulls":4},{"$f":"G209","v":{"v":0,"d":"0.00"}}]
[27,"Übertrag in Reserve (falls Einnahmen höher als Ausgaben)","Anmerkung:",{"$nulls":3},{"v":0,"d":"0.00"}]
[28,"Übertrag aus Reserven (falls Ausgaben höher als Einnahmen)","Anmerkung:",{"$nulls":3},{"v":0,"d":"0.00"},"Hinweis: nur Betrag ohne \"-\" (Minus) eingeben"]
[29,"Saldo",{"$nulls":4},{"$f":"G238-G239-G240+G241","v":{"v":0,"d":"0.00"}}]
[]
[30,"Gewinn oder Verlust / bzw. Eigenleistung Spielgruppenleiterinnen",{"$nulls":4},{"$f":"G242","v":{"v":0,"d":"0.00"}}]
[]
[]
[]
[null,"weitere Anmerkungen: "]

{"sheet":"VK Gruppe 6","index":7,"n_rows":248,"n_cols":9,"rows_kept":248,"merged":[[5,2,5,3],[6,2,6,3],[7,2,7,3],[8,2,8,3],[9,2,9,3],[18,5,20,9],[22,5,23,9],[30,3,30,4],[31,5,32,9],[34,5,34,9],[37,5,39,9],[40,3,40,4],[44,5,44,9],[48,3,48,4],[52,5,52,9],[56,3,56,4],[60,5,60,9],[70,5,70,9],[71,5,71,9],[72,5,72,9],[80,5,80,9],[81,5,81,9],[82,5,82,9],[83,5,83,9],[84,5,84,9],[85,5,85,9],[86,5,86,9],[139,7,140,9],[142,7,143,9],[145,7,146,9],[172,3,172,4],[173,3,173,4],[174,3,174,4],[175,3,175,4],[176,3,176,4],[177,3,177,4],[178,3,178,4],[179,3,179,4],[183,3,183,4],[184,3,184,4],[185,3,185,4],[186,3,186,4],[187,3,187,4],[188,3,188,4],[189,3,189,4],[190,3,190,4],[191,3,191,4],[192,3,192,4],[193,3,193,4],[194,3,194,4],[195,3,195,4],[196,3,196,4],[197,3,197,4],[201,3,201,4],[202,3,202,4],[218,7,220,9],[224,3,224,4],[225,3,225,4],[226,3,226,4],[227,3,227,4],[228,3,228,4],[229,3,229,4],[239,3,239,4],[240,3,240,4],[247,1,247,9],[248,1,248,9],[249,1,249,9],[250,1,250,9],[251,1,251,9],[252,1,252,9],[253,1,253,9],[254,1,254,9],[255,1,255,9],[256,1,256,9],[257,1,257,9],[258,1,258,9],[259,1,259,9]]}
[]
[null,"Hellblaue Felder können eingefüllt werden"]
[null,"Orange Felder müssen eingefüllt werden"]
[]
[]
[null,"Spielgruppe"]
[null,"Name Gruppe"]
[null,"Durchführung pro Woche"]
[null,"Berechnungsperiode"]
[null,"Berechnungsdatum"]
[]
[null,"Berechnung Arbeitszeit pro Gruppe"]
[]
[null,"I) Basisdaten"]
["Position"]
[1,"Anzahl Spielgruppenwochen pro Berechnungsperiode:",0,"Wochen"]
[2,"Anzahl Durchführung pro Woche",0,"Anzahl pro Woche"]
[3,"Anzahl Plätze bei Vollbelegung",0,"Plätze"]
[4,"erwartete Jahresauslastung in Prozent",{"v":0,"d":"0%"},"Prozent",null,"Hinweis: Können alle Plätze voll verrechnet werden ist die Jahresauslastung 100%. Können nicht alle Plätze voll verrechnet werden (z.B. offene Plätze, späterer Einstieg) liegt die Jahresauslastung unter 100%."]
[]
[]
[]
["5a","Anzahl Spielgruppenstunden pro Durchführung",0,"Stunden",null,"Hinweis: Bei mehreren Durchführungen pro Woche durchschnittliche Dauer eintragen, falls Länge der Durchführung unterschiedlich"]
["5b","Vorbereitung pro Durchführung (inkl. Administration, Einkauf, Raum vorbereiten)",0,"Stunden"]
["5c","Nachbereitung pro Durchführung (inkl. Aufräumen, Tür-und-Angel-Elterngespräche)",0,"Stunden"]
[]
[]
[null,"II) Arbeitszeit pro Person und Durchführung"]
[]
[{"$nulls":3},"Anzahl Stunden"]
[null,"Gruppenleitung 1","Name"]
[null,".Spielgruppenstunden (Position 5a)","ja",{"$f":"IF(C32=\"ja\",C23,0)","v":0},null,"Hinweis: \"ja\" bedeutet, dass der Posten als bezahlte Arbeitszeit angerechnet wird, \"nein\" bedeutet, dass der Posten nicht angerechnet wird."]
[null,".Vorbereitung (Position 5b)","ja",{"$f":"IF(C33=\"ja\",C24,0)","v":0}]
[null,".Nachbereitung (Position 5c)","ja",{"$f":"IF(C34=\"ja\",C25,0)","v":0}]
[null,".Optional: andere Stundenzahl als Positionen 5b / 5c für Vor- und Nachbereitung",null,null,"Anmerkung:"]
["6a","Total Gruppenleitung 1",null,{"$f":"SUM(D32:D35)","v":0}]
[]
[null,"Wird eine zweite Gruppenleitung eingesetzt?","nein",null,null,"Hinweis: In der Regel wird eine SG von einer ausgebildeten Spielgruppenleiterin geleitet. Unterstützt wird sie in manchen SG von einer Assistenz / Begleitperson. In wenigen SG werden zwei ausgebildete Spielgruppenleiterinnen oder gar drei Personen eingesetzt."]
[]
[]
[null,"Gruppenleitung 2","Name"]
[null,".Spielgruppenstunden (Position 5a)","nein",{"$f":"IF(C42=\"ja\",C23,0)","v":0}]
[null,".Vorbereitung (Position 5b)","nein",{"$f":"IF(C43=\"ja\",C24,0)","v":0}]
[null,".Nachbereitung (Position 5c)","nein",{"$f":"IF(C44=\"ja\",C25,0)","v":0}]
[null,".Optional: andere Stundenzahl als Positionen 5b / 5c für Vor- und Nachbereitung",null,null,"Anmerkung:"]
["6b","Total Gruppenleitung 2",null,{"$f":"SUM(D42:D45)","v":0}]
[]
[null,"Wird eine Begleitperson in der Gruppe eingesetzt?","ja"]
[null,"Assistenz / Begleitperson 1 ","Name"]
[null,".Spielgruppenstunden (Position 5a)","ja",{"$f":"IF(C50=\"ja\",C23,0)","v":0}]
[null,".Vorbereitung (Position 5b)","nein",{"$f":"IF(C51=\"ja\",C24,0)","v":0}]
[null,".Nachbereitung (Position 5c)","nein",{"$f":"IF(C52=\"ja\",C25,0)","v":0}]
[null,".Optional: andere Stundenzahl als Positionen 5b / 5c für Vor- und Nachbereitung",null,0,"Anmerkung:"]
["6c","Total Assistenz / Begleitperson 1 ",null,{"$f":"SUM(D50:D53)","v":0}]
[]
[null,"Wird eine zweite Begleitperson in der Gruppe eingesetzt?","nein"]
[null,"Assistenz / Begleitperson 2 ","Name"]
[null,".Spielgruppenstunden (Position 5a)","nein",{"$f":"IF(C58=\"ja\",C23,0)","v":0}]
[null,".Vorbereitung (Position 5b)","nein",{"$f":"IF(C59=\"ja\",C24,0)","v":0}]
[null,".Nachbereitung (Position 5c)","nein",{"$f":"IF(C60=\"ja\",C25,0)","v":0}]
[null,".Optional: andere Stundenzahl als Positionen 5b / 5c für Vor- und Nachbereitung",null,null,"Anmerkung:"]
["6d","Total Assistenz / Begleitperson 2 ",null,{"$f":"SUM(D58:D61)","v":0}]
[]
[]
[null,"III) Leitungsaufwand pro Gruppe und Jahr (nur Gruppenleitung)"]
[]
[null,"Jahresplanung/Erstellen Elterninformationen/Einteilungen",0,"Stunden"]
[null,"Planungssitzungen mit Gemeinde/Schule/Fachstellen (Anzahl Gespräche x 1.5 Stunden)",{"$f":"F68*1.5","v":0},"Stunden","Anzahl Gespräche",0]
[null,"Kontakte Schule/Fachpersonen (Anzahl Gespräche x 0.5 Stunden)",{"$f":"F69*0.5","v":0},"Stunden","Anzahl Gespräche",0]
[null,"spezifische Elternkontakte (Anzahl Gespräche x 0.5 Stunden)",{"$f":"F70*0.5","v":0},"Stunden","Anzahl Gespräche",0]
[null,"…",0,"Stunden","Anmerkungen:"]
[null,"…",0,"Stunden","Anmerkungen:"]
[null,"…",0,"Stunden","Anmerkungen:"]
[7,"Total Leitungsaufwand pro Spielgruppe in Stunden (nur Gruppenleitung)",{"$f":"SUM(C67:C73)","v":0}]
[]
[null,"Wird der Leitungsaufwand zwischen zwei Gruppenleitungen aufgeteilt?","nein",null,null,"Hinweis: nur möglich, wenn Positionen bei 6b mit \"ja\" eingetragen"]
[]
[]
[null,"IV) allgemeiner Aufwand pro Spielgruppenjahr (pro Person)"]
[]
[null,"Elternvernetzungsanlässe inkl. Vor- und Nachbereitung (ca. 5 Std. pro Anlass)",0,"Stunden","Anmerkung:"]
[null,"Teamsitzungen / Mitarbeiterinnengespräch",0,"Stunden","Anmerkung:"]
[null,"individuelle Weiterbildung ",0,"Stunden","Anmerkung:"]
[null,"Rauminstandhaltung/Materialreinigung/-reparatur/-einkauf",0,"Stunden","Anmerkung:"]
[null,"…",0,"Stunden","Anmerkung:"]
[null,"…",0,"Stunden","Anmerkung:"]
[null,"…",0,"Stunden","Anmerkung:"]
[8,"Total allgemeiner Aufwand pro Spielgruppenjahr in Stunden (pro Person)",{"$f":"SUM(C81:C87)","v":0}]
[]
[null,"Wird der allgemeine Aufwand der Arbeitszeit der Gruppenleitung 1 angerechnet?","ja"]
[null,"Wird der allgemeine Aufwand der Arbeitszeit der Gruppenleitung 2 angerechnet?","nein",null,null,"Hinweis: nur möglich, wenn Positionen bei 6b mit \"ja\" eingetragen"]
[null,"Wird der allg. Aufwand der Arbeitszeit der Assistenz/Begleitperson 1 angerechnet?","nein",null,null,"Hinweis: nur möglich, wenn Positionen bei 6c mit \"ja\" eingetragen"]
[null,"Wird der allg. Aufwand der Arbeitszeit der Assistenz/Begleitperson 2 angerechnet?","nein",null,null,"Hinweis: nur möglich, wenn Positionen bei 6d mit \"ja\" eingetragen"]
[]
[]
[]
[]
[null,"V) Jahresarbeitszeit (ohne Ferienanteil) in Stunden "]
[]
[null,null,{"$f":"B31","v":"Gruppenleitung 1"},null,{"$f":"B41","v":"Gruppenleitung 2"},null,{"$f":"B49","v":"Assistenz / Begleitperson 1 "},null,{"$f":"B57","v":"Assistenz / Begleitperson 2 "}]
[null,"Arbeitszeit pro Person und Gruppe (Positionen 1 x 2 x 6)",{"$f":"C16*C17*D36","v":0},null,{"$f":"C16*C17*D46","v":0},null,{"$f":"C16*C17*D54","v":0},null,{"$f":"C16*C17*D62","v":0}]
[null,"Leitungsaufwand pro Gruppe und Jahr (nur Leitung) (Position 7)",{"$f":"IF(C76=\"ja\",C74/2,C74)","v":0},null,{"$f":"IF(C76=\"ja\",C74/2,0)","v":0},null,0,null,0]
[null,"allgemeiner Aufwand pro Spielgruppenjahr (pro Person) (Position 8)",{"$f":"IF(C90=\"ja\",C88,0)","v":0},null,{"$f":"IF(C91=\"ja\",C88,0)","v":0},null,{"$f":"IF(C92=\"ja\",C88,0)","v":0},null,{"$f":"IF(C93=\"ja\",C88,0)","v":0}]
[9,"Total Jahresarbeitszeit (ohne Ferienanteil) in Stunden",{"$f":"SUM(C101:C103)","v":0},null,{"$f":"SUM(E101:E103)","v":0},null,{"$f":"SUM(G101:G103)","v":0},null,{"$f":"SUM(I101:I103)","v":0}]
[]
[]
[null,"VI) Berechnung Ferienanteil"]
[]
[null,null,{"$f":"C100","v":"Gruppenleitung 1"},null,{"$f":"E100","v":"Gruppenleitung 2"},null,{"$f":"G100","v":"Assistenz / Begleitperson 1 "},null,"Assistenz / Begleitperson 2 "]
[null,"Beträgt der jährliche Ferienanteil 4 Wochen (gesetzliches Minimum) oder 5 Wochen?","4 Wochen",null,"5 Wochen",null,"4 Wochen",null,"4 Wochen"]
[null,"Ferienanteil in Prozent",{"$f":"IF(C110=\"4 Wochen\",8.33,10.64)","v":8.33},null,{"$f":"IF(E110=\"4 Wochen\",8.33,10.64)","v":10.64},null,{"$f":"IF(G110=\"4 Wochen\",8.33,10.64)","v":8.33},null,{"$f":"IF(I110=\"4 Wochen\",8.33,10.64)","v":8.33}]
[10,"Ferienanteil in Stunden",{"$f":"C104*C111/100","v":{"v":0,"d":"0.0"}},null,{"$f":"E104*E111/100","v":{"v":0,"d":"0.0"}},null,{"$f":"G104*G111/100","v":{"v":0,"d":"0.0"}},null,{"$f":"I104*I111/100","v":{"v":0,"d":"0.0"}}]
[]
[null,"VI) Berechnung Feiertagsentschädigung"]
[]
[null,null,{"$f":"C100","v":"Gruppenleitung 1"},null,{"$f":"E100","v":"Gruppenleitung 2"},null,{"$f":"G100","v":"Assistenz / Begleitperson 1 "},null,{"$f":"I100","v":"Assistenz / Begleitperson 2 "}]
[null,"Wird eine Feiertagsentschädigung ausbezahlt?","nein",null,"nein",null,"nein",null,"nein"]
[null,"Feiertagsanteil in Prozent ",{"$f":"IF(C117=\"ja\",3.5,0)","v":0},null,{"$f":"IF(E117=\"ja\",3.5,0)","v":0},null,{"$f":"IF(G117=\"ja\",3.5,0)","v":0},null,{"$f":"IF(I117=\"ja\",3.5,0)","v":0}]
[11,"Feiertagsanteil in Stunden",{"$f":"IF(C117=\"nein\",0,C104*C118/100)","v":{"v":0,"d":"0.0"}},null,{"$f":"IF(E117=\"nein\",0,E104*E118/100)","v":{"v":0,"d":"0.0"}},null,{"$f":"IF(G117=\"nein\",0,G104*G118/100)","v":{"v":0,"d":"0.0"}},null,{"$f":"IF(I117=\"nein\",0,I104*I118/100)","v":{"v":0,"d":"0.0"}}]
[]
[null,"VI) Berechnung Zuschlag 13. Monatslohn "]
[]
[null,null,{"$f":"C100","v":"Gruppenleitung 1"},null,{"$f":"E100","v":"Gruppenleitung 2"},null,{"$f":"G100","v":"Assistenz / Begleitperson 1 "},null,{"$f":"I100","v":"Assistenz / Begleitperson 2 "}]
[null,"Wird ein 13. Monatslohn ausbezahlt?","nein",null,"nein",null,"nein",null,"nein"]
[null,"Anteil 13. Monatslohn in Prozent ",{"$f":"IF(C124=\"ja\",8.33,0)","v":0},null,{"$f":"IF(E124=\"ja\",8.33,0)","v":0},null,{"$f":"IF(G124=\"ja\",8.33,0)","v":0},null,{"$f":"IF(I124=\"ja\",8.33,0)","v":0}]
[12,"Anteil 13. Monatslohn in Stunden",{"$f":"IF(C124=\"nein\",0,C104*C125/100)","v":{"v":0,"d":"0.0"}},null,{"$f":"IF(E124=\"nein\",0,E104*E125/100)","v":{"v":0,"d":"0.0"}},null,{"$f":"IF(G124=\"nein\",0,G104*G125/100)","v":{"v":0,"d":"0.0"}},null,{"$f":"IF(I124=\"nein\",0,I104*I125/100)","v":{"v":0,"d":"0.0"}}]
[]
[null,"Erfolgsrechnung"]
[]
[]
[null,"Ausgaben"]
[]
[null,"I) Personalkosten"]
[]
[null,"Lohnkosten","Jahresarbeitszeit (Position 9)","Anteil Ferien, Feiertag, 13. ML (Positionen 10-12)","Jahresarbeitszeit total (Positionen 9 + 10)","Stundenansatz ohne Ferienanteil","Bruttolohn"]
[null,{"$f":"C100","v":"Gruppenleitung 1"},{"$f":"C104","v":{"v":0,"d":"0.0"}},{"$f":"C112+C119+C126","v":{"v":0,"d":"0.0"}},{"$f":"C136+D136","v":{"v":0,"d":"0.0"}},{"v":0,"d":"0.00"},{"$f":"E136*F136","v":{"v":0,"d":"0.00"}},"Hinweis: Lohnempfehlungen siehe SSLV"]
[null,{"$f":"E100","v":"Gruppenleitung 2"},{"$f":"E104","v":{"v":0,"d":"0.0"}},{"$f":"E112+E119+E126","v":{"v":0,"d":"0.0"}},{"$f":"C137+D137","v":{"v":0,"d":"0.0"}},{"v":0,"d":"0.00"},{"$f":"E137*F137","v":{"v":0,"d":"0.00"}}]
[null,{"$f":"G100","v":"Assistenz / Begleitperson 1 "},{"$f":"G104","v":{"v":0,"d":"0.0"}},{"$f":"G112+G119+G126","v":{"v":0,"d":"0.0"}},{"$f":"C138+D138","v":{"v":0,"d":"0.0"}},{"v":0,"d":"0.00"},{"$f":"E138*F138","v":{"v":0,"d":"0.00"}}]
[null,{"$f":"I100","v":"Assistenz / Begleitperson 2 "},{"$f":"I104","v":{"v":0,"d":"0.0"}},{"$f":"I112+I119+I126","v":{"v":0,"d":"0.0"}},{"$f":"C139+D139","v":{"v":0,"d":"0.0"}},{"v":0,"d":"0.00"},{"$f":"E139*F139","v":{"v":0,"d":"0.00"}}]
[13,"Total Bruttolohn",{"$nulls":4},{"$f":"SUM(G136:G139)","v":{"v":0,"d":"0.00"}},"Hinweis: Vom Bruttolohn werden Arbeitnehmerbeiträge abgerechnet"]
[]
[]
[null,"Lohnnebenkosten, welche von Arbeitgeberin bezahlt werden",{"$nulls":3},"Anteil in Prozent",null,"Hinweis: Lohnnebenkosten, welche von der SG-Leiterin direkt bezahlt werden, werden nicht aufgeführt"]
[]
[null,"Arbeitgeberbeiträge Sozialversicherung (AHV, IV, EO, ALV)",{"$nulls":3},{"v":0.064,"d":"6.400%"},{"$f":"G140*F145","v":{"v":0,"d":"0.00"}}]
[null,"evtl. Verwaltungskosten Pensionskasse",{"$nulls":3},{"v":0.0025,"d":"0.250%"},{"$f":"G140*F146","v":{"v":0,"d":"0.00"}},"Hinweis: Wird eine Leistung nicht bezahlt, Zahl auf \"0\" setzen"]
[null,"evtl. Familienausgleichskasse (FAK)",{"$nulls":3},{"v":0.015,"d":"1.500%"},{"$f":"G140*F147","v":{"v":0,"d":"0.00"}}]
[null,"Berufsunfallversicherung (gemäss Versicherungsangebot der IG Spielgruppe)",{"$nulls":3},{"v":0.00196,"d":"0.196%"},{"$f":"G140*F148","v":{"v":0,"d":"0.00"}}]
[null,"Nichtberufsunfallversicherung (gemäss Versicherungsangebot der IG Spielgruppe)",{"$nulls":3},{"v":0.01112,"d":"1.112%"},{"$f":"G140*F149","v":{"v":0,"d":"0.00"}}]
[null,"…",{"$nulls":3},{"v":0,"d":"0.000%"},{"$f":"G140*F150","v":{"v":0,"d":"0.00"}}]
[null,"…",{"$nulls":3},{"v":0,"d":"0.000%"},{"$f":"G140*F151","v":{"v":0,"d":"0.00"}}]
[null,"…",{"$nulls":4},{"v":0,"d":"0.00"}]
[14,"Total Lohnnebenkosten, welche von Arbeitgeberin bezahlt werden",{"$nulls":4},{"$f":"SUM(G145:G152)","v":{"v":0,"d":"0.00"}}]
[]
[15,"Total Lohnkosten (Positionen 13 + 14)",{"$nulls":4},{"$f":"G140+G153","v":{"v":0,"d":"0.00"}}]
[]
[]
[null,"Weiterbildungskosten Personal",{"$nulls":4},{"v":0,"d":"0.00"}]
[null,"Mitgliederbeiträge (Beiträge SSLV + regionale FKS x Anzahl Mitarbeiterinnen)",{"$nulls":4},{"v":0,"d":"0.00"}]
[null,"Vergütung Vorstandsarbeit",{"$nulls":4},{"v":0,"d":"0.00"}]
[null,"…",{"$nulls":4},{"v":0,"d":"0.00"}]
[null,"….",{"$nulls":4},{"v":0,"d":"0.00"}]
[16,"Personalkosten diverses",{"$nulls":4},{"$f":"SUM(G158:G162)","v":{"v":0,"d":"0.00"}}]
[]
[17,"Personalkosten total (Positionen 15 + 16)",{"$nulls":4},{"$f":"G155+G163","v":{"v":0,"d":"0.00"}}]
[]
[]
[]
[null,"II) Betriebskosten  pro Jahr"]
[null,"Hinweis: Führt eine Trägerschaft mehrere Gruppen müssen gewisse Kosten (z.B. Versicherung, Buchhaltung) auf die einzelnen Gruppen aufgeteilt werden."]
[]
[null,"fixe Betriebskosten"]
[null,"Miete","Anmerkung:",{"$nulls":3},{"v":0,"d":"0.00"}]
[null,"Betriebshaftpflichtversicherung","Anmerkung:",{"$nulls":3},{"v":0,"d":"0.00"}]
[null,"Geschäftsversicherung","Anmerkung:",{"$nulls":3},{"v":0,"d":"0.00"}]
[null,"Buchhaltung, Administration","Anmerkung:",{"$nulls":3},{"v":0,"d":"0.00"}]
[null,"Spesen Kontoführung ","Anmerkung:",{"$nulls":3},{"v":0,"d":"0.00"}]
[null,"Geschäftsführung, Vereinsleitung, Sitzungsgelder ","Anmerkung:",{"$nulls":3},{"v":0,"d":"0.00"}]
[null,"Diverses Pauschal","Anmerkung:",{"$nulls":3},{"v":0,"d":"0.00"}]
[null,"…","Anmerkung:",{"$nulls":3},{"v":0,"d":"0.00"}]
[18,"fixe Betriebskosten",{"$nulls":4},{"$f":"SUM(G173:G180)","v":{"v":0,"d":"0.00"}}]
[]
[null,"variable Betriebskosten "]
[null,"Verpflegung Z'Nüni/Z'Vieri ","Anmerkung:",{"$nulls":3},{"v":0,"d":"0.00"}]
[null,"Verbrauchsmaterial","Anmerkung:",{"$nulls":3},{"v":0,"d":"0.00"}]
[null,"Spielmaterial, Kinderbücher","Anmerkung:",{"$nulls":3},{"v":0,"d":"0.00"}]
[null,"Ausflüge, Spielgruppenreise","Anmerkung:",{"$nulls":3},{"v":0,"d":"0.00"}]
[null,"Elternabende/-aktivitäten","Anmerkung:",{"$nulls":3},{"v":0,"d":"0.00"}]
[null,"Mobiliar (Neuanschaffungen, Unterhalt/Reparatur)","Anmerkung:",{"$nulls":3},{"v":0,"d":"0.00"}]
[null,"Porto","Anmerkung:",{"$nulls":3},{"v":0,"d":"0.00"}]
[null,"Telefon","Anmerkung:",{"$nulls":3},{"v":0,"d":"0.00"}]
[null,"Druckkosten","Anmerkung:",{"$nulls":3},{"v":0,"d":"0.00"}]
[null,"Öffentlichkeitsarbeit, Werbung","Anmerkung:",{"$nulls":3},{"v":0,"d":"0.00"}]
[null,"Geschenke","Anmerkung:",{"$nulls":3},{"v":0,"d":"0.00"}]
[null,"Fachliteratur, Abo Spielgruppenzeitung","Anmerkung:",{"$nulls":3},{"v":0,"d":"0.00"}]
[null,"Diverses Pauschal","Anmerkung:",{"$nulls":3},{"v":0,"d":"0.00"}]
[null,"…","Anmerkung:",{"$nulls":3},{"v":0,"d":"0.00"}]
[null,"…","Anmerkung:",{"$nulls":3},{"v":0,"d":"0.00"}]
[19,"variable Betriebskosten ",{"$nulls":4},{"$f":"SUM(G184:G198)","v":{"v":0,"d":"0.00"}}]
[]
[]
[null,"Rückstellungen (Krankheit, Anschaffungen etc.)","Anmerkung:",{"$nulls":3},{"v":0,"d":"0.00"}]
[null,"…","Anmerkung:",{"$nulls":3},{"v":0,"d":"0.00"}]
[20,"Rückstellungen ",{"$nulls":4},{"$f":"SUM(G202:G203)","v":{"v":0,"d":"0.00"}}]
[]
[21,"Betriebskosten total (Positionen 18 + 19 + 20)",{"$nulls":4},{"$f":"G181+G199+G204","v":{"v":0,"d":"0.00"}}]
[]
[]
[22,"III) Vollkosten (Postion 17 + 21)",{"$nulls":4},{"$f":"G165+G206","v":{"v":0,"d":"0.00"}}]
[]
[23,"IV) Vollkosten pro Platz (Positionen 22 : 3 : 4) ",{"$nulls":4},{"$f":"G209/C18/C19","v":{"$error":"#DIV/0!"}}]
[]
[]
[]
[null,"Einnahmen"]
[]
[null,"I) Elternbeiträge"]
[null,null,"Fr. pro Platz","Kinder"]
[null,"Elternbeitrag pro Platz (wird in Rechnung gestellt)",{"v":0,"d":"0.00"},{"$nulls":4},"Hinweis: Preis pro Platz entspricht den Vollkosten (Position 23). Der Preis kann reduziert werden, wenn Beiträge Dritte (Position 25) vorhanden sind."]
[null,"Elternbeiträge bei erwarteter Auslastung gemäss Position 4 ",null,{"$f":"C18*C19","v":{"v":0,"d":"0.0"}},null,null,{"$f":"C219*D220","v":{"v":0,"d":"0.00"}}]
[]
[24,"Total Elternbeiträge",{"$nulls":4},{"$f":"SUM(G220:G221)","v":{"v":0,"d":"0.00"}}]
[]
[null,"II) Beiträge Dritte"]
[null,"Spenden","Anmerkung:",{"$nulls":3},{"v":0,"d":"0.00"}]
[null,"Beitrag Gemeinde","Anmerkung:",{"$nulls":3},{"v":0,"d":"0.00"}]
[null,"Beitrag Kirche","Anmerkung:",{"$nulls":3},{"v":0,"d":"0.00"}]
[null,"Beitrag Kanton","Anmerkung:",{"$nulls":3},{"v":0,"d":"0.00"}]
[null,"…","Anmerkung:",{"$nulls":3},{"v":0,"d":"0.00"}]
[null,"…","Anmerkung:",{"$nulls":3},{"v":0,"d":"0.00"}]
[25,"Total Beiträge Dritte",{"$nulls":4},{"$f":"SUM(G225:G230)","v":{"v":0,"d":"0.00"}}]
[]
[26,"Total Einnahmen (Positionen 24 + 25)",{"$nulls":4},{"$f":"G222+G231","v":{"v":0,"d":"0.00"}}]
[]
[]
[null,"Erfolgsrechnung"]
[]
[null,"Total Einnahmen (Position 26)",{"$nulls":4},{"$f":"G233","v":{"v":0,"d":"0.00"}}]
[null,"Total Ausgaben (Position 22)",{"$nulls":4},{"$f":"G209","v":{"v":0,"d":"0.00"}}]
[27,"Übertrag in Reserve (falls Einnahmen höher als Ausgaben)","Anmerkung:",{"$nulls":3},{"v":0,"d":"0.00"}]
[28,"Übertrag aus Reserven (falls Ausgaben höher als Einnahmen)","Anmerkung:",{"$nulls":3},{"v":0,"d":"0.00"},"Hinweis: nur Betrag ohne \"-\" (Minus) eingeben"]
[29,"Saldo",{"$nulls":4},{"$f":"G238-G239-G240+G241","v":{"v":0,"d":"0.00"}}]
[]
[30,"Gewinn oder Verlust / bzw. Eigenleistung Spielgruppenleiterinnen",{"$nulls":4},{"$f":"G242","v":{"v":0,"d":"0.00"}}]
[]
[]
[]
[null,"weitere Anmerkungen: "]

{"sheet":"VK Gruppe 7","index":8,"n_rows":248,"n_cols":9,"rows_kept":248,"merged":[[5,2,5,3],[6,2,6,3],[7,2,7,3],[8,2,8,3],[9,2,9,3],[18,5,20,9],[22,5,23,9],[30,3,30,4],[31,5,32,9],[34,5,34,9],[37,5,39,9],[40,3,40,4],[44,5,44,9],[48,3,48,4],[52,5,52,9],[56,3,56,4],[60,5,60,9],[70,5,70,9],[71,5,71,9],[72,5,72,9],[80,5,80,9],[81,5,81,9],[82,5,82,9],[83,5,83,9],[84,5,84,9],[85,5,85,9],[86,5,86,9],[139,7,140,9],[142,7,143,9],[145,7,146,9],[172,3,172,4],[173,3,173,4],[174,3,174,4],[175,3,175,4],[176,3,176,4],[177,3,177,4],[178,3,178,4],[179,3,179,4],[183,3,183,4],[184,3,184,4],[185,3,185,4],[186,3,186,4],[187,3,187,4],[188,3,188,4],[189,3,189,4],[190,3,190,4],[191,3,191,4],[192,3,192,4],[193,3,193,4],[194,3,194,4],[195,3,195,4],[196,3,196,4],[197,3,197,4],[201,3,201,4],[202,3,202,4],[218,7,220,9],[224,3,224,4],[225,3,225,4],[226,3,226,4],[227,3,227,4],[228,3,228,4],[229,3,229,4],[239,3,239,4],[240,3,240,4],[247,1,247,9],[248,1,248,9],[249,1,249,9],[250,1,250,9],[251,1,251,9],[252,1,252,9],[253,1,253,9],[254,1,254,9],[255,1,255,9],[256,1,256,9],[257,1,257,9],[258,1,258,9],[259,1,259,9]]}
[]
[null,"Hellblaue Felder können eingefüllt werden"]
[null,"Orange Felder müssen eingefüllt werden"]
[]
[]
[null,"Spielgruppe"]
[null,"Name Gruppe"]
[null,"Durchführung pro Woche"]
[null,"Berechnungsperiode"]
[null,"Berechnungsdatum"]
[]
[null,"Berechnung Arbeitszeit pro Gruppe"]
[]
[null,"I) Basisdaten"]
["Position"]
[1,"Anzahl Spielgruppenwochen pro Berechnungsperiode:",0,"Wochen"]
[2,"Anzahl Durchführung pro Woche",0,"Anzahl pro Woche"]
[3,"Anzahl Plätze bei Vollbelegung",0,"Plätze"]
[4,"erwartete Jahresauslastung in Prozent",{"v":0,"d":"0%"},"Prozent",null,"Hinweis: Können alle Plätze voll verrechnet werden ist die Jahresauslastung 100%. Können nicht alle Plätze voll verrechnet werden (z.B. offene Plätze, späterer Einstieg) liegt die Jahresauslastung unter 100%."]
[]
[]
[]
["5a","Anzahl Spielgruppenstunden pro Durchführung",0,"Stunden",null,"Hinweis: Bei mehreren Durchführungen pro Woche durchschnittliche Dauer eintragen, falls Länge der Durchführung unterschiedlich"]
["5b","Vorbereitung pro Durchführung (inkl. Administration, Einkauf, Raum vorbereiten)",0,"Stunden"]
["5c","Nachbereitung pro Durchführung (inkl. Aufräumen, Tür-und-Angel-Elterngespräche)",0,"Stunden"]
[]
[]
[null,"II) Arbeitszeit pro Person und Durchführung"]
[]
[{"$nulls":3},"Anzahl Stunden"]
[null,"Gruppenleitung 1","Name"]
[null,".Spielgruppenstunden (Position 5a)","ja",{"$f":"IF(C32=\"ja\",C23,0)","v":0},null,"Hinweis: \"ja\" bedeutet, dass der Posten als bezahlte Arbeitszeit angerechnet wird, \"nein\" bedeutet, dass der Posten nicht angerechnet wird."]
[null,".Vorbereitung (Position 5b)","ja",{"$f":"IF(C33=\"ja\",C24,0)","v":0}]
[null,".Nachbereitung (Position 5c)","ja",{"$f":"IF(C34=\"ja\",C25,0)","v":0}]
[null,".Optional: andere Stundenzahl als Positionen 5b / 5c für Vor- und Nachbereitung",null,null,"Anmerkung:"]
["6a","Total Gruppenleitung 1",null,{"$f":"SUM(D32:D35)","v":0}]
[]
[null,"Wird eine zweite Gruppenleitung eingesetzt?","nein",null,null,"Hinweis: In der Regel wird eine SG von einer ausgebildeten Spielgruppenleiterin geleitet. Unterstützt wird sie in manchen SG von einer Assistenz / Begleitperson. In wenigen SG werden zwei ausgebildete Spielgruppenleiterinnen oder gar drei Personen eingesetzt."]
[]
[]
[null,"Gruppenleitung 2","Name"]
[null,".Spielgruppenstunden (Position 5a)","nein",{"$f":"IF(C42=\"ja\",C23,0)","v":0}]
[null,".Vorbereitung (Position 5b)","nein",{"$f":"IF(C43=\"ja\",C24,0)","v":0}]
[null,".Nachbereitung (Position 5c)","nein",{"$f":"IF(C44=\"ja\",C25,0)","v":0}]
[null,".Optional: andere Stundenzahl als Positionen 5b / 5c für Vor- und Nachbereitung",null,null,"Anmerkung:"]
["6b","Total Gruppenleitung 2",null,{"$f":"SUM(D42:D45)","v":0}]
[]
[null,"Wird eine Begleitperson in der Gruppe eingesetzt?","ja"]
[null,"Assistenz / Begleitperson 1 ","Name"]
[null,".Spielgruppenstunden (Position 5a)","ja",{"$f":"IF(C50=\"ja\",C23,0)","v":0}]
[null,".Vorbereitung (Position 5b)","nein",{"$f":"IF(C51=\"ja\",C24,0)","v":0}]
[null,".Nachbereitung (Position 5c)","nein",{"$f":"IF(C52=\"ja\",C25,0)","v":0}]
[null,".Optional: andere Stundenzahl als Positionen 5b / 5c für Vor- und Nachbereitung",null,0,"Anmerkung:"]
["6c","Total Assistenz / Begleitperson 1 ",null,{"$f":"SUM(D50:D53)","v":0}]
[]
[null,"Wird eine zweite Begleitperson in der Gruppe eingesetzt?","nein"]
[null,"Assistenz / Begleitperson 2 ","Name"]
[null,".Spielgruppenstunden (Position 5a)","nein",{"$f":"IF(C58=\"ja\",C23,0)","v":0}]
[null,".Vorbereitung (Position 5b)","nein",{"$f":"IF(C59=\"ja\",C24,0)","v":0}]
[null,".Nachbereitung (Position 5c)","nein",{"$f":"IF(C60=\"ja\",C25,0)","v":0}]
[null,".Optional: andere Stundenzahl als Positionen 5b / 5c für Vor- und Nachbereitung",null,null,"Anmerkung:"]
["6d","Total Assistenz / Begleitperson 2 ",null,{"$f":"SUM(D58:D61)","v":0}]
[]
[]
[null,"III) Leitungsaufwand pro Gruppe und Jahr (nur Gruppenleitung)"]
[]
[null,"Jahresplanung/Erstellen Elterninformationen/Einteilungen",0,"Stunden"]
[null,"Planungssitzungen mit Gemeinde/Schule/Fachstellen (Anzahl Gespräche x 1.5 Stunden)",{"$f":"F68*1.5","v":0},"Stunden","Anzahl Gespräche",0]
[null,"Kontakte Schule/Fachpersonen (Anzahl Gespräche x 0.5 Stunden)",{"$f":"F69*0.5","v":0},"Stunden","Anzahl Gespräche",0]
[null,"spezifische Elternkontakte (Anzahl Gespräche x 0.5 Stunden)",{"$f":"F70*0.5","v":0},"Stunden","Anzahl Gespräche",0]
[null,"…",0,"Stunden","Anmerkungen:"]
[null,"…",0,"Stunden","Anmerkungen:"]
[null,"…",0,"Stunden","Anmerkungen:"]
[7,"Total Leitungsaufwand pro Spielgruppe in Stunden (nur Gruppenleitung)",{"$f":"SUM(C67:C73)","v":0}]
[]
[null,"Wird der Leitungsaufwand zwischen zwei Gruppenleitungen aufgeteilt?","nein",null,null,"Hinweis: nur möglich, wenn Positionen bei 6b mit \"ja\" eingetragen"]
[]
[]
[null,"IV) allgemeiner Aufwand pro Spielgruppenjahr (pro Person)"]
[]
[null,"Elternvernetzungsanlässe inkl. Vor- und Nachbereitung (ca. 5 Std. pro Anlass)",0,"Stunden","Anmerkung:"]
[null,"Teamsitzungen / Mitarbeiterinnengespräch",0,"Stunden","Anmerkung:"]
[null,"individuelle Weiterbildung ",0,"Stunden","Anmerkung:"]
[null,"Rauminstandhaltung/Materialreinigung/-reparatur/-einkauf",0,"Stunden","Anmerkung:"]
[null,"…",0,"Stunden","Anmerkung:"]
[null,"…",0,"Stunden","Anmerkung:"]
[null,"…",0,"Stunden","Anmerkung:"]
[8,"Total allgemeiner Aufwand pro Spielgruppenjahr in Stunden (pro Person)",{"$f":"SUM(C81:C87)","v":0}]
[]
[null,"Wird der allgemeine Aufwand der Arbeitszeit der Gruppenleitung 1 angerechnet?","ja"]
[null,"Wird der allgemeine Aufwand der Arbeitszeit der Gruppenleitung 2 angerechnet?","nein",null,null,"Hinweis: nur möglich, wenn Positionen bei 6b mit \"ja\" eingetragen"]
[null,"Wird der allg. Aufwand der Arbeitszeit der Assistenz/Begleitperson 1 angerechnet?","nein",null,null,"Hinweis: nur möglich, wenn Positionen bei 6c mit \"ja\" eingetragen"]
[null,"Wird der allg. Aufwand der Arbeitszeit der Assistenz/Begleitperson 2 angerechnet?","nein",null,null,"Hinweis: nur möglich, wenn Positionen bei 6d mit \"ja\" eingetragen"]
[]
[]
[]
[]
[null,"V) Jahresarbeitszeit (ohne Ferienanteil) in Stunden "]
[]
[null,null,{"$f":"B31","v":"Gruppenleitung 1"},null,{"$f":"B41","v":"Gruppenleitung 2"},null,{"$f":"B49","v":"Assistenz / Begleitperson 1 "},null,{"$f":"B57","v":"Assistenz / Begleitperson 2 "}]
[null,"Arbeitszeit pro Person und Gruppe (Positionen 1 x 2 x 6)",{"$f":"C16*C17*D36","v":0},null,{"$f":"C16*C17*D46","v":0},null,{"$f":"C16*C17*D54","v":0},null,{"$f":"C16*C17*D62","v":0}]
[null,"Leitungsaufwand pro Gruppe und Jahr (nur Leitung) (Position 7)",{"$f":"IF(C76=\"ja\",C74/2,C74)","v":0},null,{"$f":"IF(C76=\"ja\",C74/2,0)","v":0},null,0,null,0]
[null,"allgemeiner Aufwand pro Spielgruppenjahr (pro Person) (Position 8)",{"$f":"IF(C90=\"ja\",C88,0)","v":0},null,{"$f":"IF(C91=\"ja\",C88,0)","v":0},null,{"$f":"IF(C92=\"ja\",C88,0)","v":0},null,{"$f":"IF(C93=\"ja\",C88,0)","v":0}]
[9,"Total Jahresarbeitszeit (ohne Ferienanteil) in Stunden",{"$f":"SUM(C101:C103)","v":0},null,{"$f":"SUM(E101:E103)","v":0},null,{"$f":"SUM(G101:G103)","v":0},null,{"$f":"SUM(I101:I103)","v":0}]
[]
[]
[null,"VI) Berechnung Ferienanteil"]
[]
[null,null,{"$f":"C100","v":"Gruppenleitung 1"},null,{"$f":"E100","v":"Gruppenleitung 2"},null,{"$f":"G100","v":"Assistenz / Begleitperson 1 "},null,"Assistenz / Begleitperson 2 "]
[null,"Beträgt der jährliche Ferienanteil 4 Wochen (gesetzliches Minimum) oder 5 Wochen?","4 Wochen",null,"5 Wochen",null,"4 Wochen",null,"4 Wochen"]
[null,"Ferienanteil in Prozent",{"$f":"IF(C110=\"4 Wochen\",8.33,10.64)","v":8.33},null,{"$f":"IF(E110=\"4 Wochen\",8.33,10.64)","v":10.64},null,{"$f":"IF(G110=\"4 Wochen\",8.33,10.64)","v":8.33},null,{"$f":"IF(I110=\"4 Wochen\",8.33,10.64)","v":8.33}]
[10,"Ferienanteil in Stunden",{"$f":"C104*C111/100","v":{"v":0,"d":"0.0"}},null,{"$f":"E104*E111/100","v":{"v":0,"d":"0.0"}},null,{"$f":"G104*G111/100","v":{"v":0,"d":"0.0"}},null,{"$f":"I104*I111/100","v":{"v":0,"d":"0.0"}}]
[]
[null,"VI) Berechnung Feiertagsentschädigung"]
[]
[null,null,{"$f":"C100","v":"Gruppenleitung 1"},null,{"$f":"E100","v":"Gruppenleitung 2"},null,{"$f":"G100","v":"Assistenz / Begleitperson 1 "},null,{"$f":"I100","v":"Assistenz / Begleitperson 2 "}]
[null,"Wird eine Feiertagsentschädigung ausbezahlt?","nein",null,"nein",null,"nein",null,"nein"]
[null,"Feiertagsanteil in Prozent ",{"$f":"IF(C117=\"ja\",3.5,0)","v":0},null,{"$f":"IF(E117=\"ja\",3.5,0)","v":0},null,{"$f":"IF(G117=\"ja\",3.5,0)","v":0},null,{"$f":"IF(I117=\"ja\",3.5,0)","v":0}]
[11,"Feiertagsanteil in Stunden",{"$f":"IF(C117=\"nein\",0,C104*C118/100)","v":{"v":0,"d":"0.0"}},null,{"$f":"IF(E117=\"nein\",0,E104*E118/100)","v":{"v":0,"d":"0.0"}},null,{"$f":"IF(G117=\"nein\",0,G104*G118/100)","v":{"v":0,"d":"0.0"}},null,{"$f":"IF(I117=\"nein\",0,I104*I118/100)","v":{"v":0,"d":"0.0"}}]
[]
[null,"VI) Berechnung Zuschlag 13. Monatslohn "]
[]
[null,null,{"$f":"C100","v":"Gruppenleitung 1"},null,{"$f":"E100","v":"Gruppenleitung 2"},null,{"$f":"G100","v":"Assistenz / Begleitperson 1 "},null,{"$f":"I100","v":"Assistenz / Begleitperson 2 "}]
[null,"Wird ein 13. Monatslohn ausbezahlt?","nein",null,"nein",null,"nein",null,"nein"]
[null,"Anteil 13. Monatslohn in Prozent ",{"$f":"IF(C124=\"ja\",8.33,0)","v":0},null,{"$f":"IF(E124=\"ja\",8.33,0)","v":0},null,{"$f":"IF(G124=\"ja\",8.33,0)","v":0},null,{"$f":"IF(I124=\"ja\",8.33,0)","v":0}]
[12,"Anteil 13. Monatslohn in Stunden",{"$f":"IF(C124=\"nein\",0,C104*C125/100)","v":{"v":0,"d":"0.0"}},null,{"$f":"IF(E124=\"nein\",0,E104*E125/100)","v":{"v":0,"d":"0.0"}},null,{"$f":"IF(G124=\"nein\",0,G104*G125/100)","v":{"v":0,"d":"0.0"}},null,{"$f":"IF(I124=\"nein\",0,I104*I125/100)","v":{"v":0,"d":"0.0"}}]
[]
[null,"Erfolgsrechnung"]
[]
[]
[null,"Ausgaben"]
[]
[null,"I) Personalkosten"]
[]
[null,"Lohnkosten","Jahresarbeitszeit (Position 9)","Anteil Ferien, Feiertag, 13. ML (Positionen 10-12)","Jahresarbeitszeit total (Positionen 9 + 10)","Stundenansatz ohne Ferienanteil","Bruttolohn"]
[null,{"$f":"C100","v":"Gruppenleitung 1"},{"$f":"C104","v":{"v":0,"d":"0.0"}},{"$f":"C112+C119+C126","v":{"v":0,"d":"0.0"}},{"$f":"C136+D136","v":{"v":0,"d":"0.0"}},{"v":0,"d":"0.00"},{"$f":"E136*F136","v":{"v":0,"d":"0.00"}},"Hinweis: Lohnempfehlungen siehe SSLV"]
[null,{"$f":"E100","v":"Gruppenleitung 2"},{"$f":"E104","v":{"v":0,"d":"0.0"}},{"$f":"E112+E119+E126","v":{"v":0,"d":"0.0"}},{"$f":"C137+D137","v":{"v":0,"d":"0.0"}},{"v":0,"d":"0.00"},{"$f":"E137*F137","v":{"v":0,"d":"0.00"}}]
[null,{"$f":"G100","v":"Assistenz / Begleitperson 1 "},{"$f":"G104","v":{"v":0,"d":"0.0"}},{"$f":"G112+G119+G126","v":{"v":0,"d":"0.0"}},{"$f":"C138+D138","v":{"v":0,"d":"0.0"}},{"v":0,"d":"0.00"},{"$f":"E138*F138","v":{"v":0,"d":"0.00"}}]
[null,{"$f":"I100","v":"Assistenz / Begleitperson 2 "},{"$f":"I104","v":{"v":0,"d":"0.0"}},{"$f":"I112+I119+I126","v":{"v":0,"d":"0.0"}},{"$f":"C139+D139","v":{"v":0,"d":"0.0"}},{"v":0,"d":"0.00"},{"$f":"E139*F139","v":{"v":0,"d":"0.00"}}]
[13,"Total Bruttolohn",{"$nulls":4},{"$f":"SUM(G136:G139)","v":{"v":0,"d":"0.00"}},"Hinweis: Vom Bruttolohn werden Arbeitnehmerbeiträge abgerechnet"]
[]
[]
[null,"Lohnnebenkosten, welche von Arbeitgeberin bezahlt werden",{"$nulls":3},"Anteil in Prozent",null,"Hinweis: Lohnnebenkosten, welche von der SG-Leiterin direkt bezahlt werden, werden nicht aufgeführt"]
[]
[null,"Arbeitgeberbeiträge Sozialversicherung (AHV, IV, EO, ALV)",{"$nulls":3},{"v":0.064,"d":"6.400%"},{"$f":"G140*F145","v":{"v":0,"d":"0.00"}}]
[null,"evtl. Verwaltungskosten Pensionskasse",{"$nulls":3},{"v":0.0025,"d":"0.250%"},{"$f":"G140*F146","v":{"v":0,"d":"0.00"}},"Hinweis: Wird eine Leistung nicht bezahlt, Zahl auf \"0\" setzen"]
[null,"evtl. Familienausgleichskasse (FAK)",{"$nulls":3},{"v":0.015,"d":"1.500%"},{"$f":"G140*F147","v":{"v":0,"d":"0.00"}}]
[null,"Berufsunfallversicherung (gemäss Versicherungsangebot der IG Spielgruppe)",{"$nulls":3},{"v":0.00196,"d":"0.196%"},{"$f":"G140*F148","v":{"v":0,"d":"0.00"}}]
[null,"Nichtberufsunfallversicherung (gemäss Versicherungsangebot der IG Spielgruppe)",{"$nulls":3},{"v":0.01112,"d":"1.112%"},{"$f":"G140*F149","v":{"v":0,"d":"0.00"}}]
[null,"…",{"$nulls":3},{"v":0,"d":"0.000%"},{"$f":"G140*F150","v":{"v":0,"d":"0.00"}}]
[null,"…",{"$nulls":3},{"v":0,"d":"0.000%"},{"$f":"G140*F151","v":{"v":0,"d":"0.00"}}]
[null,"…",{"$nulls":4},{"v":0,"d":"0.00"}]
[14,"Total Lohnnebenkosten, welche von Arbeitgeberin bezahlt werden",{"$nulls":4},{"$f":"SUM(G145:G152)","v":{"v":0,"d":"0.00"}}]
[]
[15,"Total Lohnkosten (Positionen 13 + 14)",{"$nulls":4},{"$f":"G140+G153","v":{"v":0,"d":"0.00"}}]
[]
[]
[null,"Weiterbildungskosten Personal",{"$nulls":4},{"v":0,"d":"0.00"}]
[null,"Mitgliederbeiträge (Beiträge SSLV + regionale FKS x Anzahl Mitarbeiterinnen)",{"$nulls":4},{"v":0,"d":"0.00"}]
[null,"Vergütung Vorstandsarbeit",{"$nulls":4},{"v":0,"d":"0.00"}]
[null,"…",{"$nulls":4},{"v":0,"d":"0.00"}]
[null,"….",{"$nulls":4},{"v":0,"d":"0.00"}]
[16,"Personalkosten diverses",{"$nulls":4},{"$f":"SUM(G158:G162)","v":{"v":0,"d":"0.00"}}]
[]
[17,"Personalkosten total (Positionen 15 + 16)",{"$nulls":4},{"$f":"G155+G163","v":{"v":0,"d":"0.00"}}]
[]
[]
[]
[null,"II) Betriebskosten  pro Jahr"]
[null,"Hinweis: Führt eine Trägerschaft mehrere Gruppen müssen gewisse Kosten (z.B. Versicherung, Buchhaltung) auf die einzelnen Gruppen aufgeteilt werden."]
[]
[null,"fixe Betriebskosten"]
[null,"Miete","Anmerkung:",{"$nulls":3},{"v":0,"d":"0.00"}]
[null,"Betriebshaftpflichtversicherung","Anmerkung:",{"$nulls":3},{"v":0,"d":"0.00"}]
[null,"Geschäftsversicherung","Anmerkung:",{"$nulls":3},{"v":0,"d":"0.00"}]
[null,"Buchhaltung, Administration","Anmerkung:",{"$nulls":3},{"v":0,"d":"0.00"}]
[null,"Spesen Kontoführung ","Anmerkung:",{"$nulls":3},{"v":0,"d":"0.00"}]
[null,"Geschäftsführung, Vereinsleitung, Sitzungsgelder ","Anmerkung:",{"$nulls":3},{"v":0,"d":"0.00"}]
[null,"Diverses Pauschal","Anmerkung:",{"$nulls":3},{"v":0,"d":"0.00"}]
[null,"…","Anmerkung:",{"$nulls":3},{"v":0,"d":"0.00"}]
[18,"fixe Betriebskosten",{"$nulls":4},{"$f":"SUM(G173:G180)","v":{"v":0,"d":"0.00"}}]
[]
[null,"variable Betriebskosten "]
[null,"Verpflegung Z'Nüni/Z'Vieri ","Anmerkung:",{"$nulls":3},{"v":0,"d":"0.00"}]
[null,"Verbrauchsmaterial","Anmerkung:",{"$nulls":3},{"v":0,"d":"0.00"}]
[null,"Spielmaterial, Kinderbücher","Anmerkung:",{"$nulls":3},{"v":0,"d":"0.00"}]
[null,"Ausflüge, Spielgruppenreise","Anmerkung:",{"$nulls":3},{"v":0,"d":"0.00"}]
[null,"Elternabende/-aktivitäten","Anmerkung:",{"$nulls":3},{"v":0,"d":"0.00"}]
[null,"Mobiliar (Neuanschaffungen, Unterhalt/Reparatur)","Anmerkung:",{"$nulls":3},{"v":0,"d":"0.00"}]
[null,"Porto","Anmerkung:",{"$nulls":3},{"v":0,"d":"0.00"}]
[null,"Telefon","Anmerkung:",{"$nulls":3},{"v":0,"d":"0.00"}]
[null,"Druckkosten","Anmerkung:",{"$nulls":3},{"v":0,"d":"0.00"}]
[null,"Öffentlichkeitsarbeit, Werbung","Anmerkung:",{"$nulls":3},{"v":0,"d":"0.00"}]
[null,"Geschenke","Anmerkung:",{"$nulls":3},{"v":0,"d":"0.00"}]
[null,"Fachliteratur, Abo Spielgruppenzeitung","Anmerkung:",{"$nulls":3},{"v":0,"d":"0.00"}]
[null,"Diverses Pauschal","Anmerkung:",{"$nulls":3},{"v":0,"d":"0.00"}]
[null,"…","Anmerkung:",{"$nulls":3},{"v":0,"d":"0.00"}]
[null,"…","Anmerkung:",{"$nulls":3},{"v":0,"d":"0.00"}]
[19,"variable Betriebskosten ",{"$nulls":4},{"$f":"SUM(G184:G198)","v":{"v":0,"d":"0.00"}}]
[]
[]
[null,"Rückstellungen (Krankheit, Anschaffungen etc.)","Anmerkung:",{"$nulls":3},{"v":0,"d":"0.00"}]
[null,"…","Anmerkung:",{"$nulls":3},{"v":0,"d":"0.00"}]
[20,"Rückstellungen ",{"$nulls":4},{"$f":"SUM(G202:G203)","v":{"v":0,"d":"0.00"}}]
[]
[21,"Betriebskosten total (Positionen 18 + 19 + 20)",{"$nulls":4},{"$f":"G181+G199+G204","v":{"v":0,"d":"0.00"}}]
[]
[]
[22,"III) Vollkosten (Postion 17 + 21)",{"$nulls":4},{"$f":"G165+G206","v":{"v":0,"d":"0.00"}}]
[]
[23,"IV) Vollkosten pro Platz (Positionen 22 : 3 : 4) ",{"$nulls":4},{"$f":"G209/C18/C19","v":{"$error":"#DIV/0!"}}]
[]
[]
[]
[null,"Einnahmen"]
[]
[null,"I) Elternbeiträge"]
[null,null,"Fr. pro Platz","Kinder"]
[null,"Elternbeitrag pro Platz (wird in Rechnung gestellt)",{"v":0,"d":"0.00"},{"$nulls":4},"Hinweis: Preis pro Platz entspricht den Vollkosten (Position 23). Der Preis kann reduziert werden, wenn Beiträge Dritte (Position 25) vorhanden sind."]
[null,"Elternbeiträge bei erwarteter Auslastung gemäss Position 4 ",null,{"$f":"C18*C19","v":{"v":0,"d":"0.0"}},null,null,{"$f":"C219*D220","v":{"v":0,"d":"0.00"}}]
[]
[24,"Total Elternbeiträge",{"$nulls":4},{"$f":"SUM(G220:G221)","v":{"v":0,"d":"0.00"}}]
[]
[null,"II) Beiträge Dritte"]
[null,"Spenden","Anmerkung:",{"$nulls":3},{"v":0,"d":"0.00"}]
[null,"Beitrag Gemeinde","Anmerkung:",{"$nulls":3},{"v":0,"d":"0.00"}]
[null,"Beitrag Kirche","Anmerkung:",{"$nulls":3},{"v":0,"d":"0.00"}]
[null,"Beitrag Kanton","Anmerkung:",{"$nulls":3},{"v":0,"d":"0.00"}]
[null,"…","Anmerkung:",{"$nulls":3},{"v":0,"d":"0.00"}]
[null,"…","Anmerkung:",{"$nulls":3},{"v":0,"d":"0.00"}]
[25,"Total Beiträge Dritte",{"$nulls":4},{"$f":"SUM(G225:G230)","v":{"v":0,"d":"0.00"}}]
[]
[26,"Total Einnahmen (Positionen 24 + 25)",{"$nulls":4},{"$f":"G222+G231","v":{"v":0,"d":"0.00"}}]
[]
[]
[null,"Erfolgsrechnung"]
[]
[null,"Total Einnahmen (Position 26)",{"$nulls":4},{"$f":"G233","v":{"v":0,"d":"0.00"}}]
[null,"Total Ausgaben (Position 22)",{"$nulls":4},{"$f":"G209","v":{"v":0,"d":"0.00"}}]
[27,"Übertrag in Reserve (falls Einnahmen höher als Ausgaben)","Anmerkung:",{"$nulls":3},{"v":0,"d":"0.00"}]
[28,"Übertrag aus Reserven (falls Ausgaben höher als Einnahmen)","Anmerkung:",{"$nulls":3},{"v":0,"d":"0.00"},"Hinweis: nur Betrag ohne \"-\" (Minus) eingeben"]
[29,"Saldo",{"$nulls":4},{"$f":"G238-G239-G240+G241","v":{"v":0,"d":"0.00"}}]
[]
[30,"Gewinn oder Verlust / bzw. Eigenleistung Spielgruppenleiterinnen",{"$nulls":4},{"$f":"G242","v":{"v":0,"d":"0.00"}}]
[]
[]
[]
[null,"weitere Anmerkungen: "]

{"sheet":"VK Gruppe 8","index":9,"n_rows":248,"n_cols":9,"rows_kept":248,"merged":[[5,2,5,3],[6,2,6,3],[7,2,7,3],[8,2,8,3],[9,2,9,3],[18,5,20,9],[22,5,23,9],[30,3,30,4],[31,5,32,9],[34,5,34,9],[37,5,39,9],[40,3,40,4],[44,5,44,9],[48,3,48,4],[52,5,52,9],[56,3,56,4],[60,5,60,9],[70,5,70,9],[71,5,71,9],[72,5,72,9],[80,5,80,9],[81,5,81,9],[82,5,82,9],[83,5,83,9],[84,5,84,9],[85,5,85,9],[86,5,86,9],[139,7,140,9],[142,7,143,9],[145,7,146,9],[172,3,172,4],[173,3,173,4],[174,3,174,4],[175,3,175,4],[176,3,176,4],[177,3,177,4],[178,3,178,4],[179,3,179,4],[183,3,183,4],[184,3,184,4],[185,3,185,4],[186,3,186,4],[187,3,187,4],[188,3,188,4],[189,3,189,4],[190,3,190,4],[191,3,191,4],[192,3,192,4],[193,3,193,4],[194,3,194,4],[195,3,195,4],[196,3,196,4],[197,3,197,4],[201,3,201,4],[202,3,202,4],[218,7,220,9],[224,3,224,4],[225,3,225,4],[226,3,226,4],[227,3,227,4],[228,3,228,4],[229,3,229,4],[239,3,239,4],[240,3,240,4],[247,1,247,9],[248,1,248,9],[249,1,249,9],[250,1,250,9],[251,1,251,9],[252,1,252,9],[253,1,253,9],[254,1,254,9],[255,1,255,9],[256,1,256,9],[257,1,257,9],[258,1,258,9],[259,1,259,9]]}
[]
[null,"Hellblaue Felder können eingefüllt werden"]
[null,"Orange Felder müssen eingefüllt werden"]
[]
[]
[null,"Spielgruppe"]
[null,"Name Gruppe"]
[null,"Durchführung pro Woche"]
[null,"Berechnungsperiode"]
[null,"Berechnungsdatum"]
[]
[null,"Berechnung Arbeitszeit pro Gruppe"]
[]
[null,"I) Basisdaten"]
["Position"]
[1,"Anzahl Spielgruppenwochen pro Berechnungsperiode:",0,"Wochen"]
[2,"Anzahl Durchführung pro Woche",0,"Anzahl pro Woche"]
[3,"Anzahl Plätze bei Vollbelegung",0,"Plätze"]
[4,"erwartete Jahresauslastung in Prozent",{"v":0,"d":"0%"},"Prozent",null,"Hinweis: Können alle Plätze voll verrechnet werden ist die Jahresauslastung 100%. Können nicht alle Plätze voll verrechnet werden (z.B. offene Plätze, späterer Einstieg) liegt die Jahresauslastung unter 100%."]
[]
[]
[]
["5a","Anzahl Spielgruppenstunden pro Durchführung",0,"Stunden",null,"Hinweis: Bei mehreren Durchführungen pro Woche durchschnittliche Dauer eintragen, falls Länge der Durchführung unterschiedlich"]
["5b","Vorbereitung pro Durchführung (inkl. Administration, Einkauf, Raum vorbereiten)",0,"Stunden"]
["5c","Nachbereitung pro Durchführung (inkl. Aufräumen, Tür-und-Angel-Elterngespräche)",0,"Stunden"]
[]
[]
[null,"II) Arbeitszeit pro Person und Durchführung"]
[]
[{"$nulls":3},"Anzahl Stunden"]
[null,"Gruppenleitung 1","Name"]
[null,".Spielgruppenstunden (Position 5a)","ja",{"$f":"IF(C32=\"ja\",C23,0)","v":0},null,"Hinweis: \"ja\" bedeutet, dass der Posten als bezahlte Arbeitszeit angerechnet wird, \"nein\" bedeutet, dass der Posten nicht angerechnet wird."]
[null,".Vorbereitung (Position 5b)","ja",{"$f":"IF(C33=\"ja\",C24,0)","v":0}]
[null,".Nachbereitung (Position 5c)","ja",{"$f":"IF(C34=\"ja\",C25,0)","v":0}]
[null,".Optional: andere Stundenzahl als Positionen 5b / 5c für Vor- und Nachbereitung",null,null,"Anmerkung:"]
["6a","Total Gruppenleitung 1",null,{"$f":"SUM(D32:D35)","v":0}]
[]
[null,"Wird eine zweite Gruppenleitung eingesetzt?","nein",null,null,"Hinweis: In der Regel wird eine SG von einer ausgebildeten Spielgruppenleiterin geleitet. Unterstützt wird sie in manchen SG von einer Assistenz / Begleitperson. In wenigen SG werden zwei ausgebildete Spielgruppenleiterinnen oder gar drei Personen eingesetzt."]
[]
[]
[null,"Gruppenleitung 2","Name"]
[null,".Spielgruppenstunden (Position 5a)","nein",{"$f":"IF(C42=\"ja\",C23,0)","v":0}]
[null,".Vorbereitung (Position 5b)","nein",{"$f":"IF(C43=\"ja\",C24,0)","v":0}]
[null,".Nachbereitung (Position 5c)","nein",{"$f":"IF(C44=\"ja\",C25,0)","v":0}]
[null,".Optional: andere Stundenzahl als Positionen 5b / 5c für Vor- und Nachbereitung",null,null,"Anmerkung:"]
["6b","Total Gruppenleitung 2",null,{"$f":"SUM(D42:D45)","v":0}]
[]
[null,"Wird eine Begleitperson in der Gruppe eingesetzt?","ja"]
[null,"Assistenz / Begleitperson 1 ","Name"]
[null,".Spielgruppenstunden (Position 5a)","ja",{"$f":"IF(C50=\"ja\",C23,0)","v":0}]
[null,".Vorbereitung (Position 5b)","nein",{"$f":"IF(C51=\"ja\",C24,0)","v":0}]
[null,".Nachbereitung (Position 5c)","nein",{"$f":"IF(C52=\"ja\",C25,0)","v":0}]
[null,".Optional: andere Stundenzahl als Positionen 5b / 5c für Vor- und Nachbereitung",null,0,"Anmerkung:"]
["6c","Total Assistenz / Begleitperson 1 ",null,{"$f":"SUM(D50:D53)","v":0}]
[]
[null,"Wird eine zweite Begleitperson in der Gruppe eingesetzt?","nein"]
[null,"Assistenz / Begleitperson 2 ","Name"]
[null,".Spielgruppenstunden (Position 5a)","nein",{"$f":"IF(C58=\"ja\",C23,0)","v":0}]
[null,".Vorbereitung (Position 5b)","nein",{"$f":"IF(C59=\"ja\",C24,0)","v":0}]
[null,".Nachbereitung (Position 5c)","nein",{"$f":"IF(C60=\"ja\",C25,0)","v":0}]
[null,".Optional: andere Stundenzahl als Positionen 5b / 5c für Vor- und Nachbereitung",null,null,"Anmerkung:"]
["6d","Total Assistenz / Begleitperson 2 ",null,{"$f":"SUM(D58:D61)","v":0}]
[]
[]
[null,"III) Leitungsaufwand pro Gruppe und Jahr (nur Gruppenleitung)"]
[]
[null,"Jahresplanung/Erstellen Elterninformationen/Einteilungen",0,"Stunden"]
[null,"Planungssitzungen mit Gemeinde/Schule/Fachstellen (Anzahl Gespräche x 1.5 Stunden)",{"$f":"F68*1.5","v":0},"Stunden","Anzahl Gespräche",0]
[null,"Kontakte Schule/Fachpersonen (Anzahl Gespräche x 0.5 Stunden)",{"$f":"F69*0.5","v":0},"Stunden","Anzahl Gespräche",0]
[null,"spezifische Elternkontakte (Anzahl Gespräche x 0.5 Stunden)",{"$f":"F70*0.5","v":0},"Stunden","Anzahl Gespräche",0]
[null,"…",0,"Stunden","Anmerkungen:"]
[null,"…",0,"Stunden","Anmerkungen:"]
[null,"…",0,"Stunden","Anmerkungen:"]
[7,"Total Leitungsaufwand pro Spielgruppe in Stunden (nur Gruppenleitung)",{"$f":"SUM(C67:C73)","v":0}]
[]
[null,"Wird der Leitungsaufwand zwischen zwei Gruppenleitungen aufgeteilt?","nein",null,null,"Hinweis: nur möglich, wenn Positionen bei 6b mit \"ja\" eingetragen"]
[]
[]
[null,"IV) allgemeiner Aufwand pro Spielgruppenjahr (pro Person)"]
[]
[null,"Elternvernetzungsanlässe inkl. Vor- und Nachbereitung (ca. 5 Std. pro Anlass)",0,"Stunden","Anmerkung:"]
[null,"Teamsitzungen / Mitarbeiterinnengespräch",0,"Stunden","Anmerkung:"]
[null,"individuelle Weiterbildung ",0,"Stunden","Anmerkung:"]
[null,"Rauminstandhaltung/Materialreinigung/-reparatur/-einkauf",0,"Stunden","Anmerkung:"]
[null,"…",0,"Stunden","Anmerkung:"]
[null,"…",0,"Stunden","Anmerkung:"]
[null,"…",0,"Stunden","Anmerkung:"]
[8,"Total allgemeiner Aufwand pro Spielgruppenjahr in Stunden (pro Person)",{"$f":"SUM(C81:C87)","v":0}]
[]
[null,"Wird der allgemeine Aufwand der Arbeitszeit der Gruppenleitung 1 angerechnet?","ja"]
[null,"Wird der allgemeine Aufwand der Arbeitszeit der Gruppenleitung 2 angerechnet?","nein",null,null,"Hinweis: nur möglich, wenn Positionen bei 6b mit \"ja\" eingetragen"]
[null,"Wird der allg. Aufwand der Arbeitszeit der Assistenz/Begleitperson 1 angerechnet?","nein",null,null,"Hinweis: nur möglich, wenn Positionen bei 6c mit \"ja\" eingetragen"]
[null,"Wird der allg. Aufwand der Arbeitszeit der Assistenz/Begleitperson 2 angerechnet?","nein",null,null,"Hinweis: nur möglich, wenn Positionen bei 6d mit \"ja\" eingetragen"]
[]
[]
[]
[]
[null,"V) Jahresarbeitszeit (ohne Ferienanteil) in Stunden "]
[]
[null,null,{"$f":"B31","v":"Gruppenleitung 1"},null,{"$f":"B41","v":"Gruppenleitung 2"},null,{"$f":"B49","v":"Assistenz / Begleitperson 1 "},null,{"$f":"B57","v":"Assistenz / Begleitperson 2 "}]
[null,"Arbeitszeit pro Person und Gruppe (Positionen 1 x 2 x 6)",{"$f":"C16*C17*D36","v":0},null,{"$f":"C16*C17*D46","v":0},null,{"$f":"C16*C17*D54","v":0},null,{"$f":"C16*C17*D62","v":0}]
[null,"Leitungsaufwand pro Gruppe und Jahr (nur Leitung) (Position 7)",{"$f":"IF(C76=\"ja\",C74/2,C74)","v":0},null,{"$f":"IF(C76=\"ja\",C74/2,0)","v":0},null,0,null,0]
[null,"allgemeiner Aufwand pro Spielgruppenjahr (pro Person) (Position 8)",{"$f":"IF(C90=\"ja\",C88,0)","v":0},null,{"$f":"IF(C91=\"ja\",C88,0)","v":0},null,{"$f":"IF(C92=\"ja\",C88,0)","v":0},null,{"$f":"IF(C93=\"ja\",C88,0)","v":0}]
[9,"Total Jahresarbeitszeit (ohne Ferienanteil) in Stunden",{"$f":"SUM(C101:C103)","v":0},null,{"$f":"SUM(E101:E103)","v":0},null,{"$f":"SUM(G101:G103)","v":0},null,{"$f":"SUM(I101:I103)","v":0}]
[]
[]
[null,"VI) Berechnung Ferienanteil"]
[]
[null,null,{"$f":"C100","v":"Gruppenleitung 1"},null,{"$f":"E100","v":"Gruppenleitung 2"},null,{"$f":"G100","v":"Assistenz / Begleitperson 1 "},null,"Assistenz / Begleitperson 2 "]
[null,"Beträgt der jährliche Ferienanteil 4 Wochen (gesetzliches Minimum) oder 5 Wochen?","4 Wochen",null,"5 Wochen",null,"4 Wochen",null,"4 Wochen"]
[null,"Ferienanteil in Prozent",{"$f":"IF(C110=\"4 Wochen\",8.33,10.64)","v":8.33},null,{"$f":"IF(E110=\"4 Wochen\",8.33,10.64)","v":10.64},null,{"$f":"IF(G110=\"4 Wochen\",8.33,10.64)","v":8.33},null,{"$f":"IF(I110=\"4 Wochen\",8.33,10.64)","v":8.33}]
[10,"Ferienanteil in Stunden",{"$f":"C104*C111/100","v":{"v":0,"d":"0.0"}},null,{"$f":"E104*E111/100","v":{"v":0,"d":"0.0"}},null,{"$f":"G104*G111/100","v":{"v":0,"d":"0.0"}},null,{"$f":"I104*I111/100","v":{"v":0,"d":"0.0"}}]
[]
[null,"VI) Berechnung Feiertagsentschädigung"]
[]
[null,null,{"$f":"C100","v":"Gruppenleitung 1"},null,{"$f":"E100","v":"Gruppenleitung 2"},null,{"$f":"G100","v":"Assistenz / Begleitperson 1 "},null,{"$f":"I100","v":"Assistenz / Begleitperson 2 "}]
[null,"Wird eine Feiertagsentschädigung ausbezahlt?","nein",null,"nein",null,"nein",null,"nein"]
[null,"Feiertagsanteil in Prozent ",{"$f":"IF(C117=\"ja\",3.5,0)","v":0},null,{"$f":"IF(E117=\"ja\",3.5,0)","v":0},null,{"$f":"IF(G117=\"ja\",3.5,0)","v":0},null,{"$f":"IF(I117=\"ja\",3.5,0)","v":0}]
[11,"Feiertagsanteil in Stunden",{"$f":"IF(C117=\"nein\",0,C104*C118/100)","v":{"v":0,"d":"0.0"}},null,{"$f":"IF(E117=\"nein\",0,E104*E118/100)","v":{"v":0,"d":"0.0"}},null,{"$f":"IF(G117=\"nein\",0,G104*G118/100)","v":{"v":0,"d":"0.0"}},null,{"$f":"IF(I117=\"nein\",0,I104*I118/100)","v":{"v":0,"d":"0.0"}}]
[]
[null,"VI) Berechnung Zuschlag 13. Monatslohn "]
[]
[null,null,{"$f":"C100","v":"Gruppenleitung 1"},null,{"$f":"E100","v":"Gruppenleitung 2"},null,{"$f":"G100","v":"Assistenz / Begleitperson 1 "},null,{"$f":"I100","v":"Assistenz / Begleitperson 2 "}]
[null,"Wird ein 13. Monatslohn ausbezahlt?","nein",null,"nein",null,"nein",null,"nein"]
[null,"Anteil 13. Monatslohn in Prozent ",{"$f":"IF(C124=\"ja\",8.33,0)","v":0},null,{"$f":"IF(E124=\"ja\",8.33,0)","v":0},null,{"$f":"IF(G124=\"ja\",8.33,0)","v":0},null,{"$f":"IF(I124=\"ja\",8.33,0)","v":0}]
[12,"Anteil 13. Monatslohn in Stunden",{"$f":"IF(C124=\"nein\",0,C104*C125/100)","v":{"v":0,"d":"0.0"}},null,{"$f":"IF(E124=\"nein\",0,E104*E125/100)","v":{"v":0,"d":"0.0"}},null,{"$f":"IF(G124=\"nein\",0,G104*G125/100)","v":{"v":0,"d":"0.0"}},null,{"$f":"IF(I124=\"nein\",0,I104*I125/100)","v":{"v":0,"d":"0.0"}}]
[]
[null,"Erfolgsrechnung"]
[]
[]
[null,"Ausgaben"]
[]
[null,"I) Personalkosten"]
[]
[null,"Lohnkosten","Jahresarbeitszeit (Position 9)","Anteil Ferien, Feiertag, 13. ML (Positionen 10-12)","Jahresarbeitszeit total (Positionen 9 + 10)","Stundenansatz ohne Ferienanteil","Bruttolohn"]
[null,{"$f":"C100","v":"Gruppenleitung 1"},{"$f":"C104","v":{"v":0,"d":"0.0"}},{"$f":"C112+C119+C126","v":{"v":0,"d":"0.0"}},{"$f":"C136+D136","v":{"v":0,"d":"0.0"}},{"v":0,"d":"0.00"},{"$f":"E136*F136","v":{"v":0,"d":"0.00"}},"Hinweis: Lohnempfehlungen siehe SSLV"]
[null,{"$f":"E100","v":"Gruppenleitung 2"},{"$f":"E104","v":{"v":0,"d":"0.0"}},{"$f":"E112+E119+E126","v":{"v":0,"d":"0.0"}},{"$f":"C137+D137","v":{"v":0,"d":"0.0"}},{"v":0,"d":"0.00"},{"$f":"E137*F137","v":{"v":0,"d":"0.00"}}]
[null,{"$f":"G100","v":"Assistenz / Begleitperson 1 "},{"$f":"G104","v":{"v":0,"d":"0.0"}},{"$f":"G112+G119+G126","v":{"v":0,"d":"0.0"}},{"$f":"C138+D138","v":{"v":0,"d":"0.0"}},{"v":0,"d":"0.00"},{"$f":"E138*F138","v":{"v":0,"d":"0.00"}}]
[null,{"$f":"I100","v":"Assistenz / Begleitperson 2 "},{"$f":"I104","v":{"v":0,"d":"0.0"}},{"$f":"I112+I119+I126","v":{"v":0,"d":"0.0"}},{"$f":"C139+D139","v":{"v":0,"d":"0.0"}},{"v":0,"d":"0.00"},{"$f":"E139*F139","v":{"v":0,"d":"0.00"}}]
[13,"Total Bruttolohn",{"$nulls":4},{"$f":"SUM(G136:G139)","v":{"v":0,"d":"0.00"}},"Hinweis: Vom Bruttolohn werden Arbeitnehmerbeiträge abgerechnet"]
[]
[]
[null,"Lohnnebenkosten, welche von Arbeitgeberin bezahlt werden",{"$nulls":3},"Anteil in Prozent",null,"Hinweis: Lohnnebenkosten, welche von der SG-Leiterin direkt bezahlt werden, werden nicht aufgeführt"]
[]
[null,"Arbeitgeberbeiträge Sozialversicherung (AHV, IV, EO, ALV)",{"$nulls":3},{"v":0.064,"d":"6.400%"},{"$f":"G140*F145","v":{"v":0,"d":"0.00"}}]
[null,"evtl. Verwaltungskosten Pensionskasse",{"$nulls":3},{"v":0.0025,"d":"0.250%"},{"$f":"G140*F146","v":{"v":0,"d":"0.00"}},"Hinweis: Wird eine Leistung nicht bezahlt, Zahl auf \"0\" setzen"]
[null,"evtl. Familienausgleichskasse (FAK)",{"$nulls":3},{"v":0.015,"d":"1.500%"},{"$f":"G140*F147","v":{"v":0,"d":"0.00"}}]
[null,"Berufsunfallversicherung (gemäss Versicherungsangebot der IG Spielgruppe)",{"$nulls":3},{"v":0.00196,"d":"0.196%"},{"$f":"G140*F148","v":{"v":0,"d":"0.00"}}]
[null,"Nichtberufsunfallversicherung (gemäss Versicherungsangebot der IG Spielgruppe)",{"$nulls":3},{"v":0.01112,"d":"1.112%"},{"$f":"G140*F149","v":{"v":0,"d":"0.00"}}]
[null,"…",{"$nulls":3},{"v":0,"d":"0.000%"},{"$f":"G140*F150","v":{"v":0,"d":"0.00"}}]
[null,"…",{"$nulls":3},{"v":0,"d":"0.000%"},{"$f":"G140*F151","v":{"v":0,"d":"0.00"}}]
[null,"…",{"$nulls":4},{"v":0,"d":"0.00"}]
[14,"Total Lohnnebenkosten, welche von Arbeitgeberin bezahlt werden",{"$nulls":4},{"$f":"SUM(G145:G152)","v":{"v":0,"d":"0.00"}}]
[]
[15,"Total Lohnkosten (Positionen 13 + 14)",{"$nulls":4},{"$f":"G140+G153","v":{"v":0,"d":"0.00"}}]
[]
[]
[null,"Weiterbildungskosten Personal",{"$nulls":4},{"v":0,"d":"0.00"}]
[null,"Mitgliederbeiträge (Beiträge SSLV + regionale FKS x Anzahl Mitarbeiterinnen)",{"$nulls":4},{"v":0,"d":"0.00"}]
[null,"Vergütung Vorstandsarbeit",{"$nulls":4},{"v":0,"d":"0.00"}]
[null,"…",{"$nulls":4},{"v":0,"d":"0.00"}]
[null,"….",{"$nulls":4},{"v":0,"d":"0.00"}]
[16,"Personalkosten diverses",{"$nulls":4},{"$f":"SUM(G158:G162)","v":{"v":0,"d":"0.00"}}]
[]
[17,"Personalkosten total (Positionen 15 + 16)",{"$nulls":4},{"$f":"G155+G163","v":{"v":0,"d":"0.00"}}]
[]
[]
[]
[null,"II) Betriebskosten  pro Jahr"]
[null,"Hinweis: Führt eine Trägerschaft mehrere Gruppen müssen gewisse Kosten (z.B. Versicherung, Buchhaltung) auf die einzelnen Gruppen aufgeteilt werden."]
[]
[null,"fixe Betriebskosten"]
[null,"Miete","Anmerkung:",{"$nulls":3},{"v":0,"d":"0.00"}]
[null,"Betriebshaftpflichtversicherung","Anmerkung:",{"$nulls":3},{"v":0,"d":"0.00"}]
[null,"Geschäftsversicherung","Anmerkung:",{"$nulls":3},{"v":0,"d":"0.00"}]
[null,"Buchhaltung, Administration","Anmerkung:",{"$nulls":3},{"v":0,"d":"0.00"}]
[null,"Spesen Kontoführung ","Anmerkung:",{"$nulls":3},{"v":0,"d":"0.00"}]
[null,"Geschäftsführung, Vereinsleitung, Sitzungsgelder ","Anmerkung:",{"$nulls":3},{"v":0,"d":"0.00"}]
[null,"Diverses Pauschal","Anmerkung:",{"$nulls":3},{"v":0,"d":"0.00"}]
[null,"…","Anmerkung:",{"$nulls":3},{"v":0,"d":"0.00"}]
[18,"fixe Betriebskosten",{"$nulls":4},{"$f":"SUM(G173:G180)","v":{"v":0,"d":"0.00"}}]
[]
[null,"variable Betriebskosten "]
[null,"Verpflegung Z'Nüni/Z'Vieri ","Anmerkung:",{"$nulls":3},{"v":0,"d":"0.00"}]
[null,"Verbrauchsmaterial","Anmerkung:",{"$nulls":3},{"v":0,"d":"0.00"}]
[null,"Spielmaterial, Kinderbücher","Anmerkung:",{"$nulls":3},{"v":0,"d":"0.00"}]
[null,"Ausflüge, Spielgruppenreise","Anmerkung:",{"$nulls":3},{"v":0,"d":"0.00"}]
[null,"Elternabende/-aktivitäten","Anmerkung:",{"$nulls":3},{"v":0,"d":"0.00"}]
[null,"Mobiliar (Neuanschaffungen, Unterhalt/Reparatur)","Anmerkung:",{"$nulls":3},{"v":0,"d":"0.00"}]
[null,"Porto","Anmerkung:",{"$nulls":3},{"v":0,"d":"0.00"}]
[null,"Telefon","Anmerkung:",{"$nulls":3},{"v":0,"d":"0.00"}]
[null,"Druckkosten","Anmerkung:",{"$nulls":3},{"v":0,"d":"0.00"}]
[null,"Öffentlichkeitsarbeit, Werbung","Anmerkung:",{"$nulls":3},{"v":0,"d":"0.00"}]
[null,"Geschenke","Anmerkung:",{"$nulls":3},{"v":0,"d":"0.00"}]
[null,"Fachliteratur, Abo Spielgruppenzeitung","Anmerkung:",{"$nulls":3},{"v":0,"d":"0.00"}]
[null,"Diverses Pauschal","Anmerkung:",{"$nulls":3},{"v":0,"d":"0.00"}]
[null,"…","Anmerkung:",{"$nulls":3},{"v":0,"d":"0.00"}]
[null,"…","Anmerkung:",{"$nulls":3},{"v":0,"d":"0.00"}]
[19,"variable Betriebskosten ",{"$nulls":4},{"$f":"SUM(G184:G198)","v":{"v":0,"d":"0.00"}}]
[]
[]
[null,"Rückstellungen (Krankheit, Anschaffungen etc.)","Anmerkung:",{"$nulls":3},{"v":0,"d":"0.00"}]
[null,"…","Anmerkung:",{"$nulls":3},{"v":0,"d":"0.00"}]
[20,"Rückstellungen ",{"$nulls":4},{"$f":"SUM(G202:G203)","v":{"v":0,"d":"0.00"}}]
[]
[21,"Betriebskosten total (Positionen 18 + 19 + 20)",{"$nulls":4},{"$f":"G181+G199+G204","v":{"v":0,"d":"0.00"}}]
[]
[]
[22,"III) Vollkosten (Postion 17 + 21)",{"$nulls":4},{"$f":"G165+G206","v":{"v":0,"d":"0.00"}}]
[]
[23,"IV) Vollkosten pro Platz (Positionen 22 : 3 : 4) ",{"$nulls":4},{"$f":"G209/C18/C19","v":{"$error":"#DIV/0!"}}]
[]
[]
[]
[null,"Einnahmen"]
[]
[null,"I) Elternbeiträge"]
[null,null,"Fr. pro Platz","Kinder"]
[null,"Elternbeitrag pro Platz (wird in Rechnung gestellt)",{"v":0,"d":"0.00"},{"$nulls":4},"Hinweis: Preis pro Platz entspricht den Vollkosten (Position 23). Der Preis kann reduziert werden, wenn Beiträge Dritte (Position 25) vorhanden sind."]
[null,"Elternbeiträge bei erwarteter Auslastung gemäss Position 4 ",null,{"$f":"C18*C19","v":{"v":0,"d":"0.0"}},null,null,{"$f":"C219*D220","v":{"v":0,"d":"0.00"}}]
[]
[24,"Total Elternbeiträge",{"$nulls":4},{"$f":"SUM(G220:G221)","v":{"v":0,"d":"0.00"}}]
[]
[null,"II) Beiträge Dritte"]
[null,"Spenden","Anmerkung:",{"$nulls":3},{"v":0,"d":"0.00"}]
[null,"Beitrag Gemeinde","Anmerkung:",{"$nulls":3},{"v":0,"d":"0.00"}]
[null,"Beitrag Kirche","Anmerkung:",{"$nulls":3},{"v":0,"d":"0.00"}]
[null,"Beitrag Kanton","Anmerkung:",{"$nulls":3},{"v":0,"d":"0.00"}]
[null,"…","Anmerkung:",{"$nulls":3},{"v":0,"d":"0.00"}]
[null,"…","Anmerkung:",{"$nulls":3},{"v":0,"d":"0.00"}]
[25,"Total Beiträge Dritte",{"$nulls":4},{"$f":"SUM(G225:G230)","v":{"v":0,"d":"0.00"}}]
[]
[26,"Total Einnahmen (Positionen 24 + 25)",{"$nulls":4},{"$f":"G222+G231","v":{"v":0,"d":"0.00"}}]
[]
[]
[null,"Erfolgsrechnung"]
[]
[null,"Total Einnahmen (Position 26)",{"$nulls":4},{"$f":"G233","v":{"v":0,"d":"0.00"}}]
[null,"Total Ausgaben (Position 22)",{"$nulls":4},{"$f":"G209","v":{"v":0,"d":"0.00"}}]
[27,"Übertrag in Reserve (falls Einnahmen höher als Ausgaben)","Anmerkung:",{"$nulls":3},{"v":0,"d":"0.00"}]
[28,"Übertrag aus Reserven (falls Ausgaben höher als Einnahmen)","Anmerkung:",{"$nulls":3},{"v":0,"d":"0.00"},"Hinweis: nur Betrag ohne \"-\" (Minus) eingeben"]
[29,"Saldo",{"$nulls":4},{"$f":"G238-G239-G240+G241","v":{"v":0,"d":"0.00"}}]
[]
[30,"Gewinn oder Verlust / bzw. Eigenleistung Spielgruppenleiterinnen",{"$nulls":4},{"$f":"G242","v":{"v":0,"d":"0.00"}}]
[]
[]
[]
[null,"weitere Anmerkungen: "]

{"sheet":"VK Gruppe 9","index":10,"n_rows":248,"n_cols":9,"rows_kept":248,"merged":[[5,2,5,3],[6,2,6,3],[7,2,7,3],[8,2,8,3],[9,2,9,3],[18,5,20,9],[22,5,23,9],[30,3,30,4],[31,5,32,9],[34,5,34,9],[37,5,39,9],[40,3,40,4],[44,5,44,9],[48,3,48,4],[52,5,52,9],[56,3,56,4],[60,5,60,9],[70,5,70,9],[71,5,71,9],[72,5,72,9],[80,5,80,9],[81,5,81,9],[82,5,82,9],[83,5,83,9],[84,5,84,9],[85,5,85,9],[86,5,86,9],[139,7,140,9],[142,7,143,9],[145,7,146,9],[172,3,172,4],[173,3,173,4],[174,3,174,4],[175,3,175,4],[176,3,176,4],[177,3,177,4],[178,3,178,4],[179,3,179,4],[183,3,183,4],[184,3,184,4],[185,3,185,4],[186,3,186,4],[187,3,187,4],[188,3,188,4],[189,3,189,4],[190,3,190,4],[191,3,191,4],[192,3,192,4],[193,3,193,4],[194,3,194,4],[195,3,195,4],[196,3,196,4],[197,3,197,4],[201,3,201,4],[202,3,202,4],[218,7,220,9],[224,3,224,4],[225,3,225,4],[226,3,226,4],[227,3,227,4],[228,3,228,4],[229,3,229,4],[239,3,239,4],[240,3,240,4],[247,1,247,9],[248,1,248,9],[249,1,249,9],[250,1,250,9],[251,1,251,9],[252,1,252,9],[253,1,253,9],[254,1,254,9],[255,1,255,9],[256,1,256,9],[257,1,257,9],[258,1,258,9],[259,1,259,9]]}
[]
[null,"Hellblaue Felder können eingefüllt werden"]
[null,"Orange Felder müssen eingefüllt werden"]
[]
[]
[null,"Spielgruppe"]
[null,"Name Gruppe"]
[null,"Durchführung pro Woche"]
[null,"Berechnungsperiode"]
[null,"Berechnungsdatum"]
[]
[null,"Berechnung Arbeitszeit pro Gruppe"]
[]
[null,"I) Basisdaten"]
["Position"]
[1,"Anzahl Spielgruppenwochen pro Berechnungsperiode:",0,"Wochen"]
[2,"Anzahl Durchführung pro Woche",0,"Anzahl pro Woche"]
[3,"Anzahl Plätze bei Vollbelegung",0,"Plätze"]
[4,"erwartete Jahresauslastung in Prozent",{"v":0,"d":"0%"},"Prozent",null,"Hinweis: Können alle Plätze voll verrechnet werden ist die Jahresauslastung 100%. Können nicht alle Plätze voll verrechnet werden (z.B. offene Plätze, späterer Einstieg) liegt die Jahresauslastung unter 100%."]
[]
[]
[]
["5a","Anzahl Spielgruppenstunden pro Durchführung",0,"Stunden",null,"Hinweis: Bei mehreren Durchführungen pro Woche durchschnittliche Dauer eintragen, falls Länge der Durchführung unterschiedlich"]
["5b","Vorbereitung pro Durchführung (inkl. Administration, Einkauf, Raum vorbereiten)",0,"Stunden"]
["5c","Nachbereitung pro Durchführung (inkl. Aufräumen, Tür-und-Angel-Elterngespräche)",0,"Stunden"]
[]
[]
[null,"II) Arbeitszeit pro Person und Durchführung"]
[]
[{"$nulls":3},"Anzahl Stunden"]
[null,"Gruppenleitung 1","Name"]
[null,".Spielgruppenstunden (Position 5a)","ja",{"$f":"IF(C32=\"ja\",C23,0)","v":0},null,"Hinweis: \"ja\" bedeutet, dass der Posten als bezahlte Arbeitszeit angerechnet wird, \"nein\" bedeutet, dass der Posten nicht angerechnet wird."]
[null,".Vorbereitung (Position 5b)","ja",{"$f":"IF(C33=\"ja\",C24,0)","v":0}]
[null,".Nachbereitung (Position 5c)","ja",{"$f":"IF(C34=\"ja\",C25,0)","v":0}]
[null,".Optional: andere Stundenzahl als Positionen 5b / 5c für Vor- und Nachbereitung",null,null,"Anmerkung:"]
["6a","Total Gruppenleitung 1",null,{"$f":"SUM(D32:D35)","v":0}]
[]
[null,"Wird eine zweite Gruppenleitung eingesetzt?","nein",null,null,"Hinweis: In der Regel wird eine SG von einer ausgebildeten Spielgruppenleiterin geleitet. Unterstützt wird sie in manchen SG von einer Assistenz / Begleitperson. In wenigen SG werden zwei ausgebildete Spielgruppenleiterinnen oder gar drei Personen eingesetzt."]
[]
[]
[null,"Gruppenleitung 2","Name"]
[null,".Spielgruppenstunden (Position 5a)","nein",{"$f":"IF(C42=\"ja\",C23,0)","v":0}]
[null,".Vorbereitung (Position 5b)","nein",{"$f":"IF(C43=\"ja\",C24,0)","v":0}]
[null,".Nachbereitung (Position 5c)","nein",{"$f":"IF(C44=\"ja\",C25,0)","v":0}]
[null,".Optional: andere Stundenzahl als Positionen 5b / 5c für Vor- und Nachbereitung",null,null,"Anmerkung:"]
["6b","Total Gruppenleitung 2",null,{"$f":"SUM(D42:D45)","v":0}]
[]
[null,"Wird eine Begleitperson in der Gruppe eingesetzt?","ja"]
[null,"Assistenz / Begleitperson 1 ","Name"]
[null,".Spielgruppenstunden (Position 5a)","ja",{"$f":"IF(C50=\"ja\",C23,0)","v":0}]
[null,".Vorbereitung (Position 5b)","nein",{"$f":"IF(C51=\"ja\",C24,0)","v":0}]
[null,".Nachbereitung (Position 5c)","nein",{"$f":"IF(C52=\"ja\",C25,0)","v":0}]
[null,".Optional: andere Stundenzahl als Positionen 5b / 5c für Vor- und Nachbereitung",null,0,"Anmerkung:"]
["6c","Total Assistenz / Begleitperson 1 ",null,{"$f":"SUM(D50:D53)","v":0}]
[]
[null,"Wird eine zweite Begleitperson in der Gruppe eingesetzt?","nein"]
[null,"Assistenz / Begleitperson 2 ","Name"]
[null,".Spielgruppenstunden (Position 5a)","nein",{"$f":"IF(C58=\"ja\",C23,0)","v":0}]
[null,".Vorbereitung (Position 5b)","nein",{"$f":"IF(C59=\"ja\",C24,0)","v":0}]
[null,".Nachbereitung (Position 5c)","nein",{"$f":"IF(C60=\"ja\",C25,0)","v":0}]
[null,".Optional: andere Stundenzahl als Positionen 5b / 5c für Vor- und Nachbereitung",null,null,"Anmerkung:"]
["6d","Total Assistenz / Begleitperson 2 ",null,{"$f":"SUM(D58:D61)","v":0}]
[]
[]
[null,"III) Leitungsaufwand pro Gruppe und Jahr (nur Gruppenleitung)"]
[]
[null,"Jahresplanung/Erstellen Elterninformationen/Einteilungen",0,"Stunden"]
[null,"Planungssitzungen mit Gemeinde/Schule/Fachstellen (Anzahl Gespräche x 1.5 Stunden)",{"$f":"F68*1.5","v":0},"Stunden","Anzahl Gespräche",0]
[null,"Kontakte Schule/Fachpersonen (Anzahl Gespräche x 0.5 Stunden)",{"$f":"F69*0.5","v":0},"Stunden","Anzahl Gespräche",0]
[null,"spezifische Elternkontakte (Anzahl Gespräche x 0.5 Stunden)",{"$f":"F70*0.5","v":0},"Stunden","Anzahl Gespräche",0]
[null,"…",0,"Stunden","Anmerkungen:"]
[null,"…",0,"Stunden","Anmerkungen:"]
[null,"…",0,"Stunden","Anmerkungen:"]
[7,"Total Leitungsaufwand pro Spielgruppe in Stunden (nur Gruppenleitung)",{"$f":"SUM(C67:C73)","v":0}]
[]
[null,"Wird der Leitungsaufwand zwischen zwei Gruppenleitungen aufgeteilt?","nein",null,null,"Hinweis: nur möglich, wenn Positionen bei 6b mit \"ja\" eingetragen"]
[]
[]
[null,"IV) allgemeiner Aufwand pro Spielgruppenjahr (pro Person)"]
[]
[null,"Elternvernetzungsanlässe inkl. Vor- und Nachbereitung (ca. 5 Std. pro Anlass)",0,"Stunden","Anmerkung:"]
[null,"Teamsitzungen / Mitarbeiterinnengespräch",0,"Stunden","Anmerkung:"]
[null,"individuelle Weiterbildung ",0,"Stunden","Anmerkung:"]
[null,"Rauminstandhaltung/Materialreinigung/-reparatur/-einkauf",0,"Stunden","Anmerkung:"]
[null,"…",0,"Stunden","Anmerkung:"]
[null,"…",0,"Stunden","Anmerkung:"]
[null,"…",0,"Stunden","Anmerkung:"]
[8,"Total allgemeiner Aufwand pro Spielgruppenjahr in Stunden (pro Person)",{"$f":"SUM(C81:C87)","v":0}]
[]
[null,"Wird der allgemeine Aufwand der Arbeitszeit der Gruppenleitung 1 angerechnet?","ja"]
[null,"Wird der allgemeine Aufwand der Arbeitszeit der Gruppenleitung 2 angerechnet?","nein",null,null,"Hinweis: nur möglich, wenn Positionen bei 6b mit \"ja\" eingetragen"]
[null,"Wird der allg. Aufwand der Arbeitszeit der Assistenz/Begleitperson 1 angerechnet?","nein",null,null,"Hinweis: nur möglich, wenn Positionen bei 6c mit \"ja\" eingetragen"]
[null,"Wird der allg. Aufwand der Arbeitszeit der Assistenz/Begleitperson 2 angerechnet?","nein",null,null,"Hinweis: nur möglich, wenn Positionen bei 6d mit \"ja\" eingetragen"]
[]
[]
[]
[]
[null,"V) Jahresarbeitszeit (ohne Ferienanteil) in Stunden "]
[]
[null,null,{"$f":"B31","v":"Gruppenleitung 1"},null,{"$f":"B41","v":"Gruppenleitung 2"},null,{"$f":"B49","v":"Assistenz / Begleitperson 1 "},null,{"$f":"B57","v":"Assistenz / Begleitperson 2 "}]
[null,"Arbeitszeit pro Person und Gruppe (Positionen 1 x 2 x 6)",{"$f":"C16*C17*D36","v":0},null,{"$f":"C16*C17*D46","v":0},null,{"$f":"C16*C17*D54","v":0},null,{"$f":"C16*C17*D62","v":0}]
[null,"Leitungsaufwand pro Gruppe und Jahr (nur Leitung) (Position 7)",{"$f":"IF(C76=\"ja\",C74/2,C74)","v":0},null,{"$f":"IF(C76=\"ja\",C74/2,0)","v":0},null,0,null,0]
[null,"allgemeiner Aufwand pro Spielgruppenjahr (pro Person) (Position 8)",{"$f":"IF(C90=\"ja\",C88,0)","v":0},null,{"$f":"IF(C91=\"ja\",C88,0)","v":0},null,{"$f":"IF(C92=\"ja\",C88,0)","v":0},null,{"$f":"IF(C93=\"ja\",C88,0)","v":0}]
[9,"Total Jahresarbeitszeit (ohne Ferienanteil) in Stunden",{"$f":"SUM(C101:C103)","v":0},null,{"$f":"SUM(E101:E103)","v":0},null,{"$f":"SUM(G101:G103)","v":0},null,{"$f":"SUM(I101:I103)","v":0}]
[]
[]
[null,"VI) Berechnung Ferienanteil"]
[]
[null,null,{"$f":"C100","v":"Gruppenleitung 1"},null,{"$f":"E100","v":"Gruppenleitung 2"},null,{"$f":"G100","v":"Assistenz / Begleitperson 1 "},null,"Assistenz / Begleitperson 2 "]
[null,"Beträgt der jährliche Ferienanteil 4 Wochen (gesetzliches Minimum) oder 5 Wochen?","4 Wochen",null,"5 Wochen",null,"4 Wochen",null,"4 Wochen"]
[null,"Ferienanteil in Prozent",{"$f":"IF(C110=\"4 Wochen\",8.33,10.64)","v":8.33},null,{"$f":"IF(E110=\"4 Wochen\",8.33,10.64)","v":10.64},null,{"$f":"IF(G110=\"4 Wochen\",8.33,10.64)","v":8.33},null,{"$f":"IF(I110=\"4 Wochen\",8.33,10.64)","v":8.33}]
[10,"Ferienanteil in Stunden",{"$f":"C104*C111/100","v":{"v":0,"d":"0.0"}},null,{"$f":"E104*E111/100","v":{"v":0,"d":"0.0"}},null,{"$f":"G104*G111/100","v":{"v":0,"d":"0.0"}},null,{"$f":"I104*I111/100","v":{"v":0,"d":"0.0"}}]
[]
[null,"VI) Berechnung Feiertagsentschädigung"]
[]
[null,null,{"$f":"C100","v":"Gruppenleitung 1"},null,{"$f":"E100","v":"Gruppenleitung 2"},null,{"$f":"G100","v":"Assistenz / Begleitperson 1 "},null,{"$f":"I100","v":"Assistenz / Begleitperson 2 "}]
[null,"Wird eine Feiertagsentschädigung ausbezahlt?","nein",null,"nein",null,"nein",null,"nein"]
[null,"Feiertagsanteil in Prozent ",{"$f":"IF(C117=\"ja\",3.5,0)","v":0},null,{"$f":"IF(E117=\"ja\",3.5,0)","v":0},null,{"$f":"IF(G117=\"ja\",3.5,0)","v":0},null,{"$f":"IF(I117=\"ja\",3.5,0)","v":0}]
[11,"Feiertagsanteil in Stunden",{"$f":"IF(C117=\"nein\",0,C104*C118/100)","v":{"v":0,"d":"0.0"}},null,{"$f":"IF(E117=\"nein\",0,E104*E118/100)","v":{"v":0,"d":"0.0"}},null,{"$f":"IF(G117=\"nein\",0,G104*G118/100)","v":{"v":0,"d":"0.0"}},null,{"$f":"IF(I117=\"nein\",0,I104*I118/100)","v":{"v":0,"d":"0.0"}}]
[]
[null,"VI) Berechnung Zuschlag 13. Monatslohn "]
[]
[null,null,{"$f":"C100","v":"Gruppenleitung 1"},null,{"$f":"E100","v":"Gruppenleitung 2"},null,{"$f":"G100","v":"Assistenz / Begleitperson 1 "},null,{"$f":"I100","v":"Assistenz / Begleitperson 2 "}]
[null,"Wird ein 13. Monatslohn ausbezahlt?","nein",null,"nein",null,"nein",null,"nein"]
[null,"Anteil 13. Monatslohn in Prozent ",{"$f":"IF(C124=\"ja\",8.33,0)","v":0},null,{"$f":"IF(E124=\"ja\",8.33,0)","v":0},null,{"$f":"IF(G124=\"ja\",8.33,0)","v":0},null,{"$f":"IF(I124=\"ja\",8.33,0)","v":0}]
[12,"Anteil 13. Monatslohn in Stunden",{"$f":"IF(C124=\"nein\",0,C104*C125/100)","v":{"v":0,"d":"0.0"}},null,{"$f":"IF(E124=\"nein\",0,E104*E125/100)","v":{"v":0,"d":"0.0"}},null,{"$f":"IF(G124=\"nein\",0,G104*G125/100)","v":{"v":0,"d":"0.0"}},null,{"$f":"IF(I124=\"nein\",0,I104*I125/100)","v":{"v":0,"d":"0.0"}}]
[]
[null,"Erfolgsrechnung"]
[]
[]
[null,"Ausgaben"]
[]
[null,"I) Personalkosten"]
[]
[null,"Lohnkosten","Jahresarbeitszeit (Position 9)","Anteil Ferien, Feiertag, 13. ML (Positionen 10-12)","Jahresarbeitszeit total (Positionen 9 + 10)","Stundenansatz ohne Ferienanteil","Bruttolohn"]
[null,{"$f":"C100","v":"Gruppenleitung 1"},{"$f":"C104","v":{"v":0,"d":"0.0"}},{"$f":"C112+C119+C126","v":{"v":0,"d":"0.0"}},{"$f":"C136+D136","v":{"v":0,"d":"0.0"}},{"v":0,"d":"0.00"},{"$f":"E136*F136","v":{"v":0,"d":"0.00"}},"Hinweis: Lohnempfehlungen siehe SSLV"]
[null,{"$f":"E100","v":"Gruppenleitung 2"},{"$f":"E104","v":{"v":0,"d":"0.0"}},{"$f":"E112+E119+E126","v":{"v":0,"d":"0.0"}},{"$f":"C137+D137","v":{"v":0,"d":"0.0"}},{"v":0,"d":"0.00"},{"$f":"E137*F137","v":{"v":0,"d":"0.00"}}]
[null,{"$f":"G100","v":"Assistenz / Begleitperson 1 "},{"$f":"G104","v":{"v":0,"d":"0.0"}},{"$f":"G112+G119+G126","v":{"v":0,"d":"0.0"}},{"$f":"C138+D138","v":{"v":0,"d":"0.0"}},{"v":0,"d":"0.00"},{"$f":"E138*F138","v":{"v":0,"d":"0.00"}}]
[null,{"$f":"I100","v":"Assistenz / Begleitperson 2 "},{"$f":"I104","v":{"v":0,"d":"0.0"}},{"$f":"I112+I119+I126","v":{"v":0,"d":"0.0"}},{"$f":"C139+D139","v":{"v":0,"d":"0.0"}},{"v":0,"d":"0.00"},{"$f":"E139*F139","v":{"v":0,"d":"0.00"}}]
[13,"Total Bruttolohn",{"$nulls":4},{"$f":"SUM(G136:G139)","v":{"v":0,"d":"0.00"}},"Hinweis: Vom Bruttolohn werden Arbeitnehmerbeiträge abgerechnet"]
[]
[]
[null,"Lohnnebenkosten, welche von Arbeitgeberin bezahlt werden",{"$nulls":3},"Anteil in Prozent",null,"Hinweis: Lohnnebenkosten, welche von der SG-Leiterin direkt bezahlt werden, werden nicht aufgeführt"]
[]
[null,"Arbeitgeberbeiträge Sozialversicherung (AHV, IV, EO, ALV)",{"$nulls":3},{"v":0.064,"d":"6.400%"},{"$f":"G140*F145","v":{"v":0,"d":"0.00"}}]
[null,"evtl. Verwaltungskosten Pensionskasse",{"$nulls":3},{"v":0.0025,"d":"0.250%"},{"$f":"G140*F146","v":{"v":0,"d":"0.00"}},"Hinweis: Wird eine Leistung nicht bezahlt, Zahl auf \"0\" setzen"]
[null,"evtl. Familienausgleichskasse (FAK)",{"$nulls":3},{"v":0.015,"d":"1.500%"},{"$f":"G140*F147","v":{"v":0,"d":"0.00"}}]
[null,"Berufsunfallversicherung (gemäss Versicherungsangebot der IG Spielgruppe)",{"$nulls":3},{"v":0.00196,"d":"0.196%"},{"$f":"G140*F148","v":{"v":0,"d":"0.00"}}]
[null,"Nichtberufsunfallversicherung (gemäss Versicherungsangebot der IG Spielgruppe)",{"$nulls":3},{"v":0.01112,"d":"1.112%"},{"$f":"G140*F149","v":{"v":0,"d":"0.00"}}]
[null,"…",{"$nulls":3},{"v":0,"d":"0.000%"},{"$f":"G140*F150","v":{"v":0,"d":"0.00"}}]
[null,"…",{"$nulls":3},{"v":0,"d":"0.000%"},{"$f":"G140*F151","v":{"v":0,"d":"0.00"}}]
[null,"…",{"$nulls":4},{"v":0,"d":"0.00"}]
[14,"Total Lohnnebenkosten, welche von Arbeitgeberin bezahlt werden",{"$nulls":4},{"$f":"SUM(G145:G152)","v":{"v":0,"d":"0.00"}}]
[]
[15,"Total Lohnkosten (Positionen 13 + 14)",{"$nulls":4},{"$f":"G140+G153","v":{"v":0,"d":"0.00"}}]
[]
[]
[null,"Weiterbildungskosten Personal",{"$nulls":4},{"v":0,"d":"0.00"}]
[null,"Mitgliederbeiträge (Beiträge SSLV + regionale FKS x Anzahl Mitarbeiterinnen)",{"$nulls":4},{"v":0,"d":"0.00"}]
[null,"Vergütung Vorstandsarbeit",{"$nulls":4},{"v":0,"d":"0.00"}]
[null,"…",{"$nulls":4},{"v":0,"d":"0.00"}]
[null,"….",{"$nulls":4},{"v":0,"d":"0.00"}]
[16,"Personalkosten diverses",{"$nulls":4},{"$f":"SUM(G158:G162)","v":{"v":0,"d":"0.00"}}]
[]
[17,"Personalkosten total (Positionen 15 + 16)",{"$nulls":4},{"$f":"G155+G163","v":{"v":0,"d":"0.00"}}]
[]
[]
[]
[null,"II) Betriebskosten  pro Jahr"]
[null,"Hinweis: Führt eine Trägerschaft mehrere Gruppen müssen gewisse Kosten (z.B. Versicherung, Buchhaltung) auf die einzelnen Gruppen aufgeteilt werden."]
[]
[null,"fixe Betriebskosten"]
[null,"Miete","Anmerkung:",{"$nulls":3},{"v":0,"d":"0.00"}]
[null,"Betriebshaftpflichtversicherung","Anmerkung:",{"$nulls":3},{"v":0,"d":"0.00"}]
[null,"Geschäftsversicherung","Anmerkung:",{"$nulls":3},{"v":0,"d":"0.00"}]
[null,"Buchhaltung, Administration","Anmerkung:",{"$nulls":3},{"v":0,"d":"0.00"}]
[null,"Spesen Kontoführung ","Anmerkung:",{"$nulls":3},{"v":0,"d":"0.00"}]
[null,"Geschäftsführung, Vereinsleitung, Sitzungsgelder ","Anmerkung:",{"$nulls":3},{"v":0,"d":"0.00"}]
[null,"Diverses Pauschal","Anmerkung:",{"$nulls":3},{"v":0,"d":"0.00"}]
[null,"…","Anmerkung:",{"$nulls":3},{"v":0,"d":"0.00"}]
[18,"fixe Betriebskosten",{"$nulls":4},{"$f":"SUM(G173:G180)","v":{"v":0,"d":"0.00"}}]
[]
[null,"variable Betriebskosten "]
[null,"Verpflegung Z'Nüni/Z'Vieri ","Anmerkung:",{"$nulls":3},{"v":0,"d":"0.00"}]
[null,"Verbrauchsmaterial","Anmerkung:",{"$nulls":3},{"v":0,"d":"0.00"}]
[null,"Spielmaterial, Kinderbücher","Anmerkung:",{"$nulls":3},{"v":0,"d":"0.00"}]
[null,"Ausflüge, Spielgruppenreise","Anmerkung:",{"$nulls":3},{"v":0,"d":"0.00"}]
[null,"Elternabende/-aktivitäten","Anmerkung:",{"$nulls":3},{"v":0,"d":"0.00"}]
[null,"Mobiliar (Neuanschaffungen, Unterhalt/Reparatur)","Anmerkung:",{"$nulls":3},{"v":0,"d":"0.00"}]
[null,"Porto","Anmerkung:",{"$nulls":3},{"v":0,"d":"0.00"}]
[null,"Telefon","Anmerkung:",{"$nulls":3},{"v":0,"d":"0.00"}]
[null,"Druckkosten","Anmerkung:",{"$nulls":3},{"v":0,"d":"0.00"}]
[null,"Öffentlichkeitsarbeit, Werbung","Anmerkung:",{"$nulls":3},{"v":0,"d":"0.00"}]
[null,"Geschenke","Anmerkung:",{"$nulls":3},{"v":0,"d":"0.00"}]
[null,"Fachliteratur, Abo Spielgruppenzeitung","Anmerkung:",{"$nulls":3},{"v":0,"d":"0.00"}]
[null,"Diverses Pauschal","Anmerkung:",{"$nulls":3},{"v":0,"d":"0.00"}]
[null,"…","Anmerkung:",{"$nulls":3},{"v":0,"d":"0.00"}]
[null,"…","Anmerkung:",{"$nulls":3},{"v":0,"d":"0.00"}]
[19,"variable Betriebskosten ",{"$nulls":4},{"$f":"SUM(G184:G198)","v":{"v":0,"d":"0.00"}}]
[]
[]
[null,"Rückstellungen (Krankheit, Anschaffungen etc.)","Anmerkung:",{"$nulls":3},{"v":0,"d":"0.00"}]
[null,"…","Anmerkung:",{"$nulls":3},{"v":0,"d":"0.00"}]
[20,"Rückstellungen ",{"$nulls":4},{"$f":"SUM(G202:G203)","v":{"v":0,"d":"0.00"}}]
[]
[21,"Betriebskosten total (Positionen 18 + 19 + 20)",{"$nulls":4},{"$f":"G181+G199+G204","v":{"v":0,"d":"0.00"}}]
[]
[]
[22,"III) Vollkosten (Postion 17 + 21)",{"$nulls":4},{"$f":"G165+G206","v":{"v":0,"d":"0.00"}}]
[]
[23,"IV) Vollkosten pro Platz (Positionen 22 : 3 : 4) ",{"$nulls":4},{"$f":"G209/C18/C19","v":{"$error":"#DIV/0!"}}]
[]
[]
[]
[null,"Einnahmen"]
[]
[null,"I) Elternbeiträge"]
[null,null,"Fr. pro Platz","Kinder"]
[null,"Elternbeitrag pro Platz (wird in Rechnung gestellt)",{"v":0,"d":"0.00"},{"$nulls":4},"Hinweis: Preis pro Platz entspricht den Vollkosten (Position 23). Der Preis kann reduziert werden, wenn Beiträge Dritte (Position 25) vorhanden sind."]
[null,"Elternbeiträge bei erwarteter Auslastung gemäss Position 4 ",null,{"$f":"C18*C19","v":{"v":0,"d":"0.0"}},null,null,{"$f":"C219*D220","v":{"v":0,"d":"0.00"}}]
[]
[24,"Total Elternbeiträge",{"$nulls":4},{"$f":"SUM(G220:G221)","v":{"v":0,"d":"0.00"}}]
[]
[null,"II) Beiträge Dritte"]
[null,"Spenden","Anmerkung:",{"$nulls":3},{"v":0,"d":"0.00"}]
[null,"Beitrag Gemeinde","Anmerkung:",{"$nulls":3},{"v":0,"d":"0.00"}]
[null,"Beitrag Kirche","Anmerkung:",{"$nulls":3},{"v":0,"d":"0.00"}]
[null,"Beitrag Kanton","Anmerkung:",{"$nulls":3},{"v":0,"d":"0.00"}]
[null,"…","Anmerkung:",{"$nulls":3},{"v":0,"d":"0.00"}]
[null,"…","Anmerkung:",{"$nulls":3},{"v":0,"d":"0.00"}]
[25,"Total Beiträge Dritte",{"$nulls":4},{"$f":"SUM(G225:G230)","v":{"v":0,"d":"0.00"}}]
[]
[26,"Total Einnahmen (Positionen 24 + 25)",{"$nulls":4},{"$f":"G222+G231","v":{"v":0,"d":"0.00"}}]
[]
[]
[null,"Erfolgsrechnung"]
[]
[null,"Total Einnahmen (Position 26)",{"$nulls":4},{"$f":"G233","v":{"v":0,"d":"0.00"}}]
[null,"Total Ausgaben (Position 22)",{"$nulls":4},{"$f":"G209","v":{"v":0,"d":"0.00"}}]
[27,"Übertrag in Reserve (falls Einnahmen höher als Ausgaben)","Anmerkung:",{"$nulls":3},{"v":0,"d":"0.00"}]
[28,"Übertrag aus Reserven (falls Ausgaben höher als Einnahmen)","Anmerkung:",{"$nulls":3},{"v":0,"d":"0.00"},"Hinweis: nur Betrag ohne \"-\" (Minus) eingeben"]
[29,"Saldo",{"$nulls":4},{"$f":"G238-G239-G240+G241","v":{"v":0,"d":"0.00"}}]
[]
[30,"Gewinn oder Verlust / bzw. Eigenleistung Spielgruppenleiterinnen",{"$nulls":4},{"$f":"G242","v":{"v":0,"d":"0.00"}}]
[]
[]
[]
[null,"weitere Anmerkungen: "]

{"sheet":"VK Gruppe 10","index":11,"n_rows":248,"n_cols":9,"rows_kept":248,"merged":[[5,2,5,3],[6,2,6,3],[7,2,7,3],[8,2,8,3],[9,2,9,3],[18,5,20,9],[22,5,23,9],[30,3,30,4],[31,5,32,9],[34,5,34,9],[37,5,39,9],[40,3,40,4],[44,5,44,9],[48,3,48,4],[52,5,52,9],[56,3,56,4],[60,5,60,9],[70,5,70,9],[71,5,71,9],[72,5,72,9],[80,5,80,9],[81,5,81,9],[82,5,82,9],[83,5,83,9],[84,5,84,9],[85,5,85,9],[86,5,86,9],[139,7,140,9],[142,7,143,9],[145,7,146,9],[172,3,172,4],[173,3,173,4],[174,3,174,4],[175,3,175,4],[176,3,176,4],[177,3,177,4],[178,3,178,4],[179,3,179,4],[183,3,183,4],[184,3,184,4],[185,3,185,4],[186,3,186,4],[187,3,187,4],[188,3,188,4],[189,3,189,4],[190,3,190,4],[191,3,191,4],[192,3,192,4],[193,3,193,4],[194,3,194,4],[195,3,195,4],[196,3,196,4],[197,3,197,4],[201,3,201,4],[202,3,202,4],[218,7,220,9],[224,3,224,4],[225,3,225,4],[226,3,226,4],[227,3,227,4],[228,3,228,4],[229,3,229,4],[239,3,239,4],[240,3,240,4],[247,1,247,9],[248,1,248,9],[249,1,249,9],[250,1,250,9],[251,1,251,9],[252,1,252,9],[253,1,253,9],[254,1,254,9],[255,1,255,9],[256,1,256,9],[257,1,257,9],[258,1,258,9],[259,1,259,9]]}
[]
[null,"Hellblaue Felder können eingefüllt werden"]
[null,"Orange Felder müssen eingefüllt werden"]
[]
[]
[null,"Spielgruppe"]
[null,"Name Gruppe"]
[null,"Durchführung pro Woche"]
[null,"Berechnungsperiode"]
[null,"Berechnungsdatum"]
[]
[null,"Berechnung Arbeitszeit pro Gruppe"]
[]
[null,"I) Basisdaten"]
["Position"]
[1,"Anzahl Spielgruppenwochen pro Berechnungsperiode:",0,"Wochen"]
[2,"Anzahl Durchführung pro Woche",0,"Anzahl pro Woche"]
[3,"Anzahl Plätze bei Vollbelegung",0,"Plätze"]
[4,"erwartete Jahresauslastung in Prozent",{"v":0,"d":"0%"},"Prozent",null,"Hinweis: Können alle Plätze voll verrechnet werden ist die Jahresauslastung 100%. Können nicht alle Plätze voll verrechnet werden (z.B. offene Plätze, späterer Einstieg) liegt die Jahresauslastung unter 100%."]
[]
[]
[]
["5a","Anzahl Spielgruppenstunden pro Durchführung",0,"Stunden",null,"Hinweis: Bei mehreren Durchführungen pro Woche durchschnittliche Dauer eintragen, falls Länge der Durchführung unterschiedlich"]
["5b","Vorbereitung pro Durchführung (inkl. Administration, Einkauf, Raum vorbereiten)",0,"Stunden"]
["5c","Nachbereitung pro Durchführung (inkl. Aufräumen, Tür-und-Angel-Elterngespräche)",0,"Stunden"]
[]
[]
[null,"II) Arbeitszeit pro Person und Durchführung"]
[]
[{"$nulls":3},"Anzahl Stunden"]
[null,"Gruppenleitung 1","Name"]
[null,".Spielgruppenstunden (Position 5a)","ja",{"$f":"IF(C32=\"ja\",C23,0)","v":0},null,"Hinweis: \"ja\" bedeutet, dass der Posten als bezahlte Arbeitszeit angerechnet wird, \"nein\" bedeutet, dass der Posten nicht angerechnet wird."]
[null,".Vorbereitung (Position 5b)","ja",{"$f":"IF(C33=\"ja\",C24,0)","v":0}]
[null,".Nachbereitung (Position 5c)","ja",{"$f":"IF(C34=\"ja\",C25,0)","v":0}]
[null,".Optional: andere Stundenzahl als Positionen 5b / 5c für Vor- und Nachbereitung",null,null,"Anmerkung:"]
["6a","Total Gruppenleitung 1",null,{"$f":"SUM(D32:D35)","v":0}]
[]
[null,"Wird eine zweite Gruppenleitung eingesetzt?","nein",null,null,"Hinweis: In der Regel wird eine SG von einer ausgebildeten Spielgruppenleiterin geleitet. Unterstützt wird sie in manchen SG von einer Assistenz / Begleitperson. In wenigen SG werden zwei ausgebildete Spielgruppenleiterinnen oder gar drei Personen eingesetzt."]
[]
[]
[null,"Gruppenleitung 2","Name"]
[null,".Spielgruppenstunden (Position 5a)","nein",{"$f":"IF(C42=\"ja\",C23,0)","v":0}]
[null,".Vorbereitung (Position 5b)","nein",{"$f":"IF(C43=\"ja\",C24,0)","v":0}]
[null,".Nachbereitung (Position 5c)","nein",{"$f":"IF(C44=\"ja\",C25,0)","v":0}]
[null,".Optional: andere Stundenzahl als Positionen 5b / 5c für Vor- und Nachbereitung",null,null,"Anmerkung:"]
["6b","Total Gruppenleitung 2",null,{"$f":"SUM(D42:D45)","v":0}]
[]
[null,"Wird eine Begleitperson in der Gruppe eingesetzt?","ja"]
[null,"Assistenz / Begleitperson 1 ","Name"]
[null,".Spielgruppenstunden (Position 5a)","ja",{"$f":"IF(C50=\"ja\",C23,0)","v":0}]
[null,".Vorbereitung (Position 5b)","nein",{"$f":"IF(C51=\"ja\",C24,0)","v":0}]
[null,".Nachbereitung (Position 5c)","nein",{"$f":"IF(C52=\"ja\",C25,0)","v":0}]
[null,".Optional: andere Stundenzahl als Positionen 5b / 5c für Vor- und Nachbereitung",null,0,"Anmerkung:"]
["6c","Total Assistenz / Begleitperson 1 ",null,{"$f":"SUM(D50:D53)","v":0}]
[]
[null,"Wird eine zweite Begleitperson in der Gruppe eingesetzt?","nein"]
[null,"Assistenz / Begleitperson 2 ","Name"]
[null,".Spielgruppenstunden (Position 5a)","nein",{"$f":"IF(C58=\"ja\",C23,0)","v":0}]
[null,".Vorbereitung (Position 5b)","nein",{"$f":"IF(C59=\"ja\",C24,0)","v":0}]
[null,".Nachbereitung (Position 5c)","nein",{"$f":"IF(C60=\"ja\",C25,0)","v":0}]
[null,".Optional: andere Stundenzahl als Positionen 5b / 5c für Vor- und Nachbereitung",null,null,"Anmerkung:"]
["6d","Total Assistenz / Begleitperson 2 ",null,{"$f":"SUM(D58:D61)","v":0}]
[]
[]
[null,"III) Leitungsaufwand pro Gruppe und Jahr (nur Gruppenleitung)"]
[]
[null,"Jahresplanung/Erstellen Elterninformationen/Einteilungen",0,"Stunden"]
[null,"Planungssitzungen mit Gemeinde/Schule/Fachstellen (Anzahl Gespräche x 1.5 Stunden)",{"$f":"F68*1.5","v":0},"Stunden","Anzahl Gespräche",0]
[null,"Kontakte Schule/Fachpersonen (Anzahl Gespräche x 0.5 Stunden)",{"$f":"F69*0.5","v":0},"Stunden","Anzahl Gespräche",0]
[null,"spezifische Elternkontakte (Anzahl Gespräche x 0.5 Stunden)",{"$f":"F70*0.5","v":0},"Stunden","Anzahl Gespräche",0]
[null,"…",0,"Stunden","Anmerkungen:"]
[null,"…",0,"Stunden","Anmerkungen:"]
[null,"…",0,"Stunden","Anmerkungen:"]
[7,"Total Leitungsaufwand pro Spielgruppe in Stunden (nur Gruppenleitung)",{"$f":"SUM(C67:C73)","v":0}]
[]
[null,"Wird der Leitungsaufwand zwischen zwei Gruppenleitungen aufgeteilt?","nein",null,null,"Hinweis: nur möglich, wenn Positionen bei 6b mit \"ja\" eingetragen"]
[]
[]
[null,"IV) allgemeiner Aufwand pro Spielgruppenjahr (pro Person)"]
[]
[null,"Elternvernetzungsanlässe inkl. Vor- und Nachbereitung (ca. 5 Std. pro Anlass)",0,"Stunden","Anmerkung:"]
[null,"Teamsitzungen / Mitarbeiterinnengespräch",0,"Stunden","Anmerkung:"]
[null,"individuelle Weiterbildung ",0,"Stunden","Anmerkung:"]
[null,"Rauminstandhaltung/Materialreinigung/-reparatur/-einkauf",0,"Stunden","Anmerkung:"]
[null,"…",0,"Stunden","Anmerkung:"]
[null,"…",0,"Stunden","Anmerkung:"]
[null,"…",0,"Stunden","Anmerkung:"]
[8,"Total allgemeiner Aufwand pro Spielgruppenjahr in Stunden (pro Person)",{"$f":"SUM(C81:C87)","v":0}]
[]
[null,"Wird der allgemeine Aufwand der Arbeitszeit der Gruppenleitung 1 angerechnet?","ja"]
[null,"Wird der allgemeine Aufwand der Arbeitszeit der Gruppenleitung 2 angerechnet?","nein",null,null,"Hinweis: nur möglich, wenn Positionen bei 6b mit \"ja\" eingetragen"]
[null,"Wird der allg. Aufwand der Arbeitszeit der Assistenz/Begleitperson 1 angerechnet?","nein",null,null,"Hinweis: nur möglich, wenn Positionen bei 6c mit \"ja\" eingetragen"]
[null,"Wird der allg. Aufwand der Arbeitszeit der Assistenz/Begleitperson 2 angerechnet?","nein",null,null,"Hinweis: nur möglich, wenn Positionen bei 6d mit \"ja\" eingetragen"]
[]
[]
[]
[]
[null,"V) Jahresarbeitszeit (ohne Ferienanteil) in Stunden "]
[]
[null,null,{"$f":"B31","v":"Gruppenleitung 1"},null,{"$f":"B41","v":"Gruppenleitung 2"},null,{"$f":"B49","v":"Assistenz / Begleitperson 1 "},null,{"$f":"B57","v":"Assistenz / Begleitperson 2 "}]
[null,"Arbeitszeit pro Person und Gruppe (Positionen 1 x 2 x 6)",{"$f":"C16*C17*D36","v":0},null,{"$f":"C16*C17*D46","v":0},null,{"$f":"C16*C17*D54","v":0},null,{"$f":"C16*C17*D62","v":0}]
[null,"Leitungsaufwand pro Gruppe und Jahr (nur Leitung) (Position 7)",{"$f":"IF(C76=\"ja\",C74/2,C74)","v":0},null,{"$f":"IF(C76=\"ja\",C74/2,0)","v":0},null,0,null,0]
[null,"allgemeiner Aufwand pro Spielgruppenjahr (pro Person) (Position 8)",{"$f":"IF(C90=\"ja\",C88,0)","v":0},null,{"$f":"IF(C91=\"ja\",C88,0)","v":0},null,{"$f":"IF(C92=\"ja\",C88,0)","v":0},null,{"$f":"IF(C93=\"ja\",C88,0)","v":0}]
[9,"Total Jahresarbeitszeit (ohne Ferienanteil) in Stunden",{"$f":"SUM(C101:C103)","v":0},null,{"$f":"SUM(E101:E103)","v":0},null,{"$f":"SUM(G101:G103)","v":0},null,{"$f":"SUM(I101:I103)","v":0}]
[]
[]
[null,"VI) Berechnung Ferienanteil"]
[]
[null,null,{"$f":"C100","v":"Gruppenleitung 1"},null,{"$f":"E100","v":"Gruppenleitung 2"},null,{"$f":"G100","v":"Assistenz / Begleitperson 1 "},null,"Assistenz / Begleitperson 2 "]
[null,"Beträgt der jährliche Ferienanteil 4 Wochen (gesetzliches Minimum) oder 5 Wochen?","4 Wochen",null,"5 Wochen",null,"4 Wochen",null,"4 Wochen"]
[null,"Ferienanteil in Prozent",{"$f":"IF(C110=\"4 Wochen\",8.33,10.64)","v":8.33},null,{"$f":"IF(E110=\"4 Wochen\",8.33,10.64)","v":10.64},null,{"$f":"IF(G110=\"4 Wochen\",8.33,10.64)","v":8.33},null,{"$f":"IF(I110=\"4 Wochen\",8.33,10.64)","v":8.33}]
[10,"Ferienanteil in Stunden",{"$f":"C104*C111/100","v":{"v":0,"d":"0.0"}},null,{"$f":"E104*E111/100","v":{"v":0,"d":"0.0"}},null,{"$f":"G104*G111/100","v":{"v":0,"d":"0.0"}},null,{"$f":"I104*I111/100","v":{"v":0,"d":"0.0"}}]
[]
[null,"VI) Berechnung Feiertagsentschädigung"]
[]
[null,null,{"$f":"C100","v":"Gruppenleitung 1"},null,{"$f":"E100","v":"Gruppenleitung 2"},null,{"$f":"G100","v":"Assistenz / Begleitperson 1 "},null,{"$f":"I100","v":"Assistenz / Begleitperson 2 "}]
[null,"Wird eine Feiertagsentschädigung ausbezahlt?","nein",null,"nein",null,"nein",null,"nein"]
[null,"Feiertagsanteil in Prozent ",{"$f":"IF(C117=\"ja\",3.5,0)","v":0},null,{"$f":"IF(E117=\"ja\",3.5,0)","v":0},null,{"$f":"IF(G117=\"ja\",3.5,0)","v":0},null,{"$f":"IF(I117=\"ja\",3.5,0)","v":0}]
[11,"Feiertagsanteil in Stunden",{"$f":"IF(C117=\"nein\",0,C104*C118/100)","v":{"v":0,"d":"0.0"}},null,{"$f":"IF(E117=\"nein\",0,E104*E118/100)","v":{"v":0,"d":"0.0"}},null,{"$f":"IF(G117=\"nein\",0,G104*G118/100)","v":{"v":0,"d":"0.0"}},null,{"$f":"IF(I117=\"nein\",0,I104*I118/100)","v":{"v":0,"d":"0.0"}}]
[]
[null,"VI) Berechnung Zuschlag 13. Monatslohn "]
[]
[null,null,{"$f":"C100","v":"Gruppenleitung 1"},null,{"$f":"E100","v":"Gruppenleitung 2"},null,{"$f":"G100","v":"Assistenz / Begleitperson 1 "},null,{"$f":"I100","v":"Assistenz / Begleitperson 2 "}]
[null,"Wird ein 13. Monatslohn ausbezahlt?","nein",null,"nein",null,"nein",null,"nein"]
[null,"Anteil 13. Monatslohn in Prozent ",{"$f":"IF(C124=\"ja\",8.33,0)","v":0},null,{"$f":"IF(E124=\"ja\",8.33,0)","v":0},null,{"$f":"IF(G124=\"ja\",8.33,0)","v":0},null,{"$f":"IF(I124=\"ja\",8.33,0)","v":0}]
[12,"Anteil 13. Monatslohn in Stunden",{"$f":"IF(C124=\"nein\",0,C104*C125/100)","v":{"v":0,"d":"0.0"}},null,{"$f":"IF(E124=\"nein\",0,E104*E125/100)","v":{"v":0,"d":"0.0"}},null,{"$f":"IF(G124=\"nein\",0,G104*G125/100)","v":{"v":0,"d":"0.0"}},null,{"$f":"IF(I124=\"nein\",0,I104*I125/100)","v":{"v":0,"d":"0.0"}}]
[]
[null,"Erfolgsrechnung"]
[]
[]
[null,"Ausgaben"]
[]
[null,"I) Personalkosten"]
[]
[null,"Lohnkosten","Jahresarbeitszeit (Position 9)","Anteil Ferien, Feiertag, 13. ML (Positionen 10-12)","Jahresarbeitszeit total (Positionen 9 + 10)","Stundenansatz ohne Ferienanteil","Bruttolohn"]
[null,{"$f":"C100","v":"Gruppenleitung 1"},{"$f":"C104","v":{"v":0,"d":"0.0"}},{"$f":"C112+C119+C126","v":{"v":0,"d":"0.0"}},{"$f":"C136+D136","v":{"v":0,"d":"0.0"}},{"v":0,"d":"0.00"},{"$f":"E136*F136","v":{"v":0,"d":"0.00"}},"Hinweis: Lohnempfehlungen siehe SSLV"]
[null,{"$f":"E100","v":"Gruppenleitung 2"},{"$f":"E104","v":{"v":0,"d":"0.0"}},{"$f":"E112+E119+E126","v":{"v":0,"d":"0.0"}},{"$f":"C137+D137","v":{"v":0,"d":"0.0"}},{"v":0,"d":"0.00"},{"$f":"E137*F137","v":{"v":0,"d":"0.00"}}]
[null,{"$f":"G100","v":"Assistenz / Begleitperson 1 "},{"$f":"G104","v":{"v":0,"d":"0.0"}},{"$f":"G112+G119+G126","v":{"v":0,"d":"0.0"}},{"$f":"C138+D138","v":{"v":0,"d":"0.0"}},{"v":0,"d":"0.00"},{"$f":"E138*F138","v":{"v":0,"d":"0.00"}}]
[null,{"$f":"I100","v":"Assistenz / Begleitperson 2 "},{"$f":"I104","v":{"v":0,"d":"0.0"}},{"$f":"I112+I119+I126","v":{"v":0,"d":"0.0"}},{"$f":"C139+D139","v":{"v":0,"d":"0.0"}},{"v":0,"d":"0.00"},{"$f":"E139*F139","v":{"v":0,"d":"0.00"}}]
[13,"Total Bruttolohn",{"$nulls":4},{"$f":"SUM(G136:G139)","v":{"v":0,"d":"0.00"}},"Hinweis: Vom Bruttolohn werden Arbeitnehmerbeiträge abgerechnet"]
[]
[]
[null,"Lohnnebenkosten, welche von Arbeitgeberin bezahlt werden",{"$nulls":3},"Anteil in Prozent",null,"Hinweis: Lohnnebenkosten, welche von der SG-Leiterin direkt bezahlt werden, werden nicht aufgeführt"]
[]
[null,"Arbeitgeberbeiträge Sozialversicherung (AHV, IV, EO, ALV)",{"$nulls":3},{"v":0.064,"d":"6.400%"},{"$f":"G140*F145","v":{"v":0,"d":"0.00"}}]
[null,"evtl. Verwaltungskosten Pensionskasse",{"$nulls":3},{"v":0.0025,"d":"0.250%"},{"$f":"G140*F146","v":{"v":0,"d":"0.00"}},"Hinweis: Wird eine Leistung nicht bezahlt, Zahl auf \"0\" setzen"]
[null,"evtl. Familienausgleichskasse (FAK)",{"$nulls":3},{"v":0.015,"d":"1.500%"},{"$f":"G140*F147","v":{"v":0,"d":"0.00"}}]
[null,"Berufsunfallversicherung (gemäss Versicherungsangebot der IG Spielgruppe)",{"$nulls":3},{"v":0.00196,"d":"0.196%"},{"$f":"G140*F148","v":{"v":0,"d":"0.00"}}]
[null,"Nichtberufsunfallversicherung (gemäss Versicherungsangebot der IG Spielgruppe)",{"$nulls":3},{"v":0.01112,"d":"1.112%"},{"$f":"G140*F149","v":{"v":0,"d":"0.00"}}]
[null,"…",{"$nulls":3},{"v":0,"d":"0.000%"},{"$f":"G140*F150","v":{"v":0,"d":"0.00"}}]
[null,"…",{"$nulls":3},{"v":0,"d":"0.000%"},{"$f":"G140*F151","v":{"v":0,"d":"0.00"}}]
[null,"…",{"$nulls":4},{"v":0,"d":"0.00"}]
[14,"Total Lohnnebenkosten, welche von Arbeitgeberin bezahlt werden",{"$nulls":4},{"$f":"SUM(G145:G152)","v":{"v":0,"d":"0.00"}}]
[]
[15,"Total Lohnkosten (Positionen 13 + 14)",{"$nulls":4},{"$f":"G140+G153","v":{"v":0,"d":"0.00"}}]
[]
[]
[null,"Weiterbildungskosten Personal",{"$nulls":4},{"v":0,"d":"0.00"}]
[null,"Mitgliederbeiträge (Beiträge SSLV + regionale FKS x Anzahl Mitarbeiterinnen)",{"$nulls":4},{"v":0,"d":"0.00"}]
[null,"Vergütung Vorstandsarbeit",{"$nulls":4},{"v":0,"d":"0.00"}]
[null,"…",{"$nulls":4},{"v":0,"d":"0.00"}]
[null,"….",{"$nulls":4},{"v":0,"d":"0.00"}]
[16,"Personalkosten diverses",{"$nulls":4},{"$f":"SUM(G158:G162)","v":{"v":0,"d":"0.00"}}]
[]
[17,"Personalkosten total (Positionen 15 + 16)",{"$nulls":4},{"$f":"G155+G163","v":{"v":0,"d":"0.00"}}]
[]
[]
[]
[null,"II) Betriebskosten  pro Jahr"]
[null,"Hinweis: Führt eine Trägerschaft mehrere Gruppen müssen gewisse Kosten (z.B. Versicherung, Buchhaltung) auf die einzelnen Gruppen aufgeteilt werden."]
[]
[null,"fixe Betriebskosten"]
[null,"Miete","Anmerkung:",{"$nulls":3},{"v":0,"d":"0.00"}]
[null,"Betriebshaftpflichtversicherung","Anmerkung:",{"$nulls":3},{"v":0,"d":"0.00"}]
[null,"Geschäftsversicherung","Anmerkung:",{"$nulls":3},{"v":0,"d":"0.00"}]
[null,"Buchhaltung, Administration","Anmerkung:",{"$nulls":3},{"v":0,"d":"0.00"}]
[null,"Spesen Kontoführung ","Anmerkung:",{"$nulls":3},{"v":0,"d":"0.00"}]
[null,"Geschäftsführung, Vereinsleitung, Sitzungsgelder ","Anmerkung:",{"$nulls":3},{"v":0,"d":"0.00"}]
[null,"Diverses Pauschal","Anmerkung:",{"$nulls":3},{"v":0,"d":"0.00"}]
[null,"…","Anmerkung:",{"$nulls":3},{"v":0,"d":"0.00"}]
[18,"fixe Betriebskosten",{"$nulls":4},{"$f":"SUM(G173:G180)","v":{"v":0,"d":"0.00"}}]
[]
[null,"variable Betriebskosten "]
[null,"Verpflegung Z'Nüni/Z'Vieri ","Anmerkung:",{"$nulls":3},{"v":0,"d":"0.00"}]
[null,"Verbrauchsmaterial","Anmerkung:",{"$nulls":3},{"v":0,"d":"0.00"}]
[null,"Spielmaterial, Kinderbücher","Anmerkung:",{"$nulls":3},{"v":0,"d":"0.00"}]
[null,"Ausflüge, Spielgruppenreise","Anmerkung:",{"$nulls":3},{"v":0,"d":"0.00"}]
[null,"Elternabende/-aktivitäten","Anmerkung:",{"$nulls":3},{"v":0,"d":"0.00"}]
[null,"Mobiliar (Neuanschaffungen, Unterhalt/Reparatur)","Anmerkung:",{"$nulls":3},{"v":0,"d":"0.00"}]
[null,"Porto","Anmerkung:",{"$nulls":3},{"v":0,"d":"0.00"}]
[null,"Telefon","Anmerkung:",{"$nulls":3},{"v":0,"d":"0.00"}]
[null,"Druckkosten","Anmerkung:",{"$nulls":3},{"v":0,"d":"0.00"}]
[null,"Öffentlichkeitsarbeit, Werbung","Anmerkung:",{"$nulls":3},{"v":0,"d":"0.00"}]
[null,"Geschenke","Anmerkung:",{"$nulls":3},{"v":0,"d":"0.00"}]
[null,"Fachliteratur, Abo Spielgruppenzeitung","Anmerkung:",{"$nulls":3},{"v":0,"d":"0.00"}]
[null,"Diverses Pauschal","Anmerkung:",{"$nulls":3},{"v":0,"d":"0.00"}]
[null,"…","Anmerkung:",{"$nulls":3},{"v":0,"d":"0.00"}]
[null,"…","Anmerkung:",{"$nulls":3},{"v":0,"d":"0.00"}]
[19,"variable Betriebskosten ",{"$nulls":4},{"$f":"SUM(G184:G198)","v":{"v":0,"d":"0.00"}}]
[]
[]
[null,"Rückstellungen (Krankheit, Anschaffungen etc.)","Anmerkung:",{"$nulls":3},{"v":0,"d":"0.00"}]
[null,"…","Anmerkung:",{"$nulls":3},{"v":0,"d":"0.00"}]
[20,"Rückstellungen ",{"$nulls":4},{"$f":"SUM(G202:G203)","v":{"v":0,"d":"0.00"}}]
[]
[21,"Betriebskosten total (Positionen 18 + 19 + 20)",{"$nulls":4},{"$f":"G181+G199+G204","v":{"v":0,"d":"0.00"}}]
[]
[]
[22,"III) Vollkosten (Postion 17 + 21)",{"$nulls":4},{"$f":"G165+G206","v":{"v":0,"d":"0.00"}}]
[]
[23,"IV) Vollkosten pro Platz (Positionen 22 : 3 : 4) ",{"$nulls":4},{"$f":"G209/C18/C19","v":{"$error":"#DIV/0!"}}]
[]
[]
[]
[null,"Einnahmen"]
[]
[null,"I) Elternbeiträge"]
[null,null,"Fr. pro Platz","Kinder"]
[null,"Elternbeitrag pro Platz (wird in Rechnung gestellt)",{"v":0,"d":"0.00"},{"$nulls":4},"Hinweis: Preis pro Platz entspricht den Vollkosten (Position 23). Der Preis kann reduziert werden, wenn Beiträge Dritte (Position 25) vorhanden sind."]
[null,"Elternbeiträge bei erwarteter Auslastung gemäss Position 4 ",null,{"$f":"C18*C19","v":{"v":0,"d":"0.0"}},null,null,{"$f":"C219*D220","v":{"v":0,"d":"0.00"}}]
[]
[24,"Total Elternbeiträge",{"$nulls":4},{"$f":"SUM(G220:G221)","v":{"v":0,"d":"0.00"}}]
[]
[null,"II) Beiträge Dritte"]
[null,"Spenden","Anmerkung:",{"$nulls":3},{"v":0,"d":"0.00"}]
[null,"Beitrag Gemeinde","Anmerkung:",{"$nulls":3},{"v":0,"d":"0.00"}]
[null,"Beitrag Kirche","Anmerkung:",{"$nulls":3},{"v":0,"d":"0.00"}]
[null,"Beitrag Kanton","Anmerkung:",{"$nulls":3},{"v":0,"d":"0.00"}]
[null,"…","Anmerkung:",{"$nulls":3},{"v":0,"d":"0.00"}]
[null,"…","Anmerkung:",{"$nulls":3},{"v":0,"d":"0.00"}]
[25,"Total Beiträge Dritte",{"$nulls":4},{"$f":"SUM(G225:G230)","v":{"v":0,"d":"0.00"}}]
[]
[26,"Total Einnahmen (Positionen 24 + 25)",{"$nulls":4},{"$f":"G222+G231","v":{"v":0,"d":"0.00"}}]
[]
[]
[null,"Erfolgsrechnung"]
[]
[null,"Total Einnahmen (Position 26)",{"$nulls":4},{"$f":"G233","v":{"v":0,"d":"0.00"}}]
[null,"Total Ausgaben (Position 22)",{"$nulls":4},{"$f":"G209","v":{"v":0,"d":"0.00"}}]
[27,"Übertrag in Reserve (falls Einnahmen höher als Ausgaben)","Anmerkung:",{"$nulls":3},{"v":0,"d":"0.00"}]
[28,"Übertrag aus Reserven (falls Ausgaben höher als Einnahmen)","Anmerkung:",{"$nulls":3},{"v":0,"d":"0.00"},"Hinweis: nur Betrag ohne \"-\" (Minus) eingeben"]
[29,"Saldo",{"$nulls":4},{"$f":"G238-G239-G240+G241","v":{"v":0,"d":"0.00"}}]
[]
[30,"Gewinn oder Verlust / bzw. Eigenleistung Spielgruppenleiterinnen",{"$nulls":4},{"$f":"G242","v":{"v":0,"d":"0.00"}}]
[]
[]
[]
[null,"weitere Anmerkungen: "]

{"sheet":"VK Gruppe 11","index":12,"n_rows":248,"n_cols":9,"rows_kept":248,"merged":[[5,2,5,3],[6,2,6,3],[7,2,7,3],[8,2,8,3],[9,2,9,3],[18,5,20,9],[22,5,23,9],[30,3,30,4],[31,5,32,9],[34,5,34,9],[37,5,39,9],[40,3,40,4],[44,5,44,9],[48,3,48,4],[52,5,52,9],[56,3,56,4],[60,5,60,9],[70,5,70,9],[71,5,71,9],[72,5,72,9],[80,5,80,9],[81,5,81,9],[82,5,82,9],[83,5,83,9],[84,5,84,9],[85,5,85,9],[86,5,86,9],[139,7,140,9],[142,7,143,9],[145,7,146,9],[172,3,172,4],[173,3,173,4],[174,3,174,4],[175,3,175,4],[176,3,176,4],[177,3,177,4],[178,3,178,4],[179,3,179,4],[183,3,183,4],[184,3,184,4],[185,3,185,4],[186,3,186,4],[187,3,187,4],[188,3,188,4],[189,3,189,4],[190,3,190,4],[191,3,191,4],[192,3,192,4],[193,3,193,4],[194,3,194,4],[195,3,195,4],[196,3,196,4],[197,3,197,4],[201,3,201,4],[202,3,202,4],[218,7,220,9],[224,3,224,4],[225,3,225,4],[226,3,226,4],[227,3,227,4],[228,3,228,4],[229,3,229,4],[239,3,239,4],[240,3,240,4],[247,1,247,9],[248,1,248,9],[249,1,249,9],[250,1,250,9],[251,1,251,9],[252,1,252,9],[253,1,253,9],[254,1,254,9],[255,1,255,9],[256,1,256,9],[257,1,257,9],[258,1,258,9],[259,1,259,9]]}
[]
[null,"Hellblaue Felder können eingefüllt werden"]
[null,"Orange Felder müssen eingefüllt werden"]
[]
[]
[null,"Spielgruppe"]
[null,"Name Gruppe"]
[null,"Durchführung pro Woche"]
[null,"Berechnungsperiode"]
[null,"Berechnungsdatum"]
[]
[null,"Berechnung Arbeitszeit pro Gruppe"]
[]
[null,"I) Basisdaten"]
["Position"]
[1,"Anzahl Spielgruppenwochen pro Berechnungsperiode:",0,"Wochen"]
[2,"Anzahl Durchführung pro Woche",0,"Anzahl pro Woche"]
[3,"Anzahl Plätze bei Vollbelegung",0,"Plätze"]
[4,"erwartete Jahresauslastung in Prozent",{"v":0,"d":"0%"},"Prozent",null,"Hinweis: Können alle Plätze voll verrechnet werden ist die Jahresauslastung 100%. Können nicht alle Plätze voll verrechnet werden (z.B. offene Plätze, späterer Einstieg) liegt die Jahresauslastung unter 100%."]
[]
[]
[]
["5a","Anzahl Spielgruppenstunden pro Durchführung",0,"Stunden",null,"Hinweis: Bei mehreren Durchführungen pro Woche durchschnittliche Dauer eintragen, falls Länge der Durchführung unterschiedlich"]
["5b","Vorbereitung pro Durchführung (inkl. Administration, Einkauf, Raum vorbereiten)",0,"Stunden"]
["5c","Nachbereitung pro Durchführung (inkl. Aufräumen, Tür-und-Angel-Elterngespräche)",0,"Stunden"]
[]
[]
[null,"II) Arbeitszeit pro Person und Durchführung"]
[]
[{"$nulls":3},"Anzahl Stunden"]
[null,"Gruppenleitung 1","Name"]
[null,".Spielgruppenstunden (Position 5a)","ja",{"$f":"IF(C32=\"ja\",C23,0)","v":0},null,"Hinweis: \"ja\" bedeutet, dass der Posten als bezahlte Arbeitszeit angerechnet wird, \"nein\" bedeutet, dass der Posten nicht angerechnet wird."]
[null,".Vorbereitung (Position 5b)","ja",{"$f":"IF(C33=\"ja\",C24,0)","v":0}]
[null,".Nachbereitung (Position 5c)","ja",{"$f":"IF(C34=\"ja\",C25,0)","v":0}]
[null,".Optional: andere Stundenzahl als Positionen 5b / 5c für Vor- und Nachbereitung",null,null,"Anmerkung:"]
["6a","Total Gruppenleitung 1",null,{"$f":"SUM(D32:D35)","v":0}]
[]
[null,"Wird eine zweite Gruppenleitung eingesetzt?","nein",null,null,"Hinweis: In der Regel wird eine SG von einer ausgebildeten Spielgruppenleiterin geleitet. Unterstützt wird sie in manchen SG von einer Assistenz / Begleitperson. In wenigen SG werden zwei ausgebildete Spielgruppenleiterinnen oder gar drei Personen eingesetzt."]
[]
[]
[null,"Gruppenleitung 2","Name"]
[null,".Spielgruppenstunden (Position 5a)","nein",{"$f":"IF(C42=\"ja\",C23,0)","v":0}]
[null,".Vorbereitung (Position 5b)","nein",{"$f":"IF(C43=\"ja\",C24,0)","v":0}]
[null,".Nachbereitung (Position 5c)","nein",{"$f":"IF(C44=\"ja\",C25,0)","v":0}]
[null,".Optional: andere Stundenzahl als Positionen 5b / 5c für Vor- und Nachbereitung",null,null,"Anmerkung:"]
["6b","Total Gruppenleitung 2",null,{"$f":"SUM(D42:D45)","v":0}]
[]
[null,"Wird eine Begleitperson in der Gruppe eingesetzt?","ja"]
[null,"Assistenz / Begleitperson 1 ","Name"]
[null,".Spielgruppenstunden (Position 5a)","ja",{"$f":"IF(C50=\"ja\",C23,0)","v":0}]
[null,".Vorbereitung (Position 5b)","nein",{"$f":"IF(C51=\"ja\",C24,0)","v":0}]
[null,".Nachbereitung (Position 5c)","nein",{"$f":"IF(C52=\"ja\",C25,0)","v":0}]
[null,".Optional: andere Stundenzahl als Positionen 5b / 5c für Vor- und Nachbereitung",null,0,"Anmerkung:"]
["6c","Total Assistenz / Begleitperson 1 ",null,{"$f":"SUM(D50:D53)","v":0}]
[]
[null,"Wird eine zweite Begleitperson in der Gruppe eingesetzt?","nein"]
[null,"Assistenz / Begleitperson 2 ","Name"]
[null,".Spielgruppenstunden (Position 5a)","nein",{"$f":"IF(C58=\"ja\",C23,0)","v":0}]
[null,".Vorbereitung (Position 5b)","nein",{"$f":"IF(C59=\"ja\",C24,0)","v":0}]
[null,".Nachbereitung (Position 5c)","nein",{"$f":"IF(C60=\"ja\",C25,0)","v":0}]
[null,".Optional: andere Stundenzahl als Positionen 5b / 5c für Vor- und Nachbereitung",null,null,"Anmerkung:"]
["6d","Total Assistenz / Begleitperson 2 ",null,{"$f":"SUM(D58:D61)","v":0}]
[]
[]
[null,"III) Leitungsaufwand pro Gruppe und Jahr (nur Gruppenleitung)"]
[]
[null,"Jahresplanung/Erstellen Elterninformationen/Einteilungen",0,"Stunden"]
[null,"Planungssitzungen mit Gemeinde/Schule/Fachstellen (Anzahl Gespräche x 1.5 Stunden)",{"$f":"F68*1.5","v":0},"Stunden","Anzahl Gespräche",0]
[null,"Kontakte Schule/Fachpersonen (Anzahl Gespräche x 0.5 Stunden)",{"$f":"F69*0.5","v":0},"Stunden","Anzahl Gespräche",0]
[null,"spezifische Elternkontakte (Anzahl Gespräche x 0.5 Stunden)",{"$f":"F70*0.5","v":0},"Stunden","Anzahl Gespräche",0]
[null,"…",0,"Stunden","Anmerkungen:"]
[null,"…",0,"Stunden","Anmerkungen:"]
[null,"…",0,"Stunden","Anmerkungen:"]
[7,"Total Leitungsaufwand pro Spielgruppe in Stunden (nur Gruppenleitung)",{"$f":"SUM(C67:C73)","v":0}]
[]
[null,"Wird der Leitungsaufwand zwischen zwei Gruppenleitungen aufgeteilt?","nein",null,null,"Hinweis: nur möglich, wenn Positionen bei 6b mit \"ja\" eingetragen"]
[]
[]
[null,"IV) allgemeiner Aufwand pro Spielgruppenjahr (pro Person)"]
[]
[null,"Elternvernetzungsanlässe inkl. Vor- und Nachbereitung (ca. 5 Std. pro Anlass)",0,"Stunden","Anmerkung:"]
[null,"Teamsitzungen / Mitarbeiterinnengespräch",0,"Stunden","Anmerkung:"]
[null,"individuelle Weiterbildung ",0,"Stunden","Anmerkung:"]
[null,"Rauminstandhaltung/Materialreinigung/-reparatur/-einkauf",0,"Stunden","Anmerkung:"]
[null,"…",0,"Stunden","Anmerkung:"]
[null,"…",0,"Stunden","Anmerkung:"]
[null,"…",0,"Stunden","Anmerkung:"]
[8,"Total allgemeiner Aufwand pro Spielgruppenjahr in Stunden (pro Person)",{"$f":"SUM(C81:C87)","v":0}]
[]
[null,"Wird der allgemeine Aufwand der Arbeitszeit der Gruppenleitung 1 angerechnet?","ja"]
[null,"Wird der allgemeine Aufwand der Arbeitszeit der Gruppenleitung 2 angerechnet?","nein",null,null,"Hinweis: nur möglich, wenn Positionen bei 6b mit \"ja\" eingetragen"]
[null,"Wird der allg. Aufwand der Arbeitszeit der Assistenz/Begleitperson 1 angerechnet?","nein",null,null,"Hinweis: nur möglich, wenn Positionen bei 6c mit \"ja\" eingetragen"]
[null,"Wird der allg. Aufwand der Arbeitszeit der Assistenz/Begleitperson 2 angerechnet?","nein",null,null,"Hinweis: nur möglich, wenn Positionen bei 6d mit \"ja\" eingetragen"]
[]
[]
[]
[]
[null,"V) Jahresarbeitszeit (ohne Ferienanteil) in Stunden "]
[]
[null,null,{"$f":"B31","v":"Gruppenleitung 1"},null,{"$f":"B41","v":"Gruppenleitung 2"},null,{"$f":"B49","v":"Assistenz / Begleitperson 1 "},null,{"$f":"B57","v":"Assistenz / Begleitperson 2 "}]
[null,"Arbeitszeit pro Person und Gruppe (Positionen 1 x 2 x 6)",{"$f":"C16*C17*D36","v":0},null,{"$f":"C16*C17*D46","v":0},null,{"$f":"C16*C17*D54","v":0},null,{"$f":"C16*C17*D62","v":0}]
[null,"Leitungsaufwand pro Gruppe und Jahr (nur Leitung) (Position 7)",{"$f":"IF(C76=\"ja\",C74/2,C74)","v":0},null,{"$f":"IF(C76=\"ja\",C74/2,0)","v":0},null,0,null,0]
[null,"allgemeiner Aufwand pro Spielgruppenjahr (pro Person) (Position 8)",{"$f":"IF(C90=\"ja\",C88,0)","v":0},null,{"$f":"IF(C91=\"ja\",C88,0)","v":0},null,{"$f":"IF(C92=\"ja\",C88,0)","v":0},null,{"$f":"IF(C93=\"ja\",C88,0)","v":0}]
[9,"Total Jahresarbeitszeit (ohne Ferienanteil) in Stunden",{"$f":"SUM(C101:C103)","v":0},null,{"$f":"SUM(E101:E103)","v":0},null,{"$f":"SUM(G101:G103)","v":0},null,{"$f":"SUM(I101:I103)","v":0}]
[]
[]
[null,"VI) Berechnung Ferienanteil"]
[]
[null,null,{"$f":"C100","v":"Gruppenleitung 1"},null,{"$f":"E100","v":"Gruppenleitung 2"},null,{"$f":"G100","v":"Assistenz / Begleitperson 1 "},null,"Assistenz / Begleitperson 2 "]
[null,"Beträgt der jährliche Ferienanteil 4 Wochen (gesetzliches Minimum) oder 5 Wochen?","4 Wochen",null,"5 Wochen",null,"4 Wochen",null,"4 Wochen"]
[null,"Ferienanteil in Prozent",{"$f":"IF(C110=\"4 Wochen\",8.33,10.64)","v":8.33},null,{"$f":"IF(E110=\"4 Wochen\",8.33,10.64)","v":10.64},null,{"$f":"IF(G110=\"4 Wochen\",8.33,10.64)","v":8.33},null,{"$f":"IF(I110=\"4 Wochen\",8.33,10.64)","v":8.33}]
[10,"Ferienanteil in Stunden",{"$f":"C104*C111/100","v":{"v":0,"d":"0.0"}},null,{"$f":"E104*E111/100","v":{"v":0,"d":"0.0"}},null,{"$f":"G104*G111/100","v":{"v":0,"d":"0.0"}},null,{"$f":"I104*I111/100","v":{"v":0,"d":"0.0"}}]
[]
[null,"VI) Berechnung Feiertagsentschädigung"]
[]
[null,null,{"$f":"C100","v":"Gruppenleitung 1"},null,{"$f":"E100","v":"Gruppenleitung 2"},null,{"$f":"G100","v":"Assistenz / Begleitperson 1 "},null,{"$f":"I100","v":"Assistenz / Begleitperson 2 "}]
[null,"Wird eine Feiertagsentschädigung ausbezahlt?","nein",null,"nein",null,"nein",null,"nein"]
[null,"Feiertagsanteil in Prozent ",{"$f":"IF(C117=\"ja\",3.5,0)","v":0},null,{"$f":"IF(E117=\"ja\",3.5,0)","v":0},null,{"$f":"IF(G117=\"ja\",3.5,0)","v":0},null,{"$f":"IF(I117=\"ja\",3.5,0)","v":0}]
[11,"Feiertagsanteil in Stunden",{"$f":"IF(C117=\"nein\",0,C104*C118/100)","v":{"v":0,"d":"0.0"}},null,{"$f":"IF(E117=\"nein\",0,E104*E118/100)","v":{"v":0,"d":"0.0"}},null,{"$f":"IF(G117=\"nein\",0,G104*G118/100)","v":{"v":0,"d":"0.0"}},null,{"$f":"IF(I117=\"nein\",0,I104*I118/100)","v":{"v":0,"d":"0.0"}}]
[]
[null,"VI) Berechnung Zuschlag 13. Monatslohn "]
[]
[null,null,{"$f":"C100","v":"Gruppenleitung 1"},null,{"$f":"E100","v":"Gruppenleitung 2"},null,{"$f":"G100","v":"Assistenz / Begleitperson 1 "},null,{"$f":"I100","v":"Assistenz / Begleitperson 2 "}]
[null,"Wird ein 13. Monatslohn ausbezahlt?","nein",null,"nein",null,"nein",null,"nein"]
[null,"Anteil 13. Monatslohn in Prozent ",{"$f":"IF(C124=\"ja\",8.33,0)","v":0},null,{"$f":"IF(E124=\"ja\",8.33,0)","v":0},null,{"$f":"IF(G124=\"ja\",8.33,0)","v":0},null,{"$f":"IF(I124=\"ja\",8.33,0)","v":0}]
[12,"Anteil 13. Monatslohn in Stunden",{"$f":"IF(C124=\"nein\",0,C104*C125/100)","v":{"v":0,"d":"0.0"}},null,{"$f":"IF(E124=\"nein\",0,E104*E125/100)","v":{"v":0,"d":"0.0"}},null,{"$f":"IF(G124=\"nein\",0,G104*G125/100)","v":{"v":0,"d":"0.0"}},null,{"$f":"IF(I124=\"nein\",0,I104*I125/100)","v":{"v":0,"d":"0.0"}}]
[]
[null,"Erfolgsrechnung"]
[]
[]
[null,"Ausgaben"]
[]
[null,"I) Personalkosten"]
[]
[null,"Lohnkosten","Jahresarbeitszeit (Position 9)","Anteil Ferien, Feiertag, 13. ML (Positionen 10-12)","Jahresarbeitszeit total (Positionen 9 + 10)","Stundenansatz ohne Ferienanteil","Bruttolohn"]
[null,{"$f":"C100","v":"Gruppenleitung 1"},{"$f":"C104","v":{"v":0,"d":"0.0"}},{"$f":"C112+C119+C126","v":{"v":0,"d":"0.0"}},{"$f":"C136+D136","v":{"v":0,"d":"0.0"}},{"v":0,"d":"0.00"},{"$f":"E136*F136","v":{"v":0,"d":"0.00"}},"Hinweis: Lohnempfehlungen siehe SSLV"]
[null,{"$f":"E100","v":"Gruppenleitung 2"},{"$f":"E104","v":{"v":0,"d":"0.0"}},{"$f":"E112+E119+E126","v":{"v":0,"d":"0.0"}},{"$f":"C137+D137","v":{"v":0,"d":"0.0"}},{"v":0,"d":"0.00"},{"$f":"E137*F137","v":{"v":0,"d":"0.00"}}]
[null,{"$f":"G100","v":"Assistenz / Begleitperson 1 "},{"$f":"G104","v":{"v":0,"d":"0.0"}},{"$f":"G112+G119+G126","v":{"v":0,"d":"0.0"}},{"$f":"C138+D138","v":{"v":0,"d":"0.0"}},{"v":0,"d":"0.00"},{"$f":"E138*F138","v":{"v":0,"d":"0.00"}}]
[null,{"$f":"I100","v":"Assistenz / Begleitperson 2 "},{"$f":"I104","v":{"v":0,"d":"0.0"}},{"$f":"I112+I119+I126","v":{"v":0,"d":"0.0"}},{"$f":"C139+D139","v":{"v":0,"d":"0.0"}},{"v":0,"d":"0.00"},{"$f":"E139*F139","v":{"v":0,"d":"0.00"}}]
[13,"Total Bruttolohn",{"$nulls":4},{"$f":"SUM(G136:G139)","v":{"v":0,"d":"0.00"}},"Hinweis: Vom Bruttolohn werden Arbeitnehmerbeiträge abgerechnet"]
[]
[]
[null,"Lohnnebenkosten, welche von Arbeitgeberin bezahlt werden",{"$nulls":3},"Anteil in Prozent",null,"Hinweis: Lohnnebenkosten, welche von der SG-Leiterin direkt bezahlt werden, werden nicht aufgeführt"]
[]
[null,"Arbeitgeberbeiträge Sozialversicherung (AHV, IV, EO, ALV)",{"$nulls":3},{"v":0.064,"d":"6.400%"},{"$f":"G140*F145","v":{"v":0,"d":"0.00"}}]
[null,"evtl. Verwaltungskosten Pensionskasse",{"$nulls":3},{"v":0.0025,"d":"0.250%"},{"$f":"G140*F146","v":{"v":0,"d":"0.00"}},"Hinweis: Wird eine Leistung nicht bezahlt, Zahl auf \"0\" setzen"]
[null,"evtl. Familienausgleichskasse (FAK)",{"$nulls":3},{"v":0.015,"d":"1.500%"},{"$f":"G140*F147","v":{"v":0,"d":"0.00"}}]
[null,"Berufsunfallversicherung (gemäss Versicherungsangebot der IG Spielgruppe)",{"$nulls":3},{"v":0.00196,"d":"0.196%"},{"$f":"G140*F148","v":{"v":0,"d":"0.00"}}]
[null,"Nichtberufsunfallversicherung (gemäss Versicherungsangebot der IG Spielgruppe)",{"$nulls":3},{"v":0.01112,"d":"1.112%"},{"$f":"G140*F149","v":{"v":0,"d":"0.00"}}]
[null,"…",{"$nulls":3},{"v":0,"d":"0.000%"},{"$f":"G140*F150","v":{"v":0,"d":"0.00"}}]
[null,"…",{"$nulls":3},{"v":0,"d":"0.000%"},{"$f":"G140*F151","v":{"v":0,"d":"0.00"}}]
[null,"…",{"$nulls":4},{"v":0,"d":"0.00"}]
[14,"Total Lohnnebenkosten, welche von Arbeitgeberin bezahlt werden",{"$nulls":4},{"$f":"SUM(G145:G152)","v":{"v":0,"d":"0.00"}}]
[]
[15,"Total Lohnkosten (Positionen 13 + 14)",{"$nulls":4},{"$f":"G140+G153","v":{"v":0,"d":"0.00"}}]
[]
[]
[null,"Weiterbildungskosten Personal",{"$nulls":4},{"v":0,"d":"0.00"}]
[null,"Mitgliederbeiträge (Beiträge SSLV + regionale FKS x Anzahl Mitarbeiterinnen)",{"$nulls":4},{"v":0,"d":"0.00"}]
[null,"Vergütung Vorstandsarbeit",{"$nulls":4},{"v":0,"d":"0.00"}]
[null,"…",{"$nulls":4},{"v":0,"d":"0.00"}]
[null,"….",{"$nulls":4},{"v":0,"d":"0.00"}]
[16,"Personalkosten diverses",{"$nulls":4},{"$f":"SUM(G158:G162)","v":{"v":0,"d":"0.00"}}]
[]
[17,"Personalkosten total (Positionen 15 + 16)",{"$nulls":4},{"$f":"G155+G163","v":{"v":0,"d":"0.00"}}]
[]
[]
[]
[null,"II) Betriebskosten  pro Jahr"]
[null,"Hinweis: Führt eine Trägerschaft mehrere Gruppen müssen gewisse Kosten (z.B. Versicherung, Buchhaltung) auf die einzelnen Gruppen aufgeteilt werden."]
[]
[null,"fixe Betriebskosten"]
[null,"Miete","Anmerkung:",{"$nulls":3},{"v":0,"d":"0.00"}]
[null,"Betriebshaftpflichtversicherung","Anmerkung:",{"$nulls":3},{"v":0,"d":"0.00"}]
[null,"Geschäftsversicherung","Anmerkung:",{"$nulls":3},{"v":0,"d":"0.00"}]
[null,"Buchhaltung, Administration","Anmerkung:",{"$nulls":3},{"v":0,"d":"0.00"}]
[null,"Spesen Kontoführung ","Anmerkung:",{"$nulls":3},{"v":0,"d":"0.00"}]
[null,"Geschäftsführung, Vereinsleitung, Sitzungsgelder ","Anmerkung:",{"$nulls":3},{"v":0,"d":"0.00"}]
[null,"Diverses Pauschal","Anmerkung:",{"$nulls":3},{"v":0,"d":"0.00"}]
[null,"…","Anmerkung:",{"$nulls":3},{"v":0,"d":"0.00"}]
[18,"fixe Betriebskosten",{"$nulls":4},{"$f":"SUM(G173:G180)","v":{"v":0,"d":"0.00"}}]
[]
[null,"variable Betriebskosten "]
[null,"Verpflegung Z'Nüni/Z'Vieri ","Anmerkung:",{"$nulls":3},{"v":0,"d":"0.00"}]
[null,"Verbrauchsmaterial","Anmerkung:",{"$nulls":3},{"v":0,"d":"0.00"}]
[null,"Spielmaterial, Kinderbücher","Anmerkung:",{"$nulls":3},{"v":0,"d":"0.00"}]
[null,"Ausflüge, Spielgruppenreise","Anmerkung:",{"$nulls":3},{"v":0,"d":"0.00"}]
[null,"Elternabende/-aktivitäten","Anmerkung:",{"$nulls":3},{"v":0,"d":"0.00"}]
[null,"Mobiliar (Neuanschaffungen, Unterhalt/Reparatur)","Anmerkung:",{"$nulls":3},{"v":0,"d":"0.00"}]
[null,"Porto","Anmerkung:",{"$nulls":3},{"v":0,"d":"0.00"}]
[null,"Telefon","Anmerkung:",{"$nulls":3},{"v":0,"d":"0.00"}]
[null,"Druckkosten","Anmerkung:",{"$nulls":3},{"v":0,"d":"0.00"}]
[null,"Öffentlichkeitsarbeit, Werbung","Anmerkung:",{"$nulls":3},{"v":0,"d":"0.00"}]
[null,"Geschenke","Anmerkung:",{"$nulls":3},{"v":0,"d":"0.00"}]
[null,"Fachliteratur, Abo Spielgruppenzeitung","Anmerkung:",{"$nulls":3},{"v":0,"d":"0.00"}]
[null,"Diverses Pauschal","Anmerkung:",{"$nulls":3},{"v":0,"d":"0.00"}]
[null,"…","Anmerkung:",{"$nulls":3},{"v":0,"d":"0.00"}]
[null,"…","Anmerkung:",{"$nulls":3},{"v":0,"d":"0.00"}]
[19,"variable Betriebskosten ",{"$nulls":4},{"$f":"SUM(G184:G198)","v":{"v":0,"d":"0.00"}}]
[]
[]
[null,"Rückstellungen (Krankheit, Anschaffungen etc.)","Anmerkung:",{"$nulls":3},{"v":0,"d":"0.00"}]
[null,"…","Anmerkung:",{"$nulls":3},{"v":0,"d":"0.00"}]
[20,"Rückstellungen ",{"$nulls":4},{"$f":"SUM(G202:G203)","v":{"v":0,"d":"0.00"}}]
[]
[21,"Betriebskosten total (Positionen 18 + 19 + 20)",{"$nulls":4},{"$f":"G181+G199+G204","v":{"v":0,"d":"0.00"}}]
[]
[]
[22,"III) Vollkosten (Postion 17 + 21)",{"$nulls":4},{"$f":"G165+G206","v":{"v":0,"d":"0.00"}}]
[]
[23,"IV) Vollkosten pro Platz (Positionen 22 : 3 : 4) ",{"$nulls":4},{"$f":"G209/C18/C19","v":{"$error":"#DIV/0!"}}]
[]
[]
[]
[null,"Einnahmen"]
[]
[null,"I) Elternbeiträge"]
[null,null,"Fr. pro Platz","Kinder"]
[null,"Elternbeitrag pro Platz (wird in Rechnung gestellt)",{"v":0,"d":"0.00"},{"$nulls":4},"Hinweis: Preis pro Platz entspricht den Vollkosten (Position 23). Der Preis kann reduziert werden, wenn Beiträge Dritte (Position 25) vorhanden sind."]
[null,"Elternbeiträge bei erwarteter Auslastung gemäss Position 4 ",null,{"$f":"C18*C19","v":{"v":0,"d":"0.0"}},null,null,{"$f":"C219*D220","v":{"v":0,"d":"0.00"}}]
[]
[24,"Total Elternbeiträge",{"$nulls":4},{"$f":"SUM(G220:G221)","v":{"v":0,"d":"0.00"}}]
[]
[null,"II) Beiträge Dritte"]
[null,"Spenden","Anmerkung:",{"$nulls":3},{"v":0,"d":"0.00"}]
[null,"Beitrag Gemeinde","Anmerkung:",{"$nulls":3},{"v":0,"d":"0.00"}]
[null,"Beitrag Kirche","Anmerkung:",{"$nulls":3},{"v":0,"d":"0.00"}]
[null,"Beitrag Kanton","Anmerkung:",{"$nulls":3},{"v":0,"d":"0.00"}]
[null,"…","Anmerkung:",{"$nulls":3},{"v":0,"d":"0.00"}]
[null,"…","Anmerkung:",{"$nulls":3},{"v":0,"d":"0.00"}]
[25,"Total Beiträge Dritte",{"$nulls":4},{"$f":"SUM(G225:G230)","v":{"v":0,"d":"0.00"}}]
[]
[26,"Total Einnahmen (Positionen 24 + 25)",{"$nulls":4},{"$f":"G222+G231","v":{"v":0,"d":"0.00"}}]
[]
[]
[null,"Erfolgsrechnung"]
[]
[null,"Total Einnahmen (Position 26)",{"$nulls":4},{"$f":"G233","v":{"v":0,"d":"0.00"}}]
[null,"Total Ausgaben (Position 22)",{"$nulls":4},{"$f":"G209","v":{"v":0,"d":"0.00"}}]
[27,"Übertrag in Reserve (falls Einnahmen höher als Ausgaben)","Anmerkung:",{"$nulls":3},{"v":0,"d":"0.00"}]
[28,"Übertrag aus Reserven (falls Ausgaben höher als Einnahmen)","Anmerkung:",{"$nulls":3},{"v":0,"d":"0.00"},"Hinweis: nur Betrag ohne \"-\" (Minus) eingeben"]
[29,"Saldo",{"$nulls":4},{"$f":"G238-G239-G240+G241","v":{"v":0,"d":"0.00"}}]
[]
[30,"Gewinn oder Verlust / bzw. Eigenleistung Spielgruppenleiterinnen",{"$nulls":4},{"$f":"G242","v":{"v":0,"d":"0.00"}}]
[]
[]
[]
[null,"weitere Anmerkungen: "]

{"sheet":"VK Gruppe 12","index":13,"n_rows":248,"n_cols":9,"rows_kept":248,"merged":[[5,2,5,3],[6,2,6,3],[7,2,7,3],[8,2,8,3],[9,2,9,3],[18,5,20,9],[22,5,23,9],[30,3,30,4],[31,5,32,9],[34,5,34,9],[37,5,39,9],[40,3,40,4],[44,5,44,9],[48,3,48,4],[52,5,52,9],[56,3,56,4],[60,5,60,9],[70,5,70,9],[71,5,71,9],[72,5,72,9],[80,5,80,9],[81,5,81,9],[82,5,82,9],[83,5,83,9],[84,5,84,9],[85,5,85,9],[86,5,86,9],[139,7,140,9],[142,7,143,9],[145,7,146,9],[172,3,172,4],[173,3,173,4],[174,3,174,4],[175,3,175,4],[176,3,176,4],[177,3,177,4],[178,3,178,4],[179,3,179,4],[183,3,183,4],[184,3,184,4],[185,3,185,4],[186,3,186,4],[187,3,187,4],[188,3,188,4],[189,3,189,4],[190,3,190,4],[191,3,191,4],[192,3,192,4],[193,3,193,4],[194,3,194,4],[195,3,195,4],[196,3,196,4],[197,3,197,4],[201,3,201,4],[202,3,202,4],[218,7,220,9],[224,3,224,4],[225,3,225,4],[226,3,226,4],[227,3,227,4],[228,3,228,4],[229,3,229,4],[239,3,239,4],[240,3,240,4],[247,1,247,9],[248,1,248,9],[249,1,249,9],[250,1,250,9],[251,1,251,9],[252,1,252,9],[253,1,253,9],[254,1,254,9],[255,1,255,9],[256,1,256,9],[257,1,257,9],[258,1,258,9],[259,1,259,9]]}
[]
[null,"Hellblaue Felder können eingefüllt werden"]
[null,"Orange Felder müssen eingefüllt werden"]
[]
[]
[null,"Spielgruppe"]
[null,"Name Gruppe"]
[null,"Durchführung pro Woche"]
[null,"Berechnungsperiode"]
[null,"Berechnungsdatum"]
[]
[null,"Berechnung Arbeitszeit pro Gruppe"]
[]
[null,"I) Basisdaten"]
["Position"]
[1,"Anzahl Spielgruppenwochen pro Berechnungsperiode:",0,"Wochen"]
[2,"Anzahl Durchführung pro Woche",0,"Anzahl pro Woche"]
[3,"Anzahl Plätze bei Vollbelegung",0,"Plätze"]
[4,"erwartete Jahresauslastung in Prozent",{"v":0,"d":"0%"},"Prozent",null,"Hinweis: Können alle Plätze voll verrechnet werden ist die Jahresauslastung 100%. Können nicht alle Plätze voll verrechnet werden (z.B. offene Plätze, späterer Einstieg) liegt die Jahresauslastung unter 100%."]
[]
[]
[]
["5a","Anzahl Spielgruppenstunden pro Durchführung",0,"Stunden",null,"Hinweis: Bei mehreren Durchführungen pro Woche durchschnittliche Dauer eintragen, falls Länge der Durchführung unterschiedlich"]
["5b","Vorbereitung pro Durchführung (inkl. Administration, Einkauf, Raum vorbereiten)",0,"Stunden"]
["5c","Nachbereitung pro Durchführung (inkl. Aufräumen, Tür-und-Angel-Elterngespräche)",0,"Stunden"]
[]
[]
[null,"II) Arbeitszeit pro Person und Durchführung"]
[]
[{"$nulls":3},"Anzahl Stunden"]
[null,"Gruppenleitung 1","Name"]
[null,".Spielgruppenstunden (Position 5a)","ja",{"$f":"IF(C32=\"ja\",C23,0)","v":0},null,"Hinweis: \"ja\" bedeutet, dass der Posten als bezahlte Arbeitszeit angerechnet wird, \"nein\" bedeutet, dass der Posten nicht angerechnet wird."]
[null,".Vorbereitung (Position 5b)","ja",{"$f":"IF(C33=\"ja\",C24,0)","v":0}]
[null,".Nachbereitung (Position 5c)","ja",{"$f":"IF(C34=\"ja\",C25,0)","v":0}]
[null,".Optional: andere Stundenzahl als Positionen 5b / 5c für Vor- und Nachbereitung",null,null,"Anmerkung:"]
["6a","Total Gruppenleitung 1",null,{"$f":"SUM(D32:D35)","v":0}]
[]
[null,"Wird eine zweite Gruppenleitung eingesetzt?","nein",null,null,"Hinweis: In der Regel wird eine SG von einer ausgebildeten Spielgruppenleiterin geleitet. Unterstützt wird sie in manchen SG von einer Assistenz / Begleitperson. In wenigen SG werden zwei ausgebildete Spielgruppenleiterinnen oder gar drei Personen eingesetzt."]
[]
[]
[null,"Gruppenleitung 2","Name"]
[null,".Spielgruppenstunden (Position 5a)","nein",{"$f":"IF(C42=\"ja\",C23,0)","v":0}]
[null,".Vorbereitung (Position 5b)","nein",{"$f":"IF(C43=\"ja\",C24,0)","v":0}]
[null,".Nachbereitung (Position 5c)","nein",{"$f":"IF(C44=\"ja\",C25,0)","v":0}]
[null,".Optional: andere Stundenzahl als Positionen 5b / 5c für Vor- und Nachbereitung",null,null,"Anmerkung:"]
["6b","Total Gruppenleitung 2",null,{"$f":"SUM(D42:D45)","v":0}]
[]
[null,"Wird eine Begleitperson in der Gruppe eingesetzt?","ja"]
[null,"Assistenz / Begleitperson 1 ","Name"]
[null,".Spielgruppenstunden (Position 5a)","ja",{"$f":"IF(C50=\"ja\",C23,0)","v":0}]
[null,".Vorbereitung (Position 5b)","nein",{"$f":"IF(C51=\"ja\",C24,0)","v":0}]
[null,".Nachbereitung (Position 5c)","nein",{"$f":"IF(C52=\"ja\",C25,0)","v":0}]
[null,".Optional: andere Stundenzahl als Positionen 5b / 5c für Vor- und Nachbereitung",null,0,"Anmerkung:"]
["6c","Total Assistenz / Begleitperson 1 ",null,{"$f":"SUM(D50:D53)","v":0}]
[]
[null,"Wird eine zweite Begleitperson in der Gruppe eingesetzt?","nein"]
[null,"Assistenz / Begleitperson 2 ","Name"]
[null,".Spielgruppenstunden (Position 5a)","nein",{"$f":"IF(C58=\"ja\",C23,0)","v":0}]
[null,".Vorbereitung (Position 5b)","nein",{"$f":"IF(C59=\"ja\",C24,0)","v":0}]
[null,".Nachbereitung (Position 5c)","nein",{"$f":"IF(C60=\"ja\",C25,0)","v":0}]
[null,".Optional: andere Stundenzahl als Positionen 5b / 5c für Vor- und Nachbereitung",null,null,"Anmerkung:"]
["6d","Total Assistenz / Begleitperson 2 ",null,{"$f":"SUM(D58:D61)","v":0}]
[]
[]
[null,"III) Leitungsaufwand pro Gruppe und Jahr (nur Gruppenleitung)"]
[]
[null,"Jahresplanung/Erstellen Elterninformationen/Einteilungen",0,"Stunden"]
[null,"Planungssitzungen mit Gemeinde/Schule/Fachstellen (Anzahl Gespräche x 1.5 Stunden)",{"$f":"F68*1.5","v":0},"Stunden","Anzahl Gespräche",0]
[null,"Kontakte Schule/Fachpersonen (Anzahl Gespräche x 0.5 Stunden)",{"$f":"F69*0.5","v":0},"Stunden","Anzahl Gespräche",0]
[null,"spezifische Elternkontakte (Anzahl Gespräche x 0.5 Stunden)",{"$f":"F70*0.5","v":0},"Stunden","Anzahl Gespräche",0]
[null,"…",0,"Stunden","Anmerkungen:"]
[null,"…",0,"Stunden","Anmerkungen:"]
[null,"…",0,"Stunden","Anmerkungen:"]
[7,"Total Leitungsaufwand pro Spielgruppe in Stunden (nur Gruppenleitung)",{"$f":"SUM(C67:C73)","v":0}]
[]
[null,"Wird der Leitungsaufwand zwischen zwei Gruppenleitungen aufgeteilt?","nein",null,null,"Hinweis: nur möglich, wenn Positionen bei 6b mit \"ja\" eingetragen"]
[]
[]
[null,"IV) allgemeiner Aufwand pro Spielgruppenjahr (pro Person)"]
[]
[null,"Elternvernetzungsanlässe inkl. Vor- und Nachbereitung (ca. 5 Std. pro Anlass)",0,"Stunden","Anmerkung:"]
[null,"Teamsitzungen / Mitarbeiterinnengespräch",0,"Stunden","Anmerkung:"]
[null,"individuelle Weiterbildung ",0,"Stunden","Anmerkung:"]
[null,"Rauminstandhaltung/Materialreinigung/-reparatur/-einkauf",0,"Stunden","Anmerkung:"]
[null,"…",0,"Stunden","Anmerkung:"]
[null,"…",0,"Stunden","Anmerkung:"]
[null,"…",0,"Stunden","Anmerkung:"]
[8,"Total allgemeiner Aufwand pro Spielgruppenjahr in Stunden (pro Person)",{"$f":"SUM(C81:C87)","v":0}]
[]
[null,"Wird der allgemeine Aufwand der Arbeitszeit der Gruppenleitung 1 angerechnet?","ja"]
[null,"Wird der allgemeine Aufwand der Arbeitszeit der Gruppenleitung 2 angerechnet?","nein",null,null,"Hinweis: nur möglich, wenn Positionen bei 6b mit \"ja\" eingetragen"]
[null,"Wird der allg. Aufwand der Arbeitszeit der Assistenz/Begleitperson 1 angerechnet?","nein",null,null,"Hinweis: nur möglich, wenn Positionen bei 6c mit \"ja\" eingetragen"]
[null,"Wird der allg. Aufwand der Arbeitszeit der Assistenz/Begleitperson 2 angerechnet?","nein",null,null,"Hinweis: nur möglich, wenn Positionen bei 6d mit \"ja\" eingetragen"]
[]
[]
[]
[]
[null,"V) Jahresarbeitszeit (ohne Ferienanteil) in Stunden "]
[]
[null,null,{"$f":"B31","v":"Gruppenleitung 1"},null,{"$f":"B41","v":"Gruppenleitung 2"},null,{"$f":"B49","v":"Assistenz / Begleitperson 1 "},null,{"$f":"B57","v":"Assistenz / Begleitperson 2 "}]
[null,"Arbeitszeit pro Person und Gruppe (Positionen 1 x 2 x 6)",{"$f":"C16*C17*D36","v":0},null,{"$f":"C16*C17*D46","v":0},null,{"$f":"C16*C17*D54","v":0},null,{"$f":"C16*C17*D62","v":0}]
[null,"Leitungsaufwand pro Gruppe und Jahr (nur Leitung) (Position 7)",{"$f":"IF(C76=\"ja\",C74/2,C74)","v":0},null,{"$f":"IF(C76=\"ja\",C74/2,0)","v":0},null,0,null,0]
[null,"allgemeiner Aufwand pro Spielgruppenjahr (pro Person) (Position 8)",{"$f":"IF(C90=\"ja\",C88,0)","v":0},null,{"$f":"IF(C91=\"ja\",C88,0)","v":0},null,{"$f":"IF(C92=\"ja\",C88,0)","v":0},null,{"$f":"IF(C93=\"ja\",C88,0)","v":0}]
[9,"Total Jahresarbeitszeit (ohne Ferienanteil) in Stunden",{"$f":"SUM(C101:C103)","v":0},null,{"$f":"SUM(E101:E103)","v":0},null,{"$f":"SUM(G101:G103)","v":0},null,{"$f":"SUM(I101:I103)","v":0}]
[]
[]
[null,"VI) Berechnung Ferienanteil"]
[]
[null,null,{"$f":"C100","v":"Gruppenleitung 1"},null,{"$f":"E100","v":"Gruppenleitung 2"},null,{"$f":"G100","v":"Assistenz / Begleitperson 1 "},null,"Assistenz / Begleitperson 2 "]
[null,"Beträgt der jährliche Ferienanteil 4 Wochen (gesetzliches Minimum) oder 5 Wochen?","4 Wochen",null,"5 Wochen",null,"4 Wochen",null,"4 Wochen"]
[null,"Ferienanteil in Prozent",{"$f":"IF(C110=\"4 Wochen\",8.33,10.64)","v":8.33},null,{"$f":"IF(E110=\"4 Wochen\",8.33,10.64)","v":10.64},null,{"$f":"IF(G110=\"4 Wochen\",8.33,10.64)","v":8.33},null,{"$f":"IF(I110=\"4 Wochen\",8.33,10.64)","v":8.33}]
[10,"Ferienanteil in Stunden",{"$f":"C104*C111/100","v":{"v":0,"d":"0.0"}},null,{"$f":"E104*E111/100","v":{"v":0,"d":"0.0"}},null,{"$f":"G104*G111/100","v":{"v":0,"d":"0.0"}},null,{"$f":"I104*I111/100","v":{"v":0,"d":"0.0"}}]
[]
[null,"VI) Berechnung Feiertagsentschädigung"]
[]
[null,null,{"$f":"C100","v":"Gruppenleitung 1"},null,{"$f":"E100","v":"Gruppenleitung 2"},null,{"$f":"G100","v":"Assistenz / Begleitperson 1 "},null,{"$f":"I100","v":"Assistenz / Begleitperson 2 "}]
[null,"Wird eine Feiertagsentschädigung ausbezahlt?","nein",null,"nein",null,"nein",null,"nein"]
[null,"Feiertagsanteil in Prozent ",{"$f":"IF(C117=\"ja\",3.5,0)","v":0},null,{"$f":"IF(E117=\"ja\",3.5,0)","v":0},null,{"$f":"IF(G117=\"ja\",3.5,0)","v":0},null,{"$f":"IF(I117=\"ja\",3.5,0)","v":0}]
[11,"Feiertagsanteil in Stunden",{"$f":"IF(C117=\"nein\",0,C104*C118/100)","v":{"v":0,"d":"0.0"}},null,{"$f":"IF(E117=\"nein\",0,E104*E118/100)","v":{"v":0,"d":"0.0"}},null,{"$f":"IF(G117=\"nein\",0,G104*G118/100)","v":{"v":0,"d":"0.0"}},null,{"$f":"IF(I117=\"nein\",0,I104*I118/100)","v":{"v":0,"d":"0.0"}}]
[]
[null,"VI) Berechnung Zuschlag 13. Monatslohn "]
[]
[null,null,{"$f":"C100","v":"Gruppenleitung 1"},null,{"$f":"E100","v":"Gruppenleitung 2"},null,{"$f":"G100","v":"Assistenz / Begleitperson 1 "},null,{"$f":"I100","v":"Assistenz / Begleitperson 2 "}]
[null,"Wird ein 13. Monatslohn ausbezahlt?","nein",null,"nein",null,"nein",null,"nein"]
[null,"Anteil 13. Monatslohn in Prozent ",{"$f":"IF(C124=\"ja\",8.33,0)","v":0},null,{"$f":"IF(E124=\"ja\",8.33,0)","v":0},null,{"$f":"IF(G124=\"ja\",8.33,0)","v":0},null,{"$f":"IF(I124=\"ja\",8.33,0)","v":0}]
[12,"Anteil 13. Monatslohn in Stunden",{"$f":"IF(C124=\"nein\",0,C104*C125/100)","v":{"v":0,"d":"0.0"}},null,{"$f":"IF(E124=\"nein\",0,E104*E125/100)","v":{"v":0,"d":"0.0"}},null,{"$f":"IF(G124=\"nein\",0,G104*G125/100)","v":{"v":0,"d":"0.0"}},null,{"$f":"IF(I124=\"nein\",0,I104*I125/100)","v":{"v":0,"d":"0.0"}}]
[]
[null,"Erfolgsrechnung"]
[]
[]
[null,"Ausgaben"]
[]
[null,"I) Personalkosten"]
[]
[null,"Lohnkosten","Jahresarbeitszeit (Position 9)","Anteil Ferien, Feiertag, 13. ML (Positionen 10-12)","Jahresarbeitszeit total (Positionen 9 + 10)","Stundenansatz ohne Ferienanteil","Bruttolohn"]
[null,{"$f":"C100","v":"Gruppenleitung 1"},{"$f":"C104","v":{"v":0,"d":"0.0"}},{"$f":"C112+C119+C126","v":{"v":0,"d":"0.0"}},{"$f":"C136+D136","v":{"v":0,"d":"0.0"}},{"v":0,"d":"0.00"},{"$f":"E136*F136","v":{"v":0,"d":"0.00"}},"Hinweis: Lohnempfehlungen siehe SSLV"]
[null,{"$f":"E100","v":"Gruppenleitung 2"},{"$f":"E104","v":{"v":0,"d":"0.0"}},{"$f":"E112+E119+E126","v":{"v":0,"d":"0.0"}},{"$f":"C137+D137","v":{"v":0,"d":"0.0"}},{"v":0,"d":"0.00"},{"$f":"E137*F137","v":{"v":0,"d":"0.00"}}]
[null,{"$f":"G100","v":"Assistenz / Begleitperson 1 "},{"$f":"G104","v":{"v":0,"d":"0.0"}},{"$f":"G112+G119+G126","v":{"v":0,"d":"0.0"}},{"$f":"C138+D138","v":{"v":0,"d":"0.0"}},{"v":0,"d":"0.00"},{"$f":"E138*F138","v":{"v":0,"d":"0.00"}}]
[null,{"$f":"I100","v":"Assistenz / Begleitperson 2 "},{"$f":"I104","v":{"v":0,"d":"0.0"}},{"$f":"I112+I119+I126","v":{"v":0,"d":"0.0"}},{"$f":"C139+D139","v":{"v":0,"d":"0.0"}},{"v":0,"d":"0.00"},{"$f":"E139*F139","v":{"v":0,"d":"0.00"}}]
[13,"Total Bruttolohn",{"$nulls":4},{"$f":"SUM(G136:G139)","v":{"v":0,"d":"0.00"}},"Hinweis: Vom Bruttolohn werden Arbeitnehmerbeiträge abgerechnet"]
[]
[]
[null,"Lohnnebenkosten, welche von Arbeitgeberin bezahlt werden",{"$nulls":3},"Anteil in Prozent",null,"Hinweis: Lohnnebenkosten, welche von der SG-Leiterin direkt bezahlt werden, werden nicht aufgeführt"]
[]
[null,"Arbeitgeberbeiträge Sozialversicherung (AHV, IV, EO, ALV)",{"$nulls":3},{"v":0.064,"d":"6.400%"},{"$f":"G140*F145","v":{"v":0,"d":"0.00"}}]
[null,"evtl. Verwaltungskosten Pensionskasse",{"$nulls":3},{"v":0.0025,"d":"0.250%"},{"$f":"G140*F146","v":{"v":0,"d":"0.00"}},"Hinweis: Wird eine Leistung nicht bezahlt, Zahl auf \"0\" setzen"]
[null,"evtl. Familienausgleichskasse (FAK)",{"$nulls":3},{"v":0.015,"d":"1.500%"},{"$f":"G140*F147","v":{"v":0,"d":"0.00"}}]
[null,"Berufsunfallversicherung (gemäss Versicherungsangebot der IG Spielgruppe)",{"$nulls":3},{"v":0.00196,"d":"0.196%"},{"$f":"G140*F148","v":{"v":0,"d":"0.00"}}]
[null,"Nichtberufsunfallversicherung (gemäss Versicherungsangebot der IG Spielgruppe)",{"$nulls":3},{"v":0.01112,"d":"1.112%"},{"$f":"G140*F149","v":{"v":0,"d":"0.00"}}]
[null,"…",{"$nulls":3},{"v":0,"d":"0.000%"},{"$f":"G140*F150","v":{"v":0,"d":"0.00"}}]
[null,"…",{"$nulls":3},{"v":0,"d":"0.000%"},{"$f":"G140*F151","v":{"v":0,"d":"0.00"}}]
[null,"…",{"$nulls":4},{"v":0,"d":"0.00"}]
[14,"Total Lohnnebenkosten, welche von Arbeitgeberin bezahlt werden",{"$nulls":4},{"$f":"SUM(G145:G152)","v":{"v":0,"d":"0.00"}}]
[]
[15,"Total Lohnkosten (Positionen 13 + 14)",{"$nulls":4},{"$f":"G140+G153","v":{"v":0,"d":"0.00"}}]
[]
[]
[null,"Weiterbildungskosten Personal",{"$nulls":4},{"v":0,"d":"0.00"}]
[null,"Mitgliederbeiträge (Beiträge SSLV + regionale FKS x Anzahl Mitarbeiterinnen)",{"$nulls":4},{"v":0,"d":"0.00"}]
[null,"Vergütung Vorstandsarbeit",{"$nulls":4},{"v":0,"d":"0.00"}]
[null,"…",{"$nulls":4},{"v":0,"d":"0.00"}]
[null,"….",{"$nulls":4},{"v":0,"d":"0.00"}]
[16,"Personalkosten diverses",{"$nulls":4},{"$f":"SUM(G158:G162)","v":{"v":0,"d":"0.00"}}]
[]
[17,"Personalkosten total (Positionen 15 + 16)",{"$nulls":4},{"$f":"G155+G163","v":{"v":0,"d":"0.00"}}]
[]
[]
[]
[null,"II) Betriebskosten  pro Jahr"]
[null,"Hinweis: Führt eine Trägerschaft mehrere Gruppen müssen gewisse Kosten (z.B. Versicherung, Buchhaltung) auf die einzelnen Gruppen aufgeteilt werden."]
[]
[null,"fixe Betriebskosten"]
[null,"Miete","Anmerkung:",{"$nulls":3},{"v":0,"d":"0.00"}]
[null,"Betriebshaftpflichtversicherung","Anmerkung:",{"$nulls":3},{"v":0,"d":"0.00"}]
[null,"Geschäftsversicherung","Anmerkung:",{"$nulls":3},{"v":0,"d":"0.00"}]
[null,"Buchhaltung, Administration","Anmerkung:",{"$nulls":3},{"v":0,"d":"0.00"}]
[null,"Spesen Kontoführung ","Anmerkung:",{"$nulls":3},{"v":0,"d":"0.00"}]
[null,"Geschäftsführung, Vereinsleitung, Sitzungsgelder ","Anmerkung:",{"$nulls":3},{"v":0,"d":"0.00"}]
[null,"Diverses Pauschal","Anmerkung:",{"$nulls":3},{"v":0,"d":"0.00"}]
[null,"…","Anmerkung:",{"$nulls":3},{"v":0,"d":"0.00"}]
[18,"fixe Betriebskosten",{"$nulls":4},{"$f":"SUM(G173:G180)","v":{"v":0,"d":"0.00"}}]
[]
[null,"variable Betriebskosten "]
[null,"Verpflegung Z'Nüni/Z'Vieri ","Anmerkung:",{"$nulls":3},{"v":0,"d":"0.00"}]
[null,"Verbrauchsmaterial","Anmerkung:",{"$nulls":3},{"v":0,"d":"0.00"}]
[null,"Spielmaterial, Kinderbücher","Anmerkung:",{"$nulls":3},{"v":0,"d":"0.00"}]
[null,"Ausflüge, Spielgruppenreise","Anmerkung:",{"$nulls":3},{"v":0,"d":"0.00"}]
[null,"Elternabende/-aktivitäten","Anmerkung:",{"$nulls":3},{"v":0,"d":"0.00"}]
[null,"Mobiliar (Neuanschaffungen, Unterhalt/Reparatur)","Anmerkung:",{"$nulls":3},{"v":0,"d":"0.00"}]
[null,"Porto","Anmerkung:",{"$nulls":3},{"v":0,"d":"0.00"}]
[null,"Telefon","Anmerkung:",{"$nulls":3},{"v":0,"d":"0.00"}]
[null,"Druckkosten","Anmerkung:",{"$nulls":3},{"v":0,"d":"0.00"}]
[null,"Öffentlichkeitsarbeit, Werbung","Anmerkung:",{"$nulls":3},{"v":0,"d":"0.00"}]
[null,"Geschenke","Anmerkung:",{"$nulls":3},{"v":0,"d":"0.00"}]
[null,"Fachliteratur, Abo Spielgruppenzeitung","Anmerkung:",{"$nulls":3},{"v":0,"d":"0.00"}]
[null,"Diverses Pauschal","Anmerkung:",{"$nulls":3},{"v":0,"d":"0.00"}]
[null,"…","Anmerkung:",{"$nulls":3},{"v":0,"d":"0.00"}]
[null,"…","Anmerkung:",{"$nulls":3},{"v":0,"d":"0.00"}]
[19,"variable Betriebskosten ",{"$nulls":4},{"$f":"SUM(G184:G198)","v":{"v":0,"d":"0.00"}}]
[]
[]
[null,"Rückstellungen (Krankheit, Anschaffungen etc.)","Anmerkung:",{"$nulls":3},{"v":0,"d":"0.00"}]
[null,"…","Anmerkung:",{"$nulls":3},{"v":0,"d":"0.00"}]
[20,"Rückstellungen ",{"$nulls":4},{"$f":"SUM(G202:G203)","v":{"v":0,"d":"0.00"}}]
[]
[21,"Betriebskosten total (Positionen 18 + 19 + 20)",{"$nulls":4},{"$f":"G181+G199+G204","v":{"v":0,"d":"0.00"}}]
[]
[]
[22,"III) Vollkosten (Postion 17 + 21)",{"$nulls":4},{"$f":"G165+G206","v":{"v":0,"d":"0.00"}}]
[]
[23,"IV) Vollkosten pro Platz (Positionen 22 : 3 : 4) ",{"$nulls":4},{"$f":"G209/C18/C19","v":{"$error":"#DIV/0!"}}]
[]
[]
[]
[null,"Einnahmen"]
[]
[null,"I) Elternbeiträge"]
[null,null,"Fr. pro Platz","Kinder"]
[null,"Elternbeitrag pro Platz (wird in Rechnung gestellt)",{"v":0,"d":"0.00"},{"$nulls":4},"Hinweis: Preis pro Platz entspricht den Vollkosten (Position 23). Der Preis kann reduziert werden, wenn Beiträge Dritte (Position 25) vorhanden sind."]
[null,"Elternbeiträge bei erwarteter Auslastung gemäss Position 4 ",null,{"$f":"C18*C19","v":{"v":0,"d":"0.0"}},null,null,{"$f":"C219*D220","v":{"v":0,"d":"0.00"}}]
[]
[24,"Total Elternbeiträge",{"$nulls":4},{"$f":"SUM(G220:G221)","v":{"v":0,"d":"0.00"}}]
[]
[null,"II) Beiträge Dritte"]
[null,"Spenden","Anmerkung:",{"$nulls":3},{"v":0,"d":"0.00"}]
[null,"Beitrag Gemeinde","Anmerkung:",{"$nulls":3},{"v":0,"d":"0.00"}]
[null,"Beitrag Kirche","Anmerkung:",{"$nulls":3},{"v":0,"d":"0.00"}]
[null,"Beitrag Kanton","Anmerkung:",{"$nulls":3},{"v":0,"d":"0.00"}]
[null,"…","Anmerkung:",{"$nulls":3},{"v":0,"d":"0.00"}]
[null,"…","Anmerkung:",{"$nulls":3},{"v":0,"d":"0.00"}]
[25,"Total Beiträge Dritte",{"$nulls":4},{"$f":"SUM(G225:G230)","v":{"v":0,"d":"0.00"}}]
[]
[26,"Total Einnahmen (Positionen 24 + 25)",{"$nulls":4},{"$f":"G222+G231","v":{"v":0,"d":"0.00"}}]
[]
[]
[null,"Erfolgsrechnung"]
[]
[null,"Total Einnahmen (Position 26)",{"$nulls":4},{"$f":"G233","v":{"v":0,"d":"0.00"}}]
[null,"Total Ausgaben (Position 22)",{"$nulls":4},{"$f":"G209","v":{"v":0,"d":"0.00"}}]
[27,"Übertrag in Reserve (falls Einnahmen höher als Ausgaben)","Anmerkung:",{"$nulls":3},{"v":0,"d":"0.00"}]
[28,"Übertrag aus Reserven (falls Ausgaben höher als Einnahmen)","Anmerkung:",{"$nulls":3},{"v":0,"d":"0.00"},"Hinweis: nur Betrag ohne \"-\" (Minus) eingeben"]
[29,"Saldo",{"$nulls":4},{"$f":"G238-G239-G240+G241","v":{"v":0,"d":"0.00"}}]
[]
[30,"Gewinn oder Verlust / bzw. Eigenleistung Spielgruppenleiterinnen",{"$nulls":4},{"$f":"G242","v":{"v":0,"d":"0.00"}}]
[]
[]
[]
[null,"weitere Anmerkungen: "]

{"sheet":"VK Gruppe 13","index":14,"n_rows":248,"n_cols":9,"rows_kept":248,"merged":[[5,2,5,3],[6,2,6,3],[7,2,7,3],[8,2,8,3],[9,2,9,3],[18,5,20,9],[22,5,23,9],[30,3,30,4],[31,5,32,9],[34,5,34,9],[37,5,39,9],[40,3,40,4],[44,5,44,9],[48,3,48,4],[52,5,52,9],[56,3,56,4],[60,5,60,9],[70,5,70,9],[71,5,71,9],[72,5,72,9],[80,5,80,9],[81,5,81,9],[82,5,82,9],[83,5,83,9],[84,5,84,9],[85,5,85,9],[86,5,86,9],[139,7,140,9],[142,7,143,9],[145,7,146,9],[172,3,172,4],[173,3,173,4],[174,3,174,4],[175,3,175,4],[176,3,176,4],[177,3,177,4],[178,3,178,4],[179,3,179,4],[183,3,183,4],[184,3,184,4],[185,3,185,4],[186,3,186,4],[187,3,187,4],[188,3,188,4],[189,3,189,4],[190,3,190,4],[191,3,191,4],[192,3,192,4],[193,3,193,4],[194,3,194,4],[195,3,195,4],[196,3,196,4],[197,3,197,4],[201,3,201,4],[202,3,202,4],[218,7,220,9],[224,3,224,4],[225,3,225,4],[226,3,226,4],[227,3,227,4],[228,3,228,4],[229,3,229,4],[239,3,239,4],[240,3,240,4],[247,1,247,9],[248,1,248,9],[249,1,249,9],[250,1,250,9],[251,1,251,9],[252,1,252,9],[253,1,253,9],[254,1,254,9],[255,1,255,9],[256,1,256,9],[257,1,257,9],[258,1,258,9],[259,1,259,9]]}
[]
[null,"Hellblaue Felder können eingefüllt werden"]
[null,"Orange Felder müssen eingefüllt werden"]
[]
[]
[null,"Spielgruppe"]
[null,"Name Gruppe"]
[null,"Durchführung pro Woche"]
[null,"Berechnungsperiode"]
[null,"Berechnungsdatum"]
[]
[null,"Berechnung Arbeitszeit pro Gruppe"]
[]
[null,"I) Basisdaten"]
["Position"]
[1,"Anzahl Spielgruppenwochen pro Berechnungsperiode:",0,"Wochen"]
[2,"Anzahl Durchführung pro Woche",0,"Anzahl pro Woche"]
[3,"Anzahl Plätze bei Vollbelegung",0,"Plätze"]
[4,"erwartete Jahresauslastung in Prozent",{"v":0,"d":"0%"},"Prozent",null,"Hinweis: Können alle Plätze voll verrechnet werden ist die Jahresauslastung 100%. Können nicht alle Plätze voll verrechnet werden (z.B. offene Plätze, späterer Einstieg) liegt die Jahresauslastung unter 100%."]
[]
[]
[]
["5a","Anzahl Spielgruppenstunden pro Durchführung",0,"Stunden",null,"Hinweis: Bei mehreren Durchführungen pro Woche durchschnittliche Dauer eintragen, falls Länge der Durchführung unterschiedlich"]
["5b","Vorbereitung pro Durchführung (inkl. Administration, Einkauf, Raum vorbereiten)",0,"Stunden"]
["5c","Nachbereitung pro Durchführung (inkl. Aufräumen, Tür-und-Angel-Elterngespräche)",0,"Stunden"]
[]
[]
[null,"II) Arbeitszeit pro Person und Durchführung"]
[]
[{"$nulls":3},"Anzahl Stunden"]
[null,"Gruppenleitung 1","Name"]
[null,".Spielgruppenstunden (Position 5a)","ja",{"$f":"IF(C32=\"ja\",C23,0)","v":0},null,"Hinweis: \"ja\" bedeutet, dass der Posten als bezahlte Arbeitszeit angerechnet wird, \"nein\" bedeutet, dass der Posten nicht angerechnet wird."]
[null,".Vorbereitung (Position 5b)","ja",{"$f":"IF(C33=\"ja\",C24,0)","v":0}]
[null,".Nachbereitung (Position 5c)","ja",{"$f":"IF(C34=\"ja\",C25,0)","v":0}]
[null,".Optional: andere Stundenzahl als Positionen 5b / 5c für Vor- und Nachbereitung",null,null,"Anmerkung:"]
["6a","Total Gruppenleitung 1",null,{"$f":"SUM(D32:D35)","v":0}]
[]
[null,"Wird eine zweite Gruppenleitung eingesetzt?","nein",null,null,"Hinweis: In der Regel wird eine SG von einer ausgebildeten Spielgruppenleiterin geleitet. Unterstützt wird sie in manchen SG von einer Assistenz / Begleitperson. In wenigen SG werden zwei ausgebildete Spielgruppenleiterinnen oder gar drei Personen eingesetzt."]
[]
[]
[null,"Gruppenleitung 2","Name"]
[null,".Spielgruppenstunden (Position 5a)","nein",{"$f":"IF(C42=\"ja\",C23,0)","v":0}]
[null,".Vorbereitung (Position 5b)","nein",{"$f":"IF(C43=\"ja\",C24,0)","v":0}]
[null,".Nachbereitung (Position 5c)","nein",{"$f":"IF(C44=\"ja\",C25,0)","v":0}]
[null,".Optional: andere Stundenzahl als Positionen 5b / 5c für Vor- und Nachbereitung",null,null,"Anmerkung:"]
["6b","Total Gruppenleitung 2",null,{"$f":"SUM(D42:D45)","v":0}]
[]
[null,"Wird eine Begleitperson in der Gruppe eingesetzt?","ja"]
[null,"Assistenz / Begleitperson 1 ","Name"]
[null,".Spielgruppenstunden (Position 5a)","ja",{"$f":"IF(C50=\"ja\",C23,0)","v":0}]
[null,".Vorbereitung (Position 5b)","nein",{"$f":"IF(C51=\"ja\",C24,0)","v":0}]
[null,".Nachbereitung (Position 5c)","nein",{"$f":"IF(C52=\"ja\",C25,0)","v":0}]
[null,".Optional: andere Stundenzahl als Positionen 5b / 5c für Vor- und Nachbereitung",null,0,"Anmerkung:"]
["6c","Total Assistenz / Begleitperson 1 ",null,{"$f":"SUM(D50:D53)","v":0}]
[]
[null,"Wird eine zweite Begleitperson in der Gruppe eingesetzt?","nein"]
[null,"Assistenz / Begleitperson 2 ","Name"]
[null,".Spielgruppenstunden (Position 5a)","nein",{"$f":"IF(C58=\"ja\",C23,0)","v":0}]
[null,".Vorbereitung (Position 5b)","nein",{"$f":"IF(C59=\"ja\",C24,0)","v":0}]
[null,".Nachbereitung (Position 5c)","nein",{"$f":"IF(C60=\"ja\",C25,0)","v":0}]
[null,".Optional: andere Stundenzahl als Positionen 5b / 5c für Vor- und Nachbereitung",null,null,"Anmerkung:"]
["6d","Total Assistenz / Begleitperson 2 ",null,{"$f":"SUM(D58:D61)","v":0}]
[]
[]
[null,"III) Leitungsaufwand pro Gruppe und Jahr (nur Gruppenleitung)"]
[]
[null,"Jahresplanung/Erstellen Elterninformationen/Einteilungen",0,"Stunden"]
[null,"Planungssitzungen mit Gemeinde/Schule/Fachstellen (Anzahl Gespräche x 1.5 Stunden)",{"$f":"F68*1.5","v":0},"Stunden","Anzahl Gespräche",0]
[null,"Kontakte Schule/Fachpersonen (Anzahl Gespräche x 0.5 Stunden)",{"$f":"F69*0.5","v":0},"Stunden","Anzahl Gespräche",0]
[null,"spezifische Elternkontakte (Anzahl Gespräche x 0.5 Stunden)",{"$f":"F70*0.5","v":0},"Stunden","Anzahl Gespräche",0]
[null,"…",0,"Stunden","Anmerkungen:"]
[null,"…",0,"Stunden","Anmerkungen:"]
[null,"…",0,"Stunden","Anmerkungen:"]
[7,"Total Leitungsaufwand pro Spielgruppe in Stunden (nur Gruppenleitung)",{"$f":"SUM(C67:C73)","v":0}]
[]
[null,"Wird der Leitungsaufwand zwischen zwei Gruppenleitungen aufgeteilt?","nein",null,null,"Hinweis: nur möglich, wenn Positionen bei 6b mit \"ja\" eingetragen"]
[]
[]
[null,"IV) allgemeiner Aufwand pro Spielgruppenjahr (pro Person)"]
[]
[null,"Elternvernetzungsanlässe inkl. Vor- und Nachbereitung (ca. 5 Std. pro Anlass)",0,"Stunden","Anmerkung:"]
[null,"Teamsitzungen / Mitarbeiterinnengespräch",0,"Stunden","Anmerkung:"]
[null,"individuelle Weiterbildung ",0,"Stunden","Anmerkung:"]
[null,"Rauminstandhaltung/Materialreinigung/-reparatur/-einkauf",0,"Stunden","Anmerkung:"]
[null,"…",0,"Stunden","Anmerkung:"]
[null,"…",0,"Stunden","Anmerkung:"]
[null,"…",0,"Stunden","Anmerkung:"]
[8,"Total allgemeiner Aufwand pro Spielgruppenjahr in Stunden (pro Person)",{"$f":"SUM(C81:C87)","v":0}]
[]
[null,"Wird der allgemeine Aufwand der Arbeitszeit der Gruppenleitung 1 angerechnet?","ja"]
[null,"Wird der allgemeine Aufwand der Arbeitszeit der Gruppenleitung 2 angerechnet?","nein",null,null,"Hinweis: nur möglich, wenn Positionen bei 6b mit \"ja\" eingetragen"]
[null,"Wird der allg. Aufwand der Arbeitszeit der Assistenz/Begleitperson 1 angerechnet?","nein",null,null,"Hinweis: nur möglich, wenn Positionen bei 6c mit \"ja\" eingetragen"]
[null,"Wird der allg. Aufwand der Arbeitszeit der Assistenz/Begleitperson 2 angerechnet?","nein",null,null,"Hinweis: nur möglich, wenn Positionen bei 6d mit \"ja\" eingetragen"]
[]
[]
[]
[]
[null,"V) Jahresarbeitszeit (ohne Ferienanteil) in Stunden "]
[]
[null,null,{"$f":"B31","v":"Gruppenleitung 1"},null,{"$f":"B41","v":"Gruppenleitung 2"},null,{"$f":"B49","v":"Assistenz / Begleitperson 1 "},null,{"$f":"B57","v":"Assistenz / Begleitperson 2 "}]
[null,"Arbeitszeit pro Person und Gruppe (Positionen 1 x 2 x 6)",{"$f":"C16*C17*D36","v":0},null,{"$f":"C16*C17*D46","v":0},null,{"$f":"C16*C17*D54","v":0},null,{"$f":"C16*C17*D62","v":0}]
[null,"Leitungsaufwand pro Gruppe und Jahr (nur Leitung) (Position 7)",{"$f":"IF(C76=\"ja\",C74/2,C74)","v":0},null,{"$f":"IF(C76=\"ja\",C74/2,0)","v":0},null,0,null,0]
[null,"allgemeiner Aufwand pro Spielgruppenjahr (pro Person) (Position 8)",{"$f":"IF(C90=\"ja\",C88,0)","v":0},null,{"$f":"IF(C91=\"ja\",C88,0)","v":0},null,{"$f":"IF(C92=\"ja\",C88,0)","v":0},null,{"$f":"IF(C93=\"ja\",C88,0)","v":0}]
[9,"Total Jahresarbeitszeit (ohne Ferienanteil) in Stunden",{"$f":"SUM(C101:C103)","v":0},null,{"$f":"SUM(E101:E103)","v":0},null,{"$f":"SUM(G101:G103)","v":0},null,{"$f":"SUM(I101:I103)","v":0}]
[]
[]
[null,"VI) Berechnung Ferienanteil"]
[]
[null,null,{"$f":"C100","v":"Gruppenleitung 1"},null,{"$f":"E100","v":"Gruppenleitung 2"},null,{"$f":"G100","v":"Assistenz / Begleitperson 1 "},null,"Assistenz / Begleitperson 2 "]
[null,"Beträgt der jährliche Ferienanteil 4 Wochen (gesetzliches Minimum) oder 5 Wochen?","4 Wochen",null,"5 Wochen",null,"4 Wochen",null,"4 Wochen"]
[null,"Ferienanteil in Prozent",{"$f":"IF(C110=\"4 Wochen\",8.33,10.64)","v":8.33},null,{"$f":"IF(E110=\"4 Wochen\",8.33,10.64)","v":10.64},null,{"$f":"IF(G110=\"4 Wochen\",8.33,10.64)","v":8.33},null,{"$f":"IF(I110=\"4 Wochen\",8.33,10.64)","v":8.33}]
[10,"Ferienanteil in Stunden",{"$f":"C104*C111/100","v":{"v":0,"d":"0.0"}},null,{"$f":"E104*E111/100","v":{"v":0,"d":"0.0"}},null,{"$f":"G104*G111/100","v":{"v":0,"d":"0.0"}},null,{"$f":"I104*I111/100","v":{"v":0,"d":"0.0"}}]
[]
[null,"VI) Berechnung Feiertagsentschädigung"]
[]
[null,null,{"$f":"C100","v":"Gruppenleitung 1"},null,{"$f":"E100","v":"Gruppenleitung 2"},null,{"$f":"G100","v":"Assistenz / Begleitperson 1 "},null,{"$f":"I100","v":"Assistenz / Begleitperson 2 "}]
[null,"Wird eine Feiertagsentschädigung ausbezahlt?","nein",null,"nein",null,"nein",null,"nein"]
[null,"Feiertagsanteil in Prozent ",{"$f":"IF(C117=\"ja\",3.5,0)","v":0},null,{"$f":"IF(E117=\"ja\",3.5,0)","v":0},null,{"$f":"IF(G117=\"ja\",3.5,0)","v":0},null,{"$f":"IF(I117=\"ja\",3.5,0)","v":0}]
[11,"Feiertagsanteil in Stunden",{"$f":"IF(C117=\"nein\",0,C104*C118/100)","v":{"v":0,"d":"0.0"}},null,{"$f":"IF(E117=\"nein\",0,E104*E118/100)","v":{"v":0,"d":"0.0"}},null,{"$f":"IF(G117=\"nein\",0,G104*G118/100)","v":{"v":0,"d":"0.0"}},null,{"$f":"IF(I117=\"nein\",0,I104*I118/100)","v":{"v":0,"d":"0.0"}}]
[]
[null,"VI) Berechnung Zuschlag 13. Monatslohn "]
[]
[null,null,{"$f":"C100","v":"Gruppenleitung 1"},null,{"$f":"E100","v":"Gruppenleitung 2"},null,{"$f":"G100","v":"Assistenz / Begleitperson 1 "},null,{"$f":"I100","v":"Assistenz / Begleitperson 2 "}]
[null,"Wird ein 13. Monatslohn ausbezahlt?","nein",null,"nein",null,"nein",null,"nein"]
[null,"Anteil 13. Monatslohn in Prozent ",{"$f":"IF(C124=\"ja\",8.33,0)","v":0},null,{"$f":"IF(E124=\"ja\",8.33,0)","v":0},null,{"$f":"IF(G124=\"ja\",8.33,0)","v":0},null,{"$f":"IF(I124=\"ja\",8.33,0)","v":0}]
[12,"Anteil 13. Monatslohn in Stunden",{"$f":"IF(C124=\"nein\",0,C104*C125/100)","v":{"v":0,"d":"0.0"}},null,{"$f":"IF(E124=\"nein\",0,E104*E125/100)","v":{"v":0,"d":"0.0"}},null,{"$f":"IF(G124=\"nein\",0,G104*G125/100)","v":{"v":0,"d":"0.0"}},null,{"$f":"IF(I124=\"nein\",0,I104*I125/100)","v":{"v":0,"d":"0.0"}}]
[]
[null,"Erfolgsrechnung"]
[]
[]
[null,"Ausgaben"]
[]
[null,"I) Personalkosten"]
[]
[null,"Lohnkosten","Jahresarbeitszeit (Position 9)","Anteil Ferien, Feiertag, 13. ML (Positionen 10-12)","Jahresarbeitszeit total (Positionen 9 + 10)","Stundenansatz ohne Ferienanteil","Bruttolohn"]
[null,{"$f":"C100","v":"Gruppenleitung 1"},{"$f":"C104","v":{"v":0,"d":"0.0"}},{"$f":"C112+C119+C126","v":{"v":0,"d":"0.0"}},{"$f":"C136+D136","v":{"v":0,"d":"0.0"}},{"v":0,"d":"0.00"},{"$f":"E136*F136","v":{"v":0,"d":"0.00"}},"Hinweis: Lohnempfehlungen siehe SSLV"]
[null,{"$f":"E100","v":"Gruppenleitung 2"},{"$f":"E104","v":{"v":0,"d":"0.0"}},{"$f":"E112+E119+E126","v":{"v":0,"d":"0.0"}},{"$f":"C137+D137","v":{"v":0,"d":"0.0"}},{"v":0,"d":"0.00"},{"$f":"E137*F137","v":{"v":0,"d":"0.00"}}]
[null,{"$f":"G100","v":"Assistenz / Begleitperson 1 "},{"$f":"G104","v":{"v":0,"d":"0.0"}},{"$f":"G112+G119+G126","v":{"v":0,"d":"0.0"}},{"$f":"C138+D138","v":{"v":0,"d":"0.0"}},{"v":0,"d":"0.00"},{"$f":"E138*F138","v":{"v":0,"d":"0.00"}}]
[null,{"$f":"I100","v":"Assistenz / Begleitperson 2 "},{"$f":"I104","v":{"v":0,"d":"0.0"}},{"$f":"I112+I119+I126","v":{"v":0,"d":"0.0"}},{"$f":"C139+D139","v":{"v":0,"d":"0.0"}},{"v":0,"d":"0.00"},{"$f":"E139*F139","v":{"v":0,"d":"0.00"}}]
[13,"Total Bruttolohn",{"$nulls":4},{"$f":"SUM(G136:G139)","v":{"v":0,"d":"0.00"}},"Hinweis: Vom Bruttolohn werden Arbeitnehmerbeiträge abgerechnet"]
[]
[]
[null,"Lohnnebenkosten, welche von Arbeitgeberin bezahlt werden",{"$nulls":3},"Anteil in Prozent",null,"Hinweis: Lohnnebenkosten, welche von der SG-Leiterin direkt bezahlt werden, werden nicht aufgeführt"]
[]
[null,"Arbeitgeberbeiträge Sozialversicherung (AHV, IV, EO, ALV)",{"$nulls":3},{"v":0.064,"d":"6.400%"},{"$f":"G140*F145","v":{"v":0,"d":"0.00"}}]
[null,"evtl. Verwaltungskosten Pensionskasse",{"$nulls":3},{"v":0.0025,"d":"0.250%"},{"$f":"G140*F146","v":{"v":0,"d":"0.00"}},"Hinweis: Wird eine Leistung nicht bezahlt, Zahl auf \"0\" setzen"]
[null,"evtl. Familienausgleichskasse (FAK)",{"$nulls":3},{"v":0.015,"d":"1.500%"},{"$f":"G140*F147","v":{"v":0,"d":"0.00"}}]
[null,"Berufsunfallversicherung (gemäss Versicherungsangebot der IG Spielgruppe)",{"$nulls":3},{"v":0.00196,"d":"0.196%"},{"$f":"G140*F148","v":{"v":0,"d":"0.00"}}]
[null,"Nichtberufsunfallversicherung (gemäss Versicherungsangebot der IG Spielgruppe)",{"$nulls":3},{"v":0.01112,"d":"1.112%"},{"$f":"G140*F149","v":{"v":0,"d":"0.00"}}]
[null,"…",{"$nulls":3},{"v":0,"d":"0.000%"},{"$f":"G140*F150","v":{"v":0,"d":"0.00"}}]
[null,"…",{"$nulls":3},{"v":0,"d":"0.000%"},{"$f":"G140*F151","v":{"v":0,"d":"0.00"}}]
[null,"…",{"$nulls":4},{"v":0,"d":"0.00"}]
[14,"Total Lohnnebenkosten, welche von Arbeitgeberin bezahlt werden",{"$nulls":4},{"$f":"SUM(G145:G152)","v":{"v":0,"d":"0.00"}}]
[]
[15,"Total Lohnkosten (Positionen 13 + 14)",{"$nulls":4},{"$f":"G140+G153","v":{"v":0,"d":"0.00"}}]
[]
[]
[null,"Weiterbildungskosten Personal",{"$nulls":4},{"v":0,"d":"0.00"}]
[null,"Mitgliederbeiträge (Beiträge SSLV + regionale FKS x Anzahl Mitarbeiterinnen)",{"$nulls":4},{"v":0,"d":"0.00"}]
[null,"Vergütung Vorstandsarbeit",{"$nulls":4},{"v":0,"d":"0.00"}]
[null,"…",{"$nulls":4},{"v":0,"d":"0.00"}]
[null,"….",{"$nulls":4},{"v":0,"d":"0.00"}]
[16,"Personalkosten diverses",{"$nulls":4},{"$f":"SUM(G158:G162)","v":{"v":0,"d":"0.00"}}]
[]
[17,"Personalkosten total (Positionen 15 + 16)",{"$nulls":4},{"$f":"G155+G163","v":{"v":0,"d":"0.00"}}]
[]
[]
[]
[null,"II) Betriebskosten  pro Jahr"]
[null,"Hinweis: Führt eine Trägerschaft mehrere Gruppen müssen gewisse Kosten (z.B. Versicherung, Buchhaltung) auf die einzelnen Gruppen aufgeteilt werden."]
[]
[null,"fixe Betriebskosten"]
[null,"Miete","Anmerkung:",{"$nulls":3},{"v":0,"d":"0.00"}]
[null,"Betriebshaftpflichtversicherung","Anmerkung:",{"$nulls":3},{"v":0,"d":"0.00"}]
[null,"Geschäftsversicherung","Anmerkung:",{"$nulls":3},{"v":0,"d":"0.00"}]
[null,"Buchhaltung, Administration","Anmerkung:",{"$nulls":3},{"v":0,"d":"0.00"}]
[null,"Spesen Kontoführung ","Anmerkung:",{"$nulls":3},{"v":0,"d":"0.00"}]
[null,"Geschäftsführung, Vereinsleitung, Sitzungsgelder ","Anmerkung:",{"$nulls":3},{"v":0,"d":"0.00"}]
[null,"Diverses Pauschal","Anmerkung:",{"$nulls":3},{"v":0,"d":"0.00"}]
[null,"…","Anmerkung:",{"$nulls":3},{"v":0,"d":"0.00"}]
[18,"fixe Betriebskosten",{"$nulls":4},{"$f":"SUM(G173:G180)","v":{"v":0,"d":"0.00"}}]
[]
[null,"variable Betriebskosten "]
[null,"Verpflegung Z'Nüni/Z'Vieri ","Anmerkung:",{"$nulls":3},{"v":0,"d":"0.00"}]
[null,"Verbrauchsmaterial","Anmerkung:",{"$nulls":3},{"v":0,"d":"0.00"}]
[null,"Spielmaterial, Kinderbücher","Anmerkung:",{"$nulls":3},{"v":0,"d":"0.00"}]
[null,"Ausflüge, Spielgruppenreise","Anmerkung:",{"$nulls":3},{"v":0,"d":"0.00"}]
[null,"Elternabende/-aktivitäten","Anmerkung:",{"$nulls":3},{"v":0,"d":"0.00"}]
[null,"Mobiliar (Neuanschaffungen, Unterhalt/Reparatur)","Anmerkung:",{"$nulls":3},{"v":0,"d":"0.00"}]
[null,"Porto","Anmerkung:",{"$nulls":3},{"v":0,"d":"0.00"}]
[null,"Telefon","Anmerkung:",{"$nulls":3},{"v":0,"d":"0.00"}]
[null,"Druckkosten","Anmerkung:",{"$nulls":3},{"v":0,"d":"0.00"}]
[null,"Öffentlichkeitsarbeit, Werbung","Anmerkung:",{"$nulls":3},{"v":0,"d":"0.00"}]
[null,"Geschenke","Anmerkung:",{"$nulls":3},{"v":0,"d":"0.00"}]
[null,"Fachliteratur, Abo Spielgruppenzeitung","Anmerkung:",{"$nulls":3},{"v":0,"d":"0.00"}]
[null,"Diverses Pauschal","Anmerkung:",{"$nulls":3},{"v":0,"d":"0.00"}]
[null,"…","Anmerkung:",{"$nulls":3},{"v":0,"d":"0.00"}]
[null,"…","Anmerkung:",{"$nulls":3},{"v":0,"d":"0.00"}]
[19,"variable Betriebskosten ",{"$nulls":4},{"$f":"SUM(G184:G198)","v":{"v":0,"d":"0.00"}}]
[]
[]
[null,"Rückstellungen (Krankheit, Anschaffungen etc.)","Anmerkung:",{"$nulls":3},{"v":0,"d":"0.00"}]
[null,"…","Anmerkung:",{"$nulls":3},{"v":0,"d":"0.00"}]
[20,"Rückstellungen ",{"$nulls":4},{"$f":"SUM(G202:G203)","v":{"v":0,"d":"0.00"}}]
[]
[21,"Betriebskosten total (Positionen 18 + 19 + 20)",{"$nulls":4},{"$f":"G181+G199+G204","v":{"v":0,"d":"0.00"}}]
[]
[]
[22,"III) Vollkosten (Postion 17 + 21)",{"$nulls":4},{"$f":"G165+G206","v":{"v":0,"d":"0.00"}}]
[]
[23,"IV) Vollkosten pro Platz (Positionen 22 : 3 : 4) ",{"$nulls":4},{"$f":"G209/C18/C19","v":{"$error":"#DIV/0!"}}]
[]
[]
[]
[null,"Einnahmen"]
[]
[null,"I) Elternbeiträge"]
[null,null,"Fr. pro Platz","Kinder"]
[null,"Elternbeitrag pro Platz (wird in Rechnung gestellt)",{"v":0,"d":"0.00"},{"$nulls":4},"Hinweis: Preis pro Platz entspricht den Vollkosten (Position 23). Der Preis kann reduziert werden, wenn Beiträge Dritte (Position 25) vorhanden sind."]
[null,"Elternbeiträge bei erwarteter Auslastung gemäss Position 4 ",null,{"$f":"C18*C19","v":{"v":0,"d":"0.0"}},null,null,{"$f":"C219*D220","v":{"v":0,"d":"0.00"}}]
[]
[24,"Total Elternbeiträge",{"$nulls":4},{"$f":"SUM(G220:G221)","v":{"v":0,"d":"0.00"}}]
[]
[null,"II) Beiträge Dritte"]
[null,"Spenden","Anmerkung:",{"$nulls":3},{"v":0,"d":"0.00"}]
[null,"Beitrag Gemeinde","Anmerkung:",{"$nulls":3},{"v":0,"d":"0.00"}]
[null,"Beitrag Kirche","Anmerkung:",{"$nulls":3},{"v":0,"d":"0.00"}]
[null,"Beitrag Kanton","Anmerkung:",{"$nulls":3},{"v":0,"d":"0.00"}]
[null,"…","Anmerkung:",{"$nulls":3},{"v":0,"d":"0.00"}]
[null,"…","Anmerkung:",{"$nulls":3},{"v":0,"d":"0.00"}]
[25,"Total Beiträge Dritte",{"$nulls":4},{"$f":"SUM(G225:G230)","v":{"v":0,"d":"0.00"}}]
[]
[26,"Total Einnahmen (Positionen 24 + 25)",{"$nulls":4},{"$f":"G222+G231","v":{"v":0,"d":"0.00"}}]
[]
[]
[null,"Erfolgsrechnung"]
[]
[null,"Total Einnahmen (Position 26)",{"$nulls":4},{"$f":"G233","v":{"v":0,"d":"0.00"}}]
[null,"Total Ausgaben (Position 22)",{"$nulls":4},{"$f":"G209","v":{"v":0,"d":"0.00"}}]
[27,"Übertrag in Reserve (falls Einnahmen höher als Ausgaben)","Anmerkung:",{"$nulls":3},{"v":0,"d":"0.00"}]
[28,"Übertrag aus Reserven (falls Ausgaben höher als Einnahmen)","Anmerkung:",{"$nulls":3},{"v":0,"d":"0.00"},"Hinweis: nur Betrag ohne \"-\" (Minus) eingeben"]
[29,"Saldo",{"$nulls":4},{"$f":"G238-G239-G240+G241","v":{"v":0,"d":"0.00"}}]
[]
[30,"Gewinn oder Verlust / bzw. Eigenleistung Spielgruppenleiterinnen",{"$nulls":4},{"$f":"G242","v":{"v":0,"d":"0.00"}}]
[]
[]
[]
[null,"weitere Anmerkungen: "]

{"sheet":"VK Gruppe 14","index":15,"n_rows":248,"n_cols":9,"rows_kept":248,"merged":[[5,2,5,3],[6,2,6,3],[7,2,7,3],[8,2,8,3],[9,2,9,3],[18,5,20,9],[22,5,23,9],[30,3,30,4],[31,5,32,9],[34,5,34,9],[37,5,39,9],[40,3,40,4],[44,5,44,9],[48,3,48,4],[52,5,52,9],[56,3,56,4],[60,5,60,9],[70,5,70,9],[71,5,71,9],[72,5,72,9],[80,5,80,9],[81,5,81,9],[82,5,82,9],[83,5,83,9],[84,5,84,9],[85,5,85,9],[86,5,86,9],[139,7,140,9],[142,7,143,9],[145,7,146,9],[172,3,172,4],[173,3,173,4],[174,3,174,4],[175,3,175,4],[176,3,176,4],[177,3,177,4],[178,3,178,4],[179,3,179,4],[183,3,183,4],[184,3,184,4],[185,3,185,4],[186,3,186,4],[187,3,187,4],[188,3,188,4],[189,3,189,4],[190,3,190,4],[191,3,191,4],[192,3,192,4],[193,3,193,4],[194,3,194,4],[195,3,195,4],[196,3,196,4],[197,3,197,4],[201,3,201,4],[202,3,202,4],[218,7,220,9],[224,3,224,4],[225,3,225,4],[226,3,226,4],[227,3,227,4],[228,3,228,4],[229,3,229,4],[239,3,239,4],[240,3,240,4],[247,1,247,9],[248,1,248,9],[249,1,249,9],[250,1,250,9],[251,1,251,9],[252,1,252,9],[253,1,253,9],[254,1,254,9],[255,1,255,9],[256,1,256,9],[257,1,257,9],[258,1,258,9],[259,1,259,9]]}
[]
[null,"Hellblaue Felder können eingefüllt werden"]
[null,"Orange Felder müssen eingefüllt werden"]
[]
[]
[null,"Spielgruppe"]
[null,"Name Gruppe"]
[null,"Durchführung pro Woche"]
[null,"Berechnungsperiode"]
[null,"Berechnungsdatum"]
[]
[null,"Berechnung Arbeitszeit pro Gruppe"]
[]
[null,"I) Basisdaten"]
["Position"]
[1,"Anzahl Spielgruppenwochen pro Berechnungsperiode:",0,"Wochen"]
[2,"Anzahl Durchführung pro Woche",0,"Anzahl pro Woche"]
[3,"Anzahl Plätze bei Vollbelegung",0,"Plätze"]
[4,"erwartete Jahresauslastung in Prozent",{"v":0,"d":"0%"},"Prozent",null,"Hinweis: Können alle Plätze voll verrechnet werden ist die Jahresauslastung 100%. Können nicht alle Plätze voll verrechnet werden (z.B. offene Plätze, späterer Einstieg) liegt die Jahresauslastung unter 100%."]
[]
[]
[]
["5a","Anzahl Spielgruppenstunden pro Durchführung",0,"Stunden",null,"Hinweis: Bei mehreren Durchführungen pro Woche durchschnittliche Dauer eintragen, falls Länge der Durchführung unterschiedlich"]
["5b","Vorbereitung pro Durchführung (inkl. Administration, Einkauf, Raum vorbereiten)",0,"Stunden"]
["5c","Nachbereitung pro Durchführung (inkl. Aufräumen, Tür-und-Angel-Elterngespräche)",0,"Stunden"]
[]
[]
[null,"II) Arbeitszeit pro Person und Durchführung"]
[]
[{"$nulls":3},"Anzahl Stunden"]
[null,"Gruppenleitung 1","Name"]
[null,".Spielgruppenstunden (Position 5a)","ja",{"$f":"IF(C32=\"ja\",C23,0)","v":0},null,"Hinweis: \"ja\" bedeutet, dass der Posten als bezahlte Arbeitszeit angerechnet wird, \"nein\" bedeutet, dass der Posten nicht angerechnet wird."]
[null,".Vorbereitung (Position 5b)","ja",{"$f":"IF(C33=\"ja\",C24,0)","v":0}]
[null,".Nachbereitung (Position 5c)","ja",{"$f":"IF(C34=\"ja\",C25,0)","v":0}]
[null,".Optional: andere Stundenzahl als Positionen 5b / 5c für Vor- und Nachbereitung",null,null,"Anmerkung:"]
["6a","Total Gruppenleitung 1",null,{"$f":"SUM(D32:D35)","v":0}]
[]
[null,"Wird eine zweite Gruppenleitung eingesetzt?","nein",null,null,"Hinweis: In der Regel wird eine SG von einer ausgebildeten Spielgruppenleiterin geleitet. Unterstützt wird sie in manchen SG von einer Assistenz / Begleitperson. In wenigen SG werden zwei ausgebildete Spielgruppenleiterinnen oder gar drei Personen eingesetzt."]
[]
[]
[null,"Gruppenleitung 2","Name"]
[null,".Spielgruppenstunden (Position 5a)","nein",{"$f":"IF(C42=\"ja\",C23,0)","v":0}]
[null,".Vorbereitung (Position 5b)","nein",{"$f":"IF(C43=\"ja\",C24,0)","v":0}]
[null,".Nachbereitung (Position 5c)","nein",{"$f":"IF(C44=\"ja\",C25,0)","v":0}]
[null,".Optional: andere Stundenzahl als Positionen 5b / 5c für Vor- und Nachbereitung",null,null,"Anmerkung:"]
["6b","Total Gruppenleitung 2",null,{"$f":"SUM(D42:D45)","v":0}]
[]
[null,"Wird eine Begleitperson in der Gruppe eingesetzt?","ja"]
[null,"Assistenz / Begleitperson 1 ","Name"]
[null,".Spielgruppenstunden (Position 5a)","ja",{"$f":"IF(C50=\"ja\",C23,0)","v":0}]
[null,".Vorbereitung (Position 5b)","nein",{"$f":"IF(C51=\"ja\",C24,0)","v":0}]
[null,".Nachbereitung (Position 5c)","nein",{"$f":"IF(C52=\"ja\",C25,0)","v":0}]
[null,".Optional: andere Stundenzahl als Positionen 5b / 5c für Vor- und Nachbereitung",null,0,"Anmerkung:"]
["6c","Total Assistenz / Begleitperson 1 ",null,{"$f":"SUM(D50:D53)","v":0}]
[]
[null,"Wird eine zweite Begleitperson in der Gruppe eingesetzt?","nein"]
[null,"Assistenz / Begleitperson 2 ","Name"]
[null,".Spielgruppenstunden (Position 5a)","nein",{"$f":"IF(C58=\"ja\",C23,0)","v":0}]
[null,".Vorbereitung (Position 5b)","nein",{"$f":"IF(C59=\"ja\",C24,0)","v":0}]
[null,".Nachbereitung (Position 5c)","nein",{"$f":"IF(C60=\"ja\",C25,0)","v":0}]
[null,".Optional: andere Stundenzahl als Positionen 5b / 5c für Vor- und Nachbereitung",null,null,"Anmerkung:"]
["6d","Total Assistenz / Begleitperson 2 ",null,{"$f":"SUM(D58:D61)","v":0}]
[]
[]
[null,"III) Leitungsaufwand pro Gruppe und Jahr (nur Gruppenleitung)"]
[]
[null,"Jahresplanung/Erstellen Elterninformationen/Einteilungen",0,"Stunden"]
[null,"Planungssitzungen mit Gemeinde/Schule/Fachstellen (Anzahl Gespräche x 1.5 Stunden)",{"$f":"F68*1.5","v":0},"Stunden","Anzahl Gespräche",0]
[null,"Kontakte Schule/Fachpersonen (Anzahl Gespräche x 0.5 Stunden)",{"$f":"F69*0.5","v":0},"Stunden","Anzahl Gespräche",0]
[null,"spezifische Elternkontakte (Anzahl Gespräche x 0.5 Stunden)",{"$f":"F70*0.5","v":0},"Stunden","Anzahl Gespräche",0]
[null,"…",0,"Stunden","Anmerkungen:"]
[null,"…",0,"Stunden","Anmerkungen:"]
[null,"…",0,"Stunden","Anmerkungen:"]
[7,"Total Leitungsaufwand pro Spielgruppe in Stunden (nur Gruppenleitung)",{"$f":"SUM(C67:C73)","v":0}]
[]
[null,"Wird der Leitungsaufwand zwischen zwei Gruppenleitungen aufgeteilt?","nein",null,null,"Hinweis: nur möglich, wenn Positionen bei 6b mit \"ja\" eingetragen"]
[]
[]
[null,"IV) allgemeiner Aufwand pro Spielgruppenjahr (pro Person)"]
[]
[null,"Elternvernetzungsanlässe inkl. Vor- und Nachbereitung (ca. 5 Std. pro Anlass)",0,"Stunden","Anmerkung:"]
[null,"Teamsitzungen / Mitarbeiterinnengespräch",0,"Stunden","Anmerkung:"]
[null,"individuelle Weiterbildung ",0,"Stunden","Anmerkung:"]
[null,"Rauminstandhaltung/Materialreinigung/-reparatur/-einkauf",0,"Stunden","Anmerkung:"]
[null,"…",0,"Stunden","Anmerkung:"]
[null,"…",0,"Stunden","Anmerkung:"]
[null,"…",0,"Stunden","Anmerkung:"]
[8,"Total allgemeiner Aufwand pro Spielgruppenjahr in Stunden (pro Person)",{"$f":"SUM(C81:C87)","v":0}]
[]
[null,"Wird der allgemeine Aufwand der Arbeitszeit der Gruppenleitung 1 angerechnet?","ja"]
[null,"Wird der allgemeine Aufwand der Arbeitszeit der Gruppenleitung 2 angerechnet?","nein",null,null,"Hinweis: nur möglich, wenn Positionen bei 6b mit \"ja\" eingetragen"]
[null,"Wird der allg. Aufwand der Arbeitszeit der Assistenz/Begleitperson 1 angerechnet?","nein",null,null,"Hinweis: nur möglich, wenn Positionen bei 6c mit \"ja\" eingetragen"]
[null,"Wird der allg. Aufwand der Arbeitszeit der Assistenz/Begleitperson 2 angerechnet?","nein",null,null,"Hinweis: nur möglich, wenn Positionen bei 6d mit \"ja\" eingetragen"]
[]
[]
[]
[]
[null,"V) Jahresarbeitszeit (ohne Ferienanteil) in Stunden "]
[]
[null,null,{"$f":"B31","v":"Gruppenleitung 1"},null,{"$f":"B41","v":"Gruppenleitung 2"},null,{"$f":"B49","v":"Assistenz / Begleitperson 1 "},null,{"$f":"B57","v":"Assistenz / Begleitperson 2 "}]
[null,"Arbeitszeit pro Person und Gruppe (Positionen 1 x 2 x 6)",{"$f":"C16*C17*D36","v":0},null,{"$f":"C16*C17*D46","v":0},null,{"$f":"C16*C17*D54","v":0},null,{"$f":"C16*C17*D62","v":0}]
[null,"Leitungsaufwand pro Gruppe und Jahr (nur Leitung) (Position 7)",{"$f":"IF(C76=\"ja\",C74/2,C74)","v":0},null,{"$f":"IF(C76=\"ja\",C74/2,0)","v":0},null,0,null,0]
[null,"allgemeiner Aufwand pro Spielgruppenjahr (pro Person) (Position 8)",{"$f":"IF(C90=\"ja\",C88,0)","v":0},null,{"$f":"IF(C91=\"ja\",C88,0)","v":0},null,{"$f":"IF(C92=\"ja\",C88,0)","v":0},null,{"$f":"IF(C93=\"ja\",C88,0)","v":0}]
[9,"Total Jahresarbeitszeit (ohne Ferienanteil) in Stunden",{"$f":"SUM(C101:C103)","v":0},null,{"$f":"SUM(E101:E103)","v":0},null,{"$f":"SUM(G101:G103)","v":0},null,{"$f":"SUM(I101:I103)","v":0}]
[]
[]
[null,"VI) Berechnung Ferienanteil"]
[]
[null,null,{"$f":"C100","v":"Gruppenleitung 1"},null,{"$f":"E100","v":"Gruppenleitung 2"},null,{"$f":"G100","v":"Assistenz / Begleitperson 1 "},null,"Assistenz / Begleitperson 2 "]
[null,"Beträgt der jährliche Ferienanteil 4 Wochen (gesetzliches Minimum) oder 5 Wochen?","4 Wochen",null,"5 Wochen",null,"4 Wochen",null,"4 Wochen"]
[null,"Ferienanteil in Prozent",{"$f":"IF(C110=\"4 Wochen\",8.33,10.64)","v":8.33},null,{"$f":"IF(E110=\"4 Wochen\",8.33,10.64)","v":10.64},null,{"$f":"IF(G110=\"4 Wochen\",8.33,10.64)","v":8.33},null,{"$f":"IF(I110=\"4 Wochen\",8.33,10.64)","v":8.33}]
[10,"Ferienanteil in Stunden",{"$f":"C104*C111/100","v":{"v":0,"d":"0.0"}},null,{"$f":"E104*E111/100","v":{"v":0,"d":"0.0"}},null,{"$f":"G104*G111/100","v":{"v":0,"d":"0.0"}},null,{"$f":"I104*I111/100","v":{"v":0,"d":"0.0"}}]
[]
[null,"VI) Berechnung Feiertagsentschädigung"]
[]
[null,null,{"$f":"C100","v":"Gruppenleitung 1"},null,{"$f":"E100","v":"Gruppenleitung 2"},null,{"$f":"G100","v":"Assistenz / Begleitperson 1 "},null,{"$f":"I100","v":"Assistenz / Begleitperson 2 "}]
[null,"Wird eine Feiertagsentschädigung ausbezahlt?","nein",null,"nein",null,"nein",null,"nein"]
[null,"Feiertagsanteil in Prozent ",{"$f":"IF(C117=\"ja\",3.5,0)","v":0},null,{"$f":"IF(E117=\"ja\",3.5,0)","v":0},null,{"$f":"IF(G117=\"ja\",3.5,0)","v":0},null,{"$f":"IF(I117=\"ja\",3.5,0)","v":0}]
[11,"Feiertagsanteil in Stunden",{"$f":"IF(C117=\"nein\",0,C104*C118/100)","v":{"v":0,"d":"0.0"}},null,{"$f":"IF(E117=\"nein\",0,E104*E118/100)","v":{"v":0,"d":"0.0"}},null,{"$f":"IF(G117=\"nein\",0,G104*G118/100)","v":{"v":0,"d":"0.0"}},null,{"$f":"IF(I117=\"nein\",0,I104*I118/100)","v":{"v":0,"d":"0.0"}}]
[]
[null,"VI) Berechnung Zuschlag 13. Monatslohn "]
[]
[null,null,{"$f":"C100","v":"Gruppenleitung 1"},null,{"$f":"E100","v":"Gruppenleitung 2"},null,{"$f":"G100","v":"Assistenz / Begleitperson 1 "},null,{"$f":"I100","v":"Assistenz / Begleitperson 2 "}]
[null,"Wird ein 13. Monatslohn ausbezahlt?","nein",null,"nein",null,"nein",null,"nein"]
[null,"Anteil 13. Monatslohn in Prozent ",{"$f":"IF(C124=\"ja\",8.33,0)","v":0},null,{"$f":"IF(E124=\"ja\",8.33,0)","v":0},null,{"$f":"IF(G124=\"ja\",8.33,0)","v":0},null,{"$f":"IF(I124=\"ja\",8.33,0)","v":0}]
[12,"Anteil 13. Monatslohn in Stunden",{"$f":"IF(C124=\"nein\",0,C104*C125/100)","v":{"v":0,"d":"0.0"}},null,{"$f":"IF(E124=\"nein\",0,E104*E125/100)","v":{"v":0,"d":"0.0"}},null,{"$f":"IF(G124=\"nein\",0,G104*G125/100)","v":{"v":0,"d":"0.0"}},null,{"$f":"IF(I124=\"nein\",0,I104*I125/100)","v":{"v":0,"d":"0.0"}}]
[]
[null,"Erfolgsrechnung"]
[]
[]
[null,"Ausgaben"]
[]
[null,"I) Personalkosten"]
[]
[null,"Lohnkosten","Jahresarbeitszeit (Position 9)","Anteil Ferien, Feiertag, 13. ML (Positionen 10-12)","Jahresarbeitszeit total (Positionen 9 + 10)","Stundenansatz ohne Ferienanteil","Bruttolohn"]
[null,{"$f":"C100","v":"Gruppenleitung 1"},{"$f":"C104","v":{"v":0,"d":"0.0"}},{"$f":"C112+C119+C126","v":{"v":0,"d":"0.0"}},{"$f":"C136+D136","v":{"v":0,"d":"0.0"}},{"v":0,"d":"0.00"},{"$f":"E136*F136","v":{"v":0,"d":"0.00"}},"Hinweis: Lohnempfehlungen siehe SSLV"]
[null,{"$f":"E100","v":"Gruppenleitung 2"},{"$f":"E104","v":{"v":0,"d":"0.0"}},{"$f":"E112+E119+E126","v":{"v":0,"d":"0.0"}},{"$f":"C137+D137","v":{"v":0,"d":"0.0"}},{"v":0,"d":"0.00"},{"$f":"E137*F137","v":{"v":0,"d":"0.00"}}]
[null,{"$f":"G100","v":"Assistenz / Begleitperson 1 "},{"$f":"G104","v":{"v":0,"d":"0.0"}},{"$f":"G112+G119+G126","v":{"v":0,"d":"0.0"}},{"$f":"C138+D138","v":{"v":0,"d":"0.0"}},{"v":0,"d":"0.00"},{"$f":"E138*F138","v":{"v":0,"d":"0.00"}}]
[null,{"$f":"I100","v":"Assistenz / Begleitperson 2 "},{"$f":"I104","v":{"v":0,"d":"0.0"}},{"$f":"I112+I119+I126","v":{"v":0,"d":"0.0"}},{"$f":"C139+D139","v":{"v":0,"d":"0.0"}},{"v":0,"d":"0.00"},{"$f":"E139*F139","v":{"v":0,"d":"0.00"}}]
[13,"Total Bruttolohn",{"$nulls":4},{"$f":"SUM(G136:G139)","v":{"v":0,"d":"0.00"}},"Hinweis: Vom Bruttolohn werden Arbeitnehmerbeiträge abgerechnet"]
[]
[]
[null,"Lohnnebenkosten, welche von Arbeitgeberin bezahlt werden",{"$nulls":3},"Anteil in Prozent",null,"Hinweis: Lohnnebenkosten, welche von der SG-Leiterin direkt bezahlt werden, werden nicht aufgeführt"]
[]
[null,"Arbeitgeberbeiträge Sozialversicherung (AHV, IV, EO, ALV)",{"$nulls":3},{"v":0.064,"d":"6.400%"},{"$f":"G140*F145","v":{"v":0,"d":"0.00"}}]
[null,"evtl. Verwaltungskosten Pensionskasse",{"$nulls":3},{"v":0.0025,"d":"0.250%"},{"$f":"G140*F146","v":{"v":0,"d":"0.00"}},"Hinweis: Wird eine Leistung nicht bezahlt, Zahl auf \"0\" setzen"]
[null,"evtl. Familienausgleichskasse (FAK)",{"$nulls":3},{"v":0.015,"d":"1.500%"},{"$f":"G140*F147","v":{"v":0,"d":"0.00"}}]
[null,"Berufsunfallversicherung (gemäss Versicherungsangebot der IG Spielgruppe)",{"$nulls":3},{"v":0.00196,"d":"0.196%"},{"$f":"G140*F148","v":{"v":0,"d":"0.00"}}]
[null,"Nichtberufsunfallversicherung (gemäss Versicherungsangebot der IG Spielgruppe)",{"$nulls":3},{"v":0.01112,"d":"1.112%"},{"$f":"G140*F149","v":{"v":0,"d":"0.00"}}]
[null,"…",{"$nulls":3},{"v":0,"d":"0.000%"},{"$f":"G140*F150","v":{"v":0,"d":"0.00"}}]
[null,"…",{"$nulls":3},{"v":0,"d":"0.000%"},{"$f":"G140*F151","v":{"v":0,"d":"0.00"}}]
[null,"…",{"$nulls":4},{"v":0,"d":"0.00"}]
[14,"Total Lohnnebenkosten, welche von Arbeitgeberin bezahlt werden",{"$nulls":4},{"$f":"SUM(G145:G152)","v":{"v":0,"d":"0.00"}}]
[]
[15,"Total Lohnkosten (Positionen 13 + 14)",{"$nulls":4},{"$f":"G140+G153","v":{"v":0,"d":"0.00"}}]
[]
[]
[null,"Weiterbildungskosten Personal",{"$nulls":4},{"v":0,"d":"0.00"}]
[null,"Mitgliederbeiträge (Beiträge SSLV + regionale FKS x Anzahl Mitarbeiterinnen)",{"$nulls":4},{"v":0,"d":"0.00"}]
[null,"Vergütung Vorstandsarbeit",{"$nulls":4},{"v":0,"d":"0.00"}]
[null,"…",{"$nulls":4},{"v":0,"d":"0.00"}]
[null,"….",{"$nulls":4},{"v":0,"d":"0.00"}]
[16,"Personalkosten diverses",{"$nulls":4},{"$f":"SUM(G158:G162)","v":{"v":0,"d":"0.00"}}]
[]
[17,"Personalkosten total (Positionen 15 + 16)",{"$nulls":4},{"$f":"G155+G163","v":{"v":0,"d":"0.00"}}]
[]
[]
[]
[null,"II) Betriebskosten  pro Jahr"]
[null,"Hinweis: Führt eine Trägerschaft mehrere Gruppen müssen gewisse Kosten (z.B. Versicherung, Buchhaltung) auf die einzelnen Gruppen aufgeteilt werden."]
[]
[null,"fixe Betriebskosten"]
[null,"Miete","Anmerkung:",{"$nulls":3},{"v":0,"d":"0.00"}]
[null,"Betriebshaftpflichtversicherung","Anmerkung:",{"$nulls":3},{"v":0,"d":"0.00"}]
[null,"Geschäftsversicherung","Anmerkung:",{"$nulls":3},{"v":0,"d":"0.00"}]
[null,"Buchhaltung, Administration","Anmerkung:",{"$nulls":3},{"v":0,"d":"0.00"}]
[null,"Spesen Kontoführung ","Anmerkung:",{"$nulls":3},{"v":0,"d":"0.00"}]
[null,"Geschäftsführung, Vereinsleitung, Sitzungsgelder ","Anmerkung:",{"$nulls":3},{"v":0,"d":"0.00"}]
[null,"Diverses Pauschal","Anmerkung:",{"$nulls":3},{"v":0,"d":"0.00"}]
[null,"…","Anmerkung:",{"$nulls":3},{"v":0,"d":"0.00"}]
[18,"fixe Betriebskosten",{"$nulls":4},{"$f":"SUM(G173:G180)","v":{"v":0,"d":"0.00"}}]
[]
[null,"variable Betriebskosten "]
[null,"Verpflegung Z'Nüni/Z'Vieri ","Anmerkung:",{"$nulls":3},{"v":0,"d":"0.00"}]
[null,"Verbrauchsmaterial","Anmerkung:",{"$nulls":3},{"v":0,"d":"0.00"}]
[null,"Spielmaterial, Kinderbücher","Anmerkung:",{"$nulls":3},{"v":0,"d":"0.00"}]
[null,"Ausflüge, Spielgruppenreise","Anmerkung:",{"$nulls":3},{"v":0,"d":"0.00"}]
[null,"Elternabende/-aktivitäten","Anmerkung:",{"$nulls":3},{"v":0,"d":"0.00"}]
[null,"Mobiliar (Neuanschaffungen, Unterhalt/Reparatur)","Anmerkung:",{"$nulls":3},{"v":0,"d":"0.00"}]
[null,"Porto","Anmerkung:",{"$nulls":3},{"v":0,"d":"0.00"}]
[null,"Telefon","Anmerkung:",{"$nulls":3},{"v":0,"d":"0.00"}]
[null,"Druckkosten","Anmerkung:",{"$nulls":3},{"v":0,"d":"0.00"}]
[null,"Öffentlichkeitsarbeit, Werbung","Anmerkung:",{"$nulls":3},{"v":0,"d":"0.00"}]
[null,"Geschenke","Anmerkung:",{"$nulls":3},{"v":0,"d":"0.00"}]
[null,"Fachliteratur, Abo Spielgruppenzeitung","Anmerkung:",{"$nulls":3},{"v":0,"d":"0.00"}]
[null,"Diverses Pauschal","Anmerkung:",{"$nulls":3},{"v":0,"d":"0.00"}]
[null,"…","Anmerkung:",{"$nulls":3},{"v":0,"d":"0.00"}]
[null,"…","Anmerkung:",{"$nulls":3},{"v":0,"d":"0.00"}]
[19,"variable Betriebskosten ",{"$nulls":4},{"$f":"SUM(G184:G198)","v":{"v":0,"d":"0.00"}}]
[]
[]
[null,"Rückstellungen (Krankheit, Anschaffungen etc.)","Anmerkung:",{"$nulls":3},{"v":0,"d":"0.00"}]
[null,"…","Anmerkung:",{"$nulls":3},{"v":0,"d":"0.00"}]
[20,"Rückstellungen ",{"$nulls":4},{"$f":"SUM(G202:G203)","v":{"v":0,"d":"0.00"}}]
[]
[21,"Betriebskosten total (Positionen 18 + 19 + 20)",{"$nulls":4},{"$f":"G181+G199+G204","v":{"v":0,"d":"0.00"}}]
[]
[]
[22,"III) Vollkosten (Postion 17 + 21)",{"$nulls":4},{"$f":"G165+G206","v":{"v":0,"d":"0.00"}}]
[]
[23,"IV) Vollkosten pro Platz (Positionen 22 : 3 : 4) ",{"$nulls":4},{"$f":"G209/C18/C19","v":{"$error":"#DIV/0!"}}]
[]
[]
[]
[null,"Einnahmen"]
[]
[null,"I) Elternbeiträge"]
[null,null,"Fr. pro Platz","Kinder"]
[null,"Elternbeitrag pro Platz (wird in Rechnung gestellt)",{"v":0,"d":"0.00"},{"$nulls":4},"Hinweis: Preis pro Platz entspricht den Vollkosten (Position 23). Der Preis kann reduziert werden, wenn Beiträge Dritte (Position 25) vorhanden sind."]
[null,"Elternbeiträge bei erwarteter Auslastung gemäss Position 4 ",null,{"$f":"C18*C19","v":{"v":0,"d":"0.0"}},null,null,{"$f":"C219*D220","v":{"v":0,"d":"0.00"}}]
[]
[24,"Total Elternbeiträge",{"$nulls":4},{"$f":"SUM(G220:G221)","v":{"v":0,"d":"0.00"}}]
[]
[null,"II) Beiträge Dritte"]
[null,"Spenden","Anmerkung:",{"$nulls":3},{"v":0,"d":"0.00"}]
[null,"Beitrag Gemeinde","Anmerkung:",{"$nulls":3},{"v":0,"d":"0.00"}]
[null,"Beitrag Kirche","Anmerkung:",{"$nulls":3},{"v":0,"d":"0.00"}]
[null,"Beitrag Kanton","Anmerkung:",{"$nulls":3},{"v":0,"d":"0.00"}]
[null,"…","Anmerkung:",{"$nulls":3},{"v":0,"d":"0.00"}]
[null,"…","Anmerkung:",{"$nulls":3},{"v":0,"d":"0.00"}]
[25,"Total Beiträge Dritte",{"$nulls":4},{"$f":"SUM(G225:G230)","v":{"v":0,"d":"0.00"}}]
[]
[26,"Total Einnahmen (Positionen 24 + 25)",{"$nulls":4},{"$f":"G222+G231","v":{"v":0,"d":"0.00"}}]
[]
[]
[null,"Erfolgsrechnung"]
[]
[null,"Total Einnahmen (Position 26)",{"$nulls":4},{"$f":"G233","v":{"v":0,"d":"0.00"}}]
[null,"Total Ausgaben (Position 22)",{"$nulls":4},{"$f":"G209","v":{"v":0,"d":"0.00"}}]
[27,"Übertrag in Reserve (falls Einnahmen höher als Ausgaben)","Anmerkung:",{"$nulls":3},{"v":0,"d":"0.00"}]
[28,"Übertrag aus Reserven (falls Ausgaben höher als Einnahmen)","Anmerkung:",{"$nulls":3},{"v":0,"d":"0.00"},"Hinweis: nur Betrag ohne \"-\" (Minus) eingeben"]
[29,"Saldo",{"$nulls":4},{"$f":"G238-G239-G240+G241","v":{"v":0,"d":"0.00"}}]
[]
[30,"Gewinn oder Verlust / bzw. Eigenleistung Spielgruppenleiterinnen",{"$nulls":4},{"$f":"G242","v":{"v":0,"d":"0.00"}}]
[]
[]
[]
[null,"weitere Anmerkungen: "]

{"sheet":"VK Gruppe 15","index":16,"n_rows":248,"n_cols":9,"rows_kept":248,"merged":[[5,2,5,3],[6,2,6,3],[7,2,7,3],[8,2,8,3],[9,2,9,3],[18,5,20,9],[22,5,23,9],[30,3,30,4],[31,5,32,9],[34,5,34,9],[37,5,39,9],[40,3,40,4],[44,5,44,9],[48,3,48,4],[52,5,52,9],[56,3,56,4],[60,5,60,9],[70,5,70,9],[71,5,71,9],[72,5,72,9],[80,5,80,9],[81,5,81,9],[82,5,82,9],[83,5,83,9],[84,5,84,9],[85,5,85,9],[86,5,86,9],[139,7,140,9],[142,7,143,9],[145,7,146,9],[172,3,172,4],[173,3,173,4],[174,3,174,4],[175,3,175,4],[176,3,176,4],[177,3,177,4],[178,3,178,4],[179,3,179,4],[183,3,183,4],[184,3,184,4],[185,3,185,4],[186,3,186,4],[187,3,187,4],[188,3,188,4],[189,3,189,4],[190,3,190,4],[191,3,191,4],[192,3,192,4],[193,3,193,4],[194,3,194,4],[195,3,195,4],[196,3,196,4],[197,3,197,4],[201,3,201,4],[202,3,202,4],[218,7,220,9],[224,3,224,4],[225,3,225,4],[226,3,226,4],[227,3,227,4],[228,3,228,4],[229,3,229,4],[239,3,239,4],[240,3,240,4],[247,1,247,9],[248,1,248,9],[249,1,249,9],[250,1,250,9],[251,1,251,9],[252,1,252,9],[253,1,253,9],[254,1,254,9],[255,1,255,9],[256,1,256,9],[257,1,257,9],[258,1,258,9],[259,1,259,9]]}
[]
[null,"Hellblaue Felder können eingefüllt werden"]
[null,"Orange Felder müssen eingefüllt werden"]
[]
[]
[null,"Spielgruppe"]
[null,"Name Gruppe"]
[null,"Durchführung pro Woche"]
[null,"Berechnungsperiode"]
[null,"Berechnungsdatum"]
[]
[null,"Berechnung Arbeitszeit pro Gruppe"]
[]
[null,"I) Basisdaten"]
["Position"]
[1,"Anzahl Spielgruppenwochen pro Berechnungsperiode:",0,"Wochen"]
[2,"Anzahl Durchführung pro Woche",0,"Anzahl pro Woche"]
[3,"Anzahl Plätze bei Vollbelegung",0,"Plätze"]
[4,"erwartete Jahresauslastung in Prozent",{"v":0,"d":"0%"},"Prozent",null,"Hinweis: Können alle Plätze voll verrechnet werden ist die Jahresauslastung 100%. Können nicht alle Plätze voll verrechnet werden (z.B. offene Plätze, späterer Einstieg) liegt die Jahresauslastung unter 100%."]
[]
[]
[]
["5a","Anzahl Spielgruppenstunden pro Durchführung",0,"Stunden",null,"Hinweis: Bei mehreren Durchführungen pro Woche durchschnittliche Dauer eintragen, falls Länge der Durchführung unterschiedlich"]
["5b","Vorbereitung pro Durchführung (inkl. Administration, Einkauf, Raum vorbereiten)",0,"Stunden"]
["5c","Nachbereitung pro Durchführung (inkl. Aufräumen, Tür-und-Angel-Elterngespräche)",0,"Stunden"]
[]
[]
[null,"II) Arbeitszeit pro Person und Durchführung"]
[]
[{"$nulls":3},"Anzahl Stunden"]
[null,"Gruppenleitung 1","Name"]
[null,".Spielgruppenstunden (Position 5a)","ja",{"$f":"IF(C32=\"ja\",C23,0)","v":0},null,"Hinweis: \"ja\" bedeutet, dass der Posten als bezahlte Arbeitszeit angerechnet wird, \"nein\" bedeutet, dass der Posten nicht angerechnet wird."]
[null,".Vorbereitung (Position 5b)","ja",{"$f":"IF(C33=\"ja\",C24,0)","v":0}]
[null,".Nachbereitung (Position 5c)","ja",{"$f":"IF(C34=\"ja\",C25,0)","v":0}]
[null,".Optional: andere Stundenzahl als Positionen 5b / 5c für Vor- und Nachbereitung",null,null,"Anmerkung:"]
["6a","Total Gruppenleitung 1",null,{"$f":"SUM(D32:D35)","v":0}]
[]
[null,"Wird eine zweite Gruppenleitung eingesetzt?","nein",null,null,"Hinweis: In der Regel wird eine SG von einer ausgebildeten Spielgruppenleiterin geleitet. Unterstützt wird sie in manchen SG von einer Assistenz / Begleitperson. In wenigen SG werden zwei ausgebildete Spielgruppenleiterinnen oder gar drei Personen eingesetzt."]
[]
[]
[null,"Gruppenleitung 2","Name"]
[null,".Spielgruppenstunden (Position 5a)","nein",{"$f":"IF(C42=\"ja\",C23,0)","v":0}]
[null,".Vorbereitung (Position 5b)","nein",{"$f":"IF(C43=\"ja\",C24,0)","v":0}]
[null,".Nachbereitung (Position 5c)","nein",{"$f":"IF(C44=\"ja\",C25,0)","v":0}]
[null,".Optional: andere Stundenzahl als Positionen 5b / 5c für Vor- und Nachbereitung",null,null,"Anmerkung:"]
["6b","Total Gruppenleitung 2",null,{"$f":"SUM(D42:D45)","v":0}]
[]
[null,"Wird eine Begleitperson in der Gruppe eingesetzt?","ja"]
[null,"Assistenz / Begleitperson 1 ","Name"]
[null,".Spielgruppenstunden (Position 5a)","ja",{"$f":"IF(C50=\"ja\",C23,0)","v":0}]
[null,".Vorbereitung (Position 5b)","nein",{"$f":"IF(C51=\"ja\",C24,0)","v":0}]
[null,".Nachbereitung (Position 5c)","nein",{"$f":"IF(C52=\"ja\",C25,0)","v":0}]
[null,".Optional: andere Stundenzahl als Positionen 5b / 5c für Vor- und Nachbereitung",null,0,"Anmerkung:"]
["6c","Total Assistenz / Begleitperson 1 ",null,{"$f":"SUM(D50:D53)","v":0}]
[]
[null,"Wird eine zweite Begleitperson in der Gruppe eingesetzt?","nein"]
[null,"Assistenz / Begleitperson 2 ","Name"]
[null,".Spielgruppenstunden (Position 5a)","nein",{"$f":"IF(C58=\"ja\",C23,0)","v":0}]
[null,".Vorbereitung (Position 5b)","nein",{"$f":"IF(C59=\"ja\",C24,0)","v":0}]
[null,".Nachbereitung (Position 5c)","nein",{"$f":"IF(C60=\"ja\",C25,0)","v":0}]
[null,".Optional: andere Stundenzahl als Positionen 5b / 5c für Vor- und Nachbereitung",null,null,"Anmerkung:"]
["6d","Total Assistenz / Begleitperson 2 ",null,{"$f":"SUM(D58:D61)","v":0}]
[]
[]
[null,"III) Leitungsaufwand pro Gruppe und Jahr (nur Gruppenleitung)"]
[]
[null,"Jahresplanung/Erstellen Elterninformationen/Einteilungen",0,"Stunden"]
[null,"Planungssitzungen mit Gemeinde/Schule/Fachstellen (Anzahl Gespräche x 1.5 Stunden)",{"$f":"F68*1.5","v":0},"Stunden","Anzahl Gespräche",0]
[null,"Kontakte Schule/Fachpersonen (Anzahl Gespräche x 0.5 Stunden)",{"$f":"F69*0.5","v":0},"Stunden","Anzahl Gespräche",0]
[null,"spezifische Elternkontakte (Anzahl Gespräche x 0.5 Stunden)",{"$f":"F70*0.5","v":0},"Stunden","Anzahl Gespräche",0]
[null,"…",0,"Stunden","Anmerkungen:"]
[null,"…",0,"Stunden","Anmerkungen:"]
[null,"…",0,"Stunden","Anmerkungen:"]
[7,"Total Leitungsaufwand pro Spielgruppe in Stunden (nur Gruppenleitung)",{"$f":"SUM(C67:C73)","v":0}]
[]
[null,"Wird der Leitungsaufwand zwischen zwei Gruppenleitungen aufgeteilt?","nein",null,null,"Hinweis: nur möglich, wenn Positionen bei 6b mit \"ja\" eingetragen"]
[]
[]
[null,"IV) allgemeiner Aufwand pro Spielgruppenjahr (pro Person)"]
[]
[null,"Elternvernetzungsanlässe inkl. Vor- und Nachbereitung (ca. 5 Std. pro Anlass)",0,"Stunden","Anmerkung:"]
[null,"Teamsitzungen / Mitarbeiterinnengespräch",0,"Stunden","Anmerkung:"]
[null,"individuelle Weiterbildung ",0,"Stunden","Anmerkung:"]
[null,"Rauminstandhaltung/Materialreinigung/-reparatur/-einkauf",0,"Stunden","Anmerkung:"]
[null,"…",0,"Stunden","Anmerkung:"]
[null,"…",0,"Stunden","Anmerkung:"]
[null,"…",0,"Stunden","Anmerkung:"]
[8,"Total allgemeiner Aufwand pro Spielgruppenjahr in Stunden (pro Person)",{"$f":"SUM(C81:C87)","v":0}]
[]
[null,"Wird der allgemeine Aufwand der Arbeitszeit der Gruppenleitung 1 angerechnet?","ja"]
[null,"Wird der allgemeine Aufwand der Arbeitszeit der Gruppenleitung 2 angerechnet?","nein",null,null,"Hinweis: nur möglich, wenn Positionen bei 6b mit \"ja\" eingetragen"]
[null,"Wird der allg. Aufwand der Arbeitszeit der Assistenz/Begleitperson 1 angerechnet?","nein",null,null,"Hinweis: nur möglich, wenn Positionen bei 6c mit \"ja\" eingetragen"]
[null,"Wird der allg. Aufwand der Arbeitszeit der Assistenz/Begleitperson 2 angerechnet?","nein",null,null,"Hinweis: nur möglich, wenn Positionen bei 6d mit \"ja\" eingetragen"]
[]
[]
[]
[]
[null,"V) Jahresarbeitszeit (ohne Ferienanteil) in Stunden "]
[]
[null,null,{"$f":"B31","v":"Gruppenleitung 1"},null,{"$f":"B41","v":"Gruppenleitung 2"},null,{"$f":"B49","v":"Assistenz / Begleitperson 1 "},null,{"$f":"B57","v":"Assistenz / Begleitperson 2 "}]
[null,"Arbeitszeit pro Person und Gruppe (Positionen 1 x 2 x 6)",{"$f":"C16*C17*D36","v":0},null,{"$f":"C16*C17*D46","v":0},null,{"$f":"C16*C17*D54","v":0},null,{"$f":"C16*C17*D62","v":0}]
[null,"Leitungsaufwand pro Gruppe und Jahr (nur Leitung) (Position 7)",{"$f":"IF(C76=\"ja\",C74/2,C74)","v":0},null,{"$f":"IF(C76=\"ja\",C74/2,0)","v":0},null,0,null,0]
[null,"allgemeiner Aufwand pro Spielgruppenjahr (pro Person) (Position 8)",{"$f":"IF(C90=\"ja\",C88,0)","v":0},null,{"$f":"IF(C91=\"ja\",C88,0)","v":0},null,{"$f":"IF(C92=\"ja\",C88,0)","v":0},null,{"$f":"IF(C93=\"ja\",C88,0)","v":0}]
[9,"Total Jahresarbeitszeit (ohne Ferienanteil) in Stunden",{"$f":"SUM(C101:C103)","v":0},null,{"$f":"SUM(E101:E103)","v":0},null,{"$f":"SUM(G101:G103)","v":0},null,{"$f":"SUM(I101:I103)","v":0}]
[]
[]
[null,"VI) Berechnung Ferienanteil"]
[]
[null,null,{"$f":"C100","v":"Gruppenleitung 1"},null,{"$f":"E100","v":"Gruppenleitung 2"},null,{"$f":"G100","v":"Assistenz / Begleitperson 1 "},null,"Assistenz / Begleitperson 2 "]
[null,"Beträgt der jährliche Ferienanteil 4 Wochen (gesetzliches Minimum) oder 5 Wochen?","4 Wochen",null,"5 Wochen",null,"4 Wochen",null,"4 Wochen"]
[null,"Ferienanteil in Prozent",{"$f":"IF(C110=\"4 Wochen\",8.33,10.64)","v":8.33},null,{"$f":"IF(E110=\"4 Wochen\",8.33,10.64)","v":10.64},null,{"$f":"IF(G110=\"4 Wochen\",8.33,10.64)","v":8.33},null,{"$f":"IF(I110=\"4 Wochen\",8.33,10.64)","v":8.33}]
[10,"Ferienanteil in Stunden",{"$f":"C104*C111/100","v":{"v":0,"d":"0.0"}},null,{"$f":"E104*E111/100","v":{"v":0,"d":"0.0"}},null,{"$f":"G104*G111/100","v":{"v":0,"d":"0.0"}},null,{"$f":"I104*I111/100","v":{"v":0,"d":"0.0"}}]
[]
[null,"VI) Berechnung Feiertagsentschädigung"]
[]
[null,null,{"$f":"C100","v":"Gruppenleitung 1"},null,{"$f":"E100","v":"Gruppenleitung 2"},null,{"$f":"G100","v":"Assistenz / Begleitperson 1 "},null,{"$f":"I100","v":"Assistenz / Begleitperson 2 "}]
[null,"Wird eine Feiertagsentschädigung ausbezahlt?","nein",null,"nein",null,"nein",null,"nein"]
[null,"Feiertagsanteil in Prozent ",{"$f":"IF(C117=\"ja\",3.5,0)","v":0},null,{"$f":"IF(E117=\"ja\",3.5,0)","v":0},null,{"$f":"IF(G117=\"ja\",3.5,0)","v":0},null,{"$f":"IF(I117=\"ja\",3.5,0)","v":0}]
[11,"Feiertagsanteil in Stunden",{"$f":"IF(C117=\"nein\",0,C104*C118/100)","v":{"v":0,"d":"0.0"}},null,{"$f":"IF(E117=\"nein\",0,E104*E118/100)","v":{"v":0,"d":"0.0"}},null,{"$f":"IF(G117=\"nein\",0,G104*G118/100)","v":{"v":0,"d":"0.0"}},null,{"$f":"IF(I117=\"nein\",0,I104*I118/100)","v":{"v":0,"d":"0.0"}}]
[]
[null,"VI) Berechnung Zuschlag 13. Monatslohn "]
[]
[null,null,{"$f":"C100","v":"Gruppenleitung 1"},null,{"$f":"E100","v":"Gruppenleitung 2"},null,{"$f":"G100","v":"Assistenz / Begleitperson 1 "},null,{"$f":"I100","v":"Assistenz / Begleitperson 2 "}]
[null,"Wird ein 13. Monatslohn ausbezahlt?","nein",null,"nein",null,"nein",null,"nein"]
[null,"Anteil 13. Monatslohn in Prozent ",{"$f":"IF(C124=\"ja\",8.33,0)","v":0},null,{"$f":"IF(E124=\"ja\",8.33,0)","v":0},null,{"$f":"IF(G124=\"ja\",8.33,0)","v":0},null,{"$f":"IF(I124=\"ja\",8.33,0)","v":0}]
[12,"Anteil 13. Monatslohn in Stunden",{"$f":"IF(C124=\"nein\",0,C104*C125/100)","v":{"v":0,"d":"0.0"}},null,{"$f":"IF(E124=\"nein\",0,E104*E125/100)","v":{"v":0,"d":"0.0"}},null,{"$f":"IF(G124=\"nein\",0,G104*G125/100)","v":{"v":0,"d":"0.0"}},null,{"$f":"IF(I124=\"nein\",0,I104*I125/100)","v":{"v":0,"d":"0.0"}}]
[]
[null,"Erfolgsrechnung"]
[]
[]
[null,"Ausgaben"]
[]
[null,"I) Personalkosten"]
[]
[null,"Lohnkosten","Jahresarbeitszeit (Position 9)","Anteil Ferien, Feiertag, 13. ML (Positionen 10-12)","Jahresarbeitszeit total (Positionen 9 + 10)","Stundenansatz ohne Ferienanteil","Bruttolohn"]
[null,{"$f":"C100","v":"Gruppenleitung 1"},{"$f":"C104","v":{"v":0,"d":"0.0"}},{"$f":"C112+C119+C126","v":{"v":0,"d":"0.0"}},{"$f":"C136+D136","v":{"v":0,"d":"0.0"}},{"v":0,"d":"0.00"},{"$f":"E136*F136","v":{"v":0,"d":"0.00"}},"Hinweis: Lohnempfehlungen siehe SSLV"]
[null,{"$f":"E100","v":"Gruppenleitung 2"},{"$f":"E104","v":{"v":0,"d":"0.0"}},{"$f":"E112+E119+E126","v":{"v":0,"d":"0.0"}},{"$f":"C137+D137","v":{"v":0,"d":"0.0"}},{"v":0,"d":"0.00"},{"$f":"E137*F137","v":{"v":0,"d":"0.00"}}]
[null,{"$f":"G100","v":"Assistenz / Begleitperson 1 "},{"$f":"G104","v":{"v":0,"d":"0.0"}},{"$f":"G112+G119+G126","v":{"v":0,"d":"0.0"}},{"$f":"C138+D138","v":{"v":0,"d":"0.0"}},{"v":0,"d":"0.00"},{"$f":"E138*F138","v":{"v":0,"d":"0.00"}}]
[null,{"$f":"I100","v":"Assistenz / Begleitperson 2 "},{"$f":"I104","v":{"v":0,"d":"0.0"}},{"$f":"I112+I119+I126","v":{"v":0,"d":"0.0"}},{"$f":"C139+D139","v":{"v":0,"d":"0.0"}},{"v":0,"d":"0.00"},{"$f":"E139*F139","v":{"v":0,"d":"0.00"}}]
[13,"Total Bruttolohn",{"$nulls":4},{"$f":"SUM(G136:G139)","v":{"v":0,"d":"0.00"}},"Hinweis: Vom Bruttolohn werden Arbeitnehmerbeiträge abgerechnet"]
[]
[]
[null,"Lohnnebenkosten, welche von Arbeitgeberin bezahlt werden",{"$nulls":3},"Anteil in Prozent",null,"Hinweis: Lohnnebenkosten, welche von der SG-Leiterin direkt bezahlt werden, werden nicht aufgeführt"]
[]
[null,"Arbeitgeberbeiträge Sozialversicherung (AHV, IV, EO, ALV)",{"$nulls":3},{"v":0.064,"d":"6.400%"},{"$f":"G140*F145","v":{"v":0,"d":"0.00"}}]
[null,"evtl. Verwaltungskosten Pensionskasse",{"$nulls":3},{"v":0.0025,"d":"0.250%"},{"$f":"G140*F146","v":{"v":0,"d":"0.00"}},"Hinweis: Wird eine Leistung nicht bezahlt, Zahl auf \"0\" setzen"]
[null,"evtl. Familienausgleichskasse (FAK)",{"$nulls":3},{"v":0.015,"d":"1.500%"},{"$f":"G140*F147","v":{"v":0,"d":"0.00"}}]
[null,"Berufsunfallversicherung (gemäss Versicherungsangebot der IG Spielgruppe)",{"$nulls":3},{"v":0.00196,"d":"0.196%"},{"$f":"G140*F148","v":{"v":0,"d":"0.00"}}]
[null,"Nichtberufsunfallversicherung (gemäss Versicherungsangebot der IG Spielgruppe)",{"$nulls":3},{"v":0.01112,"d":"1.112%"},{"$f":"G140*F149","v":{"v":0,"d":"0.00"}}]
[null,"…",{"$nulls":3},{"v":0,"d":"0.000%"},{"$f":"G140*F150","v":{"v":0,"d":"0.00"}}]
[null,"…",{"$nulls":3},{"v":0,"d":"0.000%"},{"$f":"G140*F151","v":{"v":0,"d":"0.00"}}]
[null,"…",{"$nulls":4},{"v":0,"d":"0.00"}]
[14,"Total Lohnnebenkosten, welche von Arbeitgeberin bezahlt werden",{"$nulls":4},{"$f":"SUM(G145:G152)","v":{"v":0,"d":"0.00"}}]
[]
[15,"Total Lohnkosten (Positionen 13 + 14)",{"$nulls":4},{"$f":"G140+G153","v":{"v":0,"d":"0.00"}}]
[]
[]
[null,"Weiterbildungskosten Personal",{"$nulls":4},{"v":0,"d":"0.00"}]
[null,"Mitgliederbeiträge (Beiträge SSLV + regionale FKS x Anzahl Mitarbeiterinnen)",{"$nulls":4},{"v":0,"d":"0.00"}]
[null,"Vergütung Vorstandsarbeit",{"$nulls":4},{"v":0,"d":"0.00"}]
[null,"…",{"$nulls":4},{"v":0,"d":"0.00"}]
[null,"….",{"$nulls":4},{"v":0,"d":"0.00"}]
[16,"Personalkosten diverses",{"$nulls":4},{"$f":"SUM(G158:G162)","v":{"v":0,"d":"0.00"}}]
[]
[17,"Personalkosten total (Positionen 15 + 16)",{"$nulls":4},{"$f":"G155+G163","v":{"v":0,"d":"0.00"}}]
[]
[]
[]
[null,"II) Betriebskosten  pro Jahr"]
[null,"Hinweis: Führt eine Trägerschaft mehrere Gruppen müssen gewisse Kosten (z.B. Versicherung, Buchhaltung) auf die einzelnen Gruppen aufgeteilt werden."]
[]
[null,"fixe Betriebskosten"]
[null,"Miete","Anmerkung:",{"$nulls":3},{"v":0,"d":"0.00"}]
[null,"Betriebshaftpflichtversicherung","Anmerkung:",{"$nulls":3},{"v":0,"d":"0.00"}]
[null,"Geschäftsversicherung","Anmerkung:",{"$nulls":3},{"v":0,"d":"0.00"}]
[null,"Buchhaltung, Administration","Anmerkung:",{"$nulls":3},{"v":0,"d":"0.00"}]
[null,"Spesen Kontoführung ","Anmerkung:",{"$nulls":3},{"v":0,"d":"0.00"}]
[null,"Geschäftsführung, Vereinsleitung, Sitzungsgelder ","Anmerkung:",{"$nulls":3},{"v":0,"d":"0.00"}]
[null,"Diverses Pauschal","Anmerkung:",{"$nulls":3},{"v":0,"d":"0.00"}]
[null,"…","Anmerkung:",{"$nulls":3},{"v":0,"d":"0.00"}]
[18,"fixe Betriebskosten",{"$nulls":4},{"$f":"SUM(G173:G180)","v":{"v":0,"d":"0.00"}}]
[]
[null,"variable Betriebskosten "]
[null,"Verpflegung Z'Nüni/Z'Vieri ","Anmerkung:",{"$nulls":3},{"v":0,"d":"0.00"}]
[null,"Verbrauchsmaterial","Anmerkung:",{"$nulls":3},{"v":0,"d":"0.00"}]
[null,"Spielmaterial, Kinderbücher","Anmerkung:",{"$nulls":3},{"v":0,"d":"0.00"}]
[null,"Ausflüge, Spielgruppenreise","Anmerkung:",{"$nulls":3},{"v":0,"d":"0.00"}]
[null,"Elternabende/-aktivitäten","Anmerkung:",{"$nulls":3},{"v":0,"d":"0.00"}]
[null,"Mobiliar (Neuanschaffungen, Unterhalt/Reparatur)","Anmerkung:",{"$nulls":3},{"v":0,"d":"0.00"}]
[null,"Porto","Anmerkung:",{"$nulls":3},{"v":0,"d":"0.00"}]
[null,"Telefon","Anmerkung:",{"$nulls":3},{"v":0,"d":"0.00"}]
[null,"Druckkosten","Anmerkung:",{"$nulls":3},{"v":0,"d":"0.00"}]
[null,"Öffentlichkeitsarbeit, Werbung","Anmerkung:",{"$nulls":3},{"v":0,"d":"0.00"}]
[null,"Geschenke","Anmerkung:",{"$nulls":3},{"v":0,"d":"0.00"}]
[null,"Fachliteratur, Abo Spielgruppenzeitung","Anmerkung:",{"$nulls":3},{"v":0,"d":"0.00"}]
[null,"Diverses Pauschal","Anmerkung:",{"$nulls":3},{"v":0,"d":"0.00"}]
[null,"…","Anmerkung:",{"$nulls":3},{"v":0,"d":"0.00"}]
[null,"…","Anmerkung:",{"$nulls":3},{"v":0,"d":"0.00"}]
[19,"variable Betriebskosten ",{"$nulls":4},{"$f":"SUM(G184:G198)","v":{"v":0,"d":"0.00"}}]
[]
[]
[null,"Rückstellungen (Krankheit, Anschaffungen etc.)","Anmerkung:",{"$nulls":3},{"v":0,"d":"0.00"}]
[null,"…","Anmerkung:",{"$nulls":3},{"v":0,"d":"0.00"}]
[20,"Rückstellungen ",{"$nulls":4},{"$f":"SUM(G202:G203)","v":{"v":0,"d":"0.00"}}]
[]
[21,"Betriebskosten total (Positionen 18 + 19 + 20)",{"$nulls":4},{"$f":"G181+G199+G204","v":{"v":0,"d":"0.00"}}]
[]
[]
[22,"III) Vollkosten (Postion 17 + 21)",{"$nulls":4},{"$f":"G165+G206","v":{"v":0,"d":"0.00"}}]
[]
[23,"IV) Vollkosten pro Platz (Positionen 22 : 3 : 4) ",{"$nulls":4},{"$f":"G209/C18/C19","v":{"$error":"#DIV/0!"}}]
[]
[]
[]
[null,"Einnahmen"]
[]
[null,"I) Elternbeiträge"]
[null,null,"Fr. pro Platz","Kinder"]
[null,"Elternbeitrag pro Platz (wird in Rechnung gestellt)",{"v":0,"d":"0.00"},{"$nulls":4},"Hinweis: Preis pro Platz entspricht den Vollkosten (Position 23). Der Preis kann reduziert werden, wenn Beiträge Dritte (Position 25) vorhanden sind."]
[null,"Elternbeiträge bei erwarteter Auslastung gemäss Position 4 ",null,{"$f":"C18*C19","v":{"v":0,"d":"0.0"}},null,null,{"$f":"C219*D220","v":{"v":0,"d":"0.00"}}]
[]
[24,"Total Elternbeiträge",{"$nulls":4},{"$f":"SUM(G220:G221)","v":{"v":0,"d":"0.00"}}]
[]
[null,"II) Beiträge Dritte"]
[null,"Spenden","Anmerkung:",{"$nulls":3},{"v":0,"d":"0.00"}]
[null,"Beitrag Gemeinde","Anmerkung:",{"$nulls":3},{"v":0,"d":"0.00"}]
[null,"Beitrag Kirche","Anmerkung:",{"$nulls":3},{"v":0,"d":"0.00"}]
[null,"Beitrag Kanton","Anmerkung:",{"$nulls":3},{"v":0,"d":"0.00"}]
[null,"…","Anmerkung:",{"$nulls":3},{"v":0,"d":"0.00"}]
[null,"…","Anmerkung:",{"$nulls":3},{"v":0,"d":"0.00"}]
[25,"Total Beiträge Dritte",{"$nulls":4},{"$f":"SUM(G225:G230)","v":{"v":0,"d":"0.00"}}]
[]
[26,"Total Einnahmen (Positionen 24 + 25)",{"$nulls":4},{"$f":"G222+G231","v":{"v":0,"d":"0.00"}}]
[]
[]
[null,"Erfolgsrechnung"]
[]
[null,"Total Einnahmen (Position 26)",{"$nulls":4},{"$f":"G233","v":{"v":0,"d":"0.00"}}]
[null,"Total Ausgaben (Position 22)",{"$nulls":4},{"$f":"G209","v":{"v":0,"d":"0.00"}}]
[27,"Übertrag in Reserve (falls Einnahmen höher als Ausgaben)","Anmerkung:",{"$nulls":3},{"v":0,"d":"0.00"}]
[28,"Übertrag aus Reserven (falls Ausgaben höher als Einnahmen)","Anmerkung:",{"$nulls":3},{"v":0,"d":"0.00"},"Hinweis: nur Betrag ohne \"-\" (Minus) eingeben"]
[29,"Saldo",{"$nulls":4},{"$f":"G238-G239-G240+G241","v":{"v":0,"d":"0.00"}}]
[]
[30,"Gewinn oder Verlust / bzw. Eigenleistung Spielgruppenleiterinnen",{"$nulls":4},{"$f":"G242","v":{"v":0,"d":"0.00"}}]
[]
[]
[]
[null,"weitere Anmerkungen: "]